{"text_format":"1","workbook":"xlsx","n_sheets":16,"sheets":["Resgate","Atropelamento","Avistamentos","Hymenoptera","Geral","Quadros_resgates","Hist. Result (2)","at-km","Graf_1","GRAF-2(3)","Geral_antigão","Graf_2","Graf_2b","Treinamento","Quad","Decreto"],"not_rendered":{"charts":22,"images":7,"macros":1,"external_links":0,"defined_names":9,"comments":0,"pivot_tables":57},"unopened":[],"bounds":{"document_bytes":16777216,"sheet_cells":100000,"rows_first":2000,"rows_last":500,"rows_between":2000,"halvings":0,"cell_chars":16384,"cell_head_chars":4096},"cells_cut":0,"cells_raw":0,"read":"whole","date_system":"1900"}

{"sheet":"Resgate","index":0,"n_rows":177,"n_cols":27,"rows_kept":177,"cut":false,"hidden":false,"merged":[]}
["ID","Tipo ","Data","Hora do Registro","Identificação do Local","Resgate_X","Resgate_Y","Fitofisionomia/ Ambiente","Condição Meteorológica","NÚMERO DE INDIVÍDUOS","GRUPO","ORDEM","FAMÍLIA","Nome científico","Nome popular","Cond. do Animal","Base de Fauna","Estágio de desenvolvimento (no resgate)","Sexo","Acidentada em decorrência da obra","Quarentena","Destino","Data de destinação","Soltura_X","Soltura_Y","Espécies categorizadas pelo Decreto 63.853/2018","Informações adicionais"]
[1,"RE","2020-08-13","13:10:00","Canteiro de Apoio",308210,7490892,"Campo Antrópico","Ensolarado",1,"HERPETOFAUNA","Squamata","Dipsadidae","Oxyrhopus guibei","Falsa-coral","Saudável","Sim","Adulto","Fêmea","Não","Não","Soltura","2020-08-13",310715,7492902,"Não","-"]
[2,"RE","2020-08-14","15:05:00","Canteiro de Apoio",308529,7491337,"Campo Antrópico","Ensolarado",1,"HERPETOFAUNA","Squamata","Colubridae","Philodryas olfersii","Cobra-verde","Saudável","Sim","Adulto","Macho","Não","Não","Soltura","2020-08-14",310719,7492752,"Não","-"]
[3,"RE","2020-08-24","16:49:00","Canteiro de Apoio",307556,7490619,"Campo Antrópico","Ensolarado",1,"HERPETOFAUNA","Squamata","Mabuydae","Copeoglossum nigropunctatum","Calango-cobra","Ferido","Sim","Adulto","ND","Sim","Sim","Soltura","2020-08-25",310917,7492652,"Não","-"]
["-","AF","2020-08-20","-","ASV - Área 17",307474,7490683,"Fragmento Florestal","Ensolarado",1,"MASTOFAUNA","Primata","Cebidae","Calitrix pericilatta","Sagui Tufo Preto","Saudável","Não","Adulto","ND","Não","Não","-","-","-","-","-","-"]
["-","AF","2020-08-24","-","ASV - Área 07",307564,7490497,"Fragmento Florestal","Ensolarado",1,"HERPETOFAUNA","Squamata","Teiidae","Salvator merianae","Teiú","Saudável","Não","Adulto","ND","Não","Não","-","-","-","-","-","-"]
["-","AF","2020-08-31","-","ASV - Área 35",308849,7490811,"Fragmento Florestal","Ensolarado",1,"MASTOFAUNA","Cingulata","Dasypodidae","Dasypus novemcinctus","Tatu Galinha","Saudável","Não","Adulto","ND","Não","Não","-","-","-","-","-","-"]
[7,"RE","2020-09-14","09:48:00","ASV - Área 03",309841,7492242,"Fragmento Florestal","Ensolarado",1,"HERPETOFAUNA","Squamata","Dipsadidae","Dipsas mikanii","Jararaca-dormideira","Saudável","Sim","Jovem","Fêmea","Não","Não","Soltura","2020-09-14",310906,7492656,"Não","-"]
[8,"RE","2020-09-14","11:05:00","ASV - Área 03",310192,7492168,"Fragmento Florestal","Ensolarado",1,"MASTOFAUNA","Rodentia","Muridae","Apodemus sylvaticus","Rato-do-campo","Saudável","Sim","Adulto","Macho","Não","Não","Soltura","2020-09-14",310906,7492654,"Não","-"]
[11,"RE","2020-09-17","08:55:00","Canteiro de Apoio",308607,7491454,"Campo Antrópico","Ensolarado",1,"HERPETOFAUNA","Squamata","Dipsadidae","Dipsas mikanii","Jararaca-dormideira","Saudável","Sim","Adulto","Fêmea","Não","Não","Soltura","2020-09-17",310850,7492616,"Não","-"]
[14,"RE","2020-09-21","06:50:00","Canteiro de Apoio",308507,7491370,"Campo Antrópico","Ensolarado",1,"MASTOFAUNA","Didelphimorphia","Didelphidae","Didelphis albiventris","Gambá-de-orelha-branca","Morto","Sim","Jovem","Macho","Não","Não","UNIFAJ","2020-12-01",292726,7486121,"Não","Aguardando encaminhamento para a Universidade"]
[16,"RE","2020-09-26","11:40:00","ASV - Área 22",307295,7490803,"Fragmento Florestal","Ensolarado",1,"HERPETOFAUNA","Squamata","Viperidae","Crotalus durissus","Cascavel","Saudável","Sim","Adulto","Macho","Não","Não","Soltura","2020-09-26",310846,7492650,"Não","-"]
[17,"RE","2020-09-26","11:40:00","ASV - Área 22",307295,7490803,"Fragmento Florestal","Ensolarado",1,"HERPETOFAUNA","Squamata","Viperidae","Crotalus durissus","Cascavel","Saudável","Sim","Adulto","Fêmea","Não","Não","Soltura","2020-09-26",310846,7492650,"Não","-"]
[19,"RE","2020-09-29","14:40:00","Área 22",307537,7490816,"Pastagem","Ensolarado",1,"HERPETOFAUNA","Squamata","Viperidae","Crotalus durissus","Cascavel","Saudável","Sim","Jovem","Fêmea","Não","Não","Soltura","2020-09-29",310954,7492667,"Não","-"]
[21,"RE","2020-11-23","14:47:00","Canteiro de Apoio",308504,7491421,"Infraestrutura","Ensolarado",1,"HERPETOFAUNA","Squamata","Dipsadidae","Dipsas mikanii","Jararaca-dormideira","Saudável","Sim","Jovem","Fêmea","Não","Não","Soltura","2020-11-23",310958,7492649,"Não","-"]
[24,"RE","2020-11-28","12:50:00","Canteiro de Apoio",308500,7491338,"Campo Antrópico","Ensolarado",1,"AVIFAUNA","Passeriformes","Hirundinidae","Pygochelidon cyanoleuca","Andorinha-pequena-de-casa","Ferido","Sim","Adulto","ND","Não","Não","CRAS - Mata Ciliar","2020-11-28",305466,7484505,"Não","Destinado ao CRAS - Mata Ciliar"]
[25,"RE","2020-12-01","14:40:00","Canteiro de Apoio",308506,7491385,"Fragmento Florestal","Ensolarado",1,"AVIFAUNA","Piciformes","Ramphastidae","Ramphastos toco","Tucano-toco","Morto","Sim","Adulto","ND","Não","Não","Base de Fauna","-",308508,7491376,"Não","Aguardando encaminhamento para a Universidade"]
[26,"RE","2020-12-02","16:40:00","Canteiro de Apoio",308506,7491385,"Infraestrutura","Ensolarado",1,"AVIFAUNA","Columbiformes","Columbidae","Zenaida auriculata","Avoante","Ferido","Sim","Adulto","ND","Não","Não","CRAS - Mata Ciliar","2020-12-02",305466,7484505,"Não","Destinado ao CRAS - Mata Ciliar"]
[28,"RE","2020-12-29","15:20:00","Sublote de plantio 1.13",308642,7491438,"Futura APP","Ensolarado",1,"HERPETOFAUNA","Squamata","Dipsadidae","Dipsas mikanii","Jararaca-dormideira","Morto","Sim","Adulto","Fêmea","Sim","Não","Base de Fauna","-",308508,7491376,"Não","Aguardando encaminhamento para a Universidade"]
[30,"RE","2021-01-07","09:30:00","Sublote de plantio 1.13",308790,7491501,"Futura APP","Ensolarado",1,"HERPETOFAUNA","Squamata","Viperidae","Crotalus durissus","Cascavel","Morto","Sim","Adulto","Fêmea","Sim","Não","Base de Fauna","-",308508,7491376,"Não","-"]
[31,"RE","2021-01-08","10:02:00","Sublote de plantio 1.14",308798,7491427,"Futura APP","Ensolarado",1,"HERPETOFAUNA","Squamata","Viperidae","Crotalus durissus","Cascavel","Saudável","Sim","Adulto","ND","Não","Não","Soltura","2021-01-08",310908,7492663,"Não","-"]
[32,"RE","2021-01-13","14:32:00","Canteiro de Apoio",308526,7491330,"-","Ensolarado",1,"MASTOFAUNA","Rodentia","Cavidae ","Cavia aparea","Preá","Morto","Sim","Adulto","Fêmea","Sim","Não","Soltura","2021-01-13",308506,7491375,"Não","-"]
[33,"RE","2021-01-13","14:35:00","Sublote de plantio 1.14",308797,7491428,"Futura APP","Ensolarado",1,"HERPETOFAUNA","Squamata","Viperidae","Crotalus durissus","Cascavel","Saudável","Sim","Jovem","ND","Não","Não","Soltura","2021-01-13",310946,7492652,"Não","-"]
[34,"RE","2021-01-14","10:42:00","Canteiro de Apoio",308507,7491421,"-","Ensolarado",1,"HERPETOFAUNA","Anura","Bufonidae","Rhinella sp.","Sapo Cururu","Saudável","Sim","Jovem","ND","Não","Não","Soltura","2021-01-14",310950,7492645,"Não","-"]
[36,"RE","2021-01-18","13:13:00","Sublote de plantio 1.14",308717,7491406,"Futura APP","Ensolarado",1,"HERPETOFAUNA","Squamata","Viperidae","Bothrops jararaca","Jararaca-da-mata","Saudável","Sim","Adulto","ND","Não","Não","Soltura","2021-01-18",310959,7493126,"Não","-"]
[37,"RE","2021-01-18","13:20:00","Sublote de plantio 1.14",308715,7491407,"Futura APP","Ensolarado",1,"HERPETOFAUNA","Squamata","Viperidae","Bothrops jararaca","Jararaca-da-mata","Morto","Sim","Adulto","ND","Não","Sim","Base de Fauna","2021-01-18",308506,7491375,"Não","Aguardando encaminhamento para a UNIFAJ"]
[38,"RE","2021-01-19","14:40:00","Sublote de plantio 1.14",308714,7491406,"Futura APP","Ensolarado",1,"HERPETOFAUNA","Squamata","Viperidae","Crotalus durissus","Cascavel","Morto","Sim","Adulto","Fêmea","Sim","Não","Base de Fauna","2021-01-19",308508,7491376,"Não","Aguardando encaminhamento para a UNIFAJ"]
[39,"RE","2021-01-19","14:43:00","Sublote de plantio 1.15",308678,7491377,"Futura APP","Ensolarado",1,"HERPETOFAUNA","Squamata","Viperidae","Crotalus durissus","Cascavel","Saudável","Sim","Adulto","Macho","Não","Não","Soltura","2021-01-19",310966,7492683,"Não","-"]
[40,"RE","2021-01-20","11:17:00","Sublote de plantio 1.15",308657,7491382,"Futura APP","Ensolarado",1,"HERPETOFAUNA","Squamata","Viperidae","Bothrops jararaca","Jararaca-da-mata","Morto","Sim","Jovem","ND","Sim","Não","Base de Fauna","2021-01-20",308508,7491376,"Não","Aguardando encaminhamento para a UNIFAJ"]
[41,"RE","2021-01-20","13:10:00","Sublote de plantio 1.14",308602,7491415,"Futura APP","Ensolarado",1,"HERPETOFAUNA","Squamata","Dipsadidae","Dipsas mikanii","Jararaca - dormideira","Saudável","Sim","Jovem","ND","Não","Não","Soltura","2021-01-20",311039,7493178,"Não","-"]
[42,"RE","2021-01-27","15:10:00","Sublote de plantio 1.15",308843,7491353,"Futura APP","Ensolarado",1,"HERPETOFAUNA","Squamata","Viperidae","Bothrops jararaca","Jararaca-da-mata","Saudável","Sim","Jovem","ND","Não","Não","Soltura","2021-01-27",310976,7493211,"Não","-"]
[44,"RE","2021-02-01","14:43:00","Sublote de plantio 1.15",308843,7491353,"Infraestrutura","Ensolarado",1,"HERPETOFAUNA","Squamata","Viperidae","Bothrops jararaca","Jararaca-da-mata","Saudável","Sim","Adulto","ND","Não","Não","Soltura","2021-02-01",310975,7492681,"Não","-"]
[46,"RE","2021-02-05","07:45:00","Canteiro de Apoio",308515,7491429,"Campo Antrópico","Ensolarado",1,"AVIFAUNA","Psittaciformes","Psittacidae","Psittacara leucophthalmus","Maritaca-maracanã","Saudável","Sim","Neonato","ND","Não","Não","CRAS - Mata Ciliar","2021-02-05",305466,7484505,"Não","Destinado ao CRAS - Mata Ciliar"]
[47,"RE","2021-02-05","12:42:00","Replantio",309596,7491729,"Futura APP","Ensolarado",1,"HERPETOFAUNA","Squamata","Viperidae","Bothrops alternatus","Urutu","Morto","Sim","Jovem","Fêmea","Sim","Não","Base de Fauna","-",308508,7491376,"Não","Aguardando encaminhamento para a UNIFAJ"]
[48,"RE","2021-02-06","09:45:00","ASV - Área 20",307871,7490844,"Campo Antrópico","Ensolarado",1,"HERPETOFAUNA","Squamata","Dipsadidae","Oxyrhopus guibei","Falsa-coral","Morto","Sim","Adulto","Fêmea","Sim","Não","Base de Fauna","-",308508,7491376,"Não","Aguardando encaminhamento para a UNIFAJ"]
[50,"RE","2021-01-17","08:46:00","Canteiro de Apoio",3077326,7491217,"Campo Antrópico","Ensolarado",1,"HERPETOFAUNA","Squamata","Viperidae","Crotalus durissus","Cascavel","Saudável","Sim","Adulto","ND","Não","Não","Soltura","2021-02-05",310975,7492681,"Não","-"]
[52,"RE","2021-02-18","10:10:00","Canteiro de Apoio",308499,7491363,"Infraestrutura","Ensolarado",1,"AVIFAUNA","Psittaciformes","Psittacidae","Psittacara leucophthalmus","Maritaca-maracanã","Morto","Sim","Adulto","ND","Sim ","Não","Base de Fauna","2021-02-18",308508,7491376,"Não","Aguardando encaminhamento para UNIFAJ"]
[55,"RE","2021-02-23","08:15:00","Canteiro de Apoio",308552,7491390,"Infraestrutura","Nublado",1,"HERPETOFAUNA","Squamata","Dipsadidae","Taeniophallus afinnis","Cobra-Cabeça-preta","Morto","Sim","Neonato","ND","Sim ","Não","Base de Fauna","2021-02-23",308508,7491376,"Não","Aguardando encaminhamento para UNIFAJ"]
[56,"RE","2021-02-23","10:45:00","Canteiro de Apoio",308534,7491418,"Infraestrutura","Ensolarado",1,"MASTOFAUNA","Didelphimorphia","Didelphidae","Didelphis aurita","Gambá-de-orelha-preta","Morto","Sim","Jovem","ND","Não","Não ","Base de Fauna","2021-02-23",308508,7491376,"Não","Aguardando encaminhamento para UNIFAJ"]
[57,"RE","2021-02-24","08:06:00","Canteiro de Apoio",308515,7491415,"Infraestrutura","Ensolarado",1,"HERPETOFAUNA","Squamata","Viperidae","Crotalus durissus","Cascavel","Saudável","Sim","Jovem","ND","Não","Não","Soltura","2021-02-24",310975,7492681,"Não","-"]
[60,"RE","2021-03-03","14:46:00","Sublote de plantio 7.3",310269,7491721,"Futura APP","Ensolarado",1,"HERPETOFAUNA","Squamata","Viperidae","Bothrops urutu","Urutu-cruzeiro","Saudável","Sim","Adulto","ND","Não","Não","Soltura","2021-03-03",310975,7492681,"Não","-"]
[61,"RE","2021-03-12","11:42:00","Sublote de plantio 7.1",310342,7491251,"Futura APP","Ensolarado",1,"HERPETOFAUNA","Squamata","Viperidae","Crotalus durissus","Cascavel","Saudável","Sim","Adulto","ND","Não","Não","Soltura","2021-03-12",310975,7492681,"Não","-"]
[62,"RE","2021-03-13","19:05:00","Canteiro de Apoio",308505,7491419,"Futura APP","Ensolarado",1,"HERPETOFAUNA","Squamata","Dipsadidae","Oxyrhopus guibei","Falsa-coral","Saudável","Sim","Adulto","ND","Não","Não","Soltura","2021-03-13",310271,7492521,"Não","-"]
[63,"RE","2021-03-17","07:40:00","Canteiro de Apoio",308523,7491440,"Futura APP","Ensolarado",1,"HERPETOFAUNA","Squamata","Viperidae","Bothrops newiedi","Jararaca-de-rabo-branco","Saudável","Sim","Jovem","ND","Não","Não","Soltura","2021-03-18",310271,7492521,"Não","-"]
[64,"RE","2021-03-17","09:40:00","Canteiro de Apoio",308516,7491397,"Futura APP","Ensolarado",1,"HERPETOFAUNA","Squamata","Viperidae","Tantilla melanocephala","Cobra-de-cabeça-preta","Saudável","Sim","Adulto","ND","Não","Não","Soltura","2021-03-18",310317,7492509,"Não","-"]
[66,"RE","2021-03-24","09:14:00","Canteiro de Apoio",308522,7491401,"Futura APP","Ensolarado",1,"AVIFAUNA","Passeriformes","Thraupidae","Sicalis flaveola","Canario-da-terra","Saudável","Sim","Filhote","ND","Não","Não","CRAS - Mata Ciliar","2021-03-24",305466,7484505,"Não","Destinado ao CRAS - Mata Ciliar"]
[67,"RE","2021-03-29","14:32:00","Sublote de plantio 7.6",310340,7491713,"Futura APP","Ensolarado",1,"HERPETOFAUNA","Squamata","Viperidae","Bothrops urutu","Urutu-cruzeiro","Morto","Sim","Adulto","Fêmea","Sim","Não","Base de Fauna","2021-03-29",308508,7491376,"Não","Aguardando encaminhamento para UNIFAJ"]
[68,"RE","2021-04-01","14:40:00","Canteiro de Apoio",308326,7491137,"Futura APP","Ensolarado",1,"MASTOFAUNA","Primates","Callitrichidae","Callithrix jacchus","Sagui-tufo-branco","Morto","Sim","Adulto","ND","Sim","Não","Base de Fauna","2021-04-01",308508,7491376,"Não","-"]
[69,"RE","2021-04-04","09:00:00","Sublote de plantio 11.1",308201,7490092,"Futura APP","Ensolarado",1,"HERPETOFAUNA","Squamata","Boidae","Boa Constrictor","Jiboia-constritora","Saudável","Sim","Jovem","Fêmea","Não","Não","Soltura","2021-04-04",310317,7492509,"Não","-"]
[70,"RE","2021-04-21","16:45:00","Canteiro de Apoio",308549,7491480,"Fragmento Florestal","Ensolarado",1,"HERPETOFAUNA","Squamata","Viperidae","Bothrops newiedi","Jararaca-rabo-branco","Saudável","Sim","Filhote","ND","Não","Não","Soltura","2021-04-21",310317,7492509,"Não","-"]
[71,"RE","2021-04-21","16:45:00","Canteiro de Apoio",308549,7491480,"Fragmento Florestal","Ensolarado",1,"HERPETOFAUNA","Squamata","Viperidae","Bothrops newiedi","Jararaca-rabo-branco","Saudável","Sim","Filhote","ND","Não","Não","Soltura","2021-04-21",310317,7492509,"Não","-"]
[72,"RE","2021-04-21","16:45:00","Canteiro de Apoio",308549,7491480,"Fragmento Florestal","Ensolarado",1,"HERPETOFAUNA","Squamata","Viperidae","Bothrops newiedi","Jararaca-rabo-branco","Saudável","Sim","Filhote","ND","Não","Não","Soltura","2021-04-21",310317,7492509,"Não","-"]
[73,"RE","2021-04-21","16:45:00","Canteiro de Apoio",308549,7491480,"Fragmento Florestal","Ensolarado",1,"HERPETOFAUNA","Squamata","Viperidae","Bothrops newiedi","Jararaca-rabo-branco","Saudável","Sim","Filhote","ND","Não","Não","Soltura","2021-04-21",310317,7492509,"Não","-"]
[74,"RE","2021-04-21","16:45:00","Canteiro de Apoio",308549,7491480,"Fragmento Florestal","Ensolarado",1,"HERPETOFAUNA","Squamata","Viperidae","Bothrops newiedi","Jararaca-rabo-branco","Morto","Sim","Filhote","ND","Sim","Não","Base de Fauna","2021-04-21",308508,7491376,"Não","-"]
[75,"RE","2021-05-07","08:45:00","Bota fora",309007,7490630,"Futura APP","Ensolarado",1,"HERPETOFAUNA","Squamata","Teiidae","Salvator merianae","Teiú","Saudável","Sim","Adulto","ND","Não","Não","Soltura","2021-05-07",310852,749209,"Não","-"]
[76,"RE","2021-05-10","13:23:00","Industrial",307947,7491175,"Futura APP","Ensolarado",1,"HERPETOFAUNA","Squamata","Viperidae","Philodryas olfersii","Cobra-verde","Saudável","Sim","Adulto","ND","Não","Não","Soltura","2021-05-10",310881,7492618,"Não","-"]
[77,"RE","2021-05-12","14:35:00","Sublote de plantio 7.6",310253,7491742,"Futura APP","Ensolarado",1,"HERPETOFAUNA","Squamata","Viperidae","Bothrops urutu","Urutu","Saudável","Sim","Adulto","ND","Não","Não","Soltura","2021-05-12",310940,7492641,"Não","-"]
[78,"RE","2021-05-13","10:10:00","ASV - Area 22",307435,7490776,"Futura APP","Ensolarado",1,"HERPETOFAUNA","Squamata","Viperidae","Bothrops newiedi","Jararaca rabo branco","Saudável","Sim","Filhote","ND","Não","Não","Soltura","2021-05-13",310934,7492640,"Não","-"]
[79,"RE","2021-05-13","10:15:00","ASV - Area 22",307433,7490786,"Futura APP","Ensolarado",1,"HERPETOFAUNA","Squamata","Viperidae","Crotalus durissus","Cascavel","Saudável","Sim","Adulto","ND","Não","Não","Soltura","2021-05-13",310952,7492641,"Não","-"]
[80,"RE","2021-05-27","07:40:00","Canteiro de Apoio",308526,7491108,"Futura APP","Ensolarado",1,"HERPETOFAUNA","Squamata","Viperidae","Bothrops urutu","Urutu","Saudável","Sim","Adulto","ND","Não","Não","Soltura","2021-05-27",310928,7492634,"Não","-"]
[81,"RE","2021-05-27","08:50:00","Canteiro de Apoio",309637,7492159,"Futura APP","Ensolarado",1,"HERPETOFAUNA","Squamata","Viperidae","Crotalus durissus","Casacavel","Saudável","Sim","Adulto","ND","Não","Não","Soltura","2021-05-27",310874,7492698,"Não","-"]
[82,"RE","2021-06-01","08:25:00","ADM",308541,7491419,"Infraestrutura","Ensolarado",1,"AVIFAUNA","Gruiformes","Rallidae","Aramides saracura","Saracura","Saudavel","Sim","Adulto","ND","Não","Não","Soltura","2021-06-01",308409,7491419,"Não","-"]
[83,"RE","2021-06-08","08:27:00","Canteiro ADM",307992,7491119,"Infraestrutura","Ensolarado",1,"HERPETOFAUNA","Squamata","Dipsadidae","Dipsas mikanii","Jararaca - dormideira","Saudavel","Sim","Jovem","ND","Não","Não","Soltura","2021-06-08",310971,7492650,"Não","-"]
[84,"RE","2021-06-24","07:35:00","Area de vivencia",307945,7491253,"Infraestrutura","Ensolarado",1,"MASTOFAUNA","Carnivora","Felidae","Herpailurus yogoauaroundi","Gato - mourisco","Morto","Sim","Adulto","Fêmea","Não","Não","Base de Fauna","2021-06-24",308494,7491452,"Não","-"]
[85,"RE","2021-07-01","10:45:00","13A",308054,7491788,"Fragmento Florestal","Ensolarado",1,"HERPETOFAUNA","Squamata","Viperidae","Crotalus durissus","Cascavel","Saudavel","Sim","Adulto","ND","Não","Não","Soltura","2021-07-01",310966,7492658,"Não"]
[86,"RE","2021-07-10","13:25:00","Area de replantio",308163,7489966,"Cultivo Agricola","Ensolarado",1,"HERPETOFAUNA","Squamata","Viperidae","Bothrops jararaca","jararaca da mata","Ferido","Sim","Adulto","Fêmea","Sim","Sim","Soltura","2021-07-15",310918,7492635,"Não"]
[87,"RE","2021-07-12","16:32:00","Bota fora",308762,7490883,"Canteiro de obras","Ensolarado",1,"HERPETOFAUNA","Squamata","Dipsadidae","Oxyrhopus guibei","Falsa-coral","Saudavel","Sim","Adulto","Fêmea","Sim","Não","Soltura","2021-07-12",310925,7492638,"Não"]
[88,"RE","2021-07-15","07:30:00","ADM",908511,7491414,"Infraestrutura","Ensolarado",1,"HERPETOFAUNA","Squamata","Dipsadidae","Oxyrhopus guibei","Falsa-coral","Saudavel","sim","Filhote","nd","Não","Não","Soltura","2021-07-15",310921,7492643,"Não"]
[89,"RE","2021-08-03","14:23:00","Area de replantio",308562,7491419,"Fragmento Florestal","Ensolarado",1,"HERPETOFAUNA","Squamata","Dipsadidae","Oxyrhopus guibei","Falsa-coral","Morto","Sim","Adulto","Macho","Sim","Não","Base de Fauna","2021-08-03",308494,7491452,"Não"]
[90,"RE","2021-08-06","07:43:00","Area de replantio",308507,7491268,"Infraestrutura","Ensolarado",1,"MASTOFAUNA","Didelphimorphia","Didelphidae","Didelphis albiventris","Gamba de orelha branca","Morto","Sim","Adulto","Fêmea","Não","Não","Base de Fauna","2021-08-06",308494,7491452,"Não"]
[91,"RE","2021-08-19","09:23:00","Canteiro de Apoio",309849,7492466,"Fragmento Florestal","Ensolarado",1,"HERPETOFAUNA","Squamata","Viperidae","Bothrops jararaca","jararaca da mata","Saudavel","Sim","Adulto","Fêmea","Não","Não","Soltura","2021-08-19",310909,7492641,"Não"]
[92,"RE","2021-09-15","09:26:00","Cultivo agricola",311661,7493467,"Cultivo Agricola","Ensolarado",1,"HERPETOFAUNA","Squamata","Viperidae","Bothrops urutu","Urutu","Saudavel","Sim","Adulto","ND","Não","Não","Soltura","2021-09-19",311003,7493123,"Não"]
[93,"RE","2021-09-17","10:22:00","Canteiro de obras",308314,7491115,"Infraestrutura","Ensolarado",1,"HERPETOFAUNA","Squamata","Teiidae","Salvator merianae","Teiu","Morto","Sim","Adulto","ND","Sim","Não","Base de Fauna","2021-09-17",308494,74911452,"Não"]
[94,"RE","2021-09-23","08:28:00","ADM",308507,7491419,"Infraestrutura","Ensolarado",1,"MASTOFAUNA","Didelphimorphia","Didelphidae","Monodelphis","Cuica marrom","Saudavel","Sim","Adulto","Fêmea","Não","Não","Soltura","2021-09-23",311044,7493175,"Não"]
[95,"RE","2021-10-15","14:37:00","Industrial",307948,7491173,"Infraestrutura","Ensolarado",1,"HERPETOFAUNA","Squamata","Viperidae","Crotalus durissus","Cascavel","Saudavel","Sim","Adulto","ND","Não","Não","Soltura","2021-10-15",311054,7493163,"Não"]
[96,"RE","2021-10-20","10:20:00","2.2",311120,7493520,"Cultivo Agricola","Ensolarado",1,"HERPETOFAUNA","Squamata","Viperidae","Crotalus durissus","Cascavel","Saudavel","Sim","Adulto","ND","Não","Não","Soltura","2021-10-20",311028,7493163,"Não"]
[97,"RE","2021-10-29","09:30:00","ADM",308493,7491416,"Infraestrutura","Ensolarado",1,"HERPETOFAUNA","Squamata","Dipsadidae","Dipsas mikanii","Dormideira","Saudavel","Sim","Adulto","Fêmea","Não","Não","Soltura","2021-10-26",310920,7492635,"Não"]
[98,"RE","2021-10-30","08:42:00","ADM",307628,7490809,"Infraestrutura","Ensolarado",1,"HERPETOFAUNA","Squamata","Elapidae","Micrurus sp.","Cobra - coral","Saudavel","Sim","Adulto","ND","Não","Não","Soltura","2021-10-30",311033,7493166,"Não"]
[99,"RE","2021-11-18","08:42:00","Canteiro de obras",307687,7490537,"Canteiro de obras","Ensolarado",1,"AVIFAUNA","Charadriformes","Charadriidae","Vanellus chilensis","Quero-quero","Saudavel","Sim","Neonato","ND","Não","Sim","CRAS - Mata Ciliar","2021-11-25",301182,7435554,"Não"]
[100,"AT","2021-11-22","13:54:00","ADM",308372,7491094,"Canteiro de obras","Ensolarado",1,"HERPETOFAUNA","Squamata","Teiidae","Salvator merianae","Teiu","Morto","Sim","Adulto","Fêmea","Sim","Não","Base de Fauna","2021-11-22",308494,74911452,"Não"]
[101,"RE","2021-11-25","07:33:00","Canteiro de obras",308168,7490593,"Canteiro de obras","Ensolarado",1,"AVIFAUNA","Caprimulgiformes","Caprimulgiformes","Caprimulgidae","Bacurau","Ferido","Sim","Adulto","ND","Sim","Não","CRAS - Mata Ciliar","2021-11-25",301182,7435554,"Não"]
[102,"RE","2021-12-13","09:37:00","Viveiro de plantas",308552,7491390,"Canteiro de obras","Ensolarado",1,"HERPETOFAUNA","Squamata","Viperidae","Crotalus durissus","Cascavel","Saudavel","Sim","Adulto","ND","Não","Não","Soltura","2021-12-13",311026,7493163,"Não"]
[103,"RE","2021-12-20","15:15:00","ADM",308541,7491419,"Infraestrutura","Ensolarado",1,"HERPETOFAUNA","Squamata","Dipsadidae","Oxyrhopus guibei","Falsa-coral","Saudavel","Sim","Adulto","ND","Não","Não","Soltura","2021-12-20",310925,7492638,"Não"]
[104,"RE","2022-01-19","10:30:00","Base de fauna ",308497,7491380,"Infraestrutura","Ensolarado",1,"AVIFAUNA","Psittaciformes","Psittacidae","Psittacara leucophthalmus","Maritaca-maracanã","saudavel","Sim","Filhote","ND","Não","Sim","CRAS - Mata Ciliar","28/01;2022",301182,7435554,"Não"]
[105,"RE","2022-01-19","10:30:00","Base de fauna ",308497,7491380,"Infraestrutura","Ensolarado",1,"AVIFAUNA","Psittaciformes","Psittacidae","Psittacara leucophthalmus","Maritaca-maracanã","saudavel","Sim","Filhote","ND","Não","Sim","CRAS - Mata Ciliar","28/01;2022",301182,7435554,"Não"]
[106,"RE","2022-01-19","11:00:00","Industrial",308061,7491104,"Cultivo Agricola","Ensolarado",1,"HERPETOFAUNA","Squamata","Viperidae","Crotalus durissus","cascavel","saudavel","Sim","Adulto","ND","Não","Não ","Soltura","2022-01-19",311026,7493163,"Não"]
[107,"AT","2022-01-21","08:40:00","Industrial",307989,7491019,"Cultivo Agricola","Ensolarado",1,"HERPETOFAUNA","Squamata","Dipsadidae","Philodryas patagoniensis ","cobra papa pinto ","Morto","Sim","Adulto","ND","sim ","não ","Base de Fauna","2022-01-21",308494,74911452,"Não","Aguardando encaminhamento para UNIFAJ"]
[108,"RE","2022-01-21","14:00:00","Industrial",307653,7491144,"Canteiro de obras","Ensolarado",1,"HERPETOFAUNA","Squamata","Dipsadidae","Dipsas mikanii","Dormideira","Morto","Sim","Jovem","ND","sim","não","Base de Fauna","2022-01-21",308494,74911452,"Não","Aguardando encaminhamento para UNIFAJ"]
[109,"AT ","2022-01-27","07:00:00","Estrada entre ind. e adm.",308502,7495356,"via de acesso ","Ensolarado",1,"MASTOFAUNA","Cingulata","Dasypodidae","Dasypus novemcinctus","Tatu Galinha","Morto","Sim","Adulto","ND","sim","não","Base de Fauna","2022-01-27",308494,74911452,"Não","Aguardando encaminhamento para UNIFAJ"]
[110,"RE","2022-02-02","08:53:00","bota espera ",308167,7490701,"Estrada ","chuvoso ",1,"MASTOFAUNA","logomorpha","leporidae ","lepus europaeus","lebre ","Morto","Sim","Adulto","Fêmea","Não","não ","Base de Fauna","2022-02-02",308494,74911452,"Não","Aguardando encaminhamento para UNIFAJ"]
[111,"RE","2022-02-04","08:10:00","Usina de concreto",null,null,"Infraestrutura","Ensolarado",1,"HERPETOFAUNA","Squamata","Dipsadidae","Dipsas mikanii","Dormideira","Morto","Sim","Filhote","ND","Não","não","Base de Fauna","2022-02-04",308494,74911452,"Não","Aguardando encaminhamento para UNIFAJ"]
[112,"RE","2022-02-04","11:00:00","Area de Plantio","307886.21","7490016.22","Cultivo Agricola","Ensolarado",1,"AVIFAUNA","anseiriforme ","anatidae ","Dendrocygha Autumnalis","Marreca cabocla","saudavel","Sim","Filhote","ND","sim ","sim","Base de Fauna","2022-02-05",308494,74911452,"Não","aguardando desenvolvimento para posterior soltura "]
[113,"RE","2022-02-04","11:00:00","Area de Plantio","307886.22","7490016.23","Cultivo Agricola","Ensolarado",1,"AVIFAUNA","anseiriforme ","anatidae ","Dendrocygha Autumnalis","Marreca cabocla","saudavel","Sim","Filhote","ND","sim ","sim","Base de Fauna","2022-02-06",308494,74911452,"Não","aguardando desenvolvimento para posterior soltura "]
[114,"RE","2022-02-04","11:00:00","Area de Plantio","307886.23","7490016.24","Cultivo Agricola","Ensolarado",1,"AVIFAUNA","anseiriforme ","anatidae ","Dendrocygha Autumnalis","Marreca cabocla","saudavel","Sim","Filhote","ND","sim ","sim","Base de Fauna","2022-02-07",308494,74911452,"Não","aguardando desenvolvimento para posterior soltura "]
[115,"RE","2022-02-04","11:00:00","Area de Plantio","307886.24","7490016.25","Cultivo Agricola","Ensolarado",1,"AVIFAUNA","anseiriforme ","anatidae ","Dendrocygha Autumnalis","Marreca cabocla","saudavel","Sim","Filhote","ND","sim ","sim","Base de Fauna","2022-02-08",308494,74911452,"Não","aguardando desenvolvimento para posterior soltura "]
[116,"RE","2022-02-04","11:00:00","Area de Plantio","307886.25","7490016.26","Cultivo Agricola","Ensolarado",1,"AVIFAUNA","anseiriforme ","anatidae ","Dendrocygha Autumnalis","Marreca cabocla","saudavel","Sim","Filhote","ND","sim ","sim","Base de Fauna","2022-02-09",308494,74911452,"Não","aguardando desenvolvimento para posterior soltura "]
[117,"RE","2022-02-04","11:00:00","Area de Plantio","307886.26","7490016.27","Cultivo Agricola","Ensolarado",1,"AVIFAUNA","anseiriforme ","anatidae ","Dendrocygha Autumnalis","Marreca cabocla","saudavel","Sim","Filhote","ND","sim ","sim","Base de Fauna","2022-02-10",308494,74911452,"Não","aguardando desenvolvimento para posterior soltura "]
[118,"RE","2022-02-04","11:00:00","Area de Plantio","307886.27","7490016.28","Cultivo Agricola","Ensolarado",1,"AVIFAUNA","anseiriforme ","anatidae ","Dendrocygha Autumnalis","Marreca cabocla","saudavel","Sim","Filhote","ND","sim ","sim","Base de Fauna","2022-02-11",308494,74911452,"Não","aguardando desenvolvimento para posterior soltura "]
[119,"RE","2022-02-04","11:00:00","Area de Plantio","307886.28","7490016.29","Cultivo Agricola","Ensolarado",1,"AVIFAUNA","anseiriforme ","anatidae ","Dendrocygha Autumnalis","Marreca cabocla","Morto","Sim","Filhote","ND","sim ","sim","Base de Fauna","2022-02-12",308494,74911452,"Não","Aguardando encaminhamento para UNIFAJ"]
[120,"RE","2022-02-04","11:00:00","Area de Plantio","307886.29","7490016.30","Cultivo Agricola","Ensolarado",1,"AVIFAUNA","anseiriforme ","anatidae ","Dendrocygha Autumnalis","Marreca cabocla","Morto","Sim","Filhote","ND","sim ","sim","Base de Fauna","2022-02-13",308494,74911452,"Não","Aguardando encaminhamento para UNIFAJ"]
[121,"RE","2022-02-04","11:00:00","Area de Plantio","307886.30","7490016.31","Cultivo Agricola","Ensolarado",1,"AVIFAUNA","anseiriforme ","anatidae ","Dendrocygha Autumnalis","Marreca cabocla","Morto","Sim","Filhote","ND","sim ","sim","Base de Fauna","2022-02-14",308494,74911452,"Não","Aguardando encaminhamento para UNIFAJ"]
[122,"RE","2022-02-04","11:00:00","Area de Plantio","307886.31","7490016.32","Cultivo Agricola","Ensolarado",1,"AVIFAUNA","anseiriforme ","anatidae ","Dendrocygha Autumnalis","Marreca cabocla","Morto","Sim","Filhote","ND","sim ","sim","Base de Fauna","2022-02-15",308494,74911452,"Não","Aguardando encaminhamento para UNIFAJ"]
[123,"RE","2022-02-04","11:00:00","Area de Plantio","307886.32","7490016.33","Cultivo Agricola","Ensolarado",1,"AVIFAUNA","anseiriforme ","anatidae ","Dendrocygha Autumnalis","Marreca cabocla","Morto","Sim","Filhote","ND","sim ","sim","Base de Fauna","2022-02-16",308494,74911452,"Não","Aguardando encaminhamento para UNIFAJ"]
[124,"RE","2022-02-14","10:44:00","Area de Plantio",307961,7490114,"Cultivo Agricola","Ensolarado",1,"MASTOFAUNA","Artiodactilus","cervideos ","mazana americana ","Veado Mateiro ","Morto","não ","jovem ","macho ","não ","não ","descarte ","2022-02-14",307956,7490350,"não ","carcaça em decomposição realizado descarte "]
[125,"RE","2022-02-16","11:25:00","Industrial",308066,7491254,"area de escavação ","Ensolarado",1,"HERPETOFAUNA","Squamata","Viperidae","Crotalus durissus","cascavel ","saudavel ","sim ","Adulto","ND","não","não ","Soltura","2022-02-16",311054,7493163,"não ","animal avaliado e solto "]
[126,"RE","2022-02-17","15:00:00","Base de fauna ",308494,7491452,"Entorno da area da barragem ","Ensolarado",1,"AVIFAUNA","Psittaciformes","Psittacidae","Psittacara leucophthalmus","Maritaca-maracanã","saudavel ","sim ","filhotes ","nd","não ","sim","CRAS - Mata Ciliar","2022-02-18",301182,743554,"não "]
[127,"RE","2022-03-01","08:58:00","Area de Plantio",307591,7491027,"Cultivo Agricola","Ensolarado",1,"HERPETOFAUNA","Squamata","amphisbaenidae","amphisbena alba ","cobra cega ou de duas cabeças","saudavel ","sim ","adulto","nd","não ","não ","Soltura","01/032022",311054,7493163,"não "]
[128,"RE","2022-03-02","15:09:00","Area de Plantio",308727,7491441,"Cultivo Agricola","Ensolarado",1,"HERPETOFAUNA","Squamata","Viperidae","Crotalus durissus","cascavel ","saudavel ","sim ","adulto","nd","não ","não ","Soltura","2022-03-02",311054,7493163,"não "]
[129,"RE","2022-02-03","15:34:00","Area de Plantio",308727,7491441,"Cultivo Agricola","Ensolarado",1,"HERPETOFAUNA","Squamata","Viperidae","Bothrops jararaca","jararaca","saudavel ","sim ","adulto","nd","não ","não ","Soltura","2022-03-03",311054,7493163,"não "]
[130,"RE","2022-03-04","14:42:00","Area de Plantio",308727,7491441,"Cultivo Agricola","Ensolarado",1,"HERPETOFAUNA","Squamata","Viperidae","Oxyrhopus guibei","coral falsa ","saudavel ","sim ","adulto","nd","não ","não ","Soltura","2022-03-04",311054,7493163,"não "]
[131,"RE","2022-03-05","16:01:00","Area de Plantio",308727,7491441,"Cultivo Agricola","Ensolarado",1,"HERPETOFAUNA","Squamata","Viperidae","Crotalus durissus","cascavel ","saudavel ","sim ","adulto","nd","não ","não ","Soltura","2022-03-05",311054,7493163,"não "]
[132,"RE","2022-03-07","16:18:00","Area de Plantio",308527,7491644,"Cultivo Agricola","Ensolarado",1,"HERPETOFAUNA","Squamata","Viperidae","Bothrops jararaca","jararaca ","saudavel ","sim ","jovem ","nd","não ","não ","Soltura","2022-03-07",311054,7493163,"não "]
[133,"RE","2022-03-08","14:47:00","centro de pesquisa ",307983,7490168,"centro de pesquisa ","Ensolarado",1,"HERPETOFAUNA","Squamata","boidae","Boa Constrictor","Jiboia-constritora","saudavel ","sim ","adulto ","nd","não ","não ","Soltura","2022-03-08",309506,7489286,"não "]
[134,"RE","2022-03-11","15:34:00","viveiro de mudas ",308543,7491419,"viveiro de mudas ","Ensolarado",1,"HERPETOFAUNA","Squamata","Viperidae","Oxyrhopus trigeminus","Falsa-coral","saudavel ","sim ","filhote ","nd","não ","não ","Soltura","2022-03-11",311054,7486121,"não "]
[135,"RE","2022-03-12","15:54:00","Area de Plantio",308727,7491441,"cultivo agricola ","Ensolarado",1,"HERPETOFAUNA","Squamata","Viperidae","crotallus durissus","cascavel ","saudavel ","sim ","adulto ","nd","não ","não ","Soltura","2022-03-11",311054,7486121,"não "]
[136,"RE","2022-03-23","14:22:00","Area de Plantio",308129,7491586,"cultivo agricola ","Ensolarado",1,"HERPETOFAUNA","Squamata","Viperidae","crotallus durissus","cascavel ","saudavel ","sim ","adulto ","nd","não ","não ","Soltura","2022-03-23",311054,7486121,"não "]
[137,"RE","2022-03-30","08:35:00","Area de Plantio",308125,7491647,"cultivo agricola ","Ensolarado",1,"HERPETOFAUNA","Squamata","Viperidae","crotallus durissus","cascavel ","saudavel ","sim ","adulto ","nd","não ","não ","Soltura","2022-03-30",311054,7486121,"não "]
[138,"RE","2022-04-01","17:00:00","Area de Plantio",308101,7491313,"cultivo agricola ","Ensolarado",1,"HERPETOFAUNA","Squamata","Viperidae","crotallus durissus","cascavel ","saudavel ","sim ","jovem","nd","não","não","soltura ","2022-04-01",311054,7486121,"não "]
[139,"RE","2022-04-04","08:43:00","Area de Plantio",308166,7491316,"cultivo agricola ","Ensolarado",1,"HERPETOFAUNA","Squamata","Dipsadidae","leophis typhlus","cobra verde","saudavel ","sim ","adulto","nd","não","não","soltura ","2022-04-04",311054,7486121,"não "]
[140,"RE","2022-04-07","09:58:00","administrativo",30518,7491407,"canteiro de obras ","Ensolarado",1,"HERPETOFAUNA","Squamata","columbridae","eryhrolampus paecilogyrus","cobra capim","saudavel ","sim ","filhote","nd","não","não","soltura ","2022-04-07",311054,7493163,"não "]
[141,"RE","2022-04-07","10:30:00","Industrial",30518,7491407,"Cultivo Agricola","Ensolarado",1,"HERPETOFAUNA","Squamata","Viperidae","crotallus durissus","cascavel ","saudavel ","sim ","adulto","nd","não","não","soltura ","2022-04-07",311054,7493163,"não "]
[142,"RE","2022-04-08","15:15:00","laboratorio ",307965,7490129,"Cultivo Agricola","Ensolarado",1,"AVIFAUNA","psiformes ","psidae","colaptes campestres","pica pau ","saudavel ","sim ","adulto","nd","sim","sim/ observação.","soltura ","2022-04-08",308497,7491382,"não "]
[143,"RE","2022-05-06","08;50","Propriedade do entorno ",308471,7492451,"area frutifera ","Ensolarado",1,"MASTOFAUNA","Didelphimorphia","Didelphidae","Didelphis aurita","Gamba de orelha preta","Ferido","sim","adulto ","macho","não","não","CRAS - Mata Ciliar","2022-05-06",301182,743554,"não","animal com membro ferido"]
[144,"RE","2022-05-07","08:37:00","Industrial",307930,7491234,"Infraestrutura","Ensolarado",1,"MASTOFAUNA","Rodentia","cricitidae","microtus arvalis ","Rato-do-campo","saudavel ","sim ","adulto ","macho ","não ","não ","soltura ","2022-05-07",310135,7492422,"não "]
[145,"RE","2022-05-12","15:01:00","Area de plantio",310643,7491798,"cultivo agricola ","Ensolarado",1,"HERPETOFAUNA","Squamata","Viperidae","Bothrops urutu","urutu","saudavel","sim ","jovem","nd","não ","não","soltura ","2022-05-12",311054,7493163,"não"]
[146,"RE","2022-05-13","07:59:00","Industrial",307550,7490930,"Infraestrutura","Ensolarado",1,"HERPETOFAUNA","Squamata","Dipsadidae","Dipsas mikanii","dormideira","saudavel","sim ","jovem ","nd","não ","não ","soltura ","2022-05-13",311054,7493163,"não "]
[147,"RE","2022-05-13","10:55:00","estacionamento shefa",307601,7489456,"Infraestrutura","Ensolarado",1,"AVIFAUNA","accipitriformes","acipitrideos","rupornis magnirostris","gaviao carijo","ferido","sim ","jovem ","nd","não ","sim ","CRAS - Mata Ciliar","2022-05-14",301182,7535554,"não","animal com asa ferida "]
[148,"RE","2022-05-17","16:30:00","administrativo",308504,7491231,"estrada ","nublado ",1,"HERPETOFAUNA","Squamata","Viperidae","bothops jararaca","jararaca","saudavel","sim ","adulto","nd","não ","sim ","soltura ","2022-05-18",311054,7493163,"não","animal ficou em observação"]
[149,"RE","2022-06-08","09:54:00","Margem direita",307470,7490856,"canaleta periferica ","Ensolarado",1,"HERPETOFAUNA","Squamata","Dipsadidae","oxyrhopus guibei","Falsa-coral","saudavel","sim ","jovem ","nd","não","não","soltura ","2022-06-08",311054,7493163,"não"]
[150,"RE","2022-06-10","11:55:00","margem direira",308000,7491205,"infraestrutura ","Ensolarado",1,"HERPETOFAUNA","Squamata","amphisbaenidae","amphisbena alba ","cobra cega ou de duas cabeças","saudavel","sim ","adulto ","nd","não","não","soltura ","2022-06-10",311054,7493163,"não"]
[151,"RE","2022-06-11","085:14","area de plantio",309469,7490746,"cultivo agricola ","Ensolarado",1,"HERPETOFAUNA","Squamata","Viperidae","crotallus durissus","cascavel","saudavel","sim ","adulto","nd","não","não","soltura ","2022-06-11",311054,7493163,"não"]
[152,"RE","2022-06-11","09:20:00","arera de plantio ",309469,7490476,"cultivo agricola ","Ensolarado",1,"HERPETOFAUNA","Squamata","Viperidae","crotallus durissus","cascavel","ferido","sim ","jovem ","nd","sim ","não ","base de fauna ","2022-06-11",308494,7491452,"não ","animal no frezer da base de fauna "]
[153,"RE","2022-06-21","14:39:00","area de plantio ",307497,7489934,"cultivo agricola ","Ensolarado",1,"HERPETOFAUNA","Squamata","Viperidae","bothops jararaca","jararaca da mata ","saudavel ","sim ","adulto ","nd","não ","não","soltura ","2022-06-21",311054,7493163,"não"]
[154,"RE","2022-06-27","13:54:00","CPABE",308002,7490235,"arae de demolição ","Ensolarado",1,"HERPETOFAUNA","Squamata","Viperidae","crotallus durissus","cascavel","saudavel","sim ","adulto ","nd","não","não","soltura","2022-06-27",311054,7493163,"não"]
[155,"RE","2022-07-12","10:37:00","Margem direita ",307506,7490743,"area de supressão","Ensolarado",1,"HERPETOFAUNA","Squamata","Teiidae","Salvator merianae","Teiu","saudavel","sim ","adulto ","nd","não ","não ","soltura ","2022-07-12",309506,7489286,"não "]
[156,"RE","2022-07-22","14:43:00","casa de morador do entorno ",308471,7492451,"infraestrutura de fora da obra ","Ensolarado",1,"HERPETOFAUNA","testudines ","emydidae","trachemys dorbigni","Tigre dgua ","saudavel ","sim ","adulto ","femea ","não","não","soltura ","2022-07-22",309506,7489286,"não "]
[157,"RE","2022-08-09","10:00:00","area de plantio ",308112,7491337,"cultivo agricola ","Ensolarado",1,"HERPETOFAUNA","Squamata","Viperidae","crotallus durissus","cascavel ","saudavel ","sim ","jovem ","nd","não","não","soltura ","2022-08-09",309506,7489286,"não "]
[158,"RE","2022-08-19","17:00:00","area de plantio ",308112,7491588,"cultivo agricola ","Ensolarado",1,"HERPETOFAUNA","Squamata","Viperidae","crotallus durissus","cascavel ","saudavel ","sim ","adulto ","nd","não","sim ","soltura ","2022-08-20",309506,7489286,"não "]
[159,"RE","2022-08-26","10:00:00","guarita de saida ",308384,7491433,"infraestrutura ","Ensolarado",1,"MASTOFAUNA ","rodentia","Cavidae ","Cavia aparea","Prea ","saudavel ","sim ","jovem ","femea ","não","não","soltura ","2022-08-26",309506,7489286,"não "]
[160,"AT","2022-08-26","15:39:00","area de acesso / estrada ",308414,7491138,"via de acesso ","Ensolarado",1,"HERPETOFAUNA","Squamata","Viperidae","Salvator merianae","Teiu ","morto","sim ","adulto ","nd","sim ","não","base de fauna","2022-08-26",308494,7491452,"não ","animal no frezer da base de fauna "]
[161,"RE","2022-09-14","11:35:00","area de plantio ",310610,7491827,"cultivo agricola ","nublado ",1,"HERPETOFAUNA","Squamata","Viperidae","Philodryas nattereri","corre campo ","saudavel ","sim ","adulto ","nd","não ","não ","soltura ","2022-09-14",311054,7493163,"não "]
[162,"RE","2022-09-14","11:42:00","area de plantio ",310610,7491827,"cultivo agricola ","nublado ",1,"HERPETOFAUNA","Squamata","Viperidae","crotallus durissus","cascavel","saudavel ","sim ","jovem ","nd","não","não ","soltura ","2022-09-14",311054,7493163,"não "]
[163,"RE ","2022-09-16","15:56:00","area de plantio ",307644,7490664,"cultivo agricola ","Ensolarado",1,"HERPETOFAUNA","Squamata","Viperidae","ereytholamprus typhlus brachyrus","cobra de jardim ","saudavel ","sim ","jovem ","nd","não","não ","soltura ","2022-09-16",311054,7493163,"não "]
[164,"RE","2022-09-23","16:30:00","fiscalizaçã ",308510,7491348,"infraestrutura ","nublado ",1,"HERPETOFAUNA","Squamata","Viperidae","oxyrhopus guibei","Falsa-coral","saudavel ","sim ","jovem ","nd","não","não ","soltura ","2022-09-23",311054,7493163,"não "]
[165,"RE","2022-10-03","09:18:00","Area de Plantio",309974,7492313,"cultivo agricola ","Ensolarado",1,"HERPETOFAUNA","Squamata","Viperidae","crotallus durissus","cascavel ","saudavel ","sim ","adulto","nd","não","não ","soltura ","03/10;2022",311054,7493163,"não "]
[166,"RE","2022-10-03","15:56:00","Area de Plantio",309946,7492295,"cultivo agricola ","Ensolarado",1,"HERPETOFAUNA","Squamata","Viperidae","crotallus durissus","cascavel ","saudavel ","sim ","jovem","nd","não","não ","soltura ","2022-10-03",311054,7493163,"não "]
[167,"RE","2022-10-11","17:18:00","Area de Plantio",309946,7492295,"cultivo agricola ","Ensolarado",1,"HERPETOFAUNA","Squamata","Viperidae","crotallus durissus","cascavel ","saudavel ","sim ","adulto","nd","não","não ","soltura ","2022-10-11",311054,7493163,"não "]
[168,"RE","2022-10-13","15:53:00","Area de Plantio",309620,7492058,"cultivo agricola ","Ensolarado",1,"HERPETOFAUNA","Squamata","Viperidae","crotallus durissus","cascavel ","saudavel ","sim ","jovem ","nd","não","não ","soltura ","2022-10-13",311054,7493163,"não "]
[169,"RE","2022-10-18","10:00:00","Area de Plantio",309708,7491990,"cultivo agricola ","Ensolarado",1,"HERPETOFAUNA","Squamata","Viperidae","Bothrops urutu","urutu cruzeiro ","saudavel ","sim ","jovem ","nd","não","não ","soltura ","2022-10-18",311054,7493163,"não "]
[170,"RE","2022-11-02","14:03:00","vertedouro",307706,7491004,"infraestrutura ","Ensolarado",1,"HERPETOFAUNA","Squamata","Dipsadidae","Dipsas mikanii","dormideira ","saudavel ","sim ","jovem ","nd","não ","não ","soltura ","2022-11-02",311054,7493163,"não "]
[171,"RE","2022-11-04","15:32:00","Area de Plantio",307706,7491004,"cultivo agricola ","Ensolarado",1,"HERPETOFAUNA","Squamata","Viperidae","crotallus durissus","cascavel","saudavel","sim ","adulto ","nd","não ","não ","soltura ","2022-11-04",311054,7493163,"não "]
[172,"RE","2022-11-15","13:00:00","Administrativo",308497,7491391,"infraestrutura ","Ensolarado",1,"HERPETOFAUNA","Squamata","Teiidae","Salvator merianae","teiu ","ferido","sim ","jovem ","nd","não ","não ","CRAS - Mata Ciliar","2022-11-15",301182,7435554,"não "]
[173,"AT","2022-11-24","15:08:00","Via de acesso ",308371,7491126,"estrada","Ensolarado",1,"HERPETOFAUNA","Squamata","Teiidae","Salvator merianae","teiu","morto","sim ","adulto ","nd","sim ","não ","base de fauna ","2022-11-24",308494,7491452,"não ","animal no freezer da base de fauna "]
[174,"RE","2022-11-25","08:32:00","Area de Plantio",308101,7491667,"cultivo agricola ","Ensolarado",1,"HERPETOFAUNA","Squamata","Viperidae","crotallus durissus","cascavel ","saudavel","sim ","adulto ","nd","não ","não ","soltura ","2022-11-25",311054,7493163,"não "]
[175,"RE","2022-12-07","10:44:00","Area de Plantio",308585,7492715,"cultivo agricola ","Ensolarado",1,"HERPETOFAUNA","Squamata","Viperidae","bothops jararaca","jararaca","morto","sim ","jovem","nd","sim","não","base de fauna ","2022-12-07",308494,7491452,"não","animal no freezer da base de fauna "]
[176,"RE","2022-12-21","15:15:00","patio do administrativo",308500,7491373,"infraestrutura ","Ensolarado",1,"HERPETOFAUNA","Squamata","columbridae","philodrias olfersii","cobra verde","saudavel","sim ","adulto","nd","não","não","soltura ","2022-12-21",311054,7493163,"não"]
[177,"RE","2023-01-11","15:30:00","fiscalização ",308510,7491348,"infraestrutura ","Ensolarado",1,"AVIFAUNA","Psittaciformes","Psittacidae","Psittacara leucophthalmus","Maritaca-maracanã","saudavel","sim ","Filhote","nd","não","não","CRAS - Mata Ciliar","2023-01-20",301182,7435554,"não"]
[178,"RE","2023-01-12","16:30:00","fiscalização ",308510,7491348,"infraestrutura ","Ensolarado",1,"AVIFAUNA","Psittaciformes","Psittacidae","Psittacara leucophthalmus","Maritaca-maracanã","saudavel","sim ","Filhote","nd","não","não","CRAS - Mata Ciliar","2023-01-21",301182,7435554,"não"]
[179,"RE","2023-01-13","17:30:00","fiscalização ",308510,7491348,"infraestrutura ","Ensolarado",1,"AVIFAUNA","Psittaciformes","Psittacidae","Psittacara leucophthalmus","Maritaca-maracanã","saudavel","sim ","Filhote","nd","não","não","CRAS - Mata Ciliar","2023-01-22",301182,7435554,"não"]
[180,"RE","2023-01-14","18:30:00","fiscalização ",308510,7491348,"infraestrutura ","Ensolarado",1,"AVIFAUNA","Psittaciformes","Psittacidae","Psittacara leucophthalmus","Maritaca-maracanã","saudavel","sim ","Filhote","nd","não","não","CRAS - Mata Ciliar","2023-01-23",301182,7435554,"não"]
[181,"RE","2023-01-15","19:30:00","fiscalização ",308510,7491348,"infraestrutura ","Ensolarado",1,"AVIFAUNA","Psittaciformes","Psittacidae","Psittacara leucophthalmus","Maritaca-maracanã","saudavel","sim ","Filhote","nd","não","não","CRAS - Mata Ciliar","2023-01-24",301182,7435554,"não"]
[182,"AT","2023-01-31","15:00:00","Via de acesso ",308494,7491452,"estrada","Ensolarado",1,"HERPETOFAUNA","Squamata","Teiidae","Salvator merianae","teiu","morto","sim ","adulto ","nd","sim","não ","base de fauna ","2023-01-31",308494,7491452,"não ","animal no freezer da base de fauna "]
[183,"RE","2023-02-01","10:00:00","administrativo",308507,7491421,"estrada","Ensolarado",1,"MASTOFAUNA","mammalia","didelphidae","monodelphis dimidiata","cuica marron","saudavel","sim ","adulto","nd","sim","não","soltura ","2023-02-01",309486,7488889,"não"]
[184,"RE","2023-02-03","16:00:00","administrativo",308507,7491421,"infraestrutura ","Ensolarado",1,"MASTOFAUNA ","mammalia","didelphidae","monodelphis dimidiata","cuica marron","saudavel","sim ","Filhote","nd","não","não","soltura ","2023-02-03",309486,7488889,"não"]
[185,"RE","2023-02-03","22:00:00","administrativo",308520,7491389,"patio do administrativo","noite sem chuva ",1,"HERPETOFAUNA","Squamata","Viperidae","crotallus durissus","cascavel ","morto","sim ","adulto","nd","sim ","não","base de fauna ","2023-02-04",308494,7491452,"não","animal no freezer da base de fauna "]
[186,"RE","2023-02-07","13:00:00","administrativo",308507,7491421,"infraestrutura ","Ensolarado",1,"MASTOFAUNA ","mammalia","didelphidae","monodelphis dimidiata","cuica marron","saudavel","sim ","Filhote","nd","não","não","soltura ","2023-02-07",309486,7488889,"não"]
[187,"RE","2023-02-08","11:00:00","Area de Plantio",307824,7490102,"area de supressão","Ensolarado",1,"HERPETOFAUNA","Squamata","Viperidae","crotallus durissus","cascavel ","saudavel","sim ","adulto","nd","não","não","soltura ","2023-02-08",311054,7493163,"não"]
[188,"RE","2023-02-28","14:30:00","Area de Plantio",308101,7491667,"cultivo agricola ","Ensolarado",1,"HERPETOFAUNA","Squamata","Viperidae","Bothrops alternatus","urutu cruzeiro ","saudavel","sim ","adulto","nd","não","não","soltura ","2023-02-28",311054,7493163,"não"]
[189,"RE","2023-03-09","14:30:00","EMA",307787,7491291,"infraentrutura ","Ensolarado",1,"HERPETOFAUNA","Squamata","Viperidae","crotallus durissus","cascavel","saudavel","sim ","filhote ","nd","não","não","soltura ","2023-03-09",311054,7493163,"não"]
[190,"RE","2023-03-14","08:20:00","fiscalização ",308504,7491337,"infraentrutura ","Ensolarado",1,"HERPETOFAUNA","Squamata","Viperidae","bothops jararaca","jararaca","saudavel","sim ","filhote ","nd","não","não","soltura ","2023-03-14",311054,7493163,"não"]
[191,"RE","2023-03-25","08:00:00","patio meio ambiente ",308539,7491377,"infraentrutura ","Ensolarado",1,"HERPETOFAUNA","Squamata","Viperidae","bothops jararaca","jararaca","saudavel","sim ","filhote ","nd","não","não","soltura ","2023-03-25",311054,7493163,"não"]
[192,"RE","2023-03-31","07:30:00","mirante ",307704,7491142,"infraentrutura ","Ensolarado",1,"HERPETOFAUNA","Squamata","Viperidae","crotallus durissus","cascavel","saudavel","sim ","filhote ","nd","não","não","soltura ","2023-03-31",311054,7493163,"não"]
[193,"RE","2023-04-04","13:00:00","Area de platio",null,null,"cultivo agricola ","Ensolarado",1,"HERPETOFAUNA","Squamata","Elapidae","micrurus frontalis","coral verdadeira ","saudavel","sim ","adulta","nd","não","não","soltura ","2023-04-04",311054,7493163,"não"]
[194,"RE","2023-04-14","08:00:00","fiscalização ",308510,7491348,"infraentrutura ","Ensolarado",1,"AVIFAUNA","Psittaciformes","Psittacidae","Psittacara leucophthalmus","Maritaca-maracanã","saudavel","sim ","filhote","nd","não","não","CRAS - Mata Ciliar","2023-04-14",301182,7435554,"não"]
[195,"RE","2023-04-14","08:00:00","fiscalização ",308510,7491348,"infraentrutura ","Ensolarado",1,"AVIFAUNA","Psittaciformes","Psittacidae","Psittacara leucophthalmus","Maritaca-maracanã","saudavel","sim ","filhotes","nd","não","não","CRAS - Mata Ciliar","2023-04-14",301182,7435554,"não"]
[196,"RE","2023-04-19","07:40:00","canaleta ",307552,7490976,"infraentrutura ","Ensolarado",1,"HERPETOFAUNA","Squamata","Viperidae","phylodrias olfersii","cobra verde listrada ","saudavel","sim ","jovem","nd","não","não","soltura ","2023-04-19",311054,7493163,"não"]
[197,"RE","2023-04-19","07:40:00","canaleta ",307552,7490976,"infraentrutura ","Ensolarado",1,"HERPETOFAUNA","Squamata","Dipsadidae","Dipsas mikanii","dormideira ","saudavel","sim ","jovem ","nd","não","não","soltura ","2023-04-19",311054,7493163,"não"]

{"sheet":"Atropelamento","index":1,"n_rows":27,"n_cols":33,"rows_kept":27,"cut":false,"hidden":false,"merged":[[0,0,1,24]]}
["REGISTROS DOS RESGATES"]
[]
["ID","Ocorrência","ANO","Mês","Data","Hora","Características da Via","Características do Entorno","Rodovia","km","Sentido","UTM-X","UTM-Y","Fuso ","Classificação","Grupo","Nome científico","Popular","Quantidade","Situação do animal","Destinação","UTM - X","UTM - Y","Fuso ","Observações","Data de Destinação","Ano da Destinação","Mês da Destinação",null,null,"clima","Base de Fauna","Acidentada em decorrência da obra"]
[4,"AT",{"$f":"YEAR(E4)","v":2020},{"$f":"MONTH(E4)","v":8},"2020-08-26","15:56:00","Plano","Fragento Florestal","-","-","-",309035,7490950,23,"Silvestre","HERPETOFAUNA","Dipsas mikanii","Jararaquinha-dormideira",1,"Morto","UNIFAJ",292726,7486121,23,"UNIFAJ - 02/11/2020","2020-12-01",2020,12]
[5,"AT",{"$f":"YEAR(E5)","v":2020},{"$f":"MONTH(E5)","v":9},"2020-09-12","07:00:00","Declive / Curva","Fragento Florestal","SP-107","02","oeste",308165,7487924,23,"Silvestre","MASTOFAUNA","Didelphis albiventris","Gambá-de-orelha-branca",1,"Morto","UNIFAJ",292726,7486121,23,"UNIFAJ - 02/11/2020","2020-12-01",2020,12]
[6,"AT",2020,9,"2020-09-12","08:25:00","Plano","Outro","-","-","-",307809,7490564,23,"Silvestre","HERPETOFAUNA","Oxyrhopus guibei","Falsa- coral",1,"Morto","UNIFAJ",292726,7486121,23,"UNIFAJ - 02/11/2020","2020-12-01",2020,12]
[9,"AT",2020,9,"2020-09-14","12:14:00","Plano","Fragento Florestal","-","-","-",310215,7491800,23,"Silvestre","HERPETOFAUNA","Micrurus sp.","Cobra-coral",1,"Morto","Base de Fauna",308508,7491376,23,"Base de Fauna","-","-","-"]
[10,"AT",2020,9,"2020-09-16","07:00:00","Declive / Curva","Fragento Florestal","SP-107","02","leste",309529,7485913,23,"Silvestre","MASTOFAUNA ","Didelphis aurita","Gambá-de-orelha-preta",1,"Morto","UNIFAJ",292726,7486121,23,"UNIFAJ - 02/11/2020","2020-12-01",2020,12]
[12,"AT",2020,9,"2020-09-19","07:35:00","Plano","Fragento Florestal","-","-","-",308370,7491131,23,"Silvestre","HERPETOFAUNA","Oxyrhopus guibei","Falsa-coral",1,"Morto","UNIFAJ",292726,7486121,23,"UNIFAJ - 02/11/2020","2020-12-01",2020,12]
[13,"AT",2020,9,"2020-09-19","08:00:00","Curva","Fragento Florestal","-","-","-",308704,7493228,23,"Silvestre","HERPETOFAUNA","Erythrolamprus aesculapii","Falsa-coral",1,"Morto","UNIFAJ",292726,7486121,23,"UNIFAJ - 02/11/2020","2020-12-01",2020,12]
[15,"AT",2020,9,"2020-09-22","14:54:00","Plano","Pastagem","-","-","-",308076,7490915,23,"Silvestre","HERPETOFAUNA","Dipsas mikanii","Jararaquinha-dormideira",1,"Morto","UNIFAJ",292726,7486121,23,"UNIFAJ - 02/11/2020","2020-12-01",2020,12]
[18,"AT",2020,9,"2020-09-29","08:30:00","Plano","Outro","-","-","-",308361,7491136,23,"Silvestre","HERPETOFAUNA","Oxyrhopus guibei","Falsa-coral",1,"Morto","UNIFAJ",292726,7486121,23,"UNIFAJ - 02/11/2020","2020-12-01",2020,12]
[20,"AT",2020,11,"2020-11-13","09:49:00","Plano/ Ponte","Campo Antrópico","Estrada de terra ","-","Amparo",308372,7491420,23,"Silvestre","HERPETOFAUNA","Salvator merianae","Teiú",1,"Morto","UNIFAJ",292726,7486121,23,"UNIFAJ - 02/11/2020","2020-12-01",2020,12]
[22,"AT",2020,11,"2020-11-26","17:06:00","Plano","Fragento Florestal","Estrada de terra ","-","Santo Antônio de Posse",308361,7491136,23,"Silvestre","MASTOFAUNA","Dasypus novemcinctus","Tatu-galinha",1,"Morto","UNIFAJ",292726,7486121,23,"UNIFAJ - 02/11/2020","2020-12-01",2020,12]
[23,"AT",2020,11,"2020-11-27","09:42:00","Plano","Cultivo agrícola","Estrada de terra ","-","Santo Antônio de Posse",307269,7491909,23,"Silvestre","HERPETOFAUNA","Erythrolamprus aesculapii","Falsa-coral",1,"Morto","UNIFAJ",292726,7486121,23,"UNIFAJ - 02/11/2020","2020-12-01",2020,12]
[27,"AT",2020,12,"2020-12-10","08:13:00","Pavimentada/ Descida/ mão dupla","Pastagem","SP-107","-","Amparo",308970,7486862,23,"Silvestre","MASTOFAUNA","Callithrix jacchus","Sagui-de-tufo-branco",1,"Morto","Base de Fauna",308508,7491376,23,"Base de Fauna","-","-","-"]
[29,"AT",2021,1,"2021-01-05","13:45:00","Estrada de terra","Fragento Florestal","-","-","-",308528,7491335,23,"Silvestre","HERPETOFAUNA","Philodryas olfersii","Cobra - Verde",1,"Ferido","Base de Fauna",308508,7491376,23,"Base de Fauna","-","-","-",null,"Squamata","Max 31° min 21"]
[35,"AT",2021,1,"2021-01-16","07:15:00","Estrada Pavimentada","Pastagem","SP-107","-","Amparo",306753,7490910,23,"Silvestre","HERPETOFAUNA","Amphisbaena alba","Cobra - cega",1,"Ferido","Base de Fauna",308508,7491376,23,"Base de Fauna","-","-","-",null,"Squamata","Max 31° min 21"]
[43,"AT",2021,1,"2021-01-28","10:38:00","Acesso interno","Canteiro de obras","-","-","Amparo",308226,7491093,23,"Silvestre","HERPETOFAUNA","Amphisbaena alba","Cobra-cega",1,"Ferido","CRAS - Mata Ciliar",305466,7484505,23,"Encaminhado para o CRAS - Mata Ciliar","2021-01-28",{"$f":"IF(Z19=\"-\",\"-\",YEAR(Z19))","v":2021},{"$f":"IF(Z19=\"-\",\"-\",MONTH(Z19))","v":1},"Amphisbaenae","Squamata","Max 31° min 22"]
[45,"AT",2021,2,"2021-02-03","11:48:00","Acesso ao empreendimento","Fragento Florestal","Estrada de terra ","-","-",308506,7491375,23,"Silvestre","HERPETOFAUNA","Amphisbaena alba","Cobra-cega",1,"Ferido","Base de Fauna",308508,7491376,23,"Aguarda encaminhamento para a UNIFAJ","-"]
[49,"AT",2021,2,"2021-02-08","07:40:00","Acesso ao empreendimento","Canteiro de obras","Estrada de terra ","-","-",308228,7491093,23,"Silvestre","MASTOFAUNA","Dasypus novemcinctus","Tatu-galinha",1,"Morto","Base de Fauna",308508,7491376,23,"Descarte - sem aproveitamento científico","-"]
[51,"AT",2021,2,"2021-02-17","16:10:00","Acesso ao empreendimento","Canteiro de obras","Estrada de terra ","-","Amparo",308233,7490171,23,"Silvestre","HERPETOFAUNA","Amphisbaena alba","Cobra-cega",1,"Ferido","CRAS - Mata Ciliar",305466,7484505,23,"Encaminhado para o CRAS - Mata Ciliar","2021-02-17",2021,2,"Amphisbaenae","Squamata","Max 30° min 20"]
[53,"AT",2021,2,"2021-02-22","06:44:00","Plano","Antropizado","Estrada de terra ","-","Amparo",309535,7485914,23,"Silvestre","MASTOFAUNA","Didelphis albiventris","Gamba-de-orelha-branca",1,"Morto","Base de Fauna",308508,7491376,23,"Descarte - sem aproveitamento científico","2021-02-22",2021,2,"Didelphidae","Didelphimorphia","Max 30° min 20"]
[54,"AT",2021,2,"2021-02-22","06:59:00","Aclive","Fragento Florestal","Estrada de terra ","-","Amparo",308519,7491399,23,"Silvestre","HERPETOFAUNA","Philodryas olfersii","Cobra-verde",1,"Morto","Base de Fauna",308508,7491376,23,"Aguarda encaminhamento para a UNIFAJ","2021-02-22",2021,2,null,"Squamata","Max 30° min 21"]
[58,"AT",2021,2,"2021-02-24","09:47:00","Estrada Pavimentada","Antropizado","Estrada de terra ","-","Amparo",309538,7485917,23,"Silvestre","HERPETOFAUNA","Amphisbaena alba","Cobra-cega",1,"Morto","Base de Fauna",308508,7491376,23,"Descarte - sem aproveitamento científico","2021-02-24",2021,2,"Amphisbaenae","Squamata","Max 29° min 22"]
[59,"AT",2021,2,"2021-03-02","10:07:00","Municipal",null,"Estrada de terra ","-","Santo Antônio de Posse",308445,7492622,23,"Silvestre","HERPETOFAUNA","Crotalus durissus","Cascavel",1,"Morto","Base de Fauna",308508,7491376,23,"Descarte - sem aproveitamento científico","-"]
[65,"AT",2021,2,"2021-03-18","14:23:00","Municipal",null,"Estrada de terra ","-","Santo Antônio de Posse",308121,7491034,23,"Silvestre","HERPETOFAUNA","Tantilla melanocephala","Cobra-da-cabeça-preta",1,"Morto","Base de Fauna",308508,7491376,23,"Descarte - sem aproveitamento científico","-"]

{"sheet":"Avistamentos","index":2,"n_rows":119,"n_cols":31,"rows_kept":119,"cut":false,"hidden":false,"merged":[]}
[null,"MONITORAMENTO/MANEJO DE FAUNA EM RODOVIAS"]
[null,null,null,null,null,null,null,null,null,null,null,"Coordenadas Geográficas (UTM) Resgate",null,null,"Identificação taxônomica ",null,null,null,"Detalhamento da fauna impactada",null,null,"Coordenadas Geográficas (UTM) destino",null,null,null,null,null,null,"Familia","ordem"]
["ID","Ocorrência","ANO","Mês","Data","Hora","Características da Via","Características do Entorno","Rodovia","km","Sentido","UTM-X","UTM-Y","Fuso ","Classificação","Grupo","Nome científico","Popular","Quantidade","Situação do animal","Destinação","UTM - X","UTM - Y","Fuso ","Observações","Data de Destinação","Ano da Destinação","Mês da Destinação",null,null,"clima"]
["-","AV",2020,8,"2020-08-24","14:12:00","-","Pastagem","-","-","-",308243,7491146,23,"Silvestre","AVIFAUNA","Megaceryle torquata","Martinho-Pescador-Grande",1,"Saudável","-","-","-","-","-","-","-","-"]
["-","AV",2020,8,"2020-08-24","14:14:00","-","Pastagem","-","-","-",308370,7491419,23,"Silvestre","AVIFAUNA","Nannopterum brasilianus","Biguá",1,"Saudável","-","-","-","-","-","-","-","-"]
["-","AV",2020,8,"2020-08-24","14:14:00","-","Pastagem","-","-","-",308370,7491419,23,"Silvestre","MASTOFAUNA","Hydrochoerus hydrochaeris","Capivara ",1,"Saudável","-","-","-","-","-","-","-","-"]
["-","AV",2020,8,"2020-08-24","14:15:00","-","Pastagem","-","-","-",308370,7491419,23,"Silvestre","AVIFAUNA","Sporophila caerulescens","Coleirinho",1,"Saudável","-","-","-","-","-","-","-","-"]
["-","AV",2020,8,"2020-08-24","14:19:00","-","Pastagem","-","-","-",308588,7492537,23,"Silvestre","AVIFAUNA","Brotogeris chiriri","Periquito-de-Encontro-Amarelo",4,"Saudável","-","-","-","-","-","-","-","-"]
["-","AV",2020,8,"2020-08-24","14:21:00","-","Pastagem","-","-","-",308591,7492971,23,"Silvestre","AVIFAUNA","Caracara plancus","Carcará",1,"Saudável","-","-","-","-","-","-","-","-"]
["-","AV",2020,8,"2020-08-24","14:28:00","-","Pastagem","-","-","-",309845,7492685,23,"Silvestre","AVIFAUNA","Mivalgo chimachima","Gavião Carrapateiro",1,"Saudável","-","-","-","-","-","-","-","-"]
["-","AV",2020,8,"2020-08-24","14:38:00","-","Pastagem","-","-","-",309053,7492994,23,"Silvestre","AVIFAUNA","Guira guira","Anu Branco",3,"Saudável","-","-","-","-","-","-","-","-"]
["-","AV",2020,8,"2020-08-24","15:03:00","-","Pastagem","-","-","-",308138,7490444,23,"Silvestre","AVIFAUNA","Mivalgo chimachima","Gavião Carrapateiro",1,"Saudável","-","-","-","-","-","-","-","-"]
["-","AV",2020,8,"2020-08-24","15:03:00","-","Pastagem","-","-","-",308138,7490444,23,"Silvestre","AVIFAUNA","Molothrus bonariensis","Chupim",5,"Saudável","-","-","-","-","-","-","-","-"]
["-","AV",2020,8,"2020-08-24","15:03:00","-","Pastagem","-","-","-",308128,7490444,23,"Silvestre","AVIFAUNA","Crotophaga ani","Anu-Preto",5,"Saudável","-","-","-","-","-","-","-","-"]
["-","AV",2020,8,"2020-08-24","15:04:00","-","Pastagem","-","-","-",308128,7490444,23,"Silvestre","AVIFAUNA","Patagioenas picazuro","Asa-Branca",1,"Saudável","-","-","-","-","-","-","-","-"]
["-","AV",2020,8,"2020-08-24","15:04:00","-","Pastagem","-","-","-",308128,7490444,23,"Silvestre","AVIFAUNA","Pitangus sulphuratus","Bem-te-vi",2,"Saudável","-","-","-","-","-","-","-","-"]
["-","AV",2020,8,"2020-08-24","15:08:00","-","Pastagem","-","-","-",307671,7490484,23,"Silvestre","AVIFAUNA","Caracara plancus","Carcará",1,"Saudável","-","-","-","-","-","-","-","-"]
["-","AV",2020,8,"2020-08-24","15:28:00","-","Pastagem","-","-","-",307519,7489317,23,"Silvestre","AVIFAUNA","Sicalis flaveola","Canário-da-Terra",2,"Saudável","-","-","-","-","-","-","-","-"]
["-","AV",2020,9,"2020-09-11","07:41:00","-","Fragmento de Floresta","-","-","-",308229,7491122,23,"Silvestre","AVIFAUNA","Caracara plancus","Carcará",1,"Saudável","-","-","-","-","-","-","-","-"]
["-","AV",2020,9,"2020-09-11","07:44:00","-","Pastagem","-","-","-",307732,7490649,23,"Silvestre","AVIFAUNA","Venullus chilensis","Quero-quero",2,"Saudável","-","-","-","-","-","-","-","-"]
["-","AV",2020,9,"2020-09-11","07:53:00","-","Pastagem","-","-","-",308205,7490120,23,"Silvestre","AVIFAUNA","Coragyps atratus","Urubo-de-cabeça-preta",4,"Saudável","-","-","-","-","-","-","-","-"]
["-","AV",2020,9,"2020-09-11","07:53:00","-","Pastagem","-","-","-",308205,7490120,23,"Silvestre","AVIFAUNA","Crotophaga ani","Anu-preto",3,"Saudável","-","-","-","-","-","-","-","-"]
["-","AV",2020,9,"2020-09-11","07:57:00","-","Pastagem","-","-","-",308001,7489940,23,"Silvestre","AVIFAUNA","Ramphastos toco","Tucano-toco",1,"Saudável","-","-","-","-","-","-","-","-"]
["-","AV",2020,9,"2020-09-11","08:03:00","-","Pastagem","-","-","-",307888,7490513,23,"Silvestre","AVIFAUNA","Turdus rufiventris","Sabiá-laranjeira",1,"Saudável","-","-","-","-","-","-","-","-"]
["-","AV",2020,9,"2020-09-11","08:27:00","-","Pastagem","-","-","-",308608,7492796,23,"Silvestre","AVIFAUNA","Pitangus sulphuratus","Bem-te-vi",1,"Saudável","-","-","-","-","-","-","-","-"]
["-","AV",2020,9,"2020-09-11","08:32:00","-","Fragmento de Floresta","-","-","-",309992,7492639,23,"Silvestre","AVIFAUNA","Mivalgo chimachima","Gavião-Carrapateiro",1,"Saudável","-","-","-","-","-","-","-","-"]
["-","AV",2020,9,"2020-09-11","08:34:00","-","Pastagem","-","-","-",311478,7492891,23,"Silvestre","AVIFAUNA","Colaptes campestris","Pica-pau-do-campo",1,"Saudável","-","-","-","-","-","-","-","-"]
["-","AV",2020,9,"2020-09-11","09:04:00","-","Fragmento de Floresta","-","-","-",312841,7494866,23,"Silvestre","AVIFAUNA","Sicalis flaveola","Canário-da-Terra",1,"Saudável","-","-","-","-","-","-","-","-"]
["-","AV",2020,9,"2020-09-11","10:33:00","-","Fragmento de Floresta","-","-","-",309208,7490391,23,"Silvestre","AVIFAUNA","Piaya cayana","Alma-de-gato",1,"Saudável","-","-","-","-","-","-","-","-"]
["-","AV",2020,9,"2020-09-11","15:40:00","-","Pastagem","-","-","-",306843,7489792,23,"Silvestre","AVIFAUNA","Phalacrocorax brasilianus","Biguá",1,"Saudável","-","-","-","-","-","-","-","-"]
["-","AV",2020,9,"2020-09-11","17:35:00","-","Fragmento de Floresta","-","-","-",309245,7497649,23,"Silvestre","AVIFAUNA","Aramus guarauna","Garça-preta-do-brejo",3,"Saudável","-","-","-","-","-","-","-","-"]
["-","AV",2020,9,"2020-09-29","08:10:00","-","Plantio agrícola","-","-","-",307590,7492517,23,"Silvestre","AVIFAUNA","Athene cunicularia","Coruja-buraqueira",1,"Saudável","-","-","-","-","-","-","-","-"]
["-","AV",2020,9,"2020-09-29","08:10:00","-","Plantio agrícola","-","-","-",307590,7492517,23,"Silvestre","AVIFAUNA","Pygochelidon cyanoleuca","Andorinha-pequena-de-casa",1,"Saudável","-","-","-","-","-","-","-","-"]
["-","AV",2020,9,"2020-09-29","08:16:00","-","Fragmento de Floresta","SP-107","07","oeste",306748,7490966,23,"Silvestre","AVIFAUNA","Ramphastos toco","Tucano-toco",1,"Saudável","-","-","-","-","-","-","-","-"]
["-","AV",2020,9,"2020-09-29","08:16:00","-","Pastagem","-","-","-",304794,7496814,23,"Silvestre","AVIFAUNA","Pitangus sulphuratus","Bem-te-vi",1,"Saudável","-","-","-","-","-","-","-","-"]
["-","AV",2020,9,"2020-09-29","08:19:00","-","Área urbana","SP-107","11","leste",305073,7492590,23,"Silvestre","AVIFAUNA","Caracara plancus","Falcão-carcará",1,"Saudável","-","-","-","-","-","-","-","-"]
["-","AV",2020,9,"2020-09-29","08:25:00","-","Fragmento de Floresta","-","-","-",304794,7496814,23,"Silvestre","AVIFAUNA","Megaceryle torquata","Martinho-pescador-grande",1,"Saudável","-","-","-","-","-","-","-","-"]
["-","AV",2020,9,"2020-09-29","08:27:00","-","Pastagem","-","-","-",304377,7497698,23,"Silvestre","AVIFAUNA","Crotophaga ani","Anu-preto",6,"Saudável","-","-","-","-","-","-","-","-"]
["-","AV",2020,9,"2020-09-29","08:31:00","-","Pastagem","-","-","-",304377,7497698,23,"Silvestre","AVIFAUNA","Ramphastos toco","Tucano-toco",1,"Saudável","-","-","-","-","-","-","-","-"]
["-","AV",2020,9,"2020-09-29","11:38:00","-","Fragmento de Floresta","-","-","-",307965,7490117,23,"Silvestre","AVIFAUNA","Melanerpes candidus","Pica-pau-branco",2,"Saudável","-","-","-","-","-","-","-","-"]
["-","AV",2020,9,"2020-09-29","11:39:00","-","Fragmento de Floresta","-","-","-",307972,7490157,23,"Silvestre","AVIFAUNA","Campephilus melanoleucos","Pica-pau-de-topete-vermelho",1,"Saudável","-","-","-","-","-","-","-","-"]
["-","AV",2020,9,"2020-09-29","11:40:00","-","Fragmento de Floresta","-","-","-",307972,7490157,23,"Silvestre","AVIFAUNA","Vanellus chilensis ","Quero-quero",1,"Saudável","-","-","-","-","-","-","-","-"]
["-","AV",2020,9,"2020-09-29","11:54:00","-","Pastagem","-","-","-",307906,7490579,23,"Silvestre","AVIFAUNA","Patagioenas picazuro","Asa-branca",1,"Saudável","-","-","-","-","-","-","-","-"]
["-","AV",2020,9,"2020-09-29","13:31:00","-","Fragmento de Floresta","-","-","-",308373,7491425,23,"Silvestre","AVIFAUNA","Netta peposaca","Marrecão",1,"Saudável","-","-","-","-","-","-","-","-"]
["-","AV",2020,9,"2020-09-29","13:42:00","-","Fragmento de Floresta","-","-","-",309697,7492705,23,"Silvestre","AVIFAUNA","Geranoaetus albicaudatus","Gavião-de-rabo-branco",1,"Saudável","-","-","-","-","-","-","-","-"]
["-","AV",2020,9,"2020-09-29","13:51:00","-","Pastagem","-","-","-",310798,7492141,23,"Silvestre","AVIFAUNA","Coragyps atratus","Urubo-de-cabeça-preta",1,"Saudável","-","-","-","-","-","-","-","-"]
["-","AV",2020,9,"2020-09-29","14:00:00","-","Fragmento de Floresta","-","-","-",312504,7492716,23,"Silvestre","AVIFAUNA","Columbina talpacoti","Rolinha-caldo-de-feijão",1,"Saudável","-","-","-","-","-","-","-","-"]
["-","AV",2020,9,"2020-09-29","14:34:00","-","Pastagem","-","-","-",308856,7494696,23,"Silvestre","AVIFAUNA","Fluvicola nengeta","Lavadeira-mascarada",1,"Saudável","-","-","-","-","-","-","-","-"]
["-","AV",2020,9,"2020-09-29","14:34:00","-","Pastagem","-","-","-",308856,7494696,23,"Silvestre","AVIFAUNA","Tachyphonus coronatus","Tiê-preto",1,"Saudável","-","-","-","-","-","-","-","-"]
["-","AV",2020,9,"2020-09-29","14:40:00","-","Pastagem","-","-","-",310691,7496584,23,"Silvestre","AVIFAUNA","Turdus rufiventris","Sabiá-laranjeira",1,"Saudável","-","-","-","-","-","-","-","-"]
["-","AV",2020,9,"2020-09-29","14:42:00","-","Pastagem","-","-","-",311611,7497494,23,"Silvestre","AVIFAUNA","Furnarius rufus","João-de-barro",1,"Saudável","-","-","-","-","-","-","-","-"]
["-","AV",2020,9,"2020-09-29","14:42:00","-","Pastagem","-","-","-",311611,7497494,23,"Silvestre","AVIFAUNA","Patagioenas picazuro","Asa-branca",1,"Saudável","-","-","-","-","-","-","-","-"]
["-","AV",2020,9,"2020-09-29","14:43:00","-","Pastagem","-","-","-",311612,7497287,23,"Silvestre","AVIFAUNA","Columbina talpacoti","Rolinha-caldo-de-feijão",1,"Saudável","-","-","-","-","-","-","-","-"]
["-","AV",2020,9,"2020-09-29","14:52:00","-","Pastagem","-","-","-",311557,7497615,23,"Silvestre","AVIFAUNA","Ramphastos toco","Tucano-toco",1,"Saudável","-","-","-","-","-","-","-","-"]
["-","AV",2020,9,"2020-09-29","14:53:00","-","Pastagem","-","-","-",311612,7497287,23,"Silvestre","AVIFAUNA","Mimus saturninus","Sabiá-do-campo",1,"Saudável","-","-","-","-","-","-","-","-"]
["-","AV",2020,9,"2020-09-29","14:55:00","-","Pastagem","-","-","-",311429,7497120,23,"Silvestre","AVIFAUNA","Colaptes campestris","Pica-pau-do-campo",1,"Saudável","-","-","-","-","-","-","-","-"]
["-","AV",2020,9,"2020-09-29","15:05:00","-","Pastagem","-","-","-",312991,7498658,23,"Silvestre","AVIFAUNA","Pardirallus nigricans","saracura-sanã",1,"Saudável","-","-","-","-","-","-","-","-"]
["-","AV",2020,9,"2020-09-29","15:05:00","-","Pastagem","-","-","-",312991,7498658,23,"Silvestre","AVIFAUNA","Ardea alba","Garça-branca-grande",1,"Saudável","-","-","-","-","-","-","-","-"]
["-","AV",2020,9,"2020-09-29","15:05:00","-","Outro","-","-","-",312991,7498658,23,"Silvestre","AVIFAUNA","Mivalgo chimachima","Gavião-carrapateiro",1,"Saudável","-","-","-","-","-","-","-","-"]
["-","AV",2020,9,"2020-09-29","15:18:00","-","Outro","-","-","-",314870,7497985,23,"Silvestre","AVIFAUNA","Cariama cristata","Seriema",1,"Saudável","-","-","-","-","-","-","-","-"]
["-","AV",2020,11,"2020-11-25","09:02:00","-","Fragmento de Floresta","-","-","-",307433,7492092,23,"Silvestre","MASTOFAUNA","Cerdocyon thous","Cachorro-do-mato",1,"Saudável","-","-","-","-","-","-","-","-"]
["-","AV",2020,11,"2020-11-26","09:33:00","-","Fragmento de Floresta","-","-","-",309424,7486285,23,"Silvestre","AVIFAUNA","Phimosus infuscatus","Tapicuru",1,"Saudável","-","-","-","-","-","-","-","-"]
["-","AV",2020,11,"2020-11-26","09:49:00","-","Pastagem","-","-","-",307881,7490474,23,"Silvestre","AVIFAUNA","Vanellus chilensis","Quero-quero",1,"Saudável","-","-","-","-","-","-","-","-"]
["-","AV",2020,11,"2020-11-26","09:56:00","-","Pastagem","-","-","-",307921,7490195,23,"Silvestre","AVIFAUNA","Cyanocorax cristatellus","Gralha-do- cerrado",1,"Saudável","-","-","-","-","-","-","-","-"]
["-","AV",2020,11,"2020-11-26","10:13:00","-","Pastagem","-","-","-",308132,7490452,23,"Silvestre","AVIFAUNA","Hydrochoerus hydrochaeris","Capivara",1,"Saudável","-","-","-","-","-","-","-","-"]
["-","AV",2020,11,"2020-11-26","16:13:00","-","Pastagem","-","-","-",312246,7493905,23,"Silvestre","AVIFAUNA","Caracara plancus","Carcará",1,"Saudável","-","-","-","-","-","-","-","-"]
["-","AV",2020,11,"2020-11-26","16:15:00","-","Pastagem","-","-","-",312367,7494243,23,"Silvestre","AVIFAUNA","Sicalis flaveola","Canário-da-terra",1,"Saudável","-","-","-","-","-","-","-","-"]
["-","AV",2020,11,"2020-11-27","09:38:00","-","Pastagem","-","-","-",309441,7489894,23,"Silvestre","AVIFAUNA","Melanerpes candidus","Pica-pau-branco",1,"Saudável","-","-","-","-","-","-","-","-"]
["-","AV",2020,12,"2020-12-08","10:02:00","-","Outro","-","-","-",308555,7492191,23,"Silvestre","AVIFAUNA","Pseudastur polionotus","gaviao-pombo-grande",1,"Saudável","-","-","-","-","-","-","-","-"]
["-","AV",2020,12,"2020-12-08","10:40:00","-","Outro","-","-","-",307660,7497143,23,"Silvestre","AVIFAUNA","Penelope jacquacu","Jacu-de-spix",1,"Saudável","-","-","-","-","-","-","-","-"]
["-","AV",2020,12,"2020-12-08","11:31:00","-","Outro","-","-","-",306878,7489775,23,"Silvestre","AVIFAUNA","Nannopterum brasilianus","Biguá",1,"Saudável","-","-","-","-","-","-","-","-"]
["-","AV",2020,12,"2020-12-10","09:06:00","-","Fragmento de Floresta","-","-","-",308393,7491535,23,"Silvestre","AVIFAUNA","Tyrannus savana","Tesourinha",1,"Saudável","-","-","-","-","-","-","-","-"]
["-","AV",2020,12,"2020-12-10","09:15:00","-","Plantio agrícola","-","-","-",308775,7491014,23,"Silvestre","AVIFAUNA","Athene cunicularia","Coruja-buraqueira",1,"Saudável","-","-","-","-","-","-","-","-"]
["-","AV",2020,12,"2020-12-10","09:18:00","-","Fragmento de Floresta","-","-","-",306754,7490972,23,"Silvestre","AVIFAUNA","Ardea alba","Garça-branca-grande",1,"Saudável","-","-","-","-","-","-","-","-"]
["-","AV",2020,12,"2020-12-10","10:05:00","-","Pastagem","-","-","-",304382,7497675,23,"Silvestre","AVIFAUNA","Caracara plancus","Carcará",1,"Saudável","-","-","-","-","-","-","-","-"]
["-","AV",2020,12,"2020-12-10","10:05:00","-","Pastagem","-","-","-",304382,7497675,23,"Silvestre","AVIFAUNA","Coragyps atratus","Urubu-de-cabeça-preta",1,"Saudável","-","-","-","-","-","-","-","-"]
["-","AV",2020,12,"2020-12-10","10:46:00","-","Pastagem","-","-","-",313077,7495149,23,"Silvestre","AVIFAUNA","Sicalis flaveola","Canário-da-terra",1,"Saudável","-","-","-","-","-","-","-","-"]
["-","AV",2020,12,"2020-12-10","11:04:00","-","Pastagem","-","-","-",311015,7493770,23,"Silvestre","AVIFAUNA","Nycticorax nycticorax","Socó",1,"Saudável","-","-","-","-","-","-","-","-"]
["-","AV",2020,12,"2020-12-10","11:04:00","-","Pastagem","-","-","-",311015,7493770,23,"Silvestre","AVIFAUNA","Tyrannus melancholicus","Suiriri",1,"Saudável","-","-","-","-","-","-","-","-"]
["-","AV",2020,12,"2020-12-10","11:08:00","-","Pastagem","-","-","-",309913,7493103,23,"Silvestre","AVIFAUNA","Bubulcus ibis","Garça-vaqueira",1,"Saudável","-","-","-","-","-","-","-","-"]
["-","AV",2020,12,"2020-12-10","11:14:00","-","Pastagem","-","-","-",310885,7492575,23,"Silvestre","AVIFAUNA","Caracara plancus","Carcará ",1,"Saudável","-","-","-","-","-","-","-","-"]
["-","AV",2020,12,"2020-12-10","11:29:00","-","Pastagem","-","-","-",309106,7495028,23,"Silvestre","HERPETOFAUNA","Salvator meirianae","Teiú",1,"Saudável","-","-","-","-","-","-","-","-"]
["-","AV",2020,12,"2020-12-28","09:02:00","-","Fragmento de Floresta","-","-","-",309043,7490898,23,"Silvestre","AVIFAUNA","Ramphastos toco","Tucano-toco",1,"Saudável","-","-","-","-","-","-","-","-"]
["-","AV",2020,12,"2020-12-28","09:43:00","-","Pastagem","-","-","-",307793,7490834,23,"Silvestre","AVIFAUNA","Colaptes campestris","Pica-pau-do-campo",1,"Saudável","-","-","-","-","-","-","-","-"]
["-","AV",2020,12,"2020-12-28","09:48:00","-","Eucalipto","-","-","-",308294,7491157,23,"Silvestre","AVIFAUNA","Mustelirallus albicollis","Sanã-carijó",1,"Saudável","-","-","-","-","-","-","-","-"]
["-","AV",2020,12,"2020-12-28","10:53:00","-","Pastagem","-","-","-",310897,7492378,23,"Silvestre","AVIFAUNA","Caracara plancus","Carcara ",1,"Saudável","-","-","-","-","-","-","-","-"]
["-","AV",2020,12,"2020-12-28","11:41:00","-","Outro","-","-","-",308892,7494747,23,"Silvestre","AVIFAUNA","Turdus rufiventris","Sabiá-laranjeira",1,"Saudável","-","-","-","-","-","-","-","-"]
["-","AV",2020,12,"2020-12-28","15:23:00","-","Pastagem","-","-","-",308432,7487452,23,"Silvestre","AVIFAUNA","Geranoetus albicaudatus","Gaviao de rabo branco",1,"Saudável","-","-","-","-","-","-","-","-"]
["-","AV",2020,12,"2020-12-28","15:34:00","-","Cultivos Agrícolas","-","-","-",305053,7496288,23,"Silvestre","AVIFAUNA","Furnarius rufus","João de barro",1,"Saudável","-","-","-","-","-","-","-","-"]
["-","AV",2020,12,"2020-12-28","15:50:00","-","Ambiente Aquático","-","-","-",310554,7497049,23,"Silvestre","AVIFAUNA","Ardea alba","Garça grande branca",1,"Saudável","-","-","-","-","-","-","-","-"]
["-","AV",2021,1,"2021-01-07","09:05:00","Estrada de terra","Fragmento de Floresta","-","-","-",307352,7490741,23,"Silvestre","MASTOFAUNA","Hydrochoerus hydrochaeris","Capivara",1,"Saudável","-","-","-","-","-","-","-","-"]
["-","AV",2021,1,"2021-01-07","09:42:00","Estrada de terra","Fragmento de Floresta","-","-","-",308681,7491099,23,"Silvestre","AVIFAUNA","Sicalis flaveola","Canário-da-terra",1,"Saudável","-","-","-","-","-","-","-","-"]
["-","AV",2021,1,"2021-01-07","09:45:00","Estrada de terra","Campo Antropico","-","-","-",308183,7490992,23,"Silvestre","AVIFAUNA","Rupornis magnirostris","Gavião-carijó",1,"Saudável","-","-","-","-","-","-","-","-"]
["-","AV",2021,1,"2021-01-07","10:09:00","Estrada de terra","Fragmento de Floresta","-","-","-",308362,7491407,23,"Silvestre","AVIFAUNA","Pygochelidon cyanoleuca","Andorinha-pequena-de-casa",1,"Saudável","-","-","-","-","-","-","-","-"]
["-","AV",2021,1,"2021-01-07","10:10:00","Estrada de terra","Fragmento de Floresta","-","-","-",308362,7491407,23,"Silvestre","AVIFAUNA","Megaceryle torquata","Martinho-pescador-grande",1,"Saudável","-","-","-","-","-","-","-","-"]
["-","AV",2021,1,"2021-01-07","10:10:00","Estrada de terra","Fragmento de Floresta","-","-","-",308362,7491407,23,"Silvestre","AVIFAUNA","Patagioenas picazuro","Asa-branca",1,"Saudável","-","-","-","-","-","-","-","-"]
["-","AV",2021,1,"2021-01-07","10:11:00","Estrada de terra","Fragmento de Floresta","-","-","-",308362,7491417,23,"Silvestre","AVIFAUNA","Chrysomus ruficapillus","Garibaldi",1,"Saudável","-","-","-","-","-","-","-","-"]
["-","AV",2021,1,"2021-01-07","14:29:00","Estrada de terra","Fragmento de Floresta","-","-","-",309465,7492738,23,"Silvestre","AVIFAUNA","Athene cunicularia","Coruja-buraqueira",1,"Saudável","-","-","-","-","-","-","-","-"]
["-","AV",2021,1,"2021-01-07","14:33:00","Estrada de terra","Fragmento de Floresta","-","-","-",310114,7492277,23,"Silvestre","AVIFAUNA","Colaptes campestris","Pica-pau-do-campo",1,"Saudável","-","-","-","-","-","-","-","-"]
["-","AV",2021,1,"2021-01-07","14:35:00","Estrada de terra","Fragmento de Floresta","-","-","-",310731,7492442,23,"Silvestre","AVIFAUNA","Aramides saracura","Saracura-do-brejo",1,"Saudável","-","-","-","-","-","-","-","-"]
["-","AV",2021,1,"2021-01-07","15:42:00","Estrada de terra","Pastagem","-","-","-",311026,7496870,23,"Silvestre","AVIFAUNA","Guira guira","Anu-Branco",1,"Saudável","-","-","-","-","-","-","-","-"]
["-","AV",2021,1,"2021-01-07","16:14:00","Estrada de terra","Pastagem","-","-","-",307593,7492512,23,"Silvestre","AVIFAUNA","Athene cunicularia","Coruja-buraqueira",1,"Saudável","-","-","-","-","-","-","-","-"]
["-","AV",2021,1,"2021-01-07","16:27:00","Estrada de terra","Campo Antropico","-","-","-",308880,7494725,23,"Silvestre","AVIFAUNA","Gallinula chloropus","Frango d'agua",1,"Saudável","-","-","-","-","-","-","-","-"]
["-","AV",2021,1,"2021-01-11","08:50:00","Estrada de terra","Fragmento de Floresta","-","-","-",308234,7491129,23,"Silvestre","AVIFAUNA","Campephilus melanoleucos","Pica-pau-de-cabeça-vermelha",1,"Saudável","-","-","-","-","-","-","-","-"]
["-","AV",2021,1,"2021-01-11","09:12:00","Estrada de terra","Fragmento de Floresta","-","-","-",308254,7491217,23,"Silvestre","HERPETOFAUNA","Salvator meirianae","Teiú",1,"Saudável","-","-","-","-","-","-","-","-"]
["-","AV",2021,1,"2021-01-11","09:13:00","Estrada de terra","Fragmento de Floresta","-","-","-",308400,7491628,23,"Silvestre","AVIFAUNA","Furnarius rufus","João-de-barro",1,"Saudável","-","-","-","-","-","-","-","-"]
["-","AV",2021,1,"2021-01-11","09:17:00","Estrada de terra","Fragmento de Floresta","-","-","-",308615,7492666,23,"Silvestre","AVIFAUNA","Columbia talpacotti","Rolinha-caldo-de-feijão",1,"Saudável","-","-","-","-","-","-","-","-"]
["-","AV",2021,1,"2021-01-11","10:15:00","Estrada de terra","Pastagem","-","-","-",307892,7490855,23,"Silvestre","AVIFAUNA","Falco sparverius","Quiriquiri",1,"Saudável","-","-","-","-","-","-","-","-"]
["-","AV",2021,1,"2021-01-11","10:15:00","Estrada de terra","Pastagem","-","-","-",307892,7490855,23,"Silvestre","AVIFAUNA","Rupornis magnirostris","Gavião-carijó",1,"Saudável","-","-","-","-","-","-","-","-"]
["-","AV",2021,1,"2021-01-11","10:42:00","Estrada de terra","Pastagem","-","-","-",309197,7490359,23,"Silvestre","AVIFAUNA","Athene cunicularia","Coruja-buraqueira",1,"Saudável","-","-","-","-","-","-","-","-"]
["-","AV",2021,1,"2021-01-11","10:58:00","Estrada de terra","Fragmento de Floresta","-","-","-",309445,7489870,23,"Silvestre","AVIFAUNA","Volatinia jacarina","Tizil",1,"Saudável","-","-","-","-","-","-","-","-"]
["-","AV",2021,1,"2021-01-11","11:02:00","Estrada de terra","Pastagem","-","-","-",309075,7490804,23,"Silvestre","AVIFAUNA","Piaya cayana","Alma-de-gato",1,"Saudável","-","-","-","-","-","-","-","-"]
["-","AV",2021,1,"2021-01-11","11:15:00","Estrada de terra","Fragmento de Floresta","-","-","-",308450,7491146,23,"Silvestre","AVIFAUNA","Megaceryle torquata","Martinho-pescador-grande",1,"Saudável","-","-","-","-","-","-","-","-"]
["-","AV",2021,1,"2021-01-11","14:08:00","Estrada de terra","Pastagem","-","-","-",308110,7490903,23,"Silvestre","AVIFAUNA","Galictis sp.","Furão",1,"Saudável","-","-","-","-","-","-","-","-"]
["-","AV",2021,1,"2021-01-11","14:36:00","Estrada de terra","Fragmento de Floresta","-","-","-",308576,7492232,23,"Silvestre","AVIFAUNA","Cyanocorax cristatellus","Gralha-do-campo",1,"Saudável","-","-","-","-","-","-","-","-"]
["-","AV",2021,1,"2021-01-26","07:54:00","Estrada de terra","Fragmento de Floresta","-","-","-",309012,7494940,23,"Silvestre","AVIFAUNA","Caracara Plancus","Carcará",1,"Saudável","-","-","-","-","-","-","-","-"]
["-","AV",2021,1,"2021-01-26","07:58:00","Estrada de terra","Fragmento de Floresta","-","-","-",311839,7496460,23,"Silvestre","AVIFAUNA","Nannopterum brasilianus","Biguá",1,"Saudável","-","-","-","-","-","-","-","-"]
["-","AV",2021,1,"2021-01-26","15:19:00","Estrada de terra","Fragmento de Floresta","-","-","-",310773,7493752,23,"Silvestre","AVIFAUNA","Sicalis Flaveola","Canário-da-Terra",1,"Saudável","-","-","-","-","-","-","-","-"]
["-","AV",2021,1,"2021-01-26","16:49:00","Estrada de terra","Fragmento de Floresta","-","-","-",308504,7492078,23,"Silvestre","MASTOFAUNA","Hydrochoerus Hydrochaeris","Capivara ",1,"Saudável","-","-","-","-","-","-","-","-"]

{"sheet":"Hymenoptera","index":3,"n_rows":4,"n_cols":18,"rows_kept":4,"cut":false,"hidden":false,"merged":[[0,1,0,5],[0,6,0,10],[0,11,0,13]]}
["REGISTRO","DETALHAMENTO DA ORIGEM/REGISTRO DE OCORRÊNCIA",null,null,null,null,"IDENTIFICAÇÃO TAXONÔMICA",null,null,null,null,"DETALHAMENTO DA REALOCAÇÃO"]
["ID","Data","Identificação do Local","Coordenada\nResgate\nX","Coordenada\nResgate\nY","NÚMERO DE INDIVÍDUOS","GRUPO","ORDEM","FAMÍLIA","Nome científico","Nome popular","Data de destinação","Coordenada \nSoltura\nX","Coordenada\nSoltura\nY"]
[1,"2020-09-05","Área 23",307460,7490920,1,"Meliponinae ","Hymenoptera","Apidae ","Tetragonisca angustula","Jataí","2020-09-19",310854,7492634,null,null,"Nome científico","Contagem de Nome científico"]
[null,null,null,null,null,null,null,null,null,null,null,null,null,null,null,null,"Tetragonisca angustula",1]

{"sheet":"Geral","index":4,"n_rows":210,"n_cols":121,"rows_kept":210,"cut":false,"hidden":false,"merged":[[26,36,26,55],[26,57,26,76],[28,6,28,7],[28,8,28,15],[28,4,28,5],[5,0,5,2],[7,0,7,2],[8,0,9,0],[12,0,12,2],[23,0,23,2],[30,119,31,122],[222,6,222,32],[29,0,29,2],[31,0,31,2],[28,93,28,113],[28,78,28,91],[28,16,28,20],[28,21,28,30],[28,31,28,32]]}
["Verificação de erros:","MÊS DE INTERESSE",5]
[{"$f":"IF(B21+B22=B23,\"OK\",\"algo errado, vc levará um puxar de orelha da carol\")","v":"algo errado, vc levará um puxar de orelha da carol"},"ANO DE INTERESSE",2021]
[null,"HOJE",{"$f":"TODAY()","v":"2023-08-04"}]
["Quadro 4 - Indicadores","ESSE MÊS",{"$f":"MONTH(C3)","v":8}]
[null,"km rodados no mês",200]
["PROGRAMA DE MONITORAMENTO E CONSERVAÇÃO DA FAUNA"]
["Número total de animais resgatados (RE + AT com vida) [Indivíduo/espécie]",{"$f":"CONCATENATE(SUMIF(H31:H1048576,\"RE\",P31:P1048576)+SUMIF(H31:H1048576,\"AT\",P31:P1048576),\"/\",BW26)","v":"81/28"},{"$f":"CONCATENATE(SUMIFS(P31:P1048576,E31:E1048576,C2,F31:F1048576,C1,H31:H1048576,\"RE\")+SUMIFS(P31:P1048576,E31:E1048576,C2,F31:F1048576,C1,H31:H1048576,\"AT\")+SUMIFS(P31:P1048576,E31:E1048576,D2,F31:F1048576,D1,H31:H1048576,\"RE\")+SUMIFS(P31:P1048576,E31:E1048576,D2,F31:F1048576,D1,H31:H1048576,\"AT\")+SUMIFS(P31:P1048576,E31:E1048576,E2,F31:F1048576,E1,H31:H1048576,\"RE\")+SUMIFS(P31:P1048576,E31:E1048576,E2,F31:F1048576,E1,H31:H1048576,\"AT\")+SUMIFS(P31:P1048576,E31:E1048576,F2,F31:F1048576,F1,H31:H1048576,\"RE\")+SUMIFS(P31:P1048576,E31:E1048576,F2,F31:F1048576,F1,H31:H1048576,\"AT\"),\"/\",BB26)","v":"7/5"}]
["Subprograma de Resgate da Fauna Silvestre"]
["Indicador","  Status Acumulado","Status do período"]
[null,"Indivíduo / Espécie"," Indivíduo / Espécie"]
["Afugentamento (número aproximado)",{"$f":"CONCATENATE(SUMIF(H31:H1048576,\"AF\",P31:P1048576),\"/\",BG26)","v":"3/3"},{"$f":"CONCATENATE(SUMIFS(P31:P1048576,E31:E1048576,C2,F31:F1048576,C1,H31:H1048576,\"AF\")+SUMIFS(P31:P1048576,E31:E1048576,D2,F31:F1048576,D1,H31:H1048576,\"AF\")+SUMIFS(P31:P1048576,E31:E1048576,E2,F31:F1048576,E1,H31:H1048576,\"AF\")+SUMIFS(P31:P1048576,E31:E1048576,F2,F31:F1048576,F1,H31:H1048576,\"AF\"),\"/\",AL26)","v":"0/0"}]
["Número de animais resgatados (RE) [Indivíduo/espécie]",{"$f":"CONCATENATE(SUMIF(H31:H1048576,\"RE\",P31:P1048576),\"/\",BS26)","v":"57/24"},{"$f":"CONCATENATE(SUMIFS(P31:P1048576,E31:E1048576,C2,F31:F1048576,C1,H31:H1048576,\"RE\")+SUMIFS(P31:P1048576,E31:E1048576,D2,F31:F1048576,D1,H31:H1048576,\"RE\")+SUMIFS(P31:P1048576,E31:E1048576,E2,F31:F1048576,E1,H31:H1048576,\"RE\")+SUMIFS(P31:P1048576,E31:E1048576,F2,F31:F1048576,F1,H31:H1048576,\"RE\"),\"/\",AX26)","v":"7/5"}]
["Subprograma de Recepção, Atendimento, e Destino dos Animais Silvestres"]
["Destinação - Número de animais realocados (soltura imediata – sem quarentena). \nObs. Soma dos animais recebidos na base e animais que não tiveram passagem na base. Porém não entram os de quarentena.",{"$f":"SUMIF($AB$31:$AB$1048576,\"Soltura\",P31:P1048576)","v":38},{"$f":"SUMIFS(P31:P1048576,E31:E1048576,C2,F31:F1048576,C1,$AB$31:$AB$1048576,\"Soltura\")+SUMIFS(P31:P1048576,E31:E1048576,D2,F31:F1048576,D1,$AB$31:$AB$1048576,\"Soltura\")+SUMIFS(P31:P1048576,E31:E1048576,E2,F31:F1048576,E1,$AB$31:$AB$1048576,\"Soltura\")+SUMIFS(P31:P1048576,E31:E1048576,F2,F31:F1048576,F1,$AB$31:$AB$1048576,\"Soltura\")","v":7}]
["Destinação - Animais reabilitados e reintroduzidos na natureza (soltura) [Soltura pós-quarentena - SPQ]",{"$f":"SUMIF(AB31:AB1048576,\"SPQ\",P31:P1048576)","v":0},{"$f":"SUMIFS(P31:P1048576,E31:E1048576,C2,F31:F1048576,C1,AB31:AB1048576,\"SPQ\")+SUMIFS(P31:P1048576,E31:E1048576,D2,F31:F1048576,D1,AB31:AB1048576,\"SPQ\")+SUMIFS(P31:P1048576,E31:E1048576,E2,F31:F1048576,E1,AB31:AB1048576,\"SPQ\")+SUMIFS(P31:P1048576,E31:E1048576,F2,F31:F1048576,F1,AB31:AB1048576,\"SPQ\")","v":0}]
["Destinação - Óbitos pós-quarentena [OPQ]",{"$f":"SUMIF(AB31:AB1048576,\"OPQ\",P31:P1048576)","v":0},{"$f":"SUMIFS(P31:P1048576,E31:E1048576,C2,F31:F1048576,C1,AB31:AB1048576,\"OPQ\")+SUMIFS(P31:P1048576,E31:E1048576,D2,F31:F1048576,D1,AB31:AB1048576,\"OPQ\")+SUMIFS(P31:P1048576,E31:E1048576,E2,F31:F1048576,E1,AB31:AB1048576,\"OPQ\")+SUMIFS(P31:P1048576,E31:E1048576,F2,F31:F1048576,F1,AB31:AB1048576,\"OPQ\")","v":0}]
["Animais armazenados aguardando destinação final (Óbitos)*",{"$f":"SUMIF($AB$31:$AB$1048576,\"Base de Fauna\",P31:P1048576)+SUMIF($AB$31:$AB$1048576,\"OPQ\",P31:P1048576)","v":25},{"$f":"SUMIFS(P31:P1048576,E31:E1048576,C2,F31:F1048576,C1,$AB$31:$AB$1048576,\"Base de Fauna\")+SUMIFS(P31:P1048576,E31:E1048576,D2,F31:F1048576,D1,$AB$31:$AB$1048576,\"Base de Fauna\")+SUMIFS(P31:P1048576,E31:E1048576,E2,F31:F1048576,E1,$AB$31:$AB$1048576,\"Base de Fauna\")+SUMIFS(P31:P1048576,E31:E1048576,F2,F31:F1048576,F1,$AB$31:$AB$1048576,\"Base de Fauna\")+SUMIFS(P31:P1048576,E31:E1048576,C2,F31:F1048576,C1,$AB$31:$AB$1048576,\"OPQ\")+SUMIFS(P31:P1048576,E31:E1048576,D2,F31:F1048576,D1,$AB$31:$AB$1048576,\"OPQ\")+SUMIFS(P31:P1048576,E31:E1048576,E2,F31:F1048576,E1,$AB$31:$AB$1048576,\"OPQ\")+SUMIFS(P31:P1048576,E31:E1048576,F2,F31:F1048576,F1,$AB$31:$AB$1048576,\"OPQ\")","v":0}]
["Destinação - Encaminhamentos ao CRAS Mata Ciliar\nSoma dos animais (CRAS)",{"$f":"COUNTIFS($AB$31:$AB$1048576,\"CRAS - Mata Ciliar\")","v":6},{"$f":"SUMIFS(P31:P1048576,E31:E1048576,C2,F31:F1048576,C1,AB31:AB1048576,\"CRAS - Mata Ciliar\")+SUMIFS(P31:P1048576,E31:E1048576,D2,F31:F1048576,D1,AB31:AB1048576,\"CRAS - Mata Ciliar\")+SUMIFS(P31:P1048576,E31:E1048576,E2,F31:F1048576,E1,AB31:AB1048576,\"CRAS - Mata Ciliar\")+SUMIFS(P31:P1048576,E31:E1048576,F2,F31:F1048576,F1,AB31:AB1048576,\"CRAS - Mata Ciliar\")","v":0},null,null,null,null,null,null,null,null,null,null,null,null,null,null,null,null,null,null,null,null,null,null,null,null,null,null,null,null,null,null,null,null,null,null,null,null,null,null,null,null,null,null,null,null,null,null,null,null,null,null,null,null,null,null,null,null,null,null,null,null,null,null,null,null,null,null,null,null,null,null,null,null,null,null,null,null,null,null,null,null,null,null,null,null,null,null,null,null,null,null,null,null,null,null,{"$f":"SUM(CT20:CT28)","v":7}]
["Destinação - Óbitos/UNIFAJ - Jaguariúna",{"$f":"SUMIF($AB$31:$AB$1048576,\"UNIFAJ\",P31:P1048576)","v":12},{"$f":"SUMIFS(P31:P1048576,AH31:AH1048576,C2,AI31:AI1048576,C1,$AB$31:$AB$1048576,\"UNIFAJ\")+SUMIFS(P31:P1048576,AH31:AH1048576,D2,AI31:AI1048576,D1,$AB$31:$AB$1048576,\"UNIFAJ\")+SUMIFS(P31:P1048576,AH31:AH1048576,E2,AI31:AI1048576,E1,$AB$31:$AB$1048576,\"UNIFAJ\")+SUMIFS(P31:P1048576,AH31:AH1048576,F2,AI31:AI1048576,F1,$AB$31:$AB$1048576,\"UNIFAJ\")","v":0},null,null,null,null,null,null,null,null,null,null,null,null,null,null,null,null,null,null,null,null,null,null,null,null,null,null,null,null,null,null,null,null,null,null,null,null,null,null,null,null,null,null,null,null,null,null,null,null,null,null,null,null,null,null,null,null,null,null,null,null,null,null,null,null,null,null,null,null,null,null,null,null,null,null,null,null,null,null,null,null,null,null,null,null,null,null,null,null,null,null,null,null,"Tipo ","GRUPO","Contagem de Nome científico"]
["Destinação - Óbito (descarte)",{"$f":"SUMIFS(P31:P1048576,$AB$31:$AB$1048576,\"D\")","v":0},{"$f":"SUMIFS(P31:P1048576,E31:E1048576,C2,F31:F1048576,C1,AB31:AB1048576,\"D\")+SUMIFS(P31:P1048576,E31:E1048576,D2,F31:F1048576,D1,AB31:AB1048576,\"D\")+SUMIFS(P31:P1048576,E31:E1048576,E2,F31:F1048576,E1,AB31:AB1048576,\"D\")+SUMIFS(P31:P1048576,E31:E1048576,F2,F31:F1048576,F1,AB31:AB1048576,\"D\")","v":0},null,null,null,null,null,null,null,null,null,null,null,null,null,null,null,null,null,null,null,null,null,null,null,null,null,null,null,null,null,null,null,null,null,null,null,null,null,null,null,null,null,null,null,null,null,null,null,null,null,null,null,null,null,null,null,null,null,null,null,null,null,null,null,null,null,null,null,null,null,null,null,null,null,null,null,null,null,null,null,null,null,null,null,null,null,null,null,null,null,null,null,null,"AF","AVIFAUNA",{"$f":"IFERROR(VLOOKUP(CS20,$CQ$36:$CR$1048576,2,FALSE),0)","v":0}]
["Atendimento de animais na Base de Fauna para atendimento (animal ferido)",{"$f":"SUMIF(V31:V1048576,\"Ferido\",P31:P1048576)","v":8},{"$f":"SUMIFS(P31:P1048576,E31:E1048576,C2,F31:F1048576,C1,V31:V1048576,\"Ferido\")+SUMIFS(P31:P1048576,E31:E1048576,D2,F31:F1048576,D1,V31:V1048576,\"Ferido\")+SUMIFS(P31:P1048576,E31:E1048576,E2,F31:F1048576,E1,V31:V1048576,\"Ferido\")+SUMIFS(P31:P1048576,E31:E1048576,F2,F31:F1048576,F1,V31:V1048576,\"Ferido\")","v":0},null,null,null,null,null,null,null,null,null,null,null,null,null,null,null,null,null,null,null,null,null,null,null,null,null,null,null,null,null,null,null,null,null,null,null,null,null,null,null,null,null,null,null,null,null,null,null,null,null,null,null,null,null,null,null,null,null,null,null,null,null,null,null,null,null,null,null,null,null,null,null,null,null,null,null,null,null,null,null,null,null,null,null,null,null,null,null,null,null,null,null,null,"AF","HERPETOFAUNA",{"$f":"IFERROR(VLOOKUP(CS21,$CQ$36:$CR$1048576,2,FALSE),0)","v":0}]
["Animais sem passsagem na base de fauna",{"$f":"SUMIF(W31:W1048576,\"Não\",P31:P1048576)-SUMIF(H31:H1048576,\"AV\",P31:P1048576)","v":3},{"$f":"SUMIFS(P31:P1048576,E31:E1048576,C2,F31:F1048576,C1,W31:W1048576,\"Não\")+SUMIFS(P31:P1048576,E31:E1048576,D2,F31:F1048576,D1,W31:W1048576,\"Não\")+SUMIFS(P31:P1048576,E31:E1048576,E2,F31:F1048576,E1,W31:W1048576,\"Não\")+SUMIFS(P31:P1048576,E31:E1048576,F2,F31:F1048576,F1,W31:W1048576,\"Não\")","v":0},null,null,null,null,null,null,null,null,null,null,null,null,null,null,null,null,null,null,null,null,null,null,null,null,null,null,null,null,null,null,null,null,null,null,null,null,null,null,null,null,null,null,null,null,null,null,null,null,null,null,null,null,null,null,null,null,null,null,null,null,null,null,null,null,null,null,null,null,null,null,null,null,null,null,null,null,null,null,null,null,null,null,null,null,null,null,null,null,null,null,null,null,"AF","MASTOFAUNA",{"$f":"IFERROR(VLOOKUP(CS22,$CQ$36:$CR$1048576,2,FALSE),0)","v":0}]
["Recepção e atendimento de animais na Base de Fauna para atendimento (Todos)",{"$f":"SUMIF(W31:W1048576,\"Sim\",P31:P1048576)","v":81},{"$f":"SUMIFS(P31:P1048576,E31:E1048576,C2,F31:F1048576,C1,W31:W1048576,\"Sim\")+SUMIFS(P31:P1048576,E31:E1048576,D2,F31:F1048576,D1,W31:W1048576,\"Sim\")+SUMIFS(P31:P1048576,E31:E1048576,E2,F31:F1048576,E1,W31:W1048576,\"Sim\")+SUMIFS(P31:P1048576,E31:E1048576,F2,F31:F1048576,F1,W31:W1048576,\"Sim\")","v":7},null,null,null,null,null,null,null,null,null,null,null,null,null,null,null,null,null,null,null,null,null,null,null,null,null,null,null,null,null,null,null,null,null,null,null,null,null,null,null,null,null,null,null,null,null,null,null,null,null,null,null,null,null,null,null,null,null,null,null,null,null,null,null,null,null,null,null,null,null,null,null,null,null,null,null,null,null,null,null,null,null,null,null,null,null,null,null,null,null,null,null,null,"AT","AVIFAUNA",{"$f":"IFERROR(VLOOKUP(CS23,$CU$36:$CV$1048576,2,FALSE),0)","v":0}]
["Subprograma de Monitoramento dos Eventos de Atropelamento de Fauna",null,null,null,null,null,null,null,null,null,null,null,null,null,null,null,null,null,null,null,null,null,null,null,null,null,null,null,null,null,null,null,null,null,null,null,null,null,null,null,null,null,null,null,null,null,null,null,null,null,null,null,null,null,null,null,null,null,null,null,null,null,null,null,null,null,null,null,null,null,null,null,null,null,null,null,null,null,null,null,null,null,null,null,null,null,null,null,null,null,null,null,null,null,null,"AT","HERPETOFAUNA",{"$f":"IFERROR(VLOOKUP(CS24,$CU$36:$CV$1048576,2,FALSE),0)","v":0}]
["Número de indivíduos / Número de espécies - AVISTAMENTOS",{"$f":"CONCATENATE(SUMIF(H31:H1048576,\"AV\",P31:P1048576),\"/\",BO26)","v":"0/0"},{"$f":"CONCATENATE(SUMIFS(P31:P1048576,E31:E1048576,C2,F31:F1048576,C1,H31:H1048576,\"AV\")+SUMIFS(P31:P1048576,E31:E1048576,D2,F31:F1048576,D1,H31:H1048576,\"AV\")+SUMIFS(P31:P1048576,E31:E1048576,E2,F31:F1048576,E1,H31:H1048576,\"AV\")+SUMIFS(P31:P1048576,E31:E1048576,F2,F31:F1048576,F1,H31:H1048576,\"AV\"),\"/\",AT26)","v":"0/0"},null,null,null,null,null,null,null,null,null,null,null,null,null,null,null,null,null,null,null,null,null,null,null,null,null,null,null,null,null,null,null,null,null,null,{"$f":"AM31","v":"AF"},null,null,null,{"$f":"AQ31","v":"AT"},null,null,null,{"$f":"AU31","v":"(Vários itens)"},null,null,null,{"$f":"AY31","v":"RE"},null,null,null,"RE + AT",null,null,null,null,{"$f":"BH31","v":"AF"},null,null,null,{"$f":"BL31","v":"AT"},null,null,null,{"$f":"BP31","v":"(Vários itens)"},null,null,null,{"$f":"BT31","v":"RE"},null,null,null,"RE + AT",null,null,null,null,null,null,null,null,null,null,null,null,null,null,null,null,null,null,null,null,"AT","MASTOFAUNA",{"$f":"IFERROR(VLOOKUP(CS25,$CU$36:$CV$1048576,2,FALSE),0)","v":0}]
["Número de indivíduos resgatados / Número de espécies identificados  ",{"$f":"CONCATENATE(SUMIF(H31:H1048576,\"AT\",P31:P1048576),\"/\",BK26)","v":"24/13"},{"$f":"CONCATENATE(SUMIFS(P31:P1048576,E31:E1048576,C2,F31:F1048576,C1,H31:H1048576,\"AT\")+SUMIFS(P31:P1048576,E31:E1048576,D2,F31:F1048576,D1,H31:H1048576,\"AT\")+SUMIFS(P31:P1048576,E31:E1048576,E2,F31:F1048576,E1,H31:H1048576,\"AT\")+SUMIFS(P31:P1048576,E31:E1048576,F2,F31:F1048576,F1,H31:H1048576,\"AT\"),\"/\",AP26)","v":"0/0"},null,null,null,null,null,null,null,null,null,null,null,null,null,null,null,null,null,null,null,"Fórmula",null,null,null,null,null,null,null,null,null,null,null,null,null,"RIQUEZA DE ESPÉCIES",{"$f":"COUNTA(AL34:AL1048576)","v":0},null,null,null,{"$f":"COUNTA(AP34:AP1048576)","v":0},null,null,null,{"$f":"COUNTA(AT34:AT1048576)","v":0},null,null,null,{"$f":"COUNTA(AX34:AX1048576)","v":5},null,null,null,{"$f":"COUNTA(BB34:BB1048576)","v":5},null,null,null,"RIQUEZA DE ESPÉCIES",{"$f":"COUNTA(BG34:BG1048576)","v":3},null,null,null,{"$f":"COUNTA(BK34:BK1048576)","v":13},null,null,null,{"$f":"COUNTA(BO34:BO1048576)","v":0},null,null,null,{"$f":"COUNTA(BS34:BS1048576)","v":24},null,null,null,{"$f":"COUNTA(BW34:BW1048576)","v":28},null,null,null,null,null,null,null,null,null,null,null,null,null,null,null,null,null,null,null,null,"RE","AVIFAUNA",{"$f":"IFERROR(VLOOKUP(CS26,$DC$36:$DD$1048576,2,FALSE),0)","v":0}]
["Número de registros por km percorrido",{"$f":"VLOOKUP(A27,'at-km'!N2:Z7,12,FALSE)","v":0},{"$f":"VLOOKUP(\"Número acumulado de registros por km percorrido\",'at-km'!N2:Z7,12,FALSE)","v":3.5714285714285713E-3},null,null,null,null,null,null,null,null,null,null,null,null,null,null,null,null,null,null,null,{"$f":"IF(H27=\"AV\",\"Não\",IF(H27=\"AT\",IF(V27=\"Ferido\",\"Sim\",IF(V27=\"Morto\",\"Sim\"))))","v":false},null,null,null,null,null,null,null,null,null,null,null,null,null,"FILTRAR PARA O PERÍODO DE INTERESSE (MESES E ANOS)",null,null,null,null,null,null,null,null,null,null,null,null,null,null,null,null,null,null,null,null,"ACUMULADO - NÃO MEXER",null,null,null,null,null,null,null,null,null,null,null,null,null,null,null,null,null,null,null,null,null,null,null,null,null,null,null,null,null,null,null,null,null,null,null,null,null,"RE","HERPETOFAUNA",{"$f":"IFERROR(VLOOKUP(CS27,$DC$36:$DD$1048576,2,FALSE),0)","v":7}]
[null,null,null,null,null,null,null,null,null,null,null,null,null,null,null,null,null,null,null,null,null,null,null,null,null,null,null,null,null,null,null,null,null,null,null,null,null,null,null,null,null,null,null,null,null,null,null,null,null,null,null,null,null,null,null,null,null,null,null,null,null,null,null,null,null,null,null,null,null,null,null,null,null,null,null,null,null,null,null,null,null,null,null,null,null,null,null,null,null,null,null,null,null,null,null,"RE","MASTOFAUNA",{"$f":"IFERROR(VLOOKUP(CS28,$DC$36:$DD$1048576,2,FALSE),0)","v":0}]
[null,null,null,null,"DATA",null,"REGISTRO",null,"DETALHAMENTO DA ORIGEM/REGISTRO DE OCORRÊNCIA",null,null,null,null,null,null,null,"IDENTIFICAÇÃO TAXONÔMICA",null,null,null,null,"DETALHAMENTO DO ATENDIMENTO/DESTINO",null,null,null,null,null,null,null,null,null,"INFORMAÇÕES ",null,null,null,null,null,"ANO",2021,null,null,"ANO",2021,null,null,"ANO",2021,null,null,"ANO",2021,null,null,"ANO",2021,null,null,null,null,null,null,null,null,null,null,null,null,null,null,null,null,null,null,null,null,null,null,null,"TABELA PARA UTILIZAR",null,null,null,null,null,null,null,null,null,null,null,null,null,null,"GRAFICO"]
["PROGRAMA DE MONITORAMENTO E CONSERVAÇÃO DA FAUNA",null,null,null,"ANO","Mês","ID","Tipo ","Data","Hora do Registro","Identificação do Local","Coordenada\nResgate\nX","Coordenada\nResgate\nY","Fitofisionomia/ Ambiente","Condição Meteorológica","NÚMERO DE INDIVÍDUOS","GRUPO","ORDEM","FAMÍLIA","Nome científico","Nome popular","Cond. do Animal","Base de Fauna","Estágio de desenvolvimento (no resgate)","Sexo","Acidentada em decorrência da obra","Quarentena","Destino","Data de destinação","Coordenada \nSoltura\nX","Coordenada\nSoltura\nY","Espécies categorizadas pelo Decreto 63.853/2018","Informações adicionais","ANO destinação","Mês destinação","17:00:00",null,"Mês",5,null,null,"Mês",5,null,null,"Mês",5,null,null,"Mês",5,null,null,"Mês",5]
["Indicador","Status do período","Status Acumulado",null,{"$f":"IF(I31=\"\",\"-\",YEAR(I31))","v":2020},{"$f":"IF(I31=\"\",\"-\",MONTH(I31))","v":8},1,"RE","2020-08-13","13:10:00","Canteiro de Apoio",308210,7490892,"Campo Antrópico","Ensolarado",1,"HERPETOFAUNA","Squamata","Dipsadidae","Oxyrhopus guibei","Falsa-coral","Saudável","Sim","Adulto","Fêmea","Não","Não","Soltura","2020-08-13",310715,7492902,"Não","-",{"$f":"IF(AC31=\"-\",\"-\",YEAR(AC31))","v":2020},{"$f":"IF(AC31=\"-\",\"-\",MONTH(AC31))","v":8},null,null,"Tipo ","AF",null,null,"Tipo ","AT",null,null,"Tipo ","(Vários itens)",null,null,"Tipo ","RE",null,null,"Tipo ","(Vários itens)",null,null,null,"Tipo ","AF",null,null,"Tipo ","AT",null,null,"Tipo ","(Vários itens)",null,null,"Tipo ","RE",null,null,"Tipo ","(Vários itens)",null,null,null,"Tipo ","(Vários itens)",null,null,null,null,null,"Tipo ","(Vários itens)",null,null,null,null,null,null,"ANO",2021,null,null,"ANO",2021,null,null,"ANO",2021,null,null,"ANO",2021,null,null,"ANO",2021,null,null,null,null,null,"Tipo ","(Vários itens)","GRAFICO 2 - COPIAR E COLAR"]
["Subprograma de Resgate da Fauna Silvestre",null,null,null,2020,8,2,"RE","2020-08-14","15:05:00","Canteiro de Apoio",308529,7491337,"Campo Antrópico","Ensolarado",1,"HERPETOFAUNA","Squamata","Colubridae","Philodryas olfersii","Cobra-verde","Saudável","Sim","Adulto","Macho","Não","Não","Soltura","2020-08-14",310719,7492752,"Não","-",{"$f":"IF(AC32=\"-\",\"-\",YEAR(AC32))","v":2020},8,null,null,null,null,null,null,null,null,null,null,null,null,null,null,null,null,null,null,null,null,null,null,null,null,null,null,null,null,null,null,null,null,null,null,null,null,null,null,null,null,null,null,null,null,null,null,null,null,null,null,null,null,null,null,null,null,null,null,null,"Mês",5,null,null,"Mês",5,null,null,"Mês",5,null,null,"Mês",5,null,null,"Mês",5]
[{"$f":"A11","v":"Afugentamento (número aproximado)"},{"$f":"C11","v":"0/0"},{"$f":"B11","v":"3/3"},null,2020,8,3,"RE","2020-08-24","16:49:00","Canteiro de Apoio",307556,7490619,"Campo Antrópico","Ensolarado",1,"HERPETOFAUNA","Squamata","Mabuydae","Copeoglossum nigropunctatum","Calango-cobra","Ferido","Sim","Adulto","ND","Sim","Sim","Soltura","2020-08-25",310917,7492652,"Não","-",2020,8,null,null,"Nome científico",null,null,null,"Nome científico",null,null,null,"Nome científico",null,null,null,"Nome científico",null,null,null,"Nome científico",null,null,null,null,"Nome científico",null,null,null,"Nome científico",null,null,null,"Nome científico",null,null,null,"Nome científico",null,null,null,"Nome científico",null,null,null,null,"GRUPO","ORDEM","FAMÍLIA","Nome científico","Nome popular",null,null,"ORDEM",null,null,null,null,null,null,null,"Tipo ","AF",null,null,"Tipo ","AT",null,null,"Tipo ","(Vários itens)",null,null,"Tipo ","RE",null,null,"Tipo ","(Vários itens)",null,null,null,null,null,"Nome científico","Contagem de Nome científico",{"$f":"DN33","v":"Nome científico"},{"$f":"DO33","v":"Contagem de Nome científico"}]
[{"$f":"A12","v":"Número de animais resgatados (RE) [Indivíduo/espécie]"},{"$f":"C12","v":"7/5"},{"$f":"B12","v":"57/24"},null,2020,8,"-","AF","2020-08-20","-","ASV - Área 17",307474,7490683,"Fragmento Florestal","Ensolarado",1,"MASTOFAUNA","Primata","Cebidae","Calitrix pericilatta","Sagui Tufo Preto","Saudável","Não","Adulto","ND","Não","Não","-","-","-","-","-","-","-","-",null,null,null,null,null,null,null,null,null,null,null,null,null,null,"Crotalus durissus",null,null,null,"Crotalus durissus",null,null,null,null,"Calitrix pericilatta",null,null,null,"Amphisbaena alba",null,null,null,null,null,null,null,"Apodemus sylvaticus",null,null,null,"Amphisbaena alba",null,null,null,null,"AVIFAUNA","Columbiformes","Columbidae","Zenaida auriculata","Avoante",null,null,"Anura",null,null,null,null,null,null,null,null,null,null,null,null,null,null,null,null,null,null,null,null,null,null,null,null,null,null,null,null,null,null,"Amphisbaena alba",5,{"$f":"DN34","v":"Amphisbaena alba"},{"$f":"DO34","v":5}]
["Subprograma de Recepção, Atendimento e Destino dos Animais Silvestres",null,null,null,2020,8,"-","AF","2020-08-24","-","ASV - Área 07",307564,7490497,"Fragmento Florestal","Ensolarado",1,"HERPETOFAUNA","Squamata","Teiidae","Salvator merianae","Teiú","Saudável","Não","Adulto","ND","Não","Não","-","-","-","-","-","-","-","-",null,null,null,null,null,null,null,null,null,null,null,null,null,null,"Philodryas olfersii",null,null,null,"Philodryas olfersii",null,null,null,null,"Dasypus novemcinctus",null,null,null,"Callithrix jacchus",null,null,null,null,null,null,null,"Boa Constrictor",null,null,null,"Apodemus sylvaticus",null,null,null,null,"AVIFAUNA","Passeriformes","Hirundinidae","Pygochelidon cyanoleuca","Andorinha-pequena-de-casa",null,null,"Cingulata",null,null,null,null,null,null,null,"GRUPO","Contagem de Nome científico",null,null,"GRUPO","Contagem de Nome científico",null,null,null,null,null,null,"GRUPO","Contagem de Nome científico",null,null,"GRUPO","Contagem de Nome científico",null,null,null,null,null,"Apodemus sylvaticus",1,"Apodemus sylvaticus",1]
["Destinação – Realocados (soltura). Soma de animais recebidos na base e animais sem passagem na base (inclui os de quarentena). ",{"$f":"SUM(C14:C15)","v":7},{"$f":"SUM(B14:B15)","v":38},null,2020,8,"-","AF","2020-08-31","-","ASV - Área 35",308849,7490811,"Fragmento Florestal","Ensolarado",1,"MASTOFAUNA","Cingulata","Dasypodidae","Dasypus novemcinctus","Tatu Galinha","Saudável","Não","Adulto","ND","Não","Não","-","-","-","-","-","-","-","-",null,null,null,null,null,null,null,null,null,null,null,null,null,null,"Salvator merianae",null,null,null,"Salvator merianae",null,null,null,null,"Salvator merianae",null,null,null,"Crotalus durissus",null,null,null,null,null,null,null,"Bothrops alternatus",null,null,null,"Bothrops jararaca",null,null,null,null,"AVIFAUNA","Passeriformes","Thraupidae","Sicalis flaveola","Canario-da-terra",null,null,"Columbiformes",null,null,null,null,null,null,null,null,null,null,null,null,null,null,null,null,null,null,null,"HERPETOFAUNA",7,null,null,"HERPETOFAUNA",7,null,null,null,null,null,"Boa Constrictor",1,"Boa Constrictor",1]
["Destinação – Encaminhamentos ao CRAS Mata Ciliar",{"$f":"C18","v":0},{"$f":"B18","v":6},null,2020,9,7,"RE","2020-09-14","09:48:00","ASV - Área 03",309841,7492242,"Fragmento Florestal","Ensolarado",1,"HERPETOFAUNA","Squamata","Dipsadidae","Dipsas mikanii","Jararaca-dormideira","Saudável","Sim","Jovem","Fêmea","Não","Não","Soltura","2020-09-14",310906,7492656,"Não","-",{"$f":"IF(AC37=\"-\",\"-\",YEAR(AC37))","v":2020},9,null,null,null,null,null,null,null,null,null,null,null,null,null,null,"Bothrops urutu",null,null,null,"Bothrops urutu",null,null,null,null,null,null,null,null,"Dasypus novemcinctus",null,null,null,null,null,null,null,"Bothrops jararaca",null,null,null,"Callithrix jacchus",null,null,null,null,"AVIFAUNA","Piciformes","Ramphastidae","Ramphastos toco","Tucano-toco",null,null,"Didelphimorphia",null,null,null,null,null,null,null,null,null,null,null,null,null,null,null,null,null,null,null,null,null,null,null,null,null,null,null,null,null,null,"Bothrops alternatus",1,"Bothrops alternatus",1]
["Destinação – Em Quarentena (aguardando ou aguardaram destinação)",{"$f":"SUM(C15:C16)","v":0},{"$f":"SUM(B15:B16)","v":0},null,2020,9,8,"RE","2020-09-14","11:05:00","ASV - Área 03",310192,7492168,"Fragmento Florestal","Ensolarado",1,"MASTOFAUNA","Rodentia","Muridae","Apodemus sylvaticus","Rato-do-campo","Saudável","Sim","Adulto","Macho","Não","Não","Soltura","2020-09-14",310906,7492654,"Não","-",2020,9,null,null,null,null,null,null,null,null,null,null,null,null,null,null,"Bothrops newiedi",null,null,null,"Bothrops newiedi",null,null,null,null,null,null,null,null,"Didelphis albiventris",null,null,null,null,null,null,null,"Bothrops newiedi",null,null,null,"Cavia aparea",null,null,null,null,"AVIFAUNA","Psittaciformes","Psittacidae","Psittacara leucophthalmus","Maritaca-maracanã",null,null,"Passeriformes",null,null,null,null,null,null,null,null,null,null,null,null,null,null,null,null,null,null,null,null,null,null,null,null,null,null,null,null,null,null,"Bothrops jararaca",5,"Bothrops jararaca",5]
["Destinação – Óbitos/Universidade",{"$f":"C19","v":0},{"$f":"B19","v":12},null,2020,9,11,"RE","2020-09-17","08:55:00","Canteiro de Apoio",308607,7491454,"Campo Antrópico","Ensolarado",1,"HERPETOFAUNA","Squamata","Dipsadidae","Dipsas mikanii","Jararaca-dormideira","Saudável","Sim","Adulto","Fêmea","Não","Não","Soltura","2020-09-17",310850,7492616,"Não","-",2020,9,null,null,null,null,null,null,null,null,null,null,null,null,null,null,null,null,null,null,null,null,null,null,null,null,null,null,null,"Didelphis aurita",null,null,null,null,null,null,null,"Bothrops urutu",null,null,null,"Copeoglossum nigropunctatum",null,null,null,null,"HERPETOFAUNA","Anura","Bufonidae","Rhinella sp.","Sapo Cururu",null,null,"Piciformes",null,null,null,null,null,null,null,null,null,null,null,null,null,null,null,null,null,null,null,null,null,null,null,null,null,null,null,null,null,null,"Bothrops newiedi",7,"Bothrops newiedi",7]
["Recepção e atendimento de animais na Base de Fauna para atendimento",{"$f":"C23","v":7},{"$f":"B23","v":81},null,2020,9,14,"RE","2020-09-21","06:50:00","Canteiro de Apoio",308507,7491370,"Campo Antrópico","Ensolarado",1,"MASTOFAUNA","Didelphimorphia","Didelphidae","Didelphis albiventris","Gambá-de-orelha-branca","Morto","Sim","Jovem","Macho","Não","Não","UNIFAJ","2020-12-01",292726,7486121,"Não","Aguardando encaminhamento para a Universidade",2020,12,null,null,null,null,null,null,null,null,null,null,null,null,null,null,null,null,null,null,null,null,null,null,null,null,null,null,null,"Dipsas mikanii",null,null,null,null,null,null,null,"Callithrix jacchus",null,null,null,"Crotalus durissus",null,null,null,null,"HERPETOFAUNA","Squamata","Colubridae","Philodryas olfersii","Cobra-verde",null,null,"Primata",null,null,null,null,null,null,null,null,null,null,null,null,null,null,null,null,null,null,null,null,null,null,null,null,null,null,null,null,null,null,"Bothrops urutu",4,"Bothrops urutu",4]
["Subprograma de Monitoramento dos Eventos de Atropelamento de Fauna",null,null,null,2020,9,16,"RE","2020-09-26","11:40:00","ASV - Área 22",307295,7490803,"Fragmento Florestal","Ensolarado",1,"HERPETOFAUNA","Squamata","Viperidae","Crotalus durissus","Cascavel","Saudável","Sim","Adulto","Macho","Não","Não","Soltura","2020-09-26",310846,7492650,"Não","-",2020,9,null,null,null,null,null,null,null,null,null,null,null,null,null,null,null,null,null,null,null,null,null,null,null,null,null,null,null,"Erythrolamprus aesculapii",null,null,null,null,null,null,null,"Cavia aparea",null,null,null,"Dasypus novemcinctus",null,null,null,null,"HERPETOFAUNA","Squamata","Dipsadidae","Dipsas mikanii","Jararaca - dormideira",null,null,"Rodentia",null,null,null,null,null,null,null,null,null,null,null,null,null,null,null,null,null,null,null,null,null,null,null,null,null,null,null,null,null,null,"Calitrix pericilatta",1,"Calitrix pericilatta",1]
[{"$f":"A26","v":"Número de indivíduos resgatados / Número de espécies identificados  "},{"$f":"C26","v":"0/0"},{"$f":"B26","v":"24/13"},null,2020,9,17,"RE","2020-09-26","11:40:00","ASV - Área 22",307295,7490803,"Fragmento Florestal","Ensolarado",1,"HERPETOFAUNA","Squamata","Viperidae","Crotalus durissus","Cascavel","Saudável","Sim","Adulto","Fêmea","Não","Não","Soltura","2020-09-26",310846,7492650,"Não","-",2020,9,null,null,null,null,null,null,null,null,null,null,null,null,null,null,null,null,null,null,null,null,null,null,null,null,null,null,null,"Micrurus sp.",null,null,null,null,null,null,null,"Copeoglossum nigropunctatum",null,null,null,"Didelphis albiventris",null,null,null,null,"HERPETOFAUNA","Squamata","Dipsadidae","Dipsas mikanii","Jararaca-dormideira",null,null,"Squamata",null,null,null,null,null,null,null,null,null,null,null,null,null,null,null,null,null,null,null,null,null,null,null,null,null,null,null,null,null,null,"Callithrix jacchus",2,"Callithrix jacchus",2]
["Número de registros por km percorrido ",{"$f":"C27","v":3.5714285714285713E-3},{"$f":"B27","v":0},null,2020,9,19,"RE","2020-09-29","14:40:00","Área 22",307537,7490816,"Pastagem","Ensolarado",1,"HERPETOFAUNA","Squamata","Viperidae","Crotalus durissus","Cascavel","Saudável","Sim","Jovem","Fêmea","Não","Não","Soltura","2020-09-29",310954,7492667,"Não","-",2020,9,null,null,null,null,null,null,null,null,null,null,null,null,null,null,null,null,null,null,null,null,null,null,null,null,null,null,null,"Oxyrhopus guibei",null,null,null,null,null,null,null,"Crotalus durissus",null,null,null,"Didelphis aurita",null,null,null,null,"HERPETOFAUNA","Squamata","Dipsadidae","Oxyrhopus guibei","Falsa-coral",null,null,"(vazio)",null,null,null,null,null,null,null,null,null,null,null,null,null,null,null,null,null,null,null,null,null,null,null,null,null,null,null,null,null,null,"Cavia aparea",1,"Cavia aparea",1]
[{"$f":"A17","v":"Animais armazenados aguardando destinação final (Óbitos)*"},{"$f":"C17","v":0},{"$f":"B17","v":25},null,2020,11,21,"RE","2020-11-23","14:47:00","Canteiro de Apoio",308504,7491421,"Infraestrutura","Ensolarado",1,"HERPETOFAUNA","Squamata","Dipsadidae","Dipsas mikanii","Jararaca-dormideira","Saudável","Sim","Jovem","Fêmea","Não","Não","Soltura","2020-11-23",310958,7492649,"Não","-",2020,11,null,null,null,null,null,null,null,null,null,null,null,null,null,null,null,null,null,null,null,null,null,null,null,null,null,null,null,"Philodryas olfersii",null,null,null,null,null,null,null,"Didelphis albiventris",null,null,null,"Dipsas mikanii",null,null,null,null,"HERPETOFAUNA","Squamata","Dipsadidae","Taeniophallus afinnis","Cobra-Cabeça-preta",null,null,"Primates",null,null,null,null,null,null,null,null,null,null,null,null,null,null,null,null,null,null,null,null,null,null,null,null,null,null,null,null,null,null,"Copeoglossum nigropunctatum",1,"Copeoglossum nigropunctatum",1]
[null,null,null,null,2020,11,24,"RE","2020-11-28","12:50:00","Canteiro de Apoio",308500,7491338,"Campo Antrópico","Ensolarado",1,"AVIFAUNA","Passeriformes","Hirundinidae","Pygochelidon cyanoleuca","Andorinha-pequena-de-casa","Ferido","Sim","Adulto","ND","Não","Não","CRAS - Mata Ciliar","2020-11-28",305466,7484505,"Não","Destinado ao CRAS - Mata Ciliar",2020,11,null,null,null,null,null,null,null,null,null,null,null,null,null,null,null,null,null,null,null,null,null,null,null,null,null,null,null,"Salvator merianae",null,null,null,null,null,null,null,"Didelphis aurita",null,null,null,"Erythrolamprus aesculapii",null,null,null,null,"HERPETOFAUNA","Squamata","Mabuydae","Copeoglossum nigropunctatum","Calango-cobra",null,null,"Psittaciformes",null,null,null,null,null,null,null,null,null,null,null,null,null,null,null,null,null,null,null,null,null,null,null,null,null,null,null,null,null,null,"Crotalus durissus",14,"Crotalus durissus",14]
[null,null,null,null,2020,12,25,"RE","2020-12-01","14:40:00","Canteiro de Apoio",308506,7491385,"Fragmento Florestal","Ensolarado",1,"AVIFAUNA","Piciformes","Ramphastidae","Ramphastos toco","Tucano-toco","Morto","Sim","Adulto","ND","Não","Não","Base de Fauna","-",308508,7491376,"Não","Aguardando encaminhamento para a Universidade","-","-",null,null,null,null,null,null,null,null,null,null,null,null,null,null,null,null,null,null,null,null,null,null,null,null,null,null,null,"Tantilla melanocephala",null,null,null,null,null,null,null,"Dipsas mikanii",null,null,null,"Micrurus sp.",null,null,null,null,"HERPETOFAUNA","Squamata","Teiidae","Salvator merianae","Teiú",null,null,null,null,null,null,null,null,null,null,null,null,null,null,null,null,null,null,null,null,null,null,null,null,null,null,null,null,null,null,null,null,null,"Dasypus novemcinctus",3,"Dasypus novemcinctus",3]
[null,null,null,null,2020,12,26,"RE","2020-12-02","16:40:00","Canteiro de Apoio",308506,7491385,"Infraestrutura","Ensolarado",1,"AVIFAUNA","Columbiformes","Columbidae","Zenaida auriculata","Avoante","Ferido","Sim","Adulto","ND","Não","Não","CRAS - Mata Ciliar","2020-12-02",305466,7484505,"Não","Destinado ao CRAS - Mata Ciliar",2020,12,null,null,null,null,null,null,null,null,null,null,null,null,null,null,null,null,null,null,null,null,null,null,null,null,null,null,null,null,null,null,null,null,null,null,null,"Oxyrhopus guibei",null,null,null,"Oxyrhopus guibei",null,null,null,null,"HERPETOFAUNA","Squamata","Viperidae","Bothrops jararaca","Jararaca-da-mata",null,null,null,null,null,null,null,null,null,null,null,null,null,null,null,null,null,null,null,null,null,null,null,null,null,null,null,null,null,null,null,null,null,"Didelphis albiventris",3,"Didelphis albiventris",3]
[null,null,null,null,2020,12,28,"RE","2020-12-29","15:20:00","Sublote de plantio 1.13",308642,7491438,"Futura APP","Ensolarado",1,"HERPETOFAUNA","Squamata","Dipsadidae","Dipsas mikanii","Jararaca-dormideira","Morto","Sim","Adulto","Fêmea","Sim","Não","Base de Fauna","-",308508,7491376,"Não","Aguardando encaminhamento para a Universidade","-","-",null,null,null,null,null,null,null,null,null,null,null,null,null,null,null,null,null,null,null,null,null,null,null,null,null,null,null,null,null,null,null,null,null,null,null,"Philodryas olfersii",null,null,null,"Philodryas olfersii",null,null,null,null,"HERPETOFAUNA","Squamata","Viperidae","Crotalus durissus","Cascavel",null,null,null,null,null,null,null,null,null,null,null,null,null,null,null,null,null,null,null,null,null,null,null,null,null,null,null,null,null,null,null,null,null,"Didelphis aurita",2,"Didelphis aurita",2]
[null,null,null,null,2021,1,30,"RE","2021-01-07","09:30:00","Sublote de plantio 1.13",308790,7491501,"Futura APP","Ensolarado",1,"HERPETOFAUNA","Squamata","Viperidae","Crotalus durissus","Cascavel","Morto","Sim","Adulto","Fêmea","Sim","Não","Base de Fauna","-",308508,7491376,"Não","-","-","-",null,null,null,null,null,null,null,null,null,null,null,null,null,null,null,null,null,null,null,null,null,null,null,null,null,null,null,null,null,null,null,null,null,null,null,"Psittacara leucophthalmus",null,null,null,"Pygochelidon cyanoleuca",null,null,null,null,"HERPETOFAUNA","Squamata","Viperidae","Crotalus durissus","Casacavel",null,null,null,null,null,null,null,null,null,null,null,null,null,null,null,null,null,null,null,null,null,null,null,null,null,null,null,null,null,null,null,null,null,"Dipsas mikanii",7,"Dipsas mikanii",7]
[null,null,null,null,2021,1,31,"RE","2021-01-08","10:02:00","Sublote de plantio 1.14",308798,7491427,"Futura APP","Ensolarado",1,"HERPETOFAUNA","Squamata","Viperidae","Crotalus durissus","Cascavel","Saudável","Sim","Adulto","ND","Não","Não","Soltura","2021-01-08",310908,7492663,"Não","-",2021,1,null,null,null,null,null,null,null,null,null,null,null,null,null,null,null,null,null,null,null,null,null,null,null,null,null,null,null,null,null,null,null,null,null,null,null,"Pygochelidon cyanoleuca",null,null,null,"Ramphastos toco",null,null,null,null,"HERPETOFAUNA","Squamata","Viperidae","Philodryas olfersii","Cobra-verde",null,null,null,null,null,null,null,null,null,null,null,null,null,null,null,null,null,null,null,null,null,null,null,null,null,null,null,null,null,null,null,null,null,"Erythrolamprus aesculapii",2,"Erythrolamprus aesculapii",2]
[null,null,null,null,2021,1,32,"RE","2021-01-13","14:32:00","Canteiro de Apoio",308526,7491330,"-","Ensolarado",1,"MASTOFAUNA","Rodentia","Cavidae ","Cavia aparea","Preá","Morto","Sim","Adulto","Fêmea","Sim","Não","Soltura","2021-01-13",308506,7491375,"Não","-",2021,1,null,null,null,null,null,null,null,null,null,null,null,null,null,null,null,null,null,null,null,null,null,null,null,null,null,null,null,null,null,null,null,null,null,null,null,"Ramphastos toco",null,null,null,"Rhinella sp.",null,null,null,null,"HERPETOFAUNA","Squamata","Viperidae","Bothrops alternatus","Urutu",null,null,null,null,null,null,null,null,null,null,null,null,null,null,null,null,null,null,null,null,null,null,null,null,null,null,null,null,null,null,null,null,null,"Micrurus sp.",1,"Micrurus sp.",1]
[null,null,null,null,2021,1,33,"RE","2021-01-13","14:35:00","Sublote de plantio 1.14",308797,7491428,"Futura APP","Ensolarado",1,"HERPETOFAUNA","Squamata","Viperidae","Crotalus durissus","Cascavel","Saudável","Sim","Jovem","ND","Não","Não","Soltura","2021-01-13",310946,7492652,"Não","-",2021,1,null,null,null,null,null,null,null,null,null,null,null,null,null,null,null,null,null,null,null,null,null,null,null,null,null,null,null,null,null,null,null,null,null,null,null,"Rhinella sp.",null,null,null,"Salvator merianae",null,null,null,null,"HERPETOFAUNA","Squamata","Viperidae","Bothrops urutu","Urutu",null,null,null,null,null,null,null,null,null,null,null,null,null,null,null,null,null,null,null,null,null,null,null,null,null,null,null,null,null,null,null,null,null,"Oxyrhopus guibei",6,"Oxyrhopus guibei",6]
[null,null,null,null,2021,1,34,"RE","2021-01-14","10:42:00","Canteiro de Apoio",308507,7491421,"-","Ensolarado",1,"HERPETOFAUNA","Anura","Bufonidae","Rhinella sp.","Sapo Cururu","Saudável","Sim","Jovem","ND","Não","Não","Soltura","2021-01-14",310950,7492645,"Não","-",2021,1,null,null,null,null,null,null,null,null,null,null,null,null,null,null,null,null,null,null,null,null,null,null,null,null,null,null,null,null,null,null,null,null,null,null,null,"Salvator merianae",null,null,null,"Sicalis flaveola",null,null,null,null,"HERPETOFAUNA","Squamata","Viperidae","Bothrops urutu","Urutu-cruzeiro",null,null,null,null,null,null,null,null,null,null,null,null,null,null,null,null,null,null,null,null,null,null,null,null,null,null,null,null,null,null,null,null,null,"Philodryas olfersii",4,"Philodryas olfersii",4]
[null,null,null,null,2021,1,36,"RE","2021-01-18","13:13:00","Sublote de plantio 1.14",308717,7491406,"Futura APP","Ensolarado",1,"HERPETOFAUNA","Squamata","Viperidae","Bothrops jararaca","Jararaca-da-mata","Saudável","Sim","Adulto","ND","Não","Não","Soltura","2021-01-18",310959,7493126,"Não","-",2021,1,null,null,null,null,null,null,null,null,null,null,null,null,null,null,null,null,null,null,null,null,null,null,null,null,null,null,null,null,null,null,null,null,null,null,null,"Sicalis flaveola",null,null,null,"Zenaida auriculata",null,null,null,null,"HERPETOFAUNA","Squamata","Viperidae","Bothrops newiedi","Jararaca rabo branco",null,null,null,null,null,null,null,null,null,null,null,null,null,null,null,null,null,null,null,null,null,null,null,null,null,null,null,null,null,null,null,null,null,"Psittacara leucophthalmus",2,"Psittacara leucophthalmus",2]
[null,null,null,null,2021,1,37,"RE","2021-01-18","13:20:00","Sublote de plantio 1.14",308715,7491407,"Futura APP","Ensolarado",1,"HERPETOFAUNA","Squamata","Viperidae","Bothrops jararaca","Jararaca-da-mata","Morto","Sim","Adulto","ND","Não","Sim","Base de Fauna","2021-01-18",308506,7491375,"Não","Aguardando encaminhamento para a UNIFAJ",2021,1,null,null,null,null,null,null,null,null,null,null,null,null,null,null,null,null,null,null,null,null,null,null,null,null,null,null,null,null,null,null,null,null,null,null,null,"Taeniophallus afinnis",null,null,null,"Psittacara leucophthalmus",null,null,null,null,"HERPETOFAUNA","Squamata","Viperidae","Bothrops newiedi","Jararaca-de-rabo-branco",null,null,null,null,null,null,null,null,null,null,null,null,null,null,null,null,null,null,null,null,null,null,null,null,null,null,null,null,null,null,null,null,null,"Pygochelidon cyanoleuca",1,"Pygochelidon cyanoleuca",1]
[null,null,null,null,2021,1,38,"RE","2021-01-19","14:40:00","Sublote de plantio 1.14",308714,7491406,"Futura APP","Ensolarado",1,"HERPETOFAUNA","Squamata","Viperidae","Crotalus durissus","Cascavel","Morto","Sim","Adulto","Fêmea","Sim","Não","Base de Fauna","2021-01-19",308508,7491376,"Não","Aguardando encaminhamento para a UNIFAJ",2021,1,null,null,null,null,null,null,null,null,null,null,null,null,null,null,null,null,null,null,null,null,null,null,null,null,null,null,null,null,null,null,null,null,null,null,null,"Tantilla melanocephala",null,null,null,"Bothrops alternatus",null,null,null,null,"HERPETOFAUNA","Squamata","Viperidae","Bothrops newiedi","Jararaca-rabo-branco",null,null,null,null,null,null,null,null,null,null,null,null,null,null,null,null,null,null,null,null,null,null,null,null,null,null,null,null,null,null,null,null,null,"Ramphastos toco",1,"Ramphastos toco",1]
["Legenda: ",null,null,null,2021,1,39,"RE","2021-01-19","14:43:00","Sublote de plantio 1.15",308678,7491377,"Futura APP","Ensolarado",1,"HERPETOFAUNA","Squamata","Viperidae","Crotalus durissus","Cascavel","Saudável","Sim","Adulto","Macho","Não","Não","Soltura","2021-01-19",310966,7492683,"Não","-",2021,1,null,null,null,null,null,null,null,null,null,null,null,null,null,null,null,null,null,null,null,null,null,null,null,null,null,null,null,null,null,null,null,null,null,null,null,"Zenaida auriculata",null,null,null,"Taeniophallus afinnis",null,null,null,null,"HERPETOFAUNA","Squamata","Viperidae","Tantilla melanocephala","Cobra-de-cabeça-preta",null,null,null,null,null,null,null,null,null,null,null,null,null,null,null,null,null,null,null,null,null,null,null,null,null,null,null,null,null,null,null,null,null,"Rhinella sp.",1,"Rhinella sp.",1]
["Tipo de registro: AF = Afugentamento (incluindo espontâneo), RE = Resgate; ",null,null,null,2021,1,40,"RE","2021-01-20","11:17:00","Sublote de plantio 1.15",308657,7491382,"Futura APP","Ensolarado",1,"HERPETOFAUNA","Squamata","Viperidae","Bothrops jararaca","Jararaca-da-mata","Morto","Sim","Jovem","ND","Sim","Não","Base de Fauna","2021-01-20",308508,7491376,"Não","Aguardando encaminhamento para a UNIFAJ",2021,1,null,null,null,null,null,null,null,null,null,null,null,null,null,null,null,null,null,null,null,null,null,null,null,null,null,null,null,null,null,null,null,null,null,null,null,null,null,null,null,"Bothrops urutu",null,null,null,null,"HERPETOFAUNA","Squamata","Boidae","Boa Constrictor","Jiboia-constritora",null,null,null,null,null,null,null,null,null,null,null,null,null,null,null,null,null,null,null,null,null,null,null,null,null,null,null,null,null,null,null,null,null,"Salvator merianae",3,"Salvator merianae",3]
["Fitofisionomia/ambiente: AA = Antropizado, PA = PA, TR = trilha, CA = Canteiro de Obras; CUP = Cupinzeiro, FES = Floresta Estacional Semidecidual, AQ = Ambiente aquático; ",null,null,null,2021,1,41,"RE","2021-01-20","13:10:00","Sublote de plantio 1.14",308602,7491415,"Futura APP","Ensolarado",1,"HERPETOFAUNA","Squamata","Dipsadidae","Dipsas mikanii","Jararaca - dormideira","Saudável","Sim","Jovem","ND","Não","Não","Soltura","2021-01-20",311039,7493178,"Não","-",2021,1,null,null,null,null,null,null,null,null,null,null,null,null,null,null,null,null,null,null,null,null,null,null,null,null,null,null,null,null,null,null,null,null,null,null,null,null,null,null,null,"Bothrops newiedi",null,null,null,null,"HERPETOFAUNA","(vazio)","(vazio)","Amphisbaena alba","Cobra - cega",null,null,null,null,null,null,null,null,null,null,null,null,null,null,null,null,null,null,null,null,null,null,null,null,null,null,null,null,null,null,null,null,null,"Sicalis flaveola",1,"Sicalis flaveola",1]
["Condições meteorológicas: AB = Aberto, CH = Chuvoso, NU = Nublado;  ",null,null,null,2021,1,42,"RE","2021-01-27","15:10:00","Sublote de plantio 1.15",308843,7491353,"Futura APP","Ensolarado",1,"HERPETOFAUNA","Squamata","Viperidae","Bothrops jararaca","Jararaca-da-mata","Saudável","Sim","Jovem","ND","Não","Não","Soltura","2021-01-27",310976,7493211,"Não","-",2021,1,null,null,null,null,null,null,null,null,null,null,null,null,null,null,null,null,null,null,null,null,null,null,null,null,null,null,null,null,null,null,null,null,null,null,null,null,null,null,null,"Tantilla melanocephala",null,null,null,null,"HERPETOFAUNA","(vazio)","(vazio)","Amphisbaena alba","Cobra-cega",null,null,null,null,null,null,null,null,null,null,null,null,null,null,null,null,null,null,null,null,null,null,null,null,null,null,null,null,null,null,null,null,null,"Taeniophallus afinnis",1,"Taeniophallus afinnis",1]
["Condições do Animal: D = Debilitado, F = Ferido, M = M, S = Saudável; ",null,null,null,2021,2,44,"RE","2021-02-01","14:43:00","Sublote de plantio 1.15",308843,7491353,"Infraestrutura","Ensolarado",1,"HERPETOFAUNA","Squamata","Viperidae","Bothrops jararaca","Jararaca-da-mata","Saudável","Sim","Adulto","ND","Não","Não","Soltura","2021-02-01",310975,7492681,"Não","-",2021,2,null,null,null,null,null,null,null,null,null,null,null,null,null,null,null,null,null,null,null,null,null,null,null,null,null,null,null,null,null,null,null,null,null,null,null,null,null,null,null,"Boa Constrictor",null,null,null,null,"HERPETOFAUNA","(vazio)","(vazio)","Crotalus durissus","Cascavel",null,null,null,null,null,null,null,null,null,null,null,null,null,null,null,null,null,null,null,null,null,null,null,null,null,null,null,null,null,null,null,null,null,"Tantilla melanocephala",2,"Tantilla melanocephala",2]
["Estágio de desenvolvimento: A = Adulto, J = Jovem, F = Filhote, L= Larva (girino), O = Ovo; ",null,null,null,2021,2,46,"RE","2021-02-05","07:45:00","Canteiro de Apoio",308515,7491429,"Campo Antrópico","Ensolarado",1,"AVIFAUNA","Psittaciformes","Psittacidae","Psittacara leucophthalmus","Maritaca-maracanã","Saudável","Sim","Neonato","ND","Não","Não","CRAS - Mata Ciliar","2021-02-05",305466,7484505,"Não","Destinado ao CRAS - Mata Ciliar",2021,2,null,null,null,null,null,null,null,null,null,null,null,null,null,null,null,null,null,null,null,null,null,null,null,null,null,null,null,null,null,null,null,null,null,null,null,null,null,null,null,null,null,null,null,null,"HERPETOFAUNA","(vazio)","(vazio)","Dipsas mikanii","Jararaquinha-dormideira",null,null,null,null,null,null,null,null,null,null,null,null,null,null,null,null,null,null,null,null,null,null,null,null,null,null,null,null,null,null,null,null,null,"Zenaida auriculata",1,{"$f":"DN62","v":"Zenaida auriculata"},{"$f":"DO62","v":1}]
["Sexo: FE = Fêmea, MA = Macho, ND = Não determinado; ",null,null,null,2021,2,47,"RE","2021-02-05","12:42:00","Replantio",309596,7491729,"Futura APP","Ensolarado",1,"HERPETOFAUNA","Squamata","Viperidae","Bothrops alternatus","Urutu","Morto","Sim","Jovem","Fêmea","Sim","Não","Base de Fauna","-",308508,7491376,"Não","Aguardando encaminhamento para a UNIFAJ","-","-",null,null,null,null,null,null,null,null,null,null,null,null,null,null,null,null,null,null,null,null,null,null,null,null,null,null,null,null,null,null,null,null,null,null,null,null,null,null,null,null,null,null,null,null,"HERPETOFAUNA","(vazio)","(vazio)","Erythrolamprus aesculapii","Falsa-coral",null,null,null,null,null,null,null,null,null,null,null,null,null,null,null,null,null,null,null,null,null,null,null,null,null,null,null,null,null,null,null,null,null,null,null,{"$f":"DN63","v":0},{"$f":"DO63","v":0}]
["Destino:  S = Soltura, CRAS, U=Universidade, D = Descarte, SPQ=Soltura Pós Quarentena.",null,null,null,2021,2,48,"RE","2021-02-06","09:45:00","ASV - Área 20",307871,7490844,"Campo Antrópico","Ensolarado",1,"HERPETOFAUNA","Squamata","Dipsadidae","Oxyrhopus guibei","Falsa-coral","Morto","Sim","Adulto","Fêmea","Sim","Não","Base de Fauna","-",308508,7491376,"Não","Aguardando encaminhamento para a UNIFAJ","-","-",null,null,null,null,null,null,null,null,null,null,null,null,null,null,null,null,null,null,null,null,null,null,null,null,null,null,null,null,null,null,null,null,null,null,null,null,null,null,null,null,null,null,null,null,"HERPETOFAUNA","(vazio)","(vazio)","Micrurus sp.","Cobra-coral"]
[null,null,null,null,2021,1,50,"RE","2021-01-17","08:46:00","Canteiro de Apoio",3077326,7491217,"Campo Antrópico","Ensolarado",1,"HERPETOFAUNA","Squamata","Viperidae","Crotalus durissus","Cascavel","Saudável","Sim","Adulto","ND","Não","Não","Soltura","2021-02-05",310975,7492681,"Não","-",2021,2,null,null,null,null,null,null,null,null,null,null,null,null,null,null,null,null,null,null,null,null,null,null,null,null,null,null,null,null,null,null,null,null,null,null,null,null,null,null,null,null,null,null,null,null,"HERPETOFAUNA","(vazio)","(vazio)","Oxyrhopus guibei","Falsa- coral"]
[null,null,null,null,2021,2,52,"RE","2021-02-18","10:10:00","Canteiro de Apoio",308499,7491363,"Infraestrutura","Ensolarado",1,"AVIFAUNA","Psittaciformes","Psittacidae","Psittacara leucophthalmus","Maritaca-maracanã","Morto","Sim","Adulto","ND","Sim ","Não","Base de Fauna","2021-02-18",308508,7491376,"Não","Aguardando encaminhamento para UNIFAJ",2021,2,null,null,null,null,null,null,null,null,null,null,null,null,null,null,null,null,null,null,null,null,null,null,null,null,null,null,null,null,null,null,null,null,null,null,null,null,null,null,null,null,null,null,null,null,"HERPETOFAUNA","(vazio)","(vazio)","Oxyrhopus guibei","Falsa-coral"]
[null,null,null,null,2021,2,55,"RE","2021-02-23","08:15:00","Canteiro de Apoio",308552,7491390,"Infraestrutura","Nublado",1,"HERPETOFAUNA","Squamata","Dipsadidae","Taeniophallus afinnis","Cobra-Cabeça-preta","Morto","Sim","Neonato","ND","Sim ","Não","Base de Fauna","2021-02-23",308508,7491376,"Não","Aguardando encaminhamento para UNIFAJ",2021,2,null,null,null,null,null,null,null,null,null,null,null,null,null,null,null,null,null,null,null,null,null,null,null,null,null,null,null,null,null,null,null,null,null,null,null,null,null,null,null,null,null,null,null,null,"HERPETOFAUNA","(vazio)","(vazio)","Philodryas olfersii","Cobra - Verde"]
[null,null,null,null,2021,2,56,"RE","2021-02-23","10:45:00","Canteiro de Apoio",308534,7491418,"Infraestrutura","Ensolarado",1,"MASTOFAUNA","Didelphimorphia","Didelphidae","Didelphis aurita","Gambá-de-orelha-preta","Morto","Sim","Jovem","ND","Não","Não ","Base de Fauna","2021-02-23",308508,7491376,"Não","Aguardando encaminhamento para UNIFAJ",2021,2,null,null,null,null,null,null,null,null,null,null,null,null,null,null,null,null,null,null,null,null,null,null,null,null,null,null,null,null,null,null,null,null,null,null,null,null,null,null,null,null,null,null,null,null,"HERPETOFAUNA","(vazio)","(vazio)","Philodryas olfersii","Cobra-verde"]
[null,null,null,null,2021,2,57,"RE","2021-02-24","08:06:00","Canteiro de Apoio",308515,7491415,"Infraestrutura","Ensolarado",1,"HERPETOFAUNA","Squamata","Viperidae","Crotalus durissus","Cascavel","Saudável","Sim","Jovem","ND","Não","Não","Soltura","2021-02-24",310975,7492681,"Não","-",2021,2,null,null,null,null,null,null,null,null,null,null,null,null,null,null,null,null,null,null,null,null,null,null,null,null,null,null,null,null,null,null,null,null,null,null,null,null,null,null,null,null,null,null,null,null,"HERPETOFAUNA","(vazio)","(vazio)","Salvator merianae","Teiú"]
[null,null,null,null,2021,3,60,"RE","2021-03-03","14:46:00","Sublote de plantio 7.3",310269,7491721,"Futura APP","Ensolarado",1,"HERPETOFAUNA","Squamata","Viperidae","Bothrops urutu","Urutu-cruzeiro","Saudável","Sim","Adulto","ND","Não","Não","Soltura","2021-03-03",310975,7492681,"Não","-",2021,3,null,null,null,null,null,null,null,null,null,null,null,null,null,null,null,null,null,null,null,null,null,null,null,null,null,null,null,null,null,null,null,null,null,null,null,null,null,null,null,null,null,null,null,null,"HERPETOFAUNA","(vazio)","(vazio)","Tantilla melanocephala","Cobra-da-cabeça-preta"]
[null,null,null,null,2021,3,61,"RE","2021-03-12","11:42:00","Sublote de plantio 7.1",310342,7491251,"Futura APP","Ensolarado",1,"HERPETOFAUNA","Squamata","Viperidae","Crotalus durissus","Cascavel","Saudável","Sim","Adulto","ND","Não","Não","Soltura","2021-03-12",310975,7492681,"Não","-",2021,3,null,null,null,null,null,null,null,null,null,null,null,null,null,null,null,null,null,null,null,null,null,null,null,null,null,null,null,null,null,null,null,null,null,null,null,null,null,null,null,null,null,null,null,null,"MASTOFAUNA","Cingulata","Dasypodidae","Dasypus novemcinctus","Tatu Galinha"]
[null,null,null,null,2021,3,62,"RE","2021-03-13","19:05:00","Canteiro de Apoio",308505,7491419,"Futura APP","Ensolarado",1,"HERPETOFAUNA","Squamata","Dipsadidae","Oxyrhopus guibei","Falsa-coral","Saudável","Sim","Adulto","ND","Não","Não","Soltura","2021-03-13",310271,7492521,"Não","-",2021,3,null,null,null,null,null,null,null,null,null,null,null,null,null,null,null,null,null,null,null,null,null,null,null,null,null,null,null,null,null,null,null,null,null,null,null,null,null,null,null,null,null,null,null,null,"MASTOFAUNA","Didelphimorphia","Didelphidae","Didelphis albiventris","Gambá-de-orelha-branca"]
[null,null,null,null,2021,3,63,"RE","2021-03-17","07:40:00","Canteiro de Apoio",308523,7491440,"Futura APP","Ensolarado",1,"HERPETOFAUNA","Squamata","Viperidae","Bothrops newiedi","Jararaca-de-rabo-branco","Saudável","Sim","Jovem","ND","Não","Não","Soltura","2021-03-18",310271,7492521,"Não","-",2021,3,null,null,null,null,null,null,null,null,null,null,null,null,null,null,null,null,null,null,null,null,null,null,null,null,null,null,null,null,null,null,null,null,null,null,null,null,null,null,null,null,null,null,null,null,"MASTOFAUNA","Didelphimorphia","Didelphidae","Didelphis aurita","Gambá-de-orelha-preta"]
[null,null,null,null,2021,3,64,"RE","2021-03-17","09:40:00","Canteiro de Apoio",308516,7491397,"Futura APP","Ensolarado",1,"HERPETOFAUNA","Squamata","Viperidae","Tantilla melanocephala","Cobra-de-cabeça-preta","Saudável","Sim","Adulto","ND","Não","Não","Soltura","2021-03-18",310317,7492509,"Não","-",2021,3,null,null,null,null,null,null,null,null,null,null,null,null,null,null,null,null,null,null,null,null,null,null,null,null,null,null,null,null,null,null,null,null,null,null,null,null,null,null,null,null,null,null,null,null,"MASTOFAUNA","Primata","Cebidae","Calitrix pericilatta","Sagui Tufo Preto"]
[null,null,null,null,2021,3,66,"RE","2021-03-24","09:14:00","Canteiro de Apoio",308522,7491401,"Futura APP","Ensolarado",1,"AVIFAUNA","Passeriformes","Thraupidae","Sicalis flaveola","Canario-da-terra","Saudável","Sim","Filhote","ND","Não","Não","CRAS - Mata Ciliar","2021-03-24",305466,7484505,"Não","Destinado ao CRAS - Mata Ciliar",2021,3,null,null,null,null,null,null,null,null,null,null,null,null,null,null,null,null,null,null,null,null,null,null,null,null,null,null,null,null,null,null,null,null,null,null,null,null,null,null,null,null,null,null,null,null,"MASTOFAUNA","Rodentia","Cavidae ","Cavia aparea","Preá"]
[null,null,null,null,2021,3,67,"RE","2021-03-29","14:32:00","Sublote de plantio 7.6",310340,7491713,"Futura APP","Ensolarado",1,"HERPETOFAUNA","Squamata","Viperidae","Bothrops urutu","Urutu-cruzeiro","Morto","Sim","Adulto","Fêmea","Sim","Não","Base de Fauna","2021-03-29",308508,7491376,"Não","Aguardando encaminhamento para UNIFAJ",2021,3,null,null,null,null,null,null,null,null,null,null,null,null,null,null,null,null,null,null,null,null,null,null,null,null,null,null,null,null,null,null,null,null,null,null,null,null,null,null,null,null,null,null,null,null,"MASTOFAUNA","Rodentia","Muridae","Apodemus sylvaticus","Rato-do-campo"]
[null,null,null,null,2021,4,68,"RE","2021-04-01","14:40:00","Canteiro de Apoio",308326,7491137,"Futura APP","Ensolarado",1,"MASTOFAUNA","Primates","Callitrichidae","Callithrix jacchus","Sagui-tufo-branco","Morto","Sim","Adulto","ND","Sim","Não","Base de Fauna","2021-04-01",308508,7491376,"Não","-",2021,4,null,null,null,null,null,null,null,null,null,null,null,null,null,null,null,null,null,null,null,null,null,null,null,null,null,null,null,null,null,null,null,null,null,null,null,null,null,null,null,null,null,null,null,null,"MASTOFAUNA","(vazio)","(vazio)","Callithrix jacchus","Sagui-de-tufo-branco"]
[null,null,null,null,2021,4,69,"RE","2021-04-04","09:00:00","Sublote de plantio 11.1",308201,7490092,"Futura APP","Ensolarado",1,"HERPETOFAUNA","Squamata","Boidae","Boa Constrictor","Jiboia-constritora","Saudável","Sim","Jovem","Fêmea","Não","Não","Soltura","2021-04-04",310317,7492509,"Não","-",2021,4,null,null,null,null,null,null,null,null,null,null,null,null,null,null,null,null,null,null,null,null,null,null,null,null,null,null,null,null,null,null,null,null,null,null,null,null,null,null,null,null,null,null,null,null,"MASTOFAUNA","(vazio)","(vazio)","Dasypus novemcinctus","Tatu-galinha"]
[null,null,null,null,2021,4,70,"RE","2021-04-21","16:45:00","Canteiro de Apoio",308549,7491480,"Fragmento Florestal","Ensolarado",1,"HERPETOFAUNA","Squamata","Viperidae","Bothrops newiedi","Jararaca-rabo-branco","Saudável","Sim","Filhote","ND","Não","Não","Soltura","2021-04-21",310317,7492509,"Não","-",2021,4,null,null,null,null,null,null,null,null,null,null,null,null,null,null,null,null,null,null,null,null,null,null,null,null,null,null,null,null,null,null,null,null,null,null,null,null,null,null,null,null,null,null,null,null,"MASTOFAUNA","(vazio)","(vazio)","Didelphis albiventris","Gambá-de-orelha-branca"]
[null,null,null,null,2021,4,71,"RE","2021-04-21","16:45:00","Canteiro de Apoio",308549,7491480,"Fragmento Florestal","Ensolarado",1,"HERPETOFAUNA","Squamata","Viperidae","Bothrops newiedi","Jararaca-rabo-branco","Saudável","Sim","Filhote","ND","Não","Não","Soltura","2021-04-21",310317,7492509,"Não","-",2021,4,null,null,null,null,null,null,null,null,null,null,null,null,null,null,null,null,null,null,null,null,null,null,null,null,null,null,null,null,null,null,null,null,null,null,null,null,null,null,null,null,null,null,null,null,"MASTOFAUNA","(vazio)","(vazio)","Didelphis albiventris","Gamba-de-orelha-branca"]
[null,null,null,null,2021,4,72,"RE","2021-04-21","16:45:00","Canteiro de Apoio",308549,7491480,"Fragmento Florestal","Ensolarado",1,"HERPETOFAUNA","Squamata","Viperidae","Bothrops newiedi","Jararaca-rabo-branco","Saudável","Sim","Filhote","ND","Não","Não","Soltura","2021-04-21",310317,7492509,"Não","-",2021,4,null,null,null,null,null,null,null,null,null,null,null,null,null,null,null,null,null,null,null,null,null,null,null,null,null,null,null,null,null,null,null,null,null,null,null,null,null,null,null,null,null,null,null,null,"MASTOFAUNA","Primates","Callitrichidae","Callithrix jacchus","Sagui-tufo-branco"]
[null,null,null,null,2021,4,73,"RE","2021-04-21","16:45:00","Canteiro de Apoio",308549,7491480,"Fragmento Florestal","Ensolarado",1,"HERPETOFAUNA","Squamata","Viperidae","Bothrops newiedi","Jararaca-rabo-branco","Saudável","Sim","Filhote","ND","Não","Não","Soltura","2021-04-21",310317,7492509,"Não","-",2021,4,null,null,null,null,null,null,null,null,null,null,null,null,null,null,null,null,null,null,null,null,null,null,null,null,null,null,null,null,null,null,null,null,null,null,null,null,null,null,null,null,null,null,null,null,"MASTOFAUNA ","(vazio)","(vazio)","Didelphis aurita","Gambá-de-orelha-preta"]
[null,null,null,null,2021,4,74,"RE","2021-04-21","16:45:00","Canteiro de Apoio",308549,7491480,"Fragmento Florestal","Ensolarado",1,"HERPETOFAUNA","Squamata","Viperidae","Bothrops newiedi","Jararaca-rabo-branco","Morto","Sim","Filhote","ND","Sim","Não","Base de Fauna","2021-04-21",308508,7491376,"Não","-",2021,4]
[null,null,null,null,2021,5,75,"RE","2021-05-07","08:45:00","Bota fora",309007,740630,"Futura APP","Ensolarado",1,"HERPETOFAUNA","Squamata","Teiidae","Salvator merianae","Teiú","Saudável","Sim","Adulto","ND","Não","Não","Soltura","2021-05-07",310852,749209,"Não","-",2021,5]
[null,null,null,null,2021,5,76,"RE","2021-05-10","13:23:00","Industrial",307947,7491175,"Futura APP","Ensolarado",1,"HERPETOFAUNA","Squamata","Viperidae","Philodryas olfersii","Cobra-verde","Saudável","Sim","Adulto","ND","Não","Não","Soltura","2021-05-10",310881,7492618,"Não","-",2021,5]
[null,null,null,null,2021,5,77,"RE","2021-05-12","14:35:00","Sublote de plantio 7.6",310253,7491742,"Futura APP","Ensolarado",1,"HERPETOFAUNA","Squamata","Viperidae","Bothrops urutu","Urutu","Saudável","Sim","Adulto","ND","Não","Não","Soltura","2021-05-12",310940,7492641,"Não","-",2021,5]
[null,null,null,null,2021,5,78,"RE","2021-05-13","10:10:00","ASV - Area 22",307435,7490776,"Futura APP","Ensolarado",1,"HERPETOFAUNA","Squamata","Viperidae","Bothrops newiedi","Jararaca rabo branco","Saudável","Sim","Filhote","ND","Não","Não","Soltura","2021-05-13",310934,7492640,"Não","-",2021,5]
[null,null,null,null,2021,5,79,"RE","2021-05-13","10:15:00","ASV - Area 22",307433,7490786,"Futura APP","Ensolarado",1,"HERPETOFAUNA","Squamata","Viperidae","Crotalus durissus","Cascavel","Saudável","Sim","Adulto","ND","Não","Não","Soltura","2021-05-13",310952,7492641,"Não","-",2021,5]
[null,null,null,null,2021,5,80,"RE","2021-05-27","07:40:00","Canteiro de Apoio",308526,7491108,"Futura APP","Ensolarado",1,"HERPETOFAUNA","Squamata","Viperidae","Bothrops urutu","Urutu","Saudável","Sim","Adulto","ND","Não","Não","Soltura","2021-05-27",310928,7492634,"Não","-",2021,5]
[null,null,null,null,2021,5,81,"Re","2021-05-27","08:50:00","Canteiro de Apoio",309637,7492159,"Futura APP","Ensolarado",1,"HERPETOFAUNA","Squamata","Viperidae","Crotalus durissus","Casacavel","Saudável","Sim","Adulto","ND","Não","Não","Soltura","2021-05-27",null,null,"Não","-",2021,5]
[null,null,null,null,2020,8,4,"AT","2020-08-26","15:56:00",null,309035,7490950,"Fragento Florestal",null,1,"HERPETOFAUNA",null,null,"Dipsas mikanii","Jararaquinha-dormideira","Morto",{"$f":"IF(H91=\"AV\",\"Não\",IF(H91=\"AT\",IF(V91=\"Ferido\",\"Sim\",IF(V91=\"Morto\",\"Sim\"))))","v":"Sim"},null,null,null,null,"UNIFAJ","2020-12-01",292726,7486121,null,"UNIFAJ - 02/11/2020",2020,12]
[null,null,null,null,2020,9,5,"AT","2020-09-12","07:00:00",null,308165,7487924,"Fragento Florestal",null,1,"MASTOFAUNA",null,null,"Didelphis albiventris","Gambá-de-orelha-branca","Morto",{"$f":"IF(H92=\"AV\",\"Não\",IF(H92=\"AT\",IF(V92=\"Ferido\",\"Sim\",IF(V92=\"Morto\",\"Sim\"))))","v":"Sim"},null,null,null,null,"UNIFAJ","2020-12-01",292726,7486121,null,"UNIFAJ - 02/11/2020",2020,12]
[null,null,null,null,2020,9,6,"AT","2020-09-12","08:25:00",null,307809,7490564,"Outro",null,1,"HERPETOFAUNA",null,null,"Oxyrhopus guibei","Falsa- coral","Morto","Sim",null,null,null,null,"UNIFAJ","2020-12-01",292726,7486121,null,"UNIFAJ - 02/11/2020",2020,12]
[null,null,null,null,2020,9,9,"AT","2020-09-14","12:14:00",null,310215,7491800,"Fragento Florestal",null,1,"HERPETOFAUNA",null,null,"Micrurus sp.","Cobra-coral","Morto","Sim",null,null,null,null,"Base de Fauna","-",308508,7491376,null,"Base de Fauna","-","-"]
[null,null,null,null,{"$f":"IF(I95=\"\",\"-\",YEAR(I95))","v":2020},{"$f":"IF(I95=\"\",\"-\",MONTH(I95))","v":9},10,"AT","2020-09-16","07:00:00",null,309529,7485913,"Fragento Florestal",null,1,"MASTOFAUNA ",null,null,"Didelphis aurita","Gambá-de-orelha-preta","Morto","Sim",null,null,null,null,"UNIFAJ","2020-12-01",292726,7486121,null,"UNIFAJ - 02/11/2020",2020,{"$f":"IF(AC95=\"-\",\"-\",MONTH(AC95))","v":12}]
[null,null,null,null,2020,9,12,"AT","2020-09-19","07:35:00",null,308370,7491131,"Fragento Florestal",null,1,"HERPETOFAUNA",null,null,"Oxyrhopus guibei","Falsa-coral","Morto","Sim",null,null,null,null,"UNIFAJ","2020-12-01",292726,7486121,null,"UNIFAJ - 02/11/2020",{"$f":"IF(AC96=\"-\",\"-\",YEAR(AC96))","v":2020},12]
[null,null,null,null,2020,9,13,"AT","2020-09-19","08:00:00",null,308704,7493228,"Fragento Florestal",null,1,"HERPETOFAUNA",null,null,"Erythrolamprus aesculapii","Falsa-coral","Morto","Sim",null,null,null,null,"UNIFAJ","2020-12-01",292726,7486121,null,"UNIFAJ - 02/11/2020",2020,12]
[null,null,null,null,2020,9,15,"AT","2020-09-22","14:54:00",null,308076,7490915,"Pastagem",null,1,"HERPETOFAUNA",null,null,"Dipsas mikanii","Jararaquinha-dormideira","Morto","Sim",null,null,null,null,"UNIFAJ","2020-12-01",292726,7486121,null,"UNIFAJ - 02/11/2020",2020,12]
[null,null,null,null,2020,9,18,"AT","2020-09-29","08:30:00",null,308361,7491136,"Outro",null,1,"HERPETOFAUNA",null,null,"Oxyrhopus guibei","Falsa-coral","Morto","Sim",null,null,null,null,"UNIFAJ","2020-12-01",292726,7486121,null,"UNIFAJ - 02/11/2020",2020,12]
[null,null,null,null,2020,11,20,"AT","2020-11-13","09:49:00",null,308372,7491420,"Campo Antrópico",null,1,"HERPETOFAUNA",null,null,"Salvator merianae","Teiú","Morto","Sim",null,null,null,null,"UNIFAJ","2020-12-01",292726,7486121,null,"UNIFAJ - 02/11/2020",2020,12]
[null,null,null,null,2020,11,22,"AT","2020-11-26","17:06:00",null,308361,7491136,"Fragento Florestal",null,1,"MASTOFAUNA",null,null,"Dasypus novemcinctus","Tatu-galinha","Morto","Sim",null,null,null,null,"UNIFAJ","2020-12-01",292726,7486121,null,"UNIFAJ - 02/11/2020",2020,12]
[null,null,null,null,2020,11,23,"AT","2020-11-27","09:42:00",null,307269,7491909,"Cultivo agrícola",null,1,"HERPETOFAUNA",null,null,"Erythrolamprus aesculapii","Falsa-coral","Morto","Sim",null,null,null,null,"UNIFAJ","2020-12-01",292726,7486121,null,"UNIFAJ - 02/11/2020",2020,12]
[null,null,null,null,2020,12,27,"AT","2020-12-10","08:13:00",null,308970,7486862,"Pastagem",null,1,"MASTOFAUNA",null,null,"Callithrix jacchus","Sagui-de-tufo-branco","Morto","Sim",null,null,null,null,"Base de Fauna","-",308508,7491376,null,"Base de Fauna","-","-"]
[null,null,null,null,2021,1,29,"AT","2021-01-05","13:45:00",null,308528,7491335,"Fragento Florestal",null,1,"HERPETOFAUNA",null,null,"Philodryas olfersii","Cobra - Verde","Ferido","Sim",null,null,null,null,"Base de Fauna","-",308508,7491376,null,"Base de Fauna","-","-"]
[null,null,null,null,2021,1,35,"AT","2021-01-16","07:15:00",null,306753,7490910,"Pastagem",null,1,"HERPETOFAUNA",null,null,"Amphisbaena alba","Cobra - cega","Ferido","Sim",null,null,null,null,"Base de Fauna","-",308508,7491376,null,"Base de Fauna","-","-"]
[null,null,null,null,2021,1,43,"AT","2021-01-28","10:38:00",null,308226,7491093,"Canteiro de obras",null,1,"HERPETOFAUNA",null,null,"Amphisbaena alba","Cobra-cega","Ferido","Sim",null,null,null,null,"CRAS - Mata Ciliar","2021-01-28",305466,7484505,null,"Encaminhado para o CRAS - Mata Ciliar",2021,1]
[null,null,null,null,2021,2,45,"AT","2021-02-03","11:48:00",null,308506,7491375,"Fragento Florestal",null,1,"HERPETOFAUNA",null,null,"Amphisbaena alba","Cobra-cega","Ferido","Sim",null,null,null,null,"Base de Fauna","-",308508,7491376,null,"Aguarda encaminhamento para a UNIFAJ","-","-"]
[null,null,null,null,2021,2,49,"AT","2021-02-08","07:40:00",null,308228,7491093,"Canteiro de obras",null,1,"MASTOFAUNA",null,null,"Dasypus novemcinctus","Tatu-galinha","Morto","Sim",null,null,null,null,"Base de Fauna","-",308508,7491376,null,"Descarte - sem aproveitamento científico","-","-"]
[null,null,null,null,2021,2,51,"AT","2021-02-17","16:10:00",null,308233,7490171,"Canteiro de obras",null,1,"HERPETOFAUNA",null,null,"Amphisbaena alba","Cobra-cega","Ferido","Sim",null,null,null,null,"CRAS - Mata Ciliar","2021-02-17",305466,7484505,null,"Encaminhado para o CRAS - Mata Ciliar",2021,2]
[null,null,null,null,2021,2,53,"AT","2021-02-22","06:44:00",null,309535,7485914,"Antropizado",null,1,"MASTOFAUNA",null,null,"Didelphis albiventris","Gamba-de-orelha-branca","Morto","Sim",null,null,null,null,"Base de Fauna","2021-02-22",308508,7491376,null,"Descarte - sem aproveitamento científico",2021,2]
[null,null,null,null,2021,2,54,"AT","2021-02-22","06:59:00",null,308519,7491399,"Fragento Florestal",null,1,"HERPETOFAUNA",null,null,"Philodryas olfersii","Cobra-verde","Morto","Sim",null,null,null,null,"Base de Fauna","2021-02-22",308508,7491376,null,"Aguarda encaminhamento para a UNIFAJ",2021,2]
[null,null,null,null,2021,2,58,"AT","2021-02-24","09:47:00",null,309538,7485917,"Antropizado",null,1,"HERPETOFAUNA",null,null,"Amphisbaena alba","Cobra-cega","Morto","Sim",null,null,null,null,"Base de Fauna","2021-02-24",308508,7491376,null,"Descarte - sem aproveitamento científico",2021,2]
[null,null,null,null,2021,3,59,"AT","2021-03-02","10:07:00",null,308445,7492622,null,null,1,"HERPETOFAUNA",null,null,"Crotalus durissus","Cascavel","Morto","Sim",null,null,null,null,"Base de Fauna","-",308508,7491376,null,"Descarte - sem aproveitamento científico","-","-"]
[null,null,null,null,2021,3,65,"AT","2021-03-18","14:23:00",null,308121,7491034,null,null,1,"HERPETOFAUNA",null,null,"Tantilla melanocephala","Cobra-da-cabeça-preta","Morto","Sim",null,null,null,null,"Base de Fauna","-",308508,7491376,null,"Descarte - sem aproveitamento científico","-","-"]
[null,null,null,null,"-","-",null,null,null,null,null,null,null,null,null,null,null,null,null,null,null,null,false,null,null,null,null,null,null,null,null,null,null,1900,1]
[null,null,null,null,"-","-",null,null,null,null,null,null,null,null,null,null,null,null,null,null,null,null,false,null,null,null,null,null,null,null,null,null,null,1900,1]
[null,null,null,null,"-","-",null,null,null,null,null,null,null,null,null,null,null,null,null,null,null,null,false,null,null,null,null,null,null,null,null,null,null,1900,1]
[null,null,null,null,"-","-",null,null,null,null,null,null,null,null,null,null,null,null,null,null,null,null,false,null,null,null,null,null,null,null,null,null,null,1900,1]
[null,null,null,null,"-","-",null,null,null,null,null,null,null,null,null,null,null,null,null,null,null,null,false,null,null,null,null,null,null,null,null,null,null,1900,1]
[null,null,null,null,"-","-",null,null,null,null,null,null,null,null,null,null,null,null,null,null,null,null,false,null,null,null,null,null,null,null,null,null,null,1900,1]
[null,null,null,null,"-","-",null,null,null,null,null,null,null,null,null,null,null,null,null,null,null,null,false,null,null,null,null,null,null,null,null,null,null,1900,1]
[null,null,null,null,"-","-",null,null,null,null,null,null,null,null,null,null,null,null,null,null,null,null,false,null,null,null,null,null,null,null,null,null,null,1900,1]
[null,null,null,null,"-","-",null,null,null,null,null,null,null,null,null,null,null,null,null,null,null,null,false,null,null,null,null,null,null,null,null,null,null,1900,1]
[null,null,null,null,"-","-",null,null,null,null,null,null,null,null,null,null,null,null,null,null,null,null,false,null,null,null,null,null,null,null,null,null,null,1900,1]
[null,null,null,null,"-","-",null,null,null,null,null,null,null,null,null,null,null,null,null,null,null,null,false,null,null,null,null,null,null,null,null,null,null,1900,1]
[null,null,null,null,"-","-",null,null,null,null,null,null,null,null,null,null,null,null,null,null,null,null,false,null,null,null,null,null,null,null,null,null,null,1900,1]
[null,null,null,null,"-","-",null,null,null,null,null,null,null,null,null,null,null,null,null,null,null,null,false,null,null,null,null,null,null,null,null,null,null,1900,1]
[null,null,null,null,"-","-",null,null,null,null,null,null,null,null,null,null,null,null,null,null,null,null,false,null,null,null,null,null,null,null,null,null,null,1900,1]
[null,null,null,null,"-","-",null,null,null,null,null,null,null,null,null,null,null,null,null,null,null,null,false,null,null,null,null,null,null,null,null,null,null,1900,1]
[null,null,null,null,"-","-",null,null,null,null,null,null,null,null,null,null,null,null,null,null,null,null,false,null,null,null,null,null,null,null,null,null,null,1900,1]
[null,null,null,null,"-","-",null,null,null,null,null,null,null,null,null,null,null,null,null,null,null,null,false,null,null,null,null,null,null,null,null,null,null,1900,1]
[null,null,null,null,"-","-",null,null,null,null,null,null,null,null,null,null,null,null,null,null,null,null,false,null,null,null,null,null,null,null,null,null,null,1900,1]
[null,null,null,null,"-","-",null,null,null,null,null,null,null,null,null,null,null,null,null,null,null,null,false,null,null,null,null,null,null,null,null,null,null,1900,1]
[null,null,null,null,"-","-",null,null,null,null,null,null,null,null,null,null,null,null,null,null,null,null,false,null,null,null,null,null,null,null,null,null,null,1900,1]
[null,null,null,null,"-","-",null,null,null,null,null,null,null,null,null,null,null,null,null,null,null,null,false,null,null,null,null,null,null,null,null,null,null,1900,1]
[null,null,null,null,"-","-",null,null,null,null,null,null,null,null,null,null,null,null,null,null,null,null,false,null,null,null,null,null,null,null,null,null,null,1900,1]
[null,null,null,null,"-","-",null,null,null,null,null,null,null,null,null,null,null,null,null,null,null,null,false,null,null,null,null,null,null,null,null,null,null,1900,1]
[null,null,null,null,"-","-",null,null,null,null,null,null,null,null,null,null,null,null,null,null,null,null,false,null,null,null,null,null,null,null,null,null,null,1900,1]
[null,null,null,null,"-","-",null,null,null,null,null,null,null,null,null,null,null,null,null,null,null,null,false,null,null,null,null,null,null,null,null,null,null,1900,1]
[null,null,null,null,"-","-",null,null,null,null,null,null,null,null,null,null,null,null,null,null,null,null,false,null,null,null,null,null,null,null,null,null,null,1900,1]
[null,null,null,null,"-","-",null,null,null,null,null,null,null,null,null,null,null,null,null,null,null,null,false,null,null,null,null,null,null,null,null,null,null,1900,1]
[null,null,null,null,"-","-",null,null,null,null,null,null,null,null,null,null,null,null,null,null,null,null,false,null,null,null,null,null,null,null,null,null,null,1900,1]
[null,null,null,null,"-","-",null,null,null,null,null,null,null,null,null,null,null,null,null,null,null,null,false,null,null,null,null,null,null,null,null,null,null,1900,1]
[null,null,null,null,"-","-",null,null,null,null,null,null,null,null,null,null,null,null,null,null,null,null,false,null,null,null,null,null,null,null,null,null,null,1900,1]
[null,null,null,null,"-","-",null,null,null,null,null,null,null,null,null,null,null,null,null,null,null,null,false,null,null,null,null,null,null,null,null,null,null,1900,1]
[null,null,null,null,"-","-",null,null,null,null,null,null,null,null,null,null,null,null,null,null,null,null,false,null,null,null,null,null,null,null,null,null,null,1900,1]
[null,null,null,null,"-","-",null,null,null,null,null,null,null,null,null,null,null,null,null,null,null,null,false,null,null,null,null,null,null,null,null,null,null,1900,1]
[null,null,null,null,"-","-",null,null,null,null,null,null,null,null,null,null,null,null,null,null,null,null,false,null,null,null,null,null,null,null,null,null,null,1900,1]
[null,null,null,null,"-","-",null,null,null,null,null,null,null,null,null,null,null,null,null,null,null,null,false,null,null,null,null,null,null,null,null,null,null,1900,1]
[null,null,null,null,"-","-",null,null,null,null,null,null,null,null,null,null,null,null,null,null,null,null,false,null,null,null,null,null,null,null,null,null,null,1900,1]
[null,null,null,null,"-","-",null,null,null,null,null,null,null,null,null,null,null,null,null,null,null,null,false,null,null,null,null,null,null,null,null,null,null,1900,1]
[null,null,null,null,"-","-",null,null,null,null,null,null,null,null,null,null,null,null,null,null,null,null,false,null,null,null,null,null,null,null,null,null,null,1900,1]
[null,null,null,null,"-","-",null,null,null,null,null,null,null,null,null,null,null,null,null,null,null,null,false,null,null,null,null,null,null,null,null,null,null,1900,1]
[null,null,null,null,"-","-",null,null,null,null,null,null,null,null,null,null,null,null,null,null,null,null,false,null,null,null,null,null,null,null,null,null,null,1900,1]
[null,null,null,null,"-","-",null,null,null,null,null,null,null,null,null,null,null,null,null,null,null,null,false,null,null,null,null,null,null,null,null,null,null,1900,1]
[null,null,null,null,"-","-",null,null,null,null,null,null,null,null,null,null,null,null,null,null,null,null,{"$f":"IF(H156=\"AV\",\"Não\",IF(H156=\"AT\",IF(V156=\"Ferido\",\"Sim\",IF(V156=\"Morto\",\"Sim\"))))","v":false},null,null,null,null,null,null,null,null,null,null,1900,1]
[null,null,null,null,"-","-",null,null,null,null,null,null,null,null,null,null,null,null,null,null,null,null,false,null,null,null,null,null,null,null,null,null,null,1900,1]
[null,null,null,null,"-","-",null,null,null,null,null,null,null,null,null,null,null,null,null,null,null,null,false,null,null,null,null,null,null,null,null,null,null,1900,1]
[null,null,null,null,{"$f":"IF(I159=\"\",\"-\",YEAR(I159))","v":"-"},{"$f":"IF(I159=\"\",\"-\",MONTH(I159))","v":"-"},null,null,null,null,null,null,null,null,null,null,null,null,null,null,null,null,false,null,null,null,null,null,null,null,null,null,null,1900,{"$f":"IF(AC159=\"-\",\"-\",MONTH(AC159))","v":1}]
[null,null,null,null,"-","-",null,null,null,null,null,null,null,null,null,null,null,null,null,null,null,null,false,null,null,null,null,null,null,null,null,null,null,{"$f":"IF(AC160=\"-\",\"-\",YEAR(AC160))","v":1900},1]
[null,null,null,null,"-","-",null,null,null,null,null,null,null,null,null,null,null,null,null,null,null,null,false,null,null,null,null,null,null,null,null,null,null,1900,1]
[null,null,null,null,"-","-",null,null,null,null,null,null,null,null,null,null,null,null,null,null,null,null,false,null,null,null,null,null,null,null,null,null,null,1900,1]
[null,null,null,null,"-","-",null,null,null,null,null,null,null,null,null,null,null,null,null,null,null,null,false,null,null,null,null,null,null,null,null,null,null,1900,1]
[null,null,null,null,"-","-",null,null,null,null,null,null,null,null,null,null,null,null,null,null,null,null,false,null,null,null,null,null,null,null,null,null,null,1900,1]
[null,null,null,null,"-","-",null,null,null,null,null,null,null,null,null,null,null,null,null,null,null,null,false,null,null,null,null,null,null,null,null,null,null,1900,1]
[null,null,null,null,"-","-",null,null,null,null,null,null,null,null,null,null,null,null,null,null,null,null,false,null,null,null,null,null,null,null,null,null,null,1900,1]
[null,null,null,null,"-","-",null,null,null,null,null,null,null,null,null,null,null,null,null,null,null,null,false,null,null,null,null,null,null,null,null,null,null,1900,1]
[null,null,null,null,"-","-",null,null,null,null,null,null,null,null,null,null,null,null,null,null,null,null,false,null,null,null,null,null,null,null,null,null,null,1900,1]
[null,null,null,null,"-","-",null,null,null,null,null,null,null,null,null,null,null,null,null,null,null,null,false,null,null,null,null,null,null,null,null,null,null,1900,1]
[null,null,null,null,"-","-",null,null,null,null,null,null,null,null,null,null,null,null,null,null,null,null,false,null,null,null,null,null,null,null,null,null,null,1900,1]
[null,null,null,null,"-","-",null,null,null,null,null,null,null,null,null,null,null,null,null,null,null,null,false,null,null,null,null,null,null,null,null,null,null,1900,1]
[null,null,null,null,"-","-",null,null,null,null,null,null,null,null,null,null,null,null,null,null,null,null,false,null,null,null,null,null,null,null,null,null,null,1900,1]
[null,null,null,null,"-","-",null,null,null,null,null,null,null,null,null,null,null,null,null,null,null,null,false,null,null,null,null,null,null,null,null,null,null,1900,1]
[null,null,null,null,"-","-",null,null,null,null,null,null,null,null,null,null,null,null,null,null,null,null,false,null,null,null,null,null,null,null,null,null,null,1900,1]
[null,null,null,null,"-","-",null,null,null,null,null,null,null,null,null,null,null,null,null,null,null,null,false,null,null,null,null,null,null,null,null,null,null,1900,1]
[null,null,null,null,"-","-",null,null,null,null,null,null,null,null,null,null,null,null,null,null,null,null,false,null,null,null,null,null,null,null,null,null,null,1900,1]
[null,null,null,null,"-","-",null,null,null,null,null,null,null,null,null,null,null,null,null,null,null,null,false,null,null,null,null,null,null,null,null,null,null,1900,1]
[null,null,null,null,"-","-",null,null,null,null,null,null,null,null,null,null,null,null,null,null,null,null,false,null,null,null,null,null,null,null,null,null,null,1900,1]
[null,null,null,null,"-","-",null,null,null,null,null,null,null,null,null,null,null,null,null,null,null,null,false,null,null,null,null,null,null,null,null,null,null,1900,1]
[null,null,null,null,"-","-",null,null,null,null,null,null,null,null,null,null,null,null,null,null,null,null,false,null,null,null,null,null,null,null,null,null,null,1900,1]
[null,null,null,null,"-","-",null,null,null,null,null,null,null,null,null,null,null,null,null,null,null,null,false,null,null,null,null,null,null,null,null,null,null,1900,1]
[null,null,null,null,"-","-",null,null,null,null,null,null,null,null,null,null,null,null,null,null,null,null,false,null,null,null,null,null,null,null,null,null,null,1900,1]
[null,null,null,null,"-","-",null,null,null,null,null,null,null,null,null,null,null,null,null,null,null,null,{"$f":"IF(H183=\"AV\",\"Não\",IF(H183=\"AT\",IF(V183=\"Ferido\",\"Sim\",IF(V183=\"Morto\",\"Sim\"))))","v":false},null,null,null,null,null,null,null,null,null,null,1900,1]
[null,null,null,null,"-","-",null,null,null,null,null,null,null,null,null,null,null,null,null,null,null,null,false,null,null,null,null,null,null,null,null,null,null,1900,1]
[null,null,null,null,"-","-",null,null,null,null,null,null,null,null,null,null,null,null,null,null,null,null,false,null,null,null,null,null,null,null,null,null,null,1900,1]
[null,null,null,null,"-","-",null,null,null,null,null,null,null,null,null,null,null,null,null,null,null,null,false,null,null,null,null,null,null,null,null,null,null,1900,1]
[null,null,null,null,"-","-",null,null,null,null,null,null,null,null,null,null,null,null,null,null,null,null,false,null,null,null,null,null,null,null,null,null,null,1900,1]
[null,null,null,null,"-","-",null,null,null,null,null,null,null,null,null,null,null,null,null,null,null,null,false,null,null,null,null,null,null,null,null,null,null,1900,1]
[null,null,null,null,"-","-",null,null,null,null,null,null,null,null,null,null,null,null,null,null,null,null,false,null,null,null,null,null,null,null,null,null,null,1900,1]
[null,null,null,null,"-","-",null,null,null,null,null,null,null,null,null,null,null,null,null,null,null,null,false,null,null,null,null,null,null,null,null,null,null,1900,1]
[null,null,null,null,"-","-",null,null,null,null,null,null,null,null,null,null,null,null,null,null,null,null,false,null,null,null,null,null,null,null,null,null,null,1900,1]
[null,null,null,null,"-","-",null,null,null,null,null,null,null,null,null,null,null,null,null,null,null,null,false,null,null,null,null,null,null,null,null,null,null,1900,1]
[null,null,null,null,"-","-",null,null,null,null,null,null,null,null,null,null,null,null,null,null,null,null,false,null,null,null,null,null,null,null,null,null,null,1900,1]
[null,null,null,null,"-","-",null,null,null,null,null,null,null,null,null,null,null,null,null,null,null,null,{"$f":"IF(H194=\"AV\",\"Não\",IF(H194=\"AT\",IF(V194=\"Ferido\",\"Sim\",IF(V194=\"Morto\",\"Sim\"))))","v":false},null,null,null,null,null,null,null,null,null,null,1900,1]
[null,null,null,null,"-","-",null,null,null,null,null,null,null,null,null,null,null,null,null,null,null,null,false,null,null,null,null,null,null,null,null,null,null,1900,1]
[null,null,null,null,"-","-",null,null,null,null,null,null,null,null,null,null,null,null,null,null,null,null,false,null,null,null,null,null,null,null,null,null,null,1900,1]
[null,null,null,null,"-","-",null,null,null,null,null,null,null,null,null,null,null,null,null,null,null,null,false,null,null,null,null,null,null,null,null,null,null,1900,1]
[null,null,null,null,"-","-",null,null,null,null,null,null,null,null,null,null,null,null,null,null,null,null,false,null,null,null,null,null,null,null,null,null,null,1900,1]
[null,null,null,null,"-","-",null,null,null,null,null,null,null,null,null,null,null,null,null,null,null,null,false,null,null,null,null,null,null,null,null,null,null,1900,1]
[null,null,null,null,"-","-",null,null,null,null,null,null,null,null,null,null,null,null,null,null,null,null,false,null,null,null,null,null,null,null,null,null,null,1900,1]
[null,null,null,null,"-","-",null,null,null,null,null,null,null,null,null,null,null,null,null,null,null,null,false,null,null,null,null,null,null,null,null,null,null,1900,1]
[null,null,null,null,"-","-",null,null,null,null,null,null,null,null,null,null,null,null,null,null,null,null,false,null,null,null,null,null,null,null,null,null,null,1900,1]
[null,null,null,null,"-","-",null,null,null,null,null,null,null,null,null,null,null,null,null,null,null,null,false,null,null,null,null,null,null,null,null,null,null,1900,1]
[null,null,null,null,"-","-",null,null,null,null,null,null,null,null,null,null,null,null,null,null,null,null,false,null,null,null,null,null,null,null,null,null,null,1900,1]
[null,null,null,null,"-","-",null,null,null,null,null,null,null,null,null,null,null,null,null,null,null,null,false,null,null,null,null,null,null,null,null,null,null,1900,1]
[null,null,null,null,"-","-",null,null,null,null,null,null,null,null,null,null,null,null,null,null,null,null,false,null,null,null,null,null,null,null,null,null,null,1900,1]
[null,null,null,null,"-","-",null,null,null,null,null,null,null,null,null,null,null,null,null,null,null,null,false,null,null,null,null,null,null,null,null,null,null,1900,1]
[null,null,null,null,"-","-",null,null,null,null,null,null,null,null,null,null,null,null,null,null,null,null,false,null,null,null,null,null,null,null,null,null,null,1900,1]
[null,null,null,null,"-","-",null,null,null,null,null,null,null,null,null,null,null,null,null,null,null,null,false,null,null,null,null,null,null,null,null,null,null,1900,1]
[null,null,null,null,"-","-",null,null,null,null,null,null,null,null,null,null,null,null,null,null,null,null,false,null,null,null,null,null,null,null,null,null,null,1900,1]

{"sheet":"Quadros_resgates","index":5,"n_rows":16,"n_cols":19,"rows_kept":16,"cut":false,"hidden":false,"merged":[]}
[]
["ID","DATA","NOME CIENTÍFICO","LOCAL DO RESGATE",null,"ID","DATA","NOME CIENTÍFICO","CONDIÇÃO DO ANIMAL","DESTINAÇÃO","OBSERVAÇÃO",null,"ID","DATA","NOME CIENTÍFICO","CARACT. DA VIA","CONDIÇÃO DO ANIMAL","DESTINAÇÃO","OBSERVAÇÃO"]
[75,"2021-05-07","Salvator merianae","Bota fora",null,75,"2021-05-07","Salvator merianae","Saudável","Soltura","-",null,59,"2021-03-02","Crotalus durissus","Estrada de terra ","Morto","Base de Fauna","Descarte - sem aproveitamento científico"]
[76,"2021-05-10","Philodryas olfersii","Industrial",null,76,"2021-05-10","Philodryas olfersii","Saudável","Soltura","-",null,65,"2021-03-18","Tantilla melanocephala","Estrada de terra ","Morto","Base de Fauna","Descarte - sem aproveitamento científico"]
[77,"2021-05-12","Bothrops urutu","Sublote de plantio 7.6",null,77,"2021-05-12","Bothrops urutu","Saudável","Soltura","-"]
[78,"2021-05-13","Bothrops newiedi","ASV - Area 22",null,78,"2021-05-13","Bothrops newiedi","Saudável","Soltura","-"]
[79,"2021-05-13","Crotalus durissus","ASV - Area 22",null,79,"2021-05-13","Crotalus durissus","Saudável","Soltura","-"]
[80,"2021-05-27","Bothrops urutu","Canteiro de Apoio",null,80,"2021-05-27","Bothrops urutu","Saudável","Soltura","-"]
[81,"2021-05-27","Crotalus durissus","Canteiro de Apoio",null,81,"2021-05-27","Crotalus durissus","Saudável","Soltura","-"]
[82,"2021-06-01","Aramides saracura","ADM",null,82,"2021-06-01","Aramides saracura","Saudável","Soltura","-"]
[83,"2021-06-08","Dipsas mikanii","ADM",null,83,"2021-06-08","Dipsas Mikanni","Saudável","Soltura","-"]
[84,"24/06/2021","Herpailurus yagouaroundi","Area de vivencia",null,84,"2021-06-24","Herpailurus yagouaroundi","Morto","Base de Fauna ","-"]
[85,"2021-07-01","Crotalus durissus","13A"]
[86,"2021-07-10","Bothops jararaca","Area de replantio"]
[87,"2021-07-12","Oxyrhopus guibei","Bota fora"]
[88,"2021-07-18","Oxyrhopus guibei","ADM"]

{"sheet":"Hist. Result (2)","index":6,"n_rows":21,"n_cols":26,"rows_kept":21,"cut":false,"hidden":false,"merged":[[2,2,2,3],[2,4,2,5],[2,8,2,9],[2,10,2,11],[2,12,2,13],[2,24,2,25],[1,16,1,25],[2,16,2,17],[2,18,2,19],[2,20,2,21],[2,22,2,23],[1,1,1,15],[2,1,3,1],[18,24,18,25],[18,10,18,11],[18,2,18,3],[18,4,18,5],[18,6,18,7],[18,8,18,9],[18,12,18,13],[18,14,18,15],[18,16,18,17],[18,18,18,19],[18,20,18,21],[18,22,18,23],[2,14,2,15],[2,6,2,7]]}
[null,null,4,4,5,5,"1º Quadrimestre",null,7,7,8,8,9,9,"2º Quadrimestre",null,10,10,11,11,12,12]
[null,"PROGRAMA DE MONITORAMENTO E CONSERVAÇÃO DA FAUNA",null,null,null,null,null,null,null,null,null,null,null,null,null,null,"3º Quadrimestre"]
[null,"Indicador","2020-08-01",null,"2020-09-01",null,"1º Quadrimestre",null,"2020-11-01",null,"2020-12-01",null,"2021-01-01",null,"2º Quadrimestre",null,"2021-02-01",null,"2021-03-01",null,"2021-04-01",null,"2021-05-01",null,"3º Quadrimestre"]
[null,null,"Período","Acumulado","Período","Acumulado","Período","Acumulado","Período","Acumulado","Período","Acumulado","Período","Acumulado","Período","Acumulado","Período","Acumulado","Período","Acumulado","Período","Acumulado","Período","Acumulado","Período","Acumulado"]
[null,"Subprograma de Resgate da Fauna Silvestre"]
[null,"Afugentamento (número aproximado)","3/3","3/3","0/0","3/3","3/3",{"$f":"F6","v":"3/3"},"0/0","3/3","0/0","3/3","0/0","3/3","0/0",{"$f":"N6","v":"3/3"},"0/0","3/3","0/0","3/3","0/0","3/3","0/0","3/3"]
[null,"Número de animais resgatados (RE) [Indivíduo/espécie]","3/3","3/3","7/4","10/7","10/7","10/7","2/2","12/8","3/3","15/10","12/5","27/13","17/8","27/13","9/4","36/14","7/3","43/15","7/3","50/24","7/5","57/24"]
[null,"Subprograma de Recepção, Atendimento e Destino dos Animais Silvestres"]
[null,"Destinação – Realocados (soltura). Soma de animais recebidos na base e animais sem passagem na base (inclui os de quarentena).",3,3,6,9,9,9,1,10,0,10,8,18,9,18,3,21,5,26,5,31,7,38]
[null,"Destinação – Encaminhamentos ao CRAS Mata Ciliar",0,0,0,0,0,0,1,1,1,2,1,3,3,3,2,5,1,6,1,6,0,6]
[null,"Destinação – Em Quarentena (aguardando ou aguardaram destinação)",0,0,0,0,0,0,0,0,0,0,0,0,0,0,0,0,0,0,0,0,0,0]
[null,"Destinação – Óbitos/Universidade",0,0,0,0,0,0,0,0,12,12,0,12,12,12,0,12,0,12,0,12,0,12]
[null,"Recepção e atendimento de animais na Base de Fauna para atendimento",4,4,15,19,19,19,5,24,4,28,15,43,24,43,15,58,9,67,9,74,7,81]
[null,"Subprograma de Monitoramento dos Eventos de Atropelamento de Fauna"]
[null,"Número de indivíduos resgatados / Número de espécies identificados  ","1/1","1/1","8/6","9/6","9/6","9/6","3/3","12/8","1/1","13/9","3/2","16/11","7/6","16/11","6/4","22/11","2/1","24/12","2/0","24/13","0/0","24/13"]
[0.11,"Número de registros por km percorrido",{"$f":"VLOOKUP($B$16,'at-km'!$N$2:$W$7,C1,FALSE)","v":0.01},{"$f":"VLOOKUP(\"Número acumulado de registros por km percorrido\",'at-km'!$N$2:$W$7,D1,FALSE)","v":0.01},{"$f":"VLOOKUP($B$16,'at-km'!$N$2:$W$7,E1,FALSE)","v":5.0000000000000001E-3},{"$f":"VLOOKUP(\"Número acumulado de registros por km percorrido\",'at-km'!$N$2:$W$7,F1,FALSE)","v":6.6666666666666671E-3},{"$f":"VLOOKUP(G1,'at-km'!$A$3:$K$6,9,FALSE)","v":6.6666666666666671E-3},6.6666666666666671E-3,{"$f":"VLOOKUP($B$16,'at-km'!$N$2:$W$7,I1,FALSE)","v":0.03},{"$f":"VLOOKUP(\"Número acumulado de registros por km percorrido\",'at-km'!$N$2:$W$7,J1,FALSE)","v":1.2500000000000001E-2},{"$f":"VLOOKUP($B$16,'at-km'!$N$2:$W$7,K1,FALSE)","v":0},{"$f":"VLOOKUP(\"Número acumulado de registros por km percorrido\",'at-km'!$N$2:$W$7,L1,FALSE)","v":8.3333333333333332E-3},{"$f":"VLOOKUP($B$16,'at-km'!$N$2:$W$7,M1,FALSE)","v":0},{"$f":"VLOOKUP(\"Número acumulado de registros por km percorrido\",'at-km'!$N$2:$W$7,N1,FALSE)","v":6.2500000000000003E-3},{"$f":"VLOOKUP(O1,'at-km'!$A$3:$K$6,9,FALSE)","v":6.0000000000000001E-3},6.2500000000000003E-3,{"$f":"VLOOKUP($B$16,'at-km'!$N$2:$W$7,Q1,FALSE)","v":0},{"$f":"VLOOKUP(\"Número acumulado de registros por km percorrido\",'at-km'!$N$2:$W$7,R1,FALSE)","v":5.0000000000000001E-3},{"$f":"VLOOKUP($B$16,'at-km'!$N$2:$Z$7,S1,FALSE)","v":0},{"$f":"VLOOKUP(\"Número acumulado de registros por km percorrido\",'at-km'!$N$2:$Z$7,T1,FALSE)","v":4.1666666666666666E-3},{"$f":"VLOOKUP($B$16,'at-km'!$N$2:$Z$7,U1,FALSE)","v":0},{"$f":"VLOOKUP(\"Número acumulado de registros por km percorrido\",'at-km'!$N$2:$Z$7,V1,FALSE)","v":3.5714285714285713E-3},3.5714285714285713E-3,0]
[null,"Observações"]
[null,"Animais armazenados no freezer da base de fauna (aguardando destinação final - Óbitos)",1,1,9,10,10,10,3,13,3,4,6,10,10,10,10,20,3,23,3,25,0,25]
[null,"Comentários","1 animal da quarentena foi reabilitado e solto (Copeoglossum nigropunctatum - ID 3, Calango-cobra)",null,null,null,null,null,null,null,"Nenhum animal destinado à UNIFAJ pertencia ao período de dezembro. \nManteve-se 1 animal para atividades de educação ambiental.",null,"1 animal passou por quarentena, porém não sobreviveu (Bothrops jararaca - ID 37, jacaraca-da-mata)"]
[null,"frezer",null,{"$f":"D13-SUM(D9:D12)","v":1},null,{"$f":"F13-SUM(F9:F12)","v":10},null,{"$f":"H13-SUM(H9:H12)","v":10},null,{"$f":"J13-SUM(J9:J12)","v":13},null,{"$f":"L13-SUM(L9:L12)","v":4},null,{"$f":"N13-SUM(N9:N12)","v":10},null,{"$f":"P13-SUM(P9:P12)","v":10},null,{"$f":"R13-SUM(R9:R12)","v":20},null,{"$f":"T13-SUM(T9:T12)","v":23},null,{"$f":"V13-SUM(V9:V12)","v":25},null,{"$f":"X13-SUM(X9:X12)","v":25},null,{"$f":"Z13-SUM(Z9:Z12)","v":0}]
[null,null,null,{"$f":"D20=D18","v":true},null,{"$f":"F20=F18","v":true},null,{"$f":"H20=H18","v":true},null,{"$f":"J20=J18","v":true},null,{"$f":"L20=L18","v":true},null,{"$f":"N20=N18","v":true},null,{"$f":"P20=P18","v":true},null,{"$f":"R20=R18","v":true},null,{"$f":"T20=T18","v":true},null,{"$f":"V20=V18","v":true},null,{"$f":"X20=X18","v":true},null,{"$f":"Z20=Z18","v":true}]

{"sheet":"at-km","index":7,"n_rows":7,"n_cols":26,"rows_kept":7,"cut":false,"hidden":false,"merged":[[0,14,0,17],[0,18,0,21],[0,0,0,4]]}
["Nº de Atropelamentos",null,null,null,null,null,"dias",null,null,null,null,null,null,null,"1º Quadrimestre",null,null,null,"2º Quadrimestre",null,null,null,"3º Quadrimestre"]
["Mês","1º mês","2º mês","3º mês","4º mês","TOTAL","Nº de Campanhas","Kilometragem monitorada","Média Nº Atrop. / km","Nº de Profissionais","Esforço amostral",null,null,"Mês","2020-06-01","2020-07-01","2020-08-01","2020-09-01","2020-10-01","2020-11-01","2020-12-01","2021-01-01","2021-02-01","2021-03-01","2021-04-01","2021-05-01"]
["1º Quadrimestre",0,0,1,1,{"$f":"SUM(B3:E3)","v":2},3,{"$f":"G3*100","v":300},{"$f":"F3/H3","v":6.6666666666666671E-3},{"$f":"G3*2","v":6},{"$f":"J3*G3*4/2","v":36},null,null,"Nº de Atropelamentos (campanha de monitoramento)",0,0,1,1,0,3,0,0,0,0,0,0]
["2º Quadrimestre",0,3,0,0,{"$f":"SUM(B4:E4)","v":3},5,{"$f":"G4*100","v":500},{"$f":"F4/H4","v":6.0000000000000001E-3},{"$f":"G4*2","v":10},{"$f":"J4*G4*4/2","v":100},null,null,"Nº de Campanhas",0,0,1,2,0,1,2,2,2,2,2,2]
["3º Quadrimestre",0,0,0,0,{"$f":"SUM(B5:E5)","v":0},4,{"$f":"G5*100","v":400},{"$f":"F5/H5","v":0},{"$f":"G5*2","v":8},{"$f":"J5*G5*4/2","v":64},null,null,"Kilometragem Monitorada",{"$f":"O4*100","v":0},{"$f":"P4*100","v":0},100,200,0,100,200,200,200,{"$f":"X4*100","v":200},{"$f":"Y4*100","v":200},{"$f":"Z4*100","v":200}]
["Total",{"$f":"SUM(B3:B4)","v":0},3,1,1,{"$f":"SUM(B6:E6)","v":5},8,800,{"$f":"F6/H6","v":6.2500000000000003E-3},{"$f":"SUM(J3:J4)","v":16},{"$f":"SUM(K3:K4)","v":136},null,null,"Número de registros por km percorrido",{"$f":"IFERROR(ROUND(O3/O5,4),\"-\")","v":"-"},{"$f":"IFERROR(ROUND(P3/P5,4),\"-\")","v":"-"},0.01,5.0000000000000001E-3,"-",0.03,0,0,0,{"$f":"IFERROR(ROUND(X3/X5,4),\"-\")","v":0},{"$f":"IFERROR(ROUND(Y3/Y5,4),\"-\")","v":0},{"$f":"IFERROR(ROUND(Z3/Z5,4),\"-\")","v":0}]
[null,null,null,null,null,null,null,null,null,null,null,null,null,"Número acumulado de registros por km percorrido",{"$f":"IFERROR(SUM($O$3:O3)/SUM($O$5:O5),0)","v":0},{"$f":"IFERROR(SUM($O$3:P3)/SUM($O$5:P5),0)","v":0},{"$f":"IFERROR(SUM($O$3:Q3)/SUM($O$5:Q5),0)","v":0.01},{"$f":"IFERROR(SUM($O$3:R3)/SUM($O$5:R5),0)","v":6.6666666666666671E-3},{"$f":"IFERROR(SUM($O$3:S3)/SUM($O$5:S5),0)","v":6.6666666666666671E-3},{"$f":"IFERROR(SUM($O$3:T3)/SUM($O$5:T5),0)","v":1.2500000000000001E-2},{"$f":"IFERROR(SUM($O$3:U3)/SUM($O$5:U5),0)","v":8.3333333333333332E-3},{"$f":"IFERROR(SUM($O$3:V3)/SUM($O$5:V5),0)","v":6.2500000000000003E-3},{"$f":"IFERROR(SUM($O$3:W3)/SUM($O$5:W5),0)","v":5.0000000000000001E-3},{"$f":"IFERROR(SUM($O$3:X3)/SUM($O$5:X5),0)","v":4.1666666666666666E-3},{"$f":"IFERROR(SUM($O$3:Y3)/SUM($O$5:Y5),0)","v":3.5714285714285713E-3},{"$f":"IFERROR(SUM($O$3:Z3)/SUM($O$5:Z5),0)","v":3.1250000000000002E-3}]

{"sheet":"Graf_1","index":8,"n_rows":10,"n_cols":3,"rows_kept":10,"cut":false,"hidden":false,"merged":[]}
[{"$f":"Geral!CR19","v":"Tipo "},{"$f":"Geral!CS19","v":"GRUPO"},{"$f":"Geral!CT19","v":"Contagem de Nome científico"}]
[{"$f":"Geral!CR20","v":"AF"},{"$f":"Geral!CS20","v":"AVIFAUNA"},{"$f":"Geral!CT20","v":0}]
[{"$f":"Geral!CR21","v":"AF"},{"$f":"Geral!CS21","v":"HERPETOFAUNA"},{"$f":"Geral!CT21","v":0}]
[{"$f":"Geral!CR22","v":"AF"},{"$f":"Geral!CS22","v":"MASTOFAUNA"},{"$f":"Geral!CT22","v":0}]
[{"$f":"Geral!CR23","v":"AT"},{"$f":"Geral!CS23","v":"AVIFAUNA"},{"$f":"Geral!CT23","v":0}]
[{"$f":"Geral!CR24","v":"AT"},{"$f":"Geral!CS24","v":"HERPETOFAUNA"},0]
[{"$f":"Geral!CR25","v":"AT"},{"$f":"Geral!CS25","v":"MASTOFAUNA"},{"$f":"Geral!CT25","v":0}]
[{"$f":"Geral!CR26","v":"RE"},{"$f":"Geral!CS26","v":"AVIFAUNA"},2]
[{"$f":"Geral!CR27","v":"RE"},{"$f":"Geral!CS27","v":"HERPETOFAUNA"},3]
[{"$f":"Geral!CR28","v":"RE"},{"$f":"Geral!CS28","v":"MASTOFAUNA"}]

{"sheet":"GRAF-2(3)","index":9,"n_rows":44,"n_cols":2,"rows_kept":44,"cut":false,"hidden":false,"merged":[]}
["Nome científico","Contagem de Nome científico"]
["Crotalus durissus",42]
["Bothrops newiedi",7]
["Dipsas mikanii",12]
["Oxyrhopus guibei",12]
["Amphisbaena alba",7]
["Bothrops jararaca",13]
["Bothrops alternatus",6]
["Philodryas olfersii",6]
["Dasypus novemcinctus",4]
["Didelphis albiventris",3]
["Salvator merianae",8]
["Callithrix jacchus",2]
["rythrolampus typhlus ssp brachhyrus",1]
["Didelphis aurita",3]
["Erythrolamprus aesculapii",2]
["Psittacara leucophthalmus",11]
["Tantilla melanocephala",2]
["Apodemus sylvaticus",1]
["Boa Constrictor",2]
["Rupornis magnirostris",1]
["Bothrops alternatus",2]
["Microtus arvalis",2]
["Calitrix pericilatta",1]
["Cavia aparea",2]
["Copeoglossum nigropunctatum",1]
["Micrurus sp.",1]
["Pygochelidon cyanoleuca",1]
["Ramphastos toco",1]
["Rhinella sp.",1]
["mozama americana ",1]
["lepus europeus ",1]
[" Philodryas nattereri",1]
["dendocygha autumnalis",12]
["philodryas patagoniensis",1]
["Trachemys dorbigni",1]
["Sicalis flaveola",1]
["Taeniophallus afinnis",1]
["Oxyrhopus trigeminus",1]
["leophis typhlus",1]
["Zenaida auriculata",1]
["monodelphis dimidiata",3]
["eryhrolampus paecilogyrus ",1]
["colaptes campestris",1]

{"sheet":"Geral_antigão","index":10,"n_rows":210,"n_cols":244,"rows_kept":210,"cut":false,"hidden":false,"merged":[[222,6,222,32],[26,140,26,147],[28,21,28,30],[28,31,28,32],[5,0,5,2],[7,0,7,2],[12,0,12,2],[23,0,23,2],[28,4,28,5],[8,0,9,0],[28,6,28,7],[28,8,28,15],[28,16,28,20],[0,185,0,187],[26,149,26,156],[26,158,26,165],[26,167,26,174],[26,176,26,183]]}
["Verificação de erros:","MÊS DE INTERESSE",null,null,null,1,null,null,null,null,null,null,null,null,null,null,null,null,null,null,null,null,null,null,null,null,null,null,null,null,null,null,null,null,null,null,null,null,null,null,null,null,null,null,null,null,null,null,null,null,null,null,null,null,null,null,null,null,null,null,null,null,null,null,null,null,null,null,null,null,null,null,null,null,null,null,null,null,null,null,null,null,null,null,null,null,null,null,null,null,null,null,null,"AVIFAUNA","HERPETOFAUNA",null,"MASTOFAUNA",null,null,null,null,null,null,null,null,null,null,null,null,null,null,null,null,null,null,null,null,null,null,null,null,null,null,null,null,null,null,null,null,null,null,null,null,null,null,null,null,null,null,null,null,null,null,null,null,null,null,null,null,null,null,null,null,null,null,null,null,null,null,null,null,null,null,null,null,null,null,null,null,null,null,null,null,null,null,null,null,null,null,null,null,null,null,null,null,"ATROPELAMENTO AO LONGO DO TEMPO"]
[{"$f":"IF(B21+B22=B23,\"OK\",\"algo errado, vc levará um puxar de orelha da carol\")","v":"algo errado, vc levará um puxar de orelha da carol"},"ANO DE INTERESSE",null,null,null,2021,null,null,null,null,null,null,null,null,null,null,null,null,null,null,null,null,null,null,null,null,null,null,null,null,null,null,null,null,null,null,null,null,null,null,null,null,null,null,null,null,null,null,null,null,null,null,null,null,null,null,null,null,null,null,null,null,null,null,null,null,null,null,null,null,null,null,null,null,null,null,null,null,null,null,null,null,null,null,null,null,null,null,null,null,null,null,"regionalmente extinta",null,null,null,null,null,null,null,null,null,null,null,null,null,null,null,null,null,null,null,null,null,null,null,null,null,null,null,null,null,null,null,null,null,null,null,null,null,null,null,null,null,null,null,null,null,null,null,null,null,null,null,null,null,null,null,null,null,null,null,null,null,null,null,null,null,null,null,null,null,null,null,null,null,null,null,null,null,null,null,null,null,null,null,null,null,null,null,null,null,null,null,null,"DATA","S - Riqueza","n - nº de Indivíduos"]
[null,"HOJE",{"$f":"TODAY()","v":"2023-08-04"},null,null,null,null,null,null,null,null,null,null,null,null,null,null,null,null,null,null,null,null,null,null,null,null,null,null,null,null,null,null,null,null,null,null,null,null,null,null,null,null,null,null,null,null,null,null,null,null,null,null,null,null,null,null,null,null,null,null,null,null,null,null,null,null,null,null,null,null,null,null,null,null,null,null,null,null,null,null,null,null,null,null,null,null,null,null,null,null,null,"criticamente em perigo",null,null,null,null,null,null,null,null,null,null,null,null,null,null,null,null,null,null,null,null,null,null,null,null,null,null,null,null,null,null,null,null,null,null,null,null,null,null,null,null,null,null,null,null,null,null,null,null,null,null,null,null,null,null,null,null,null,null,null,null,null,null,null,null,null,null,null,null,null,null,null,null,null,null,null,null,null,null,null,null,null,null,null,null,null,null,null,null,null,null,null,null,"2020-08-01",{"$f":"GE24","v":1},{"$f":"GF24","v":1}]
["Quadro 4 - Indicadores","ESSE MÊS",{"$f":"MONTH(C3)","v":8},null,null,null,null,null,null,null,null,null,null,null,null,null,null,null,null,null,null,null,null,null,null,null,null,null,null,null,null,null,null,null,null,null,null,null,null,null,null,null,null,null,null,null,null,null,null,null,null,null,null,null,null,null,null,null,null,null,null,null,null,null,null,null,null,null,null,null,null,null,null,null,null,null,null,null,null,null,null,null,null,null,null,null,null,null,null,null,null,null,"em perigo",null,null,null,null,null,null,null,null,null,null,null,null,null,null,null,null,null,null,null,null,null,null,null,null,null,null,null,null,null,null,null,null,null,null,null,null,null,null,null,null,null,null,null,null,null,null,null,null,null,null,null,null,null,null,null,null,null,null,null,null,null,null,null,null,null,null,null,null,null,null,null,null,null,null,null,null,null,null,null,null,null,null,null,null,null,null,null,null,null,null,null,null,"2020-09-01",{"$f":"GO24","v":6},{"$f":"GP24","v":8}]
[null,"km rodados no mês",null,null,null,100,null,null,null,null,null,null,null,null,null,null,null,null,null,null,null,null,null,null,null,null,null,null,null,null,null,null,null,null,null,null,null,null,null,null,null,null,null,null,null,null,null,null,null,null,null,null,null,null,null,null,null,null,null,null,null,null,null,null,null,null,null,null,null,null,null,null,null,null,null,null,null,null,null,null,null,null,null,null,null,null,null,null,null,null,null,null,"vulnerável",null,null,null,null,null,null,null,null,null,null,null,null,null,null,null,null,null,null,null,null,null,null,null,null,null,null,null,null,null,null,null,null,null,null,null,null,null,null,null,null,null,null,null,null,null,null,null,null,null,null,null,null,null,null,null,null,null,null,null,null,null,null,null,null,null,null,null,null,null,null,null,null,null,null,null,null,null,null,null,null,null,null,null,null,null,null,null,null,null,null,null,null,"2020-11-01",{"$f":"GY24","v":3},{"$f":"GZ24","v":3}]
["PROGRAMA DE MONITORAMENTO E CONSERVAÇÃO DA FAUNA",null,null,null,null,null,null,null,null,null,null,null,null,null,null,null,null,null,null,null,null,null,null,null,null,null,null,null,null,null,null,null,null,null,null,null,null,null,null,null,null,null,null,null,null,null,null,null,null,null,null,null,null,null,null,null,null,null,null,null,null,null,null,null,null,null,null,null,null,null,null,null,null,null,null,null,null,null,null,null,null,null,null,null,null,null,null,null,null,null,null,null,"quase ameaçada",null,null,null,null,null,null,null,null,null,null,null,null,null,null,null,null,null,null,null,null,null,null,null,null,null,null,null,null,null,null,null,null,null,null,null,null,null,null,null,null,null,null,null,null,null,null,null,null,null,null,null,null,null,null,null,null,null,null,null,null,null,null,null,null,null,null,null,null,null,null,null,null,null,null,null,null,null,null,null,null,null,null,null,null,null,null,null,null,null,null,null,null,"2020-12-01",{"$f":"HI24","v":1},{"$f":"HJ24","v":1}]
["Número total de animais resgatados (RE + AT com vida) [Indivíduo/espécie]",{"$f":"CONCATENATE(SUMIF(H31:H1048576,\"RE\",P31:P1048576)+SUMIF(H31:H1048576,\"AT\",P31:P1048576),\"/\",EA27)","v":"43/20"},{"$f":"CONCATENATE(SUMIFS(P31:P1048576,E31:E1048576,C2,F31:F1048576,C1,H31:H1048576,\"RE\")+SUMIFS(P31:P1048576,E31:E1048576,C2,F31:F1048576,C1,H31:H1048576,\"AT\")+SUMIFS(P31:P1048576,E31:E1048576,D2,F31:F1048576,D1,H31:H1048576,\"RE\")+SUMIFS(P31:P1048576,E31:E1048576,D2,F31:F1048576,D1,H31:H1048576,\"AT\")+SUMIFS(P31:P1048576,E31:E1048576,E2,F31:F1048576,E1,H31:H1048576,\"RE\")+SUMIFS(P31:P1048576,E31:E1048576,E2,F31:F1048576,E1,H31:H1048576,\"AT\")+SUMIFS(P31:P1048576,E31:E1048576,F2,F31:F1048576,F1,H31:H1048576,\"RE\")+SUMIFS(P31:P1048576,E31:E1048576,F2,F31:F1048576,F1,H31:H1048576,\"AT\"),\"/\",BB20)","v":"15/14"},null,{"$f":"VLOOKUP(\"VERDADEIRO\",DX31:EH1048576,1,FALSE)","v":{"$error":"#N/A"}},null,null,null,null,null,null,null,null,null,null,null,null,null,null,null,null,null,null,null,null,null,null,null,null,null,null,null,null,null,null,null,null,null,null,null,null,null,null,null,null,null,null,null,null,null,null,null,null,null,null,null,null,null,null,null,null,null,null,null,null,null,null,null,null,null,null,null,null,null,null,null,null,null,null,null,null,null,null,null,null,null,null,null,null,null,null,null,"dados insuficientes",null,null,null,null,null,null,null,null,null,null,null,null,null,null,null,null,null,null,null,null,null,null,null,null,null,null,null,null,null,null,null,null,null,null,null,null,null,null,null,null,null,null,null,null,null,null,null,null,null,null,null,null,null,null,null,null,null,null,null,null,null,null,null,null,null,null,null,null,null,null,null,null,null,null,null,null,null,null,null,null,null,null,null,null,null,null,null,null,null,null,null,null,"2021-01-01",{"$f":"HS24","v":2},{"$f":"HT24","v":3}]
["Subprograma de Resgate da Fauna Silvestre",null,null,null,{"$f":"VLOOKUP(\"VERDADEIRO\",DX31:EH1048576,5,FALSE)","v":{"$error":"#N/A"}},null,null,null,null,null,null,null,null,null,null,null,null,null,null,null,null,null,null,null,null,null,null,null,null,null,null,null,null,null,null,null,null,null,null,null,null,null,null,null,null,null,null,null,null,null,null,null,null,null,null,null,null,null,null,null,null,null,null,null,null,null,null,null,null,null,null,null,null,null,null,null,null,null,null,null,null,null,null,null,null,null,null,null,null,null,null,null,"Não listado"]
["Indicador","  Status Acumulado","Status do período",null,{"$f":"VLOOKUP(\"VERDADEIRO\",DX31:EH1048576,8,FALSE)","v":{"$error":"#N/A"}}]
[null,"Indivíduo / Espécie"," Indivíduo / Espécie",null,{"$f":"VLOOKUP(\"VERDADEIRO\",DX31:EH1048576,11,FALSE)","v":{"$error":"#N/A"}}]
["Afugentamento (número aproximado)",{"$f":"CONCATENATE(SUMIF(H31:H1048576,\"AF\",P31:P1048576),\"/\",AL19)","v":"3/3"},{"$f":"CONCATENATE(SUMIFS(P31:P1048576,E31:E1048576,C2,F31:F1048576,C1,H31:H1048576,\"AF\")+SUMIFS(P31:P1048576,E31:E1048576,D2,F31:F1048576,D1,H31:H1048576,\"AF\")+SUMIFS(P31:P1048576,E31:E1048576,E2,F31:F1048576,E1,H31:H1048576,\"AF\")+SUMIFS(P31:P1048576,E31:E1048576,F2,F31:F1048576,F1,H31:H1048576,\"AF\"),\"/\",BB19)","v":"0/0"}]
["Número de animais resgatados (RE) [Indivíduo/espécie]",{"$f":"CONCATENATE(SUMIF(H31:H1048576,\"RE\",P31:P1048576),\"/\",DW27)","v":"27/13"},{"$f":"CONCATENATE(SUMIFS(P31:P1048576,E31:E1048576,C2,F31:F1048576,C1,H31:H1048576,\"RE\")+SUMIFS(P31:P1048576,E31:E1048576,D2,F31:F1048576,D1,H31:H1048576,\"RE\")+SUMIFS(P31:P1048576,E31:E1048576,E2,F31:F1048576,E1,H31:H1048576,\"RE\")+SUMIFS(P31:P1048576,E31:E1048576,F2,F31:F1048576,F1,H31:H1048576,\"RE\"),\"/\",AU20)","v":"12/5"}]
["Subprograma de Recepção, Atendimento, e Destino dos Animais Silvestres",null,null,null,null,null,"SOMASES(P29:P1048576;E29:E1048576;C2;F29:F1048576;C1;$AB$29:$AB$1048576;\"OPQ\")+SOMASES(P29:P1048576;E29:E1048576;C2;F29:F1048576;D1;$AB$29:$AB$1048576;\"OPQ\")+SOMASES(P29:P1048576;E29:E1048576;C2;F29:F1048576;E1;$AB$29:$AB$1048576;\"OPQ\")+SOMASES(P29:P1048576;E29:E1048576;C2;F29:F1048576;F1;$AB$29:$AB$1048576;\"OPQ\")"]
["Destinação - Número de animais realocados (soltura imediata – sem quarentena). \nObs. Soma dos animais recebidos na base e animais que não tiveram passagem na base. Porém não entram os de quarentena.",{"$f":"SUMIF($AB$31:$AB$1048576,\"Soltura\",P31:P1048576)","v":17},{"$f":"SUMIFS(P31:P1048576,E31:E1048576,C2,F31:F1048576,C1,$AB$31:$AB$1048576,\"Soltura\")+SUMIFS(P31:P1048576,E31:E1048576,D2,F31:F1048576,D1,$AB$31:$AB$1048576,\"Soltura\")+SUMIFS(P31:P1048576,E31:E1048576,E2,F31:F1048576,E1,$AB$31:$AB$1048576,\"Soltura\")+SUMIFS(P31:P1048576,E31:E1048576,F2,F31:F1048576,F1,$AB$31:$AB$1048576,\"Soltura\")","v":8}]
["Destinação - Animais reabilitados e reintroduzidos na natureza (soltura) [Soltura pós-quarentena - SPQ]",{"$f":"SUMIF(AB31:AB1048576,\"SPQ\",P31:P1048576)","v":1},{"$f":"SUMIFS(P31:P1048576,E31:E1048576,C2,F31:F1048576,C1,AB31:AB1048576,\"SPQ\")+SUMIFS(P31:P1048576,E31:E1048576,D2,F31:F1048576,D1,AB31:AB1048576,\"SPQ\")+SUMIFS(P31:P1048576,E31:E1048576,E2,F31:F1048576,E1,AB31:AB1048576,\"SPQ\")+SUMIFS(P31:P1048576,E31:E1048576,F2,F31:F1048576,F1,AB31:AB1048576,\"SPQ\")","v":0},null,null,null,null,null,null,null,null,null,null,null,null,null,null,null,null,null,null,null,null,null,null,null,null,null,null,null,null,null,null,null,null,null,null,null,null,null,null,null,null,null,null,null,{"$f":"COUNTIFS(AT31:AT1048576,AV17,AU31:AU1048576,AT20)","v":0}]
["Destinação - Óbitos pós-quarentena [OPQ]",{"$f":"SUMIF(AB31:AB1048576,\"OPQ\",P31:P1048576)","v":1},{"$f":"SUMIFS(P31:P1048576,E31:E1048576,C2,F31:F1048576,C1,AB31:AB1048576,\"OPQ\")+SUMIFS(P31:P1048576,E31:E1048576,D2,F31:F1048576,D1,AB31:AB1048576,\"OPQ\")+SUMIFS(P31:P1048576,E31:E1048576,E2,F31:F1048576,E1,AB31:AB1048576,\"OPQ\")+SUMIFS(P31:P1048576,E31:E1048576,F2,F31:F1048576,F1,AB31:AB1048576,\"OPQ\")","v":1},null,null,null,null,null,null,null,null,null,null,null,null,null,null,null,null,null,null,null,null,null,null,null,null,null,null,null,null,null,null,null,null,null,null,null,null,null,null,null,null,null,null,null,{"$f":"COUNTIFS(AT31:AT1048576,AW17,AT31:AT1048576,AX17,AT31:AT1048576,AY17)","v":0}]
["Animais armazenados aguardando destinação final (Óbitos)*",{"$f":"SUMIF($AB$31:$AB$1048576,\"Base de Fauna\",P31:P1048576)+SUMIF($AB$31:$AB$1048576,\"OPQ\",P31:P1048576)","v":10},{"$f":"SUMIFS(P31:P1048576,E31:E1048576,C2,F31:F1048576,C1,$AB$31:$AB$1048576,\"Base de Fauna\")+SUMIFS(P31:P1048576,E31:E1048576,D2,F31:F1048576,D1,$AB$31:$AB$1048576,\"Base de Fauna\")+SUMIFS(P31:P1048576,E31:E1048576,E2,F31:F1048576,E1,$AB$31:$AB$1048576,\"Base de Fauna\")+SUMIFS(P31:P1048576,E31:E1048576,F2,F31:F1048576,F1,$AB$31:$AB$1048576,\"Base de Fauna\")+SUMIFS(P31:P1048576,E31:E1048576,C2,F31:F1048576,C1,$AB$31:$AB$1048576,\"OPQ\")+SUMIFS(P31:P1048576,E31:E1048576,D2,F31:F1048576,D1,$AB$31:$AB$1048576,\"OPQ\")+SUMIFS(P31:P1048576,E31:E1048576,E2,F31:F1048576,E1,$AB$31:$AB$1048576,\"OPQ\")+SUMIFS(P31:P1048576,E31:E1048576,F2,F31:F1048576,F1,$AB$31:$AB$1048576,\"OPQ\")","v":6},null,null,null,null,null,null,null,null,null,null,null,null,null,null,null,null,null,null,null,null,null,null,null,null,null,null,null,null,null,null,null,null,null,null,null,null,null,null,null,null,null,null,{"$f":"B1","v":"MÊS DE INTERESSE"},null,{"$f":"C1","v":0},{"$f":"D1","v":0},{"$f":"E1","v":0},{"$f":"F1","v":1}]
["Destinação - Encaminhamentos ao CRAS Mata Ciliar\nSoma dos animais (CRAS)",{"$f":"COUNTIFS($AB$31:$AB$1048576,\"CRAS\")","v":0},{"$f":"SUMIFS(P31:P1048576,E31:E1048576,C2,F31:F1048576,C1,AB31:AB1048576,\"CRAS\")+SUMIFS(P31:P1048576,E31:E1048576,D2,F31:F1048576,D1,AB31:AB1048576,\"CRAS\")+SUMIFS(P31:P1048576,E31:E1048576,E2,F31:F1048576,E1,AB31:AB1048576,\"CRAS\")+SUMIFS(P31:P1048576,E31:E1048576,F2,F31:F1048576,F1,AB31:AB1048576,\"CRAS\")","v":0},null,null,null,null,null,null,null,null,null,null,null,null,null,null,null,null,null,null,null,null,null,null,null,null,null,null,null,null,null,null,null,null,null,"Programa","S - Riqueza","Destinação","S - Riqueza",null,null,null,null,null,"Programa","S - Riqueza","Destinação","S - Riqueza",null,null,null,"Programa","S - Riqueza"]
["Destinação - Óbitos/UNIFAJ - Jaguariúna",{"$f":"SUMIF($AB$31:$AB$1048576,\"U\",P31:P1048576)","v":0},{"$f":"SUMIFS(P31:P1048576,AH31:AH1048576,C2,AI31:AI1048576,C1,$AB$31:$AB$1048576,\"U\")+SUMIFS(P31:P1048576,AH31:AH1048576,D2,AI31:AI1048576,D1,$AB$31:$AB$1048576,\"U\")+SUMIFS(P31:P1048576,AH31:AH1048576,E2,AI31:AI1048576,E1,$AB$31:$AB$1048576,\"U\")+SUMIFS(P31:P1048576,AH31:AH1048576,F2,AI31:AI1048576,F1,$AB$31:$AB$1048576,\"U\")","v":0},null,null,null,null,null,null,null,null,null,null,null,null,null,null,null,null,null,null,null,null,null,null,null,null,null,null,null,null,null,null,null,null,null,"AF",{"$f":"COUNTIF($AM$31:$AM$1048576,AK19)","v":3},"S",{"$f":"COUNTIF($AN$31:$AN$1048576,AM19)","v":0},null,null,null,null,null,"AF",{"$f":"COUNTIFS($AT$31:$AT$1048576,$AV$17,$AU$31:$AU$1048576,AT19)+COUNTIFS($AT$31:$AT$1048576,$AW$17,$AU$31:$AU$1048576,AT19)+COUNTIFS($AT$31:$AT$1048576,$AX$17,$AU$31:$AU$1048576,AT19)+COUNTIFS($AT$31:$AT$1048576,$AY$17,$AU$31:$AU$1048576,AT19)","v":0},"S",null,null,null,null,"AF",{"$f":"COUNTA(BC31:BC1048576)","v":0}]
["Destinação - Óbito (descarte)",{"$f":"SUMIFS(P31:P1048576,$AB$31:$AB$1048576,\"D\")","v":0},{"$f":"SUMIFS(P31:P1048576,E31:E1048576,C2,F31:F1048576,C1,AB31:AB1048576,\"D\")+SUMIFS(P31:P1048576,E31:E1048576,D2,F31:F1048576,D1,AB31:AB1048576,\"D\")+SUMIFS(P31:P1048576,E31:E1048576,E2,F31:F1048576,E1,AB31:AB1048576,\"D\")+SUMIFS(P31:P1048576,E31:E1048576,F2,F31:F1048576,F1,AB31:AB1048576,\"D\")","v":0},null,null,null,null,null,null,null,null,null,null,null,null,null,null,null,null,null,null,null,null,null,null,null,null,null,null,null,null,null,null,null,null,null,"RE",{"$f":"COUNTIF($AM$31:$AM$1048576,AK20)","v":17},"CRAS",{"$f":"COUNTIF($AN$31:$AN$1048576,AM20)","v":0},null,null,null,null,null,"RE",{"$f":"COUNTIFS($AT$31:$AT$1048576,$AV$17,$AU$31:$AU$1048576,AT20)+COUNTIFS($AT$31:$AT$1048576,$AW$17,$AU$31:$AU$1048576,AT20)+COUNTIFS($AT$31:$AT$1048576,$AX$17,$AU$31:$AU$1048576,AT20)+COUNTIFS($AT$31:$AT$1048576,$AY$17,$AU$31:$AU$1048576,AT20)","v":5},"CRAS",null,null,null,null,"RE e AT",{"$f":"COUNTA(AZ31:AZ1048576)","v":14},null,null,null,null,null,null,null,null,null,null,null,null,null,null,null,null,null,null,null,null,null,null,null,null,null,null,null,null,null,null,null,null,null,null,null,null,null,null,null,null,null,null,null,null,null,null,null,null,null,null,null,null,null,null,null,null,null,null,null,null,null,null,null,null,null,null,null,null,null,null,null,null,null,null,null,null,null,null,null,null,null,null,null,null,null,null,null,null,null,null,null,null,null,null,null,null,null,null,null,null,null,null,null,null,null,null,null,null,null,null,null,null,null,null,null,null,null,null,null,null,null,null,null,null,null,null,null,null,null,null,null,null,{"$f":"GE27","v":"ANO"},{"$f":"GF27","v":2020},null,null,null,null,null,null,null,null,{"$f":"GO27","v":"ANO"},{"$f":"GP27","v":2020},null,null,null,null,null,null,null,null,{"$f":"GY27","v":"ANO"},{"$f":"GZ27","v":2020},null,null,null,null,null,null,null,null,{"$f":"HI27","v":"ANO"},{"$f":"HJ27","v":2020},null,null,null,null,null,null,null,null,{"$f":"HS27","v":"ANO"},{"$f":"HT27","v":2021},null,null,null,null,null,null,null,null,{"$f":"IC27","v":"ANO"},{"$f":"ID27","v":2021}]
["Recepção e atendimento de animais na Base de Fauna para atendimento (animal ferido)",{"$f":"SUMIF(V31:V1048576,\"F\",P31:P1048576)","v":0},{"$f":"SUMIFS(P31:P1048576,E31:E1048576,C2,F31:F1048576,C1,V31:V1048576,\"F\")+SUMIFS(P31:P1048576,E31:E1048576,D2,F31:F1048576,D1,V31:V1048576,\"F\")+SUMIFS(P31:P1048576,E31:E1048576,E2,F31:F1048576,E1,V31:V1048576,\"F\")+SUMIFS(P31:P1048576,E31:E1048576,F2,F31:F1048576,F1,V31:V1048576,\"F\")","v":0},null,null,null,null,null,null,null,null,null,null,null,null,null,null,null,null,null,null,null,null,null,null,null,null,null,null,null,null,null,null,null,null,null,"AT",{"$f":"COUNTIF($AM$31:$AM$1048576,AK21)","v":12},"U",{"$f":"COUNTIF($AN$31:$AN$1048576,AM21)","v":0},null,null,null,null,null,"AT",{"$f":"COUNTIFS($AT$31:$AT$1048576,$AV$17,$AU$31:$AU$1048576,AT21)+COUNTIFS($AT$31:$AT$1048576,$AW$17,$AU$31:$AU$1048576,AT21)+COUNTIFS($AT$31:$AT$1048576,$AX$17,$AU$31:$AU$1048576,AT21)+COUNTIFS($AT$31:$AT$1048576,$AY$17,$AU$31:$AU$1048576,AT21)","v":2},"U",null,null,null,null,"AV",{"$f":"COUNTA(BF31:BF1048576)","v":0},null,null,null,null,null,null,null,null,null,null,null,null,null,null,null,null,null,null,null,null,null,null,null,null,null,null,null,null,null,null,null,null,null,null,null,null,null,null,null,null,null,null,null,null,null,null,null,null,null,null,null,null,null,null,null,null,null,null,null,null,null,null,null,null,null,null,null,null,null,null,null,null,null,null,null,null,null,null,null,null,null,null,null,null,null,null,null,null,null,null,null,null,null,null,null,null,null,null,null,null,null,null,null,null,null,null,null,null,null,null,null,null,null,null,null,null,null,null,null,null,null,null,null,null,null,null,null,null,null,null,null,null,{"$f":"GE28","v":"Mês"},{"$f":"GF28","v":8},null,null,null,null,null,null,null,null,{"$f":"GO28","v":"Mês"},{"$f":"GP28","v":9},null,null,null,null,null,null,null,null,{"$f":"GY28","v":"Mês"},{"$f":"GZ28","v":11},null,null,null,null,null,null,null,null,{"$f":"HI28","v":"Mês"},{"$f":"HJ28","v":12},null,null,null,null,null,null,null,null,{"$f":"HS28","v":"Mês"},{"$f":"HT28","v":1},null,null,null,null,null,null,null,null,{"$f":"IC28","v":"Mês"},{"$f":"ID28","v":"(vazio)"}]
["Animais sem passsagem na base de fauna",{"$f":"SUMIF(W31:W1048576,\"Não\",P31:P1048576)-SUMIF(H31:H1048576,\"AV\",P31:P1048576)","v":3},{"$f":"SUMIFS(P31:P1048576,E31:E1048576,C2,F31:F1048576,C1,W31:W1048576,\"Não\")+SUMIFS(P31:P1048576,E31:E1048576,D2,F31:F1048576,D1,W31:W1048576,\"Não\")+SUMIFS(P31:P1048576,E31:E1048576,E2,F31:F1048576,E1,W31:W1048576,\"Não\")+SUMIFS(P31:P1048576,E31:E1048576,F2,F31:F1048576,F1,W31:W1048576,\"Não\")","v":0}]
["Recepção e atendimento de animais na Base de Fauna para atendimento (Todos)",{"$f":"SUMIF(W31:W1048576,\"Sim\",P31:P1048576)","v":27},{"$f":"SUMIFS(P31:P1048576,E31:E1048576,C2,F31:F1048576,C1,W31:W1048576,\"Sim\")+SUMIFS(P31:P1048576,E31:E1048576,D2,F31:F1048576,D1,W31:W1048576,\"Sim\")+SUMIFS(P31:P1048576,E31:E1048576,E2,F31:F1048576,E1,W31:W1048576,\"Sim\")+SUMIFS(P31:P1048576,E31:E1048576,F2,F31:F1048576,F1,W31:W1048576,\"Sim\")","v":12}]
["Subprograma de Monitoramento dos Eventos de Atropelamento de Fauna",null,null,null,null,null,null,null,null,null,null,null,null,null,null,null,null,null,null,null,null,null,null,null,null,null,null,null,null,null,null,null,null,null,null,null,"AV",{"$f":"COUNTIF($AM$31:$AM$1048576,AK24)","v":0},"D",{"$f":"COUNTIF($AN$31:$AN$1048576,AM24)","v":0},null,null,null,null,null,"AV",{"$f":"COUNTIFS($AT$31:$AT$1048576,$AV$17,$AU$31:$AU$1048576,AT24)+COUNTIFS($AT$31:$AT$1048576,$AW$17,$AU$31:$AU$1048576,AT24)+COUNTIFS($AT$31:$AT$1048576,$AX$17,$AU$31:$AU$1048576,AT24)+COUNTIFS($AT$31:$AT$1048576,$AY$17,$AU$31:$AU$1048576,AT24)","v":0},"D",null,null,null,null,null,null,null,null,null,null,null,null,null,null,null,null,null,null,null,null,null,null,null,null,null,null,null,null,null,null,null,null,null,null,null,null,null,null,null,null,null,null,null,null,null,null,null,null,null,null,null,null,null,null,null,null,null,null,null,null,null,null,null,null,null,null,null,null,null,null,null,null,null,null,null,null,null,null,null,null,null,null,null,null,null,null,null,null,null,null,null,null,null,null,null,null,null,null,null,null,null,null,null,null,null,null,null,null,null,null,null,null,null,null,null,null,null,null,null,null,null,null,null,null,null,null,null,null,null,null,null,null,null,null,null,null,null,null,{"$f":"GE30","v":1},{"$f":"GF30","v":1},null,null,null,null,null,null,null,null,{"$f":"GO30","v":6},{"$f":"GP30","v":8},null,null,null,null,null,null,null,null,{"$f":"GY30","v":3},{"$f":"GZ30","v":3},null,null,null,null,null,null,null,null,{"$f":"HI30","v":1},{"$f":"HJ30","v":1},null,null,null,null,null,null,null,null,{"$f":"HS30","v":2},{"$f":"HT30","v":3},null,null,null,null,null,null,null,null,{"$f":"IC30","v":0},{"$f":"ID30","v":0}]
["Número de indivíduos / Número de espécies - AVISTAMENTOS",{"$f":"CONCATENATE(SUMIF(H31:H1048576,\"AV\",P31:P1048576),\"/\",AL24)","v":"0/0"},{"$f":"CONCATENATE(SUMIFS(P31:P1048576,E31:E1048576,C2,F31:F1048576,C1,H31:H1048576,\"AV\")+SUMIFS(P31:P1048576,E31:E1048576,D2,F31:F1048576,D1,H31:H1048576,\"AV\")+SUMIFS(P31:P1048576,E31:E1048576,E2,F31:F1048576,E1,H31:H1048576,\"AV\")+SUMIFS(P31:P1048576,E31:E1048576,F2,F31:F1048576,F1,H31:H1048576,\"AV\"),\"/\",BB21)","v":"0/0"},null,null,null,null,null,null,null,null,null,null,null,null,null,null,null,null,null,null,null,null,null,null,null,null,null,null,null,null,null,null,null,null,null,"RE e AT",{"$f":"COUNTA(BK31:BK1048576)","v":20},"SPQ",{"$f":"COUNTIF($AN$31:$AN$1048576,AM25)","v":1},null,null,null,null,null,null,null,"SPQ",null,null,null,"FILTRAR PARA O MÊS DE INTERESSE",null,null,"FILTRAR PARA O MÊS DE INTERESSE",null,null,"FILTRAR PARA O MÊS DE INTERESSE",null,null,null,null,"FILTRAR PARA O MÊS DE INTERESSE",null,null,null,"FILTRAR PARA O MÊS DE INTERESSE",null,null,"FILTRAR PARA O MÊS DE INTERESSE"]
["Número de indivíduos resgatados / Número de espécies identificados  ",{"$f":"CONCATENATE(SUMIF(H31:H1048576,\"AT\",P31:P1048576),\"/\",ET30)","v":"16/11"},{"$f":"CONCATENATE(SUMIFS(P31:P1048576,E31:E1048576,C2,F31:F1048576,C1,H31:H1048576,\"AT\")+SUMIFS(P31:P1048576,E31:E1048576,D2,F31:F1048576,D1,H31:H1048576,\"AT\")+SUMIFS(P31:P1048576,E31:E1048576,E2,F31:F1048576,E1,H31:H1048576,\"AT\")+SUMIFS(P31:P1048576,E31:E1048576,F2,F31:F1048576,F1,H31:H1048576,\"AT\"),\"/\",AU21)","v":"3/2"},null,null,null,null,null,null,null,null,null,null,null,null,null,null,null,null,null,null,null,"Fórmula",null,null,null,null,null,null,null,null,null,null,null,null,null,null,null,null,null,null,null,null,null,null,null,null,null,null,null,null,"ANO","(Vários itens)",null,"ANO","(Vários itens)",null,"ANO","(Vários itens)",null,null,null,"ANO","(Tudo)",null,null,"ANO","(Tudo)",null,"ANO","(Tudo)",null,null,null,null,null,null,null,null,null,null,null,null,null,null,null,null,null,null,null,null,null,null,null,null,null,null,null,null,null,null,null,null,null,null,null,null,null,null,null,null,null,null,null,null,null,null,null,null,null,null,null,null,null,null,null,"RIQUEZA ACUMULADA - RE",null,null,null,"RIQUEZA ACUMULADA - RE + AT",null,null,"RIQUEZA ACUMULADA - AT",null,null,"RIQUEZA ACUMULADA - AF"]
["Número de registros por km percorrido ",{"$f":"SUMIF(H31:H1048576,\"AT\",P31:P1048576)/SUM(C5:BB5)","v":0.16},{"$f":"(IF(C5=0,0,SUMIFS(P31:P1048576,F31:F1048576,C1,H31:H1048576,\"AT\")/C5)+(IF(D5=0,0,SUMIFS(P31:P1048576,F31:F1048576,D1,H31:H1048576,\"AT\")/D5)+(IF(E5=0,0,SUMIFS(P31:P1048576,F31:F1048576,E1,H31:H1048576,\"AT\")/E5)+(IF(F5=0,0,SUMIFS(P31:P1048576,F31:F1048576,F1,H31:H1048576,\"AT\")/F5)))))","v":0.03},null,null,null,null,null,null,null,null,null,null,null,null,null,null,null,null,null,null,null,{"$f":"IF(H27=\"AV\",\"Não\",IF(H27=\"AT\",IF(V27=\"Ferido\",\"Sim\",IF(V27=\"Morto\",\"Não\"))))","v":false},null,null,null,{"$f":"COUNTIF(#REF!,\"SIM\")","v":{"$error":"#REF!"}},null,null,null,null,null,null,null,null,null,null,null,null,null,null,null,null,null,null,"FILTRAR PARA O ANO DE INTERESSE",null,null,null,null,null,"Mês","(Vários itens)",null,"Mês","(Vários itens)",null,"Mês","(Vários itens)",null,null,null,"Mês","(Vários itens)",null,null,"Mês","(Vários itens)",null,"Mês","(Vários itens)",null,null,null,null,null,null,null,null,null,null,null,null,null,null,null,null,null,null,null,null,null,null,null,null,null,null,null,null,null,null,null,null,null,null,null,null,null,null,null,null,null,null,null,null,null,null,null,null,null,null,null,null,null,null,null,{"$f":"COUNTA(DW31:DW1048576)","v":13},null,null,null,{"$f":"COUNTA(EA31:EA1048576)","v":20},null,null,{"$f":"COUNTA(ED31:ED1048576)","v":11},null,null,{"$f":"COUNTA(EG31:EG1048576)","v":3},null,null,null,"TUDO",null,null,null,null,null,null,null,null,"1 -AT",null,null,null,null,null,null,null,null,"2 - RE",null,null,null,null,null,null,null,null,"3 - RE e AT",null,null,null,null,null,null,null,null,"4 - AF e AV",null,null,null,null,null,null,null,null,null,"ANO",2020,null,null,null,null,null,null,null,null,"ANO",2020,null,null,null,null,null,null,null,null,"ANO",2020,null,null,null,null,null,null,null,null,"ANO",2020,null,null,null,null,null,null,null,null,"ANO",2021,null,null,null,null,null,null,null,null,"ANO",2021]
[null,null,null,null,null,null,null,null,null,null,null,null,null,null,null,null,null,null,null,null,null,null,null,null,null,null,null,null,null,null,null,null,null,null,null,null,null,null,null,null,null,null,null,null,null,"ANO","(Vários itens)",null,null,null,null,"Tipo ","(Vários itens)",null,"Tipo ","AF",null,"Tipo ","(Vários itens)",null,null,null,"Tipo ","(Vários itens)",null,null,"Tipo ","(Vários itens)",null,"Tipo ","(Vários itens)",null,null,null,null,null,null,"Tipo ","AF",null,null,"Tipo ","AT",null,null,"Tipo ","RE",null,"Tipo ","(Vários itens)",null,null,"Tipo ","AF",null,null,"Tipo ","AT",null,null,"Tipo ","(Vários itens)",null,null,"Tipo ","AT",null,null,null,"Tipo ","(Vários itens)",null,null,null,null,null,null,null,null,null,null,null,null,null,null,null,"Tipo ","RE",null,null,"Tipo ","(Vários itens)",null,"Tipo ","AT",null,"Tipo ","AF",null,null,null,null,null,null,null,null,null,null,null,"S - Riqueza","N - Número Total de Indivíduos",null,null,null,null,null,null,null,"S - Riqueza","N - Número Total de Indivíduos",null,null,null,null,null,null,null,"S - Riqueza","N - Número Total de Indivíduos",null,null,null,null,null,null,null,"S - Riqueza","N - Número Total de Indivíduos",null,null,null,null,null,null,null,null,"Mês",8,null,null,null,null,null,null,null,null,"Mês",9,null,null,null,null,null,null,null,null,"Mês",11,null,null,null,null,null,null,null,null,"Mês",12,null,null,null,null,null,null,null,null,"Mês",1,null,null,null,null,null,null,null,null,"Mês","(vazio)"]
[null,null,null,null,"DATA",null,"REGISTRO",null,"DETALHAMENTO DA ORIGEM/REGISTRO DE OCORRÊNCIA",null,null,null,null,null,null,null,"IDENTIFICAÇÃO TAXONÔMICA",null,null,null,null,"DETALHAMENTO DO ATENDIMENTO/DESTINO",null,null,null,null,null,null,null,null,null,"INFORMAÇÕES ",null,null,null,null,null,"ACUMULADO - Riqueza de cada Subprograma",null,null,null,null,null,null,null,"FILTRAR PARA O MÊS DE INTERESSE - automático",null,null,null,null,null,"Riqueza de espécies RE e AT",null,null,"Riqueza de espécies AF",null,null,"Riqueza de espécies AV",null,null,null,null,"ACUMULADO - Riqueza de espécies RE e AT",null,null,null,"ACUMULADO - Riqueza de espécies RE",null,null,"ACUMULADO - Riqueza de espécies AT",null,null,null,null,null,null,null,null,null,null,null,null,null,null,null,null,null,null,null,null,null,null,null,null,null,null,null,null,null,null,null,null,null,null,null,null,null,null,null,null,null,null,null,null,null,null,null,null,null,"GRAF_2",null,null,null,null,null,null,null,null,null,null,null,null,null,null,null,null,null,null,null,null,"S - Riqueza","N - Número Total de Indivíduos",null,null,null,"H'","H máx","J",null,"Tipo ","AT",null,null,null,"H'","H máx","J",null,"Tipo ","RE",null,null,null,"H'","H máx","J",null,"Tipo ","(Vários itens)",null,null,null,"H'","H máx","J",null,"Tipo ","AF",null,null,null,"H'","H máx","J",null,null,"Tipo ","AT",null,null,null,"H'","H máx","J",null,null,"Tipo ","AT",null,null,null,"H'","H máx","J",null,null,"Tipo ","AT",null,null,null,"H'","H máx","J",null,null,"Tipo ","AT",null,null,null,"H'","H máx","J",null,null,"Tipo ","AT",null,null,null,"H'","H máx","J",null,null,"Tipo ","(Tudo)",null,null,null,"H'","H máx","J"]
[null,null,null,null,"ANO","Mês","ID","Tipo ","Data","Hora do Registro","Identificação do Local","Coordenada\nResgate\nX","Coordenada\nResgate\nY","Fitofisionomia/ Ambiente","Condição Meteorológica","NÚMERO DE INDIVÍDUOS","GRUPO","ORDEM","FAMÍLIA","Nome científico","Nome popular","Cond. do Animal","Base de Fauna","Estágio de desenvolvimento (no resgate)","Sexo","Acidentada em decorrência da obra","Quarentena","Destino","Data de destinação","Coordenada \nSoltura\nX","Coordenada\nSoltura\nY","Espécies categorizadas pelo Decreto 63.853/2018","Informações adicionais","ANO destinação","Mês destinação","17:00:00",null,"Nome científico","Tipo ","Destino","Cont.Núm - Nome científico*",null,null,null,null,"Mês","Tipo ","Nome científico","Contagem de Nome científico",null,null,"Nome científico","Contagem de Nome científico",null,"Nome científico","Contagem de Nome científico",null,"Nome científico","Contagem de Nome científico",null,null,null,"Nome científico","Contagem de Nome científico",null,null,"Nome científico","Contagem de Nome científico",null,"Nome científico","Contagem de Nome científico",null,null,"Tipo ","GRUPO","Contagem de Nome científico",null,"GRUPO","Soma de NÚMERO DE INDIVÍDUOS",null,null,"GRUPO","Soma de NÚMERO DE INDIVÍDUOS",null,null,"GRUPO","Soma de NÚMERO DE INDIVÍDUOS",null,"GRUPO","Soma de NÚMERO DE INDIVÍDUOS",null,null,"GRUPO","Espécies categorizadas pelo Decreto 63.853/2018","Soma de NÚMERO DE INDIVÍDUOS",null,"GRUPO","Espécies categorizadas pelo Decreto 63.853/2018","Soma de NÚMERO DE INDIVÍDUOS",null,"GRUPO","Espécies categorizadas pelo Decreto 63.853/2018","Soma de NÚMERO DE INDIVÍDUOS",null,"GRUPO","Espécies categorizadas pelo Decreto 63.853/2018","Contagem de Espécies categorizadas pelo Decreto 63.853/2018",null,null,"GRUPO","Espécies categorizadas pelo Decreto 63.853/2018","Contagem de Espécies categorizadas pelo Decreto 63.853/2018",null,null,null,null,null,null,null,"Tipo ","Nome científico","Contagem de Nome científico",null,null,null,null,"Rótulos de Linha",null,null,null,"Rótulos de Linha",null,null,"Rótulos de Linha",null,null,"Rótulos de Linha",null,null,null,{"$f":"COUNTA(EK32:EK108)","v":22},{"$f":"SUM(EL32:EL108)","v":46},null,null,{"$f":"SUM(EO32:EO108)","v":0.99999999999999978},{"$f":"SUM(EP32:EP108)","v":{"$error":"#NUM!"}},{"$f":"LN(EK30)","v":3.0910424533583161},{"$f":"EP30/EQ30","v":{"$error":"#NUM!"}},null,{"$f":"COUNTA(ET32:ET108)","v":11},{"$f":"SUM(EU32:EU108)","v":16},null,null,{"$f":"SUM(EX32:EX108)","v":0.34782608695652173},{"$f":"SUM(EY32:EY108)","v":1.1696422259665546},{"$f":"LN(ET30)","v":2.3978952727983707},{"$f":"EY30/EZ30","v":0.48777869460561096},null,{"$f":"COUNTA(FC32:FC108)","v":13},{"$f":"SUM(FD32:FD108)","v":27},null,null,{"$f":"SUM(FG32:FG108)","v":0.58695652173913027},{"$f":"SUM(FH32:FH108)","v":1.590117790546018},{"$f":"LN(FC30)","v":2.5649493574615367},{"$f":"FH30/FI30","v":0.61994120309639011},null,{"$f":"COUNTA(FL32:FL108)","v":20},{"$f":"SUM(FM32:FM108)","v":43},null,null,{"$f":"SUM(FP32:FP108)","v":0.93478260869565211},{"$f":"SUM(FQ32:FQ108)","v":2.5595466160601417},{"$f":"LN(FL30)","v":2.9957322735539909},{"$f":"FQ30/FR30","v":0.85439765050286698},null,{"$f":"COUNTA(FU32:FU108)","v":3},{"$f":"SUM(FV32:FV108)","v":3},null,null,{"$f":"SUM(FY32:FY108)","v":6.5217391304347824E-2},{"$f":"SUM(FZ32:FZ108)","v":{"$error":"#NUM!"}},{"$f":"LN(FU30)","v":1.0986122886681098},{"$f":"FZ30/GA30","v":{"$error":"#NUM!"}},null,null,{"$f":"COUNTA(GE32:GE108)","v":1},{"$f":"SUM(GF32:GF108)","v":1},null,null,{"$f":"SUM(GI32:GI108)","v":2.1739130434782608E-2},{"$f":"SUM(GJ32:GJ108)","v":{"$error":"#NUM!"}},{"$f":"LN(GE30)","v":0},{"$f":"GJ30/GK30","v":{"$error":"#NUM!"}},null,null,{"$f":"COUNTA(GO32:GO108)","v":6},{"$f":"SUM(GP32:GP108)","v":8},null,null,{"$f":"SUM(GS32:GS108)","v":0.17391304347826086},{"$f":"SUM(GT32:GT108)","v":{"$error":"#NUM!"}},{"$f":"LN(GO30)","v":1.791759469228055},{"$f":"GT30/GU30","v":{"$error":"#NUM!"}},null,null,{"$f":"COUNTA(GY32:GY108)","v":3},{"$f":"SUM(GZ32:GZ108)","v":3},null,null,{"$f":"SUM(HC32:HC108)","v":6.5217391304347824E-2},{"$f":"SUM(HD32:HD108)","v":{"$error":"#NUM!"}},{"$f":"LN(GY30)","v":1.0986122886681098},{"$f":"HD30/HE30","v":{"$error":"#NUM!"}},null,null,{"$f":"COUNTA(HI32:HI108)","v":1},{"$f":"SUM(HJ32:HJ108)","v":1},null,null,{"$f":"SUM(HM32:HM108)","v":2.1739130434782608E-2},{"$f":"SUM(HN32:HN108)","v":{"$error":"#NUM!"}},{"$f":"LN(HI30)","v":0},{"$f":"HN30/HO30","v":{"$error":"#NUM!"}},null,null,{"$f":"COUNTA(HS32:HS108)","v":2},{"$f":"SUM(HT32:HT108)","v":3},null,null,{"$f":"SUM(HW32:HW108)","v":6.5217391304347824E-2},{"$f":"SUM(HX32:HX108)","v":{"$error":"#NUM!"}},{"$f":"LN(HS30)","v":0.69314718055994529},{"$f":"HX30/HY30","v":{"$error":"#NUM!"}},null,null,{"$f":"COUNTA(IC32:IC108)","v":0},{"$f":"SUM(ID32:ID108)","v":0},null,null,{"$f":"SUM(IG32:IG108)","v":0},{"$f":"SUM(IH32:IH108)","v":{"$error":"#NUM!"}},{"$f":"LN(IC30)","v":{"$error":"#NUM!"}},{"$f":"IH30/II30","v":{"$error":"#NUM!"}}]
[null,null,null,null,{"$f":"IF(I31=\"\",\"-\",YEAR(I31))","v":2020},{"$f":"IF(I31=\"\",\"-\",MONTH(I31))","v":8},1,"RE","2020-08-13","13:10:00","Canteiro de Apoio",308210,7490892,"Campo Antrópico","Ensolarado",1,"HERPETOFAUNA","Squamata","Dipsadidae","Oxyrhopus guibei","Falsa-coral","Saudável","Sim","Adulto","Fêmea","Não","Não","Soltura","2020-08-13",310715,7492902,"Não","-",{"$f":"IF(AC31=\"-\",\"-\",YEAR(AC31))","v":2020},{"$f":"IF(AC31=\"-\",\"-\",MONTH(AC31))","v":8},null,null,"Calitrix pericilatta","AF","-",1,null,null,null,null,8,"AF","Calitrix pericilatta",1,null,null,"Crotalus durissus",5,null,null,null,null,null,null,null,null,null,"Amphisbaena alba",2,null,null,"Apodemus sylvaticus",1,null,"Crotalus durissus",5,null,null,"AF","HERPETOFAUNA",1,null,"HERPETOFAUNA",1,null,null,"HERPETOFAUNA",12,null,null,"AVIFAUNA",3,null,null,null,null,null,"HERPETOFAUNA","-",1,null,"HERPETOFAUNA","(vazio)",12,null,"Total Geral",null,null,null,"HERPETOFAUNA","(vazio)",null,null,null,"AVIFAUNA","Não",3,null,null,null,null,null,null,null,"AT","Dasypus novemcinctus",1,null,null,null,null,"Apodemus sylvaticus",{"$f":"DW31=DW32","v":false},null,null,"Amphisbaena alba",{"$f":"EA31=EA32","v":false},null,"Amphisbaena alba",{"$f":"ED31=ED32","v":false},null,"Calitrix pericilatta",{"$f":"EG31=EG32","v":false},null,null,"Nome científico","Contagem de Nome científico",{"$f":"EK31","v":"Nome científico"},"n - Número de Indivíduos por espécie","pi","(-1)*pi*ln(pi)","ln(S)","H'/H máx",null,"Nome científico","Contagem de Nome científico",{"$f":"ET31","v":"Nome científico"},"n - Número de Indivíduos por espécie","pi","(-1)*pi*ln(pi)","ln(S)","H'/H máx",null,"Nome científico","Contagem de Nome científico",{"$f":"FC31","v":"Nome científico"},"n - Número de Indivíduos por espécie","pi","(-1)*pi*ln(pi)","ln(S)","H'/H máx",null,"Nome científico","Contagem de Nome científico",{"$f":"FL31","v":"Nome científico"},"n - Número de Indivíduos por espécie","pi","(-1)*pi*ln(pi)","ln(S)","H'/H máx",null,"Nome científico","Contagem de Nome científico",{"$f":"FU31","v":"Nome científico"},"n - Número de Indivíduos por espécie","pi","(-1)*pi*ln(pi)","ln(S)","H'/H máx",null,null,"Nome científico","Contagem de Nome científico",null,"n - Número de Indivíduos por espécie","pi","(-1)*pi*ln(pi)","ln(S)","H'/H máx",null,null,"Nome científico","Contagem de Nome científico",null,"n - Número de Indivíduos por espécie","pi","(-1)*pi*ln(pi)","ln(S)","H'/H máx",null,null,"Nome científico","Contagem de Nome científico",null,"n - Número de Indivíduos por espécie","pi","(-1)*pi*ln(pi)","ln(S)","H'/H máx",null,null,"Nome científico","Contagem de Nome científico",null,"n - Número de Indivíduos por espécie","pi","(-1)*pi*ln(pi)","ln(S)","H'/H máx",null,null,"Nome científico","Contagem de Nome científico",null,"n - Número de Indivíduos por espécie","pi","(-1)*pi*ln(pi)","ln(S)","H'/H máx",null,null,"Nome científico","Contagem de Nome científico",null,"n - Número de Indivíduos por espécie","pi","(-1)*pi*ln(pi)","ln(S)","H'/H máx"]
[null,null,null,null,2020,8,2,"RE","2020-08-14","15:05:00","Canteiro de Apoio",308529,7491337,"Campo Antrópico","Ensolarado",1,"HERPETOFAUNA","Squamata","Colubridae","Philodryas olfersii","Cobra-verde","Saudável","Sim","Adulto","Macho","Não","Não","Soltura","2020-08-14",310719,7492752,"Não","-",{"$f":"IF(AC32=\"-\",\"-\",YEAR(AC32))","v":2020},{"$f":"IF(AC32=\"-\",\"-\",MONTH(AC32))","v":8},null,null,"Dasypus novemcinctus","AF","-",1,null,null,null,null,8,"AF","Dasypus novemcinctus",1,null,null,"Bothrops jararaca",4,null,null,null,null,null,null,null,null,null,"Apodemus sylvaticus",1,null,null,"Copeoglossum nigropunctatum",1,null,"Dasypus novemcinctus",1,null,null,"AF","MASTOFAUNA",2,null,"MASTOFAUNA",2,null,null,"MASTOFAUNA",3,null,null,"HERPETOFAUNA",21,null,null,null,null,null,"MASTOFAUNA","-",2,null,"MASTOFAUNA","(vazio)",3,null,null,null,null,null,"MASTOFAUNA","(vazio)",null,null,null,"HERPETOFAUNA","(vazio)",null,null,null,null,null,null,null,null,"AT","Didelphis albiventris",1,null,null,null,null,"Bothrops jararaca",{"$f":"DW32=DW33","v":false},null,null,"Apodemus sylvaticus",{"$f":"EA32=EA33","v":false},null,"Callithrix jacchus",{"$f":"ED32=ED33","v":false},null,"Dasypus novemcinctus",{"$f":"EG32=EG33","v":false},null,null,"Apodemus sylvaticus",1,"Apodemus sylvaticus",{"$f":"EL32","v":1},{"$f":"EN32/$EL$30","v":2.1739130434782608E-2},{"$f":"(-1)*EO32*LN(EO32)","v":8.3231334706284674E-2},null,null,null,"Dasypus novemcinctus",1,"Dasypus novemcinctus",{"$f":"EU32","v":1},{"$f":"EW32/$EL$30","v":2.1739130434782608E-2},{"$f":"(-1)*EX32*LN(EX32)","v":8.3231334706284674E-2},null,null,null,"Apodemus sylvaticus",1,"Apodemus sylvaticus",{"$f":"FD32","v":1},{"$f":"FF32/$EL$30","v":2.1739130434782608E-2},{"$f":"(-1)*FG32*LN(FG32)","v":8.3231334706284674E-2},null,null,null,"Apodemus sylvaticus",1,"Apodemus sylvaticus",{"$f":"FM32","v":1},{"$f":"FO32/$EL$30","v":2.1739130434782608E-2},{"$f":"(-1)*FP32*LN(FP32)","v":8.3231334706284674E-2},null,null,null,"Calitrix pericilatta",1,"Calitrix pericilatta",{"$f":"FV32","v":1},{"$f":"FX32/$EL$30","v":2.1739130434782608E-2},{"$f":"(-1)*FY32*LN(FY32)","v":8.3231334706284674E-2},null,null,null,null,"Dipsas mikanii",1,null,{"$f":"GF32","v":1},{"$f":"GH32/$EL$30","v":2.1739130434782608E-2},{"$f":"(-1)*GI32*LN(GI32)","v":8.3231334706284674E-2},null,null,null,null,"Didelphis albiventris",1,null,{"$f":"GP32","v":1},{"$f":"GR32/$EL$30","v":2.1739130434782608E-2},{"$f":"(-1)*GS32*LN(GS32)","v":8.3231334706284674E-2},null,null,null,null,"Dasypus novemcinctus",1,null,{"$f":"GZ32","v":1},{"$f":"HB32/$EL$30","v":2.1739130434782608E-2},{"$f":"(-1)*HC32*LN(HC32)","v":8.3231334706284674E-2},null,null,null,null,"Callithrix jacchus",1,null,{"$f":"HJ32","v":1},{"$f":"HL32/$EL$30","v":2.1739130434782608E-2},{"$f":"(-1)*HM32*LN(HM32)","v":8.3231334706284674E-2},null,null,null,null,"Philodryas olfersii",1,null,{"$f":"HT32","v":1},{"$f":"HV32/$EL$30","v":2.1739130434782608E-2},{"$f":"(-1)*HW32*LN(HW32)","v":8.3231334706284674E-2},null,null,null,null,null,null,null,{"$f":"ID32","v":0},{"$f":"IF32/$EL$30","v":0},{"$f":"(-1)*IG32*LN(IG32)","v":{"$error":"#NUM!"}}]
[null,null,null,null,2020,8,3,"RE","2020-08-24","16:49:00","Canteiro de Apoio",307556,7490619,"Campo Antrópico","Ensolarado",1,"HERPETOFAUNA","Squamata","Mabuydae","Copeoglossum nigropunctatum","Calango-cobra","Ferido","Sim","Adulto","ND","Sim","Sim","SPQ","2020-08-25",310917,7492652,"Não","-",2020,8,null,null,"Dasypus novemcinctus","AT","UNIFAJ",1,null,null,null,null,8,"AF","Salvator merianae",1,null,null,"Dipsas mikanii",3,null,null,null,null,null,null,null,null,null,"Bothrops jararaca",4,null,null,"Crotalus durissus",8,null,"Dipsas mikanii",3,null,null,"AT","HERPETOFAUNA",12,null,null,null,null,null,"MASTOFAUNA ",1,null,null,"MASTOFAUNA",3,null,null,null,null,null,"Total Geral",null,3,null,"MASTOFAUNA ","(vazio)",1,null,null,null,null,null,"MASTOFAUNA ","(vazio)",null,null,null,null,"-",1,null,null,null,null,null,null,null,"AT","Didelphis aurita",1,null,null,null,null,"Cavia aparea",false,null,null,"Bothrops jararaca",false,null,"Dasypus novemcinctus",false,null,"Salvator merianae",{"$f":"EG33=EG34","v":false},null,null,"Calitrix pericilatta",1,"Calitrix pericilatta",1,2.1739130434782608E-2,{"$f":"(-1)*EO33*LN(EO33)","v":8.3231334706284674E-2},null,null,null,"Didelphis albiventris",1,"Didelphis albiventris",1,2.1739130434782608E-2,{"$f":"(-1)*EX33*LN(EX33)","v":8.3231334706284674E-2},null,null,null,"Copeoglossum nigropunctatum",1,"Copeoglossum nigropunctatum",1,2.1739130434782608E-2,{"$f":"(-1)*FG33*LN(FG33)","v":8.3231334706284674E-2},null,null,null,"Copeoglossum nigropunctatum",1,"Copeoglossum nigropunctatum",1,2.1739130434782608E-2,{"$f":"(-1)*FP33*LN(FP33)","v":8.3231334706284674E-2},null,null,null,"Dasypus novemcinctus",1,"Dasypus novemcinctus",1,2.1739130434782608E-2,{"$f":"(-1)*FY33*LN(FY33)","v":8.3231334706284674E-2},null,null,null,null,null,null,null,0,0,{"$f":"(-1)*GI33*LN(GI33)","v":{"$error":"#NUM!"}},null,null,null,null,"Didelphis aurita",1,null,1,2.1739130434782608E-2,{"$f":"(-1)*GS33*LN(GS33)","v":8.3231334706284674E-2},null,null,null,null,"Erythrolamprus aesculapii",1,null,1,2.1739130434782608E-2,{"$f":"(-1)*HC33*LN(HC33)","v":8.3231334706284674E-2},null,null,null,null,null,null,null,0,0,{"$f":"(-1)*HM33*LN(HM33)","v":{"$error":"#NUM!"}},null,null,null,null,"Amphisbaena alba",2,null,2,4.3478260869565216E-2,{"$f":"(-1)*HW33*LN(HW33)","v":0.13632583547518043},null,null,null,null,null,null,null,0,0,{"$f":"(-1)*IG33*LN(IG33)","v":{"$error":"#NUM!"}}]
[null,null,null,null,2020,8,"-","AF","2020-08-20","-","Área 17",307474,7490683,"Fragmento Florestal","Ensolarado",1,"MASTOFAUNA","Primata","Cebidae","Calitrix pericilatta","Sagui Tufo Preto","Saudável","Não","Adulto","ND","Não","Não","-","-","-","-","-","-","-","-",null,null,"(vazio)","(vazio)","(vazio)",null,null,null,null,null,8,"RE","Copeoglossum nigropunctatum",1,null,null,"Amphisbaena alba",2,null,null,null,null,null,null,null,null,null,"Callithrix jacchus",1,null,null,"Dasypus novemcinctus",1,null,"Erythrolamprus aesculapii",1,null,null,"AT","MASTOFAUNA",3,null,null,null,null,null,null,null,null,null,null,null,null,null,null,null,null,null,null,null,null,"Total Geral",null,16,null,null,null,null,null,"Total Geral",null,null,null,null,null,"Não",21,null,null,null,null,null,null,null,"AT","Dipsas mikanii",2,null,null,null,null,"Copeoglossum nigropunctatum",false,null,null,"Callithrix jacchus",false,null,"Didelphis albiventris",false,null,null,null,null,null,"Copeoglossum nigropunctatum",1,"Copeoglossum nigropunctatum",1,2.1739130434782608E-2,8.3231334706284674E-2,null,null,null,"Didelphis aurita",1,"Didelphis aurita",1,2.1739130434782608E-2,8.3231334706284674E-2,null,null,null,"Crotalus durissus",8,"Crotalus durissus",8,0.17391304347826086,0.30420867040161026,null,null,null,"Crotalus durissus",8,"Crotalus durissus",8,0.17391304347826086,0.30420867040161026,null,null,null,"Salvator merianae",1,"Salvator merianae",1,2.1739130434782608E-2,8.3231334706284674E-2,null,null,null,null,null,null,null,0,0,{"$error":"#NUM!"},null,null,null,null,"Dipsas mikanii",1,null,1,2.1739130434782608E-2,8.3231334706284674E-2,null,null,null,null,"Salvator meirianae",1,null,1,2.1739130434782608E-2,8.3231334706284674E-2,null,null,null,null,null,null,null,0,0,{"$error":"#NUM!"},null,null,null,null,null,null,null,0,0,{"$error":"#NUM!"},null,null,null,null,null,null,null,0,0,{"$error":"#NUM!"}]
[null,null,null,null,2020,8,"-","AF","2020-08-24","-","Área 07",307564,7490497,"Fragmento Florestal","Ensolarado",1,"HERPETOFAUNA","Squamata","Teiidae","Salvator merianae","Teiú","Saudável","Não","Adulto","ND","Não","Não","-","-","-","-","-","-","-","-",null,null,"Didelphis albiventris","RE","UNIFAJ",1,null,null,null,null,8,"RE","Oxyrhopus guibei",1,null,null,"Callithrix jacchus",1,null,null,null,null,null,null,null,null,null,"Cavia aparea",1,null,null,"Didelphis albiventris",2,null,"Philodryas olfersii",1,null,null,"AT","MASTOFAUNA ",1,null,null,null,null,null,null,null,null,null,null,null,null,null,null,null,null,null,null,null,null,null,null,null,null,null,null,null,null,null,null,null,null,null,"MASTOFAUNA","(vazio)",null,null,null,null,null,null,null,null,"AT","Erythrolamprus aesculapii",2,null,null,null,null,"Crotalus durissus",false,null,null,"Cavia aparea",false,null,"Didelphis aurita",false,null,null,null,null,null,"Crotalus durissus",8,"Crotalus durissus",8,0.17391304347826086,0.30420867040161026,null,null,null,"Dipsas mikanii",2,"Dipsas mikanii",2,4.3478260869565216E-2,0.13632583547518043,null,null,null,"Didelphis albiventris",1,"Didelphis albiventris",1,2.1739130434782608E-2,8.3231334706284674E-2,null,null,null,"Dasypus novemcinctus",1,"Dasypus novemcinctus",1,2.1739130434782608E-2,8.3231334706284674E-2,null,null,null,null,null,0,0,0,{"$error":"#NUM!"},null,null,null,null,null,null,null,0,0,{"$error":"#NUM!"},null,null,null,null,"Erythrolamprus aesculapii",1,null,1,2.1739130434782608E-2,8.3231334706284674E-2,null,null,null,null,null,null,null,0,0,{"$error":"#NUM!"},null,null,null,null,null,null,null,0,0,{"$error":"#NUM!"},null,null,null,null,null,null,null,0,0,{"$error":"#NUM!"},null,null,null,null,null,null,null,0,0,{"$error":"#NUM!"}]
[null,null,null,null,2020,8,"-","AF","2020-08-31","-","Área 35",308849,7490811,"Fragmento Florestal","Ensolarado",1,"MASTOFAUNA","Cingulata","Dasypodidae","Dasypus novemcinctus","Tatu Galinha","Saudável","Não","Adulto","ND","Não","Não","-","-","-","-","-","-","-","-",null,null,"Didelphis albiventris","AT","UNIFAJ",1,null,null,null,null,8,"RE","Philodryas olfersii",1,null,null,"Salvator meirianae",1,null,null,null,null,null,null,null,null,null,"Copeoglossum nigropunctatum",1,null,null,"Didelphis aurita",1,null,"Pygochelidon cyanoleuca",1,null,null,"RE","AVIFAUNA",3,null,null,null,null,null,null,null,null,null,null,null,null,null,null,null,null,null,null,null,null,null,null,null,null,null,null,null,null,null,null,null,null,null,null,"-",2,null,null,null,null,null,null,null,"AT","Micrurus sp.",1,null,null,null,null,"Didelphis albiventris",false,null,null,"Copeoglossum nigropunctatum",false,null,"Dipsas mikanii",false,null,null,null,null,null,"Dasypus novemcinctus",2,"Dasypus novemcinctus",2,4.3478260869565216E-2,0.13632583547518043,null,null,null,"Erythrolamprus aesculapii",2,"Erythrolamprus aesculapii",2,4.3478260869565216E-2,0.13632583547518043,null,null,null,"Dipsas mikanii",5,"Dipsas mikanii",5,0.10869565217391304,0.24121777000597766,null,null,null,"Didelphis albiventris",2,"Didelphis albiventris",2,4.3478260869565216E-2,0.13632583547518043,null,null,null,null,null,0,0,0,{"$error":"#NUM!"},null,null,null,null,null,null,null,0,0,{"$error":"#NUM!"},null,null,null,null,"Micrurus sp.",1,null,1,2.1739130434782608E-2,8.3231334706284674E-2,null,null,null,null,null,null,null,0,0,{"$error":"#NUM!"},null,null,null,null,null,null,null,0,0,{"$error":"#NUM!"},null,null,null,null,null,null,null,0,0,{"$error":"#NUM!"},null,null,null,null,null,null,null,0,0,{"$error":"#NUM!"}]
[null,null,null,null,2020,9,7,"RE","2020-09-14","09:48:00","Área 03",309841,7492242,"Fragmento Florestal","Ensolarado",1,"HERPETOFAUNA","Squamata","Dipsadidae","Dipsas mikanii","Jararaca-dormideira","Saudável","Sim","Jovem","Fêmea","Não","Não","Soltura","2020-09-14",310906,7492656,"Não","-",{"$f":"IF(AC37=\"-\",\"-\",YEAR(AC37))","v":2020},9,null,null,"Didelphis aurita","AT","UNIFAJ",1,null,null,null,null,8,"AT","Dipsas mikanii",1,null,null,"Erythrolamprus aesculapii",1,null,null,null,null,null,null,null,null,null,"Crotalus durissus",8,null,null,"Dipsas mikanii",7,null,"Ramphastos toco",1,null,null,"RE","HERPETOFAUNA",21,null,null,null,null,null,null,null,null,null,null,null,null,null,null,null,null,null,null,null,null,null,null,null,null,null,null,null,null,null,null,null,null,null,null,"Não",3,null,null,null,null,null,null,null,"AT","Oxyrhopus guibei",3,null,null,null,null,"Dipsas mikanii",false,null,null,"Crotalus durissus",false,null,"Erythrolamprus aesculapii",false,null,null,null,null,null,"Didelphis albiventris",2,"Didelphis albiventris",2,4.3478260869565216E-2,0.13632583547518043,null,null,null,"Micrurus sp.",1,"Micrurus sp.",1,2.1739130434782608E-2,8.3231334706284674E-2,null,null,null,"Oxyrhopus guibei",1,"Oxyrhopus guibei",1,2.1739130434782608E-2,8.3231334706284674E-2,null,null,null,"Didelphis aurita",1,"Didelphis aurita",1,2.1739130434782608E-2,8.3231334706284674E-2,null,null,null,null,null,0,0,0,{"$error":"#NUM!"},null,null,null,null,null,null,null,0,0,{"$error":"#NUM!"},null,null,null,null,"Oxyrhopus guibei",3,null,3,6.5217391304347824E-2,0.1780453765970208,null,null,null,null,null,null,null,0,0,{"$error":"#NUM!"},null,null,null,null,null,null,null,0,0,{"$error":"#NUM!"},null,null,null,null,null,null,null,0,0,{"$error":"#NUM!"},null,null,null,null,null,null,null,0,0,{"$error":"#NUM!"}]
[null,null,null,null,2020,9,8,"RE","2020-09-14","11:05:00","Área 03",310192,7492168,"Fragmento Florestal","Ensolarado",1,"MASTOFAUNA","Rodentia","Muridae","Apodemus sylvaticus","Rato-do-campo","Saudável","Sim","Adulto","Macho","Não","Não","Soltura","2020-09-14",310906,7492654,"Não","-",2020,9,null,null,"Erythrolamprus aesculapii","AT","UNIFAJ",2,null,null,null,null,9,"RE","Apodemus sylvaticus",1,null,null,"Zenaida auriculata",1,null,null,null,null,null,null,null,null,null,"Dasypus novemcinctus",1,null,null,"Erythrolamprus aesculapii",2,null,"Callithrix jacchus",1,null,null,"RE","MASTOFAUNA",3,null,null,null,null,null,null,null,null,null,null,null,null,null,null,null,null,null,null,null,null,null,null,null,null,null,null,null,null,null,null,null,null,null,"MASTOFAUNA ","(vazio)",null,null,null,null,null,null,null,null,"AT","Philodryas olfersii",1,null,null,null,null,"Oxyrhopus guibei",false,null,null,"Dasypus novemcinctus",false,null,"Micrurus sp.",false,null,null,null,null,null,"Didelphis aurita",1,"Didelphis aurita",1,2.1739130434782608E-2,8.3231334706284674E-2,null,null,null,"Oxyrhopus guibei",3,"Oxyrhopus guibei",3,6.5217391304347824E-2,0.1780453765970208,null,null,null,"Philodryas olfersii",1,"Philodryas olfersii",1,2.1739130434782608E-2,8.3231334706284674E-2,null,null,null,"Dipsas mikanii",7,"Dipsas mikanii",7,0.15217391304347827,0.28650258113122767,null,null,null,null,null,0,0,0,{"$error":"#NUM!"},null,null,null,null,null,null,null,0,0,{"$error":"#NUM!"},null,null,null,null,null,null,null,0,0,{"$error":"#NUM!"},null,null,null,null,null,null,null,0,0,{"$error":"#NUM!"},null,null,null,null,null,null,null,0,0,{"$error":"#NUM!"},null,null,null,null,null,null,null,0,0,{"$error":"#NUM!"},null,null,null,null,null,null,null,0,0,{"$error":"#NUM!"}]
[null,null,null,null,2020,9,11,"RE","2020-09-17","08:55:00","Canteiro de Apoio",308607,7491454,"Campo Antrópico","Ensolarado",1,"HERPETOFAUNA","Squamata","Dipsadidae","Dipsas mikanii","Jararaca-dormideira","Saudável","Sim","Adulto","Fêmea","Não","Não","Soltura","2020-09-17",310850,7492616,"Não","-",2020,9,null,null,"Micrurus sp.","AT","Base de Fauna",1,null,null,null,null,9,"RE","Crotalus durissus",3,null,null,"Philodryas olfersii",1,null,null,null,null,null,null,null,null,null,"Didelphis albiventris",2,null,null,"Micrurus sp.",1,null,"Amphisbaena alba",2,null,null,null,null,null,null,null,null,null,null,null,null,null,null,null,null,null,null,null,null,null,null,null,null,null,null,null,null,null,null,null,null,null,null,null,null,null,null,"Total Geral",null,30,null,null,null,null,null,null,null,"AT","Callithrix jacchus",1,null,null,null,null,"Philodryas olfersii",false,null,null,"Didelphis albiventris",false,null,"Oxyrhopus guibei",false,null,null,null,null,null,"Dipsas mikanii",7,"Dipsas mikanii",7,0.15217391304347827,0.28650258113122767,null,null,null,"Philodryas olfersii",1,"Philodryas olfersii",1,2.1739130434782608E-2,8.3231334706284674E-2,null,null,null,"Pygochelidon cyanoleuca",1,"Pygochelidon cyanoleuca",1,2.1739130434782608E-2,8.3231334706284674E-2,null,null,null,"Erythrolamprus aesculapii",2,"Erythrolamprus aesculapii",2,4.3478260869565216E-2,0.13632583547518043,null,null,null,null,null,0,0,0,{"$error":"#NUM!"},null,null,null,null,null,null,null,0,0,{"$error":"#NUM!"},null,null,null,null,null,null,null,0,0,{"$error":"#NUM!"},null,null,null,null,null,null,null,0,0,{"$error":"#NUM!"},null,null,null,null,null,null,null,0,0,{"$error":"#NUM!"},null,null,null,null,null,null,null,0,0,{"$error":"#NUM!"},null,null,null,null,null,null,null,0,0,{"$error":"#NUM!"}]
[null,null,null,null,2020,9,14,"RE","2020-09-21","06:50:00","Canteiro de Apoio",308507,7491370,"Campo Antrópico","Ensolarado",1,"MASTOFAUNA","Didelphimorphia","Didelphidae","Didelphis albiventris","Gambá-de-orelha-branca","Morto","Sim","Jovem","Macho","Não","Não","UNIFAJ","2020-12-01",292726,7486121,"Não","Aguardando encaminhamento para a Universidade",2020,12,null,null,"Oxyrhopus guibei","RE","Soltura",1,null,null,null,null,9,"RE","Didelphis albiventris",1,null,null,"Rhinella sp.",1,null,null,null,null,null,null,null,null,null,"Didelphis aurita",1,null,null,"Oxyrhopus guibei",4,null,"Bothrops jararaca",4,null,null,null,null,null,null,null,null,null,null,null,null,null,null,null,null,null,null,null,null,null,null,null,null,null,null,null,null,null,null,null,null,null,null,null,null,null,null,null,null,null,null,null,null,null,null,null,null,"AT","Amphisbaena alba",2,null,null,null,null,"Pygochelidon cyanoleuca",false,null,null,"Didelphis aurita",false,null,"Philodryas olfersii",false,null,null,null,null,null,"Erythrolamprus aesculapii",2,"Erythrolamprus aesculapii",2,4.3478260869565216E-2,0.13632583547518043,null,null,null,"Callithrix jacchus",1,"Callithrix jacchus",1,2.1739130434782608E-2,8.3231334706284674E-2,null,null,null,"Ramphastos toco",1,"Ramphastos toco",1,2.1739130434782608E-2,8.3231334706284674E-2,null,null,null,"Micrurus sp.",1,"Micrurus sp.",1,2.1739130434782608E-2,8.3231334706284674E-2,null,null,null,null,null,0,0,0,{"$error":"#NUM!"},null,null,null,null,null,null,null,0,0,{"$error":"#NUM!"},null,null,null,null,null,null,null,0,0,{"$error":"#NUM!"},null,null,null,null,null,null,null,0,0,{"$error":"#NUM!"},null,null,null,null,null,null,null,0,0,{"$error":"#NUM!"},null,null,null,null,null,null,null,0,0,{"$error":"#NUM!"},null,null,null,null,null,null,null,0,0,{"$error":"#NUM!"}]
[null,null,null,null,2020,9,16,"RE","2020-09-26","11:40:00","Área 22",307295,7490803,"Fragmento Florestal","Ensolarado",1,"HERPETOFAUNA","Squamata","Viperidae","Crotalus durissus","Cascavel","Saudável","Sim","Adulto","Macho","Não","Não","Soltura","2020-09-26",310846,7492650,"Não","-",2020,9,null,null,"Oxyrhopus guibei","AT","UNIFAJ",3,null,null,null,null,9,"RE","Dipsas mikanii",2,null,null,"Pygochelidon cyanoleuca",1,null,null,null,null,null,null,null,null,null,"Dipsas mikanii",7,null,null,"Philodryas olfersii",2,null,"Zenaida auriculata",1,null,null,null,null,null,null,null,null,null,null,null,null,null,null,null,null,null,null,null,null,null,null,null,null,null,null,null,null,null,null,null,null,null,null,null,null,null,null,null,null,null,null,null,null,null,null,null,null,"AT","Salvator meirianae",1,null,null,null,null,"Ramphastos toco",false,null,null,"Dipsas mikanii",false,null,"Salvator meirianae",false,null,null,null,null,null,"Micrurus sp.",1,"Micrurus sp.",1,2.1739130434782608E-2,8.3231334706284674E-2,null,null,null,"Amphisbaena alba",2,"Amphisbaena alba",2,4.3478260869565216E-2,0.13632583547518043,null,null,null,"Bothrops jararaca",4,"Bothrops jararaca",4,8.6956521739130432E-2,0.21237800307558297,null,null,null,"Oxyrhopus guibei",4,"Oxyrhopus guibei",4,8.6956521739130432E-2,0.21237800307558297,null,null,null,null,null,0,0,0,{"$error":"#NUM!"},null,null,null,null,null,null,null,0,0,{"$error":"#NUM!"},null,null,null,null,null,null,null,0,0,{"$error":"#NUM!"},null,null,null,null,null,null,null,0,0,{"$error":"#NUM!"},null,null,null,null,null,null,null,0,0,{"$error":"#NUM!"},null,null,null,null,null,null,null,0,0,{"$error":"#NUM!"},null,null,null,null,null,null,null,0,0,{"$error":"#NUM!"}]
[null,null,null,null,2020,9,17,"RE","2020-09-26","11:40:00","Área 22",307295,7490803,"Fragmento Florestal","Ensolarado",1,"HERPETOFAUNA","Squamata","Viperidae","Crotalus durissus","Cascavel","Saudável","Sim","Adulto","Fêmea","Não","Não","Soltura","2020-09-26",310846,7492650,"Não","-",2020,9,null,null,"Philodryas olfersii","RE","Soltura",1,null,null,null,null,9,"AT","Didelphis albiventris",1,null,null,"Dasypus novemcinctus",1,null,null,null,null,null,null,null,null,null,"Erythrolamprus aesculapii",2,null,null,"Pygochelidon cyanoleuca",1,null,"Rhinella sp.",1,null,null,null,null,null,null,null,null,null,null,null,null,null,null,null,null,null,null,null,null,null,null,null,null,null,null,null,null,null,null,null,null,null,null,null,null,null,null,null,null,null,null,null,null,null,null,null,null,"RE","Apodemus sylvaticus",1,null,null,null,null,"Rhinella sp.",false,null,null,"Erythrolamprus aesculapii",false,null,null,null,null,null,null,null,null,"Oxyrhopus guibei",4,"Oxyrhopus guibei",4,8.6956521739130432E-2,0.21237800307558297,null,null,null,"Salvator meirianae",1,"Salvator meirianae",1,2.1739130434782608E-2,8.3231334706284674E-2,null,null,null,"Zenaida auriculata",1,"Zenaida auriculata",1,2.1739130434782608E-2,8.3231334706284674E-2,null,null,null,"Philodryas olfersii",2,"Philodryas olfersii",2,4.3478260869565216E-2,0.13632583547518043,null,null,null,null,null,0,0,0,{"$error":"#NUM!"},null,null,null,null,null,null,null,0,0,{"$error":"#NUM!"},null,null,null,null,null,null,null,0,0,{"$error":"#NUM!"},null,null,null,null,null,null,null,0,0,{"$error":"#NUM!"},null,null,null,null,null,null,null,0,0,{"$error":"#NUM!"},null,null,null,null,null,null,null,0,0,{"$error":"#NUM!"},null,null,null,null,null,null,null,0,0,{"$error":"#NUM!"}]
[null,null,null,null,2020,9,19,"RE","2020-09-29","14:40:00","Área 22",307537,7490816,"Pastagem","Ensolarado",1,"HERPETOFAUNA","Squamata","Viperidae","Crotalus durissus","Cascavel","Saudável","Sim","Jovem","Fêmea","Não","Não","Soltura","2020-09-29",310954,7492667,"Não","-",2020,9,null,null,"Philodryas olfersii","AT","Base de Fauna",1,null,null,null,null,9,"AT","Didelphis aurita",1,null,null,"Cavia aparea",1,null,null,null,null,null,null,null,null,null,"Micrurus sp.",1,null,null,"Ramphastos toco",1,null,"Salvator meirianae",1,null,null,null,null,null,null,null,null,null,null,null,null,null,null,null,null,null,null,null,null,null,null,null,null,null,null,null,null,null,null,null,null,null,null,null,null,null,null,null,null,null,null,null,null,null,null,null,null,"RE","Copeoglossum nigropunctatum",1,null,null,null,null,"Zenaida auriculata",false,null,null,"Micrurus sp.",false,null,null,null,null,null,null,null,null,"Philodryas olfersii",2,"Philodryas olfersii",2,4.3478260869565216E-2,0.13632583547518043,null,null,null,null,null,null,null,null,null,null,null,null,"Rhinella sp.",1,"Rhinella sp.",1,2.1739130434782608E-2,8.3231334706284674E-2,null,null,null,"Pygochelidon cyanoleuca",1,"Pygochelidon cyanoleuca",1,2.1739130434782608E-2,8.3231334706284674E-2,null,null,null,null,null,0,0,0,{"$error":"#NUM!"},null,null,null,null,null,null,null,0,0,{"$error":"#NUM!"},null,null,null,null,null,null,null,0,0,{"$error":"#NUM!"},null,null,null,null,null,null,null,0,0,{"$error":"#NUM!"},null,null,null,null,null,null,null,0,0,{"$error":"#NUM!"},null,null,null,null,null,null,null,0,0,{"$error":"#NUM!"},null,null,null,null,null,null,null,0,0,{"$error":"#NUM!"}]
[null,null,null,null,{"$f":"IF(I44=\"\",\"-\",YEAR(I44))","v":2020},{"$f":"IF(I44=\"\",\"-\",MONTH(I44))","v":11},21,"RE","2020-11-23","14:47:00","Canteiro de Apoio",308504,7491421,"Infraestrutura","Ensolarado",1,"HERPETOFAUNA","Squamata","Dipsadidae","Dipsas mikanii","Jararaca-dormideira","Saudável","Sim","Jovem","Fêmea","Não","Não","Soltura","2020-11-23",310958,7492649,"Não","-",2020,11,null,null,"Copeoglossum nigropunctatum","RE","SPQ",1,null,null,null,null,9,"AT","Dipsas mikanii",1,null,null,"Ramphastos toco",1,null,null,null,null,null,null,null,null,null,"Oxyrhopus guibei",4,null,null,"Callithrix jacchus",1,null,"Cavia aparea",1,null,null,null,null,null,null,null,null,null,null,null,null,null,null,null,null,null,null,null,null,null,null,null,null,null,null,null,null,null,null,null,null,null,null,null,null,null,null,null,null,null,null,null,null,null,null,null,null,"RE","Crotalus durissus",8,null,null,null,null,null,null,null,null,"Oxyrhopus guibei",false,null,null,null,null,null,null,null,null,"Pygochelidon cyanoleuca",1,"Pygochelidon cyanoleuca",1,2.1739130434782608E-2,8.3231334706284674E-2,null,null,null,null,null,null,null,null,null,null,null,null,"Cavia aparea",1,"Cavia aparea",1,2.1739130434782608E-2,8.3231334706284674E-2,null,null,null,"Ramphastos toco",1,"Ramphastos toco",1,2.1739130434782608E-2,{"$f":"(-1)*FP44*LN(FP44)","v":8.3231334706284674E-2},null,null,null,null,null,0,0,0,{"$f":"(-1)*FY44*LN(FY44)","v":{"$error":"#NUM!"}},null,null,null,null,null,null,null,0,0,{"$f":"(-1)*GI44*LN(GI44)","v":{"$error":"#NUM!"}},null,null,null,null,null,null,null,0,0,{"$f":"(-1)*GS44*LN(GS44)","v":{"$error":"#NUM!"}},null,null,null,null,null,null,null,0,0,{"$f":"(-1)*HC44*LN(HC44)","v":{"$error":"#NUM!"}},null,null,null,null,null,null,null,0,0,{"$f":"(-1)*HM44*LN(HM44)","v":{"$error":"#NUM!"}},null,null,null,null,null,null,null,0,0,{"$f":"(-1)*HW44*LN(HW44)","v":{"$error":"#NUM!"}},null,null,null,null,null,null,null,0,0,{"$f":"(-1)*IG44*LN(IG44)","v":{"$error":"#NUM!"}}]
[null,null,null,null,2020,11,24,"RE","2020-11-28","12:50:00","Canteiro de Apoio",308500,7491338,"Campo Antrópico","Ensolarado",1,"AVIFAUNA","Passeriformes","Hirundinidae","Pygochelidon cyanoleuca","Andorinha-pequena-de-casa","Ferido","Sim","Adulto","ND","Não","Não","CRAS - Mata Ciliar","2020-11-28",305466,7484505,"Não","-",2020,11,null,null,"Dipsas mikanii","RE","Soltura",4,null,null,null,null,9,"AT","Erythrolamprus aesculapii",1,null,null,null,null,null,null,null,null,null,null,null,null,null,"Philodryas olfersii",2,null,null,"Amphisbaena alba",2,null,null,null,null,null,null,null,null,null,null,null,null,null,null,null,null,null,null,null,null,null,null,null,null,null,null,null,null,null,null,null,null,null,null,null,null,null,null,null,null,null,null,null,null,null,null,null,null,null,null,null,"RE","Didelphis albiventris",1,null,null,null,null,null,null,null,null,"Philodryas olfersii",false,null,null,null,null,null,null,null,null,"Ramphastos toco",1,"Ramphastos toco",1,2.1739130434782608E-2,8.3231334706284674E-2,null,null,null,null,null,null,null,null,null,null,null,null,null,null,null,null,null,null,null,null,null,"Callithrix jacchus",1,"Callithrix jacchus",1,2.1739130434782608E-2,{"$f":"(-1)*FP45*LN(FP45)","v":8.3231334706284674E-2},null,null,null,null,null,{"$f":"FU45","v":0},{"$f":"FV45","v":0},0,{"$f":"(-1)*FY45*LN(FY45)","v":{"$error":"#NUM!"}},null,null,null,null,null,null,null,{"$f":"GF45","v":0},0,{"$f":"(-1)*GI45*LN(GI45)","v":{"$error":"#NUM!"}},null,null,null,null,null,null,null,{"$f":"GP45","v":0},0,{"$f":"(-1)*GS45*LN(GS45)","v":{"$error":"#NUM!"}},null,null,null,null,null,null,null,{"$f":"GZ45","v":0},0,{"$f":"(-1)*HC45*LN(HC45)","v":{"$error":"#NUM!"}},null,null,null,null,null,null,null,{"$f":"HJ45","v":0},0,{"$f":"(-1)*HM45*LN(HM45)","v":{"$error":"#NUM!"}},null,null,null,null,null,null,null,{"$f":"HT45","v":0},0,{"$f":"(-1)*HW45*LN(HW45)","v":{"$error":"#NUM!"}},null,null,null,null,null,null,null,{"$f":"ID45","v":0},0,{"$f":"(-1)*IG45*LN(IG45)","v":{"$error":"#NUM!"}}]
[null,null,null,null,2020,12,25,"RE","2020-12-01","14:40:00","Canteiro de Apoio",308506,7491385,"Fragmento Florestal","Ensolarado",1,"AVIFAUNA","Piciformes","Ramphastidae","Ramphastos toco","Tucano-toco","Morto","Sim","Adulto","ND","Não","Não","Base de Fauna","-",308508,7491376,"Não","Aguardando encaminhamento para a Universidade","-","-",null,null,"Dipsas mikanii","RE","Base de Fauna",1,null,null,null,null,9,"AT","Micrurus sp.",1,null,null,null,null,null,null,null,null,null,null,null,null,null,"Pygochelidon cyanoleuca",1,null,null,"Bothrops jararaca",4,null,null,null,null,null,null,null,null,null,null,null,null,null,null,null,null,null,null,null,null,null,null,null,null,null,null,null,null,null,null,null,null,null,null,null,null,null,null,null,null,null,null,null,null,null,null,null,null,null,null,null,"RE","Dipsas mikanii",5,null,null,null,null,null,null,null,null,"Pygochelidon cyanoleuca",false,null,null,null,null,null,null,null,null,"Callithrix jacchus",1,"Callithrix jacchus",1,2.1739130434782608E-2,8.3231334706284674E-2,null,null,null,null,null,null,null,null,null,null,null,null,null,null,null,null,null,null,null,null,null,"Amphisbaena alba",2,"Amphisbaena alba",2,4.3478260869565216E-2,0.13632583547518043,null,null,null,null,null,0,0,0,{"$error":"#NUM!"},null,null,null,null,null,null,null,0,0,{"$error":"#NUM!"},null,null,null,null,null,null,null,0,0,{"$error":"#NUM!"},null,null,null,null,null,null,null,0,0,{"$error":"#NUM!"},null,null,null,null,null,null,null,0,0,{"$error":"#NUM!"},null,null,null,null,null,null,null,0,0,{"$error":"#NUM!"},null,null,null,null,null,null,null,0,0,{"$error":"#NUM!"}]
[null,null,null,null,2020,12,26,"RE","2020-12-02","16:40:00","Canteiro de Apoio",308506,7491385,"Infraestrutura","Ensolarado",1,"AVIFAUNA","Columbiformes","Columbidae","Zenaida auriculata","Avoante","Ferido","Sim","Adulto","ND","Não","Não","CRAS - Mata Ciliar","2020-12-02",305466,7484505,"Não","-",2020,12,null,null,"Dipsas mikanii","AT","UNIFAJ",2,null,null,null,null,9,"AT","Oxyrhopus guibei",3,null,null,null,null,null,null,null,null,null,null,null,null,null,"Ramphastos toco",1,null,null,"Zenaida auriculata",1,null,null,null,null,null,null,null,null,null,null,null,null,null,null,null,null,null,null,null,null,null,null,null,null,null,null,null,null,null,null,null,null,null,null,null,null,null,null,null,null,null,null,null,null,null,null,null,null,null,null,null,"RE","Oxyrhopus guibei",1,null,null,null,null,null,null,null,null,"Ramphastos toco",false,null,null,null,null,null,null,null,null,"Salvator merianae",1,"Salvator merianae",1,2.1739130434782608E-2,8.3231334706284674E-2,null,null,null,null,null,null,null,null,null,null,null,null,null,null,null,null,null,null,null,null,null,"Bothrops jararaca",4,"Bothrops jararaca",4,8.6956521739130432E-2,0.21237800307558297,null,null,null,null,null,0,0,0,{"$error":"#NUM!"},null,null,null,null,null,null,null,0,0,{"$error":"#NUM!"},null,null,null,null,null,null,null,0,0,{"$error":"#NUM!"},null,null,null,null,null,null,null,0,0,{"$error":"#NUM!"},null,null,null,null,null,null,null,0,0,{"$error":"#NUM!"},null,null,null,null,null,null,null,0,0,{"$error":"#NUM!"},null,null,null,null,null,null,null,0,0,{"$error":"#NUM!"}]
[null,null,null,null,2020,12,28,"RE","2020-12-29","15:20:00","Sblote de plantio 1.13",308642,7491438,"Futura APP","Ensolarado",1,"HERPETOFAUNA","Squamata","Dipsadidae","Dipsas mikanii","Jararaca-dormideira","Morto","Sim","Adulto","Fêmea","Sim","Não","Base de Fauna","-",308508,7491376,"Não","Aguardando encaminhamento para a Universidade","-","-",null,null,"Apodemus sylvaticus","RE","Soltura",1,null,null,null,null,1,"RE","Crotalus durissus",5,null,null,null,null,null,null,null,null,null,null,null,null,null,"Rhinella sp.",1,null,null,"Rhinella sp.",1,null,null,null,null,null,null,null,null,null,null,null,null,null,null,null,null,null,null,null,null,null,null,null,null,null,null,null,null,null,null,null,null,null,null,null,null,null,null,null,null,null,null,null,null,null,null,null,null,null,null,null,"RE","Philodryas olfersii",1,null,null,null,null,null,null,null,null,"Rhinella sp.",false,null,null,null,null,null,null,null,null,"Amphisbaena alba",2,"Amphisbaena alba",2,4.3478260869565216E-2,0.13632583547518043,null,null,null,null,null,null,null,null,null,null,null,null,null,null,null,null,null,null,null,null,null,"Zenaida auriculata",1,"Zenaida auriculata",1,2.1739130434782608E-2,8.3231334706284674E-2,null,null,null,null,null,0,0,0,{"$error":"#NUM!"},null,null,null,null,null,null,null,0,0,{"$error":"#NUM!"},null,null,null,null,null,null,null,0,0,{"$error":"#NUM!"},null,null,null,null,null,null,null,0,0,{"$error":"#NUM!"},null,null,null,null,null,null,null,0,0,{"$error":"#NUM!"},null,null,null,null,null,null,null,0,0,{"$error":"#NUM!"},null,null,null,null,null,null,null,0,0,{"$error":"#NUM!"}]
[null,null,null,null,2021,1,30,"RE","2021-01-07","09:30:00","Sblote de plantio 1.13",308790,7491501,"Futura APP","Ensolarado",1,"HERPETOFAUNA","Squamata","Viperidae","Crotalus durissus","Cascavel","Morto","Sim","Adulto","Fêmea","Sim","Não","Base de Fauna","-",308508,7491376,"Não","-","-","-",null,null,"Crotalus durissus","RE","Soltura",6,null,null,null,null,1,"RE","Dipsas mikanii",1,null,null,null,null,null,null,null,null,null,null,null,null,null,"Salvator meirianae",1,null,null,"Salvator meirianae",1,null,null,null,null,null,null,null,null,null,null,null,null,null,null,null,null,null,null,null,null,null,null,null,null,null,null,null,null,null,null,null,null,null,null,null,null,null,null,null,null,null,null,null,null,null,null,null,null,null,null,null,"RE","Pygochelidon cyanoleuca",1,null,null,null,null,null,null,null,null,"Salvator meirianae",false,null,null,null,null,null,null,null,null,"Bothrops jararaca",4,"Bothrops jararaca",4,8.6956521739130432E-2,0.21237800307558297,null,null,null,null,null,null,null,null,null,null,null,null,null,null,null,null,null,null,null,null,null,"Rhinella sp.",1,"Rhinella sp.",1,2.1739130434782608E-2,8.3231334706284674E-2,null,null,null,null,null,0,0,0,{"$error":"#NUM!"},null,null,null,null,null,null,null,0,0,{"$error":"#NUM!"},null,null,null,null,null,null,null,0,0,{"$error":"#NUM!"},null,null,null,null,null,null,null,0,0,{"$error":"#NUM!"},null,null,null,null,null,null,null,0,0,{"$error":"#NUM!"},null,null,null,null,null,null,null,0,0,{"$error":"#NUM!"},null,null,null,null,null,null,null,0,0,{"$error":"#NUM!"}]
[null,null,null,null,2021,1,31,"RE","2021-01-08","10:02:00","Sblote de plantio 1.14",308798,7491427,"Futura APP","Ensolarado",1,"HERPETOFAUNA","Squamata","Viperidae","Crotalus durissus","Cascavel","Saudável","Sim","Adulto","ND","Não","Não","Soltura",{"$f":"I50","v":"2021-01-08"},310908,7492663,"Não","-",2021,1,null,null,"Crotalus durissus","RE","Base de Fauna",2,null,null,null,null,1,"RE","Bothrops jararaca",4,null,null,null,null,null,null,null,null,null,null,null,null,null,"Zenaida auriculata",1,null,null,"Cavia aparea",1,null,null,null,null,null,null,null,null,null,null,null,null,null,null,null,null,null,null,null,null,null,null,null,null,null,null,null,null,null,null,null,null,null,null,null,null,null,null,null,null,null,null,null,null,null,null,null,null,null,null,null,"RE","Ramphastos toco",1,null,null,null,null,null,null,null,null,"Zenaida auriculata",false,null,null,null,null,null,null,null,null,"Zenaida auriculata",1,"Zenaida auriculata",1,2.1739130434782608E-2,8.3231334706284674E-2,null,null,null,null,null,null,null,null,null,null,null,null,null,null,null,null,null,null,null,null,null,"Salvator meirianae",1,"Salvator meirianae",1,2.1739130434782608E-2,8.3231334706284674E-2,null,null,null,null,null,0,0,0,{"$error":"#NUM!"},null,null,null,null,null,null,null,0,0,{"$error":"#NUM!"},null,null,null,null,null,null,null,0,0,{"$error":"#NUM!"},null,null,null,null,null,null,null,0,0,{"$error":"#NUM!"},null,null,null,null,null,null,null,0,0,{"$error":"#NUM!"},null,null,null,null,null,null,null,0,0,{"$error":"#NUM!"},null,null,null,null,null,null,null,0,0,{"$error":"#NUM!"}]
[null,null,null,null,2021,1,32,"RE","2021-01-13","14:32:00","Canteiro de Apoio",308526,7491330,"-","Ensolarado",1,"MASTOFAUNA","Rodentia","Cavidae ","Cavia aparea","Preá","Morto","Sim","Adulto","Fêmea","Sim","Não","Soltura","2021-01-13",308506,7491375,"Não","-",2021,1,null,null,"Pygochelidon cyanoleuca","RE","CRAS - Mata Ciliar",1,null,null,null,null,1,"RE","Rhinella sp.",1,null,null,null,null,null,null,null,null,null,null,null,null,null,null,null,null,null,null,null,null,null,null,null,null,null,null,null,null,null,null,null,null,null,null,null,null,null,null,null,null,null,null,null,null,null,null,null,null,null,null,null,null,null,null,null,null,null,null,null,null,null,null,null,null,null,null,null,null,null,null,"RE","Bothrops jararaca",4,null,null,null,null,null,null,null,null,null,null,null,null,null,null,null,null,null,null,"Rhinella sp.",1,"Rhinella sp.",1,2.1739130434782608E-2,8.3231334706284674E-2,null,null,null,null,null,null,null,null,null,null,null,null,null,null,null,null,null,null,null,null,null,"Cavia aparea",1,"Cavia aparea",1,2.1739130434782608E-2,8.3231334706284674E-2,null,null,null,null,null,0,0,0,{"$error":"#NUM!"},null,null,null,null,null,null,null,0,0,{"$error":"#NUM!"},null,null,null,null,null,null,null,0,0,{"$error":"#NUM!"},null,null,null,null,null,null,null,0,0,{"$error":"#NUM!"},null,null,null,null,null,null,null,0,0,{"$error":"#NUM!"},null,null,null,null,null,null,null,0,0,{"$error":"#NUM!"},null,null,null,null,null,null,null,0,0,{"$error":"#NUM!"}]
[null,null,null,null,2021,1,33,"RE","2021-01-13","14:35:00","Sblote de plantio 1.14",308797,7491428,"Futura APP","Ensolarado",1,"HERPETOFAUNA","Squamata","Viperidae","Crotalus durissus","Cascavel","Saudável","Sim","Jovem","ND","Não","Não","Soltura","2021-01-13",310946,7492652,"Não","-",2021,1,null,null,"Ramphastos toco","RE","Base de Fauna",1,null,null,null,null,1,"RE","Cavia aparea",1,null,null,null,null,null,null,null,null,null,null,null,null,null,null,null,null,null,null,null,null,null,null,null,null,null,null,null,null,null,null,null,null,null,null,null,null,null,null,null,null,null,null,null,null,null,null,null,null,null,null,null,null,null,null,null,null,null,null,null,null,null,null,null,null,null,null,null,null,null,null,"RE","Zenaida auriculata",1,null,null,null,null,null,null,null,null,null,null,null,null,null,null,null,null,null,null,"Salvator meirianae",1,"Salvator meirianae",1,2.1739130434782608E-2,8.3231334706284674E-2,null,null,null,null,null,null,null,null,null,null,null,null,null,null,null,null,null,null,null,null,null,null,null,null,null,null,null,null,null,null,null,null,{"$f":"FU52","v":0},{"$f":"FV52","v":0},0,{"$error":"#NUM!"},null,null,null,null,null,null,null,{"$f":"GF52","v":0},0,{"$error":"#NUM!"},null,null,null,null,null,null,null,{"$f":"GP52","v":0},0,{"$error":"#NUM!"},null,null,null,null,null,null,null,{"$f":"GZ52","v":0},0,{"$error":"#NUM!"},null,null,null,null,null,null,null,{"$f":"HJ52","v":0},0,{"$error":"#NUM!"},null,null,null,null,null,null,null,{"$f":"HT52","v":0},0,{"$error":"#NUM!"},null,null,null,null,null,null,null,{"$f":"ID52","v":0},0,{"$error":"#NUM!"}]
[null,null,null,null,2021,1,34,"RE","2021-01-14","10:42:00","Canteiro de Apoio",308507,7491421,"-","Ensolarado",1,"HERPETOFAUNA","Anura","Bufonidae","Rhinella sp.","Sapo Cururu","Saudável","Sim","Jovem","ND","Não","Não","Soltura","2021-01-14",310950,7492645,"Não","-",2021,1,null,null,"Callithrix jacchus","AT","Base de Fauna",1,null,null,null,null,1,"AT","Philodryas olfersii",1,null,null,null,null,null,null,null,null,null,null,null,null,null,null,null,null,null,null,null,null,null,null,null,null,null,null,null,null,null,null,null,null,null,null,null,null,null,null,null,null,null,null,null,null,null,null,null,null,null,null,null,null,null,null,null,null,null,null,null,null,null,null,null,null,null,null,null,null,null,null,"RE","Rhinella sp.",1,null,null,null,null,null,null,null,null,null,null,null,null,null,null,null,null,null,null,"Cavia aparea",1,"Cavia aparea",1,2.1739130434782608E-2,8.3231334706284674E-2,null,null,null,null,null,null,null,null,null,null,null,null,null,null,null,null,null,null,null,null,null,null,null,null,null,null,null,null,null,null,null,null,0,0,0,{"$error":"#NUM!"},null,null,null,null,null,null,null,0,0,{"$error":"#NUM!"},null,null,null,null,null,null,null,0,0,{"$error":"#NUM!"},null,null,null,null,null,null,null,0,0,{"$error":"#NUM!"},null,null,null,null,null,null,null,0,0,{"$error":"#NUM!"},null,null,null,null,null,null,null,0,0,{"$error":"#NUM!"},null,null,null,null,null,null,null,0,0,{"$error":"#NUM!"}]
[null,null,null,null,2021,1,36,"RE","2021-01-18","13:13:00","Sblote de plantio 1.14",308717,7491406,"Futura APP","Ensolarado",1,"HERPETOFAUNA","Squamata","Viperidae","Bothrops jararaca","Jararaca - da - mata","Saudável","Sim","Adulto","ND","Não","Não","Soltura","2021-01-18",310959,7493126,"Não","-",2021,1,null,null,"Salvator merianae","AF","-",1,null,null,null,null,1,"AT","Amphisbaena alba",2,null,null,null,null,null,null,null,null,null,null,null,null,null,null,null,null,null,null,null,null,null,null,null,null,null,null,null,null,null,null,null,null,null,null,null,null,null,null,null,null,null,null,null,null,null,null,null,null,null,null,null,null,null,null,null,null,null,null,null,null,null,null,null,null,null,null,null,null,null,null,"RE","Cavia aparea",1,null,null,null,null,null,null,null,null,null,null,null,null,null,null,null,null,null,null,null,null,0,0,0,{"$error":"#NUM!"},null,null,null,null,null,null,null,null,null,null,null,null,null,null,null,null,null,null,null,null,null,null,null,null,null,null,null,null,null,null,null,null,0,0,0,{"$error":"#NUM!"},null,null,null,null,null,null,null,0,0,{"$error":"#NUM!"},null,null,null,null,null,null,null,0,0,{"$error":"#NUM!"},null,null,null,null,null,null,null,0,0,{"$error":"#NUM!"},null,null,null,null,null,null,null,0,0,{"$error":"#NUM!"},null,null,null,null,null,null,null,0,0,{"$error":"#NUM!"},null,null,null,null,null,null,null,0,0,{"$error":"#NUM!"}]
[null,null,null,null,2021,1,37,"RE","2021-01-18","13:20:00","Sblote de plantio 1.14",308715,7491407,"Futura APP","Ensolarado",1,"HERPETOFAUNA","Squamata","Viperidae","Bothrops jararaca","Jararaca - da - mata","Morto","Sim","Adulto","ND","Não","Sim","OPQ","2021-01-18",308506,7491375,"Não","Aguardando encaminhamento para a UNIFAJ",2021,1,null,null,"Amphisbaena alba","AT","CRAS - Mata Ciliar",1,null,null,null,null,11,"RE","Dipsas mikanii",1,null,null,null,null,null,null,null,null,null,null,null,null,null,null,null,null,null,null,null,null,null,null,null,null,null,null,null,null,null,null,null,null,null,null,null,null,null,null,null,null,null,null,null,null,null,null,null,null,null,null,null,null,null,null,null,null,null,null,null,null,null,null,null,null,null,null,null,null,null,null,null,null,null,null,null,null,null,null,null,null,null,null,null,null,null,null,null,null,null,null,null,null,null,0,0,0,{"$error":"#NUM!"},null,null,null,null,null,null,null,null,null,null,null,null,null,null,null,null,null,null,null,null,null,null,null,null,null,null,null,null,null,null,null,null,0,0,0,{"$error":"#NUM!"},null,null,null,null,null,null,null,0,0,{"$error":"#NUM!"},null,null,null,null,null,null,null,0,0,{"$error":"#NUM!"},null,null,null,null,null,null,null,0,0,{"$error":"#NUM!"},null,null,null,null,null,null,null,0,0,{"$error":"#NUM!"},null,null,null,null,null,null,null,0,0,{"$error":"#NUM!"},null,null,null,null,null,null,null,0,0,{"$error":"#NUM!"}]
[null,null,null,null,2021,1,38,"RE","2021-01-19","14:40:00","Sblote de plantio 1.14",308714,7491406,"Futura APP","Ensolarado",1,"HERPETOFAUNA","Squamata","Viperidae","Crotalus durissus","Cascavel","Morto","Sim","Adulto","Fêmea","Sim","Não","Base de Fauna","2021-01-19",308508,7491376,"Não","Aguardando encaminhamento para a UNIFAJ",2021,1,null,null,"Amphisbaena alba","AT","Base de Fauna",1,null,null,null,null,11,"RE","Pygochelidon cyanoleuca",1,null,null,null,null,null,null,null,null,null,null,null,null,null,null,null,null,null,null,null,null,null,null,null,null,null,null,null,null,null,null,null,null,null,null,null,null,null,null,null,null,null,null,null,null,null,null,null,null,null,null,null,null,null,null,null,null,null,null,null,null,null,null,null,null,null,null,null,null,null,null,null,null,null,null,null,null,null,null,null,null,null,null,null,null,null,null,null,null,null,null,null,null,null,0,0,0,{"$error":"#NUM!"},null,null,null,null,null,null,null,null,null,null,null,null,null,null,null,null,null,null,null,null,null,null,null,null,null,null,null,null,null,null,null,null,0,0,0,{"$error":"#NUM!"},null,null,null,null,null,null,null,0,0,{"$error":"#NUM!"},null,null,null,null,null,null,null,0,0,{"$error":"#NUM!"},null,null,null,null,null,null,null,0,0,{"$error":"#NUM!"},null,null,null,null,null,null,null,0,0,{"$error":"#NUM!"},null,null,null,null,null,null,null,0,0,{"$error":"#NUM!"},null,null,null,null,null,null,null,0,0,{"$error":"#NUM!"}]
[null,null,null,null,2021,1,39,"RE","2021-01-19","14:43:00","Sblote de plantio 1.15",308678,7491377,"Futura APP","Ensolarado",1,"HERPETOFAUNA","Squamata","Viperidae","Crotalus durissus","Cascavel","Saudável","Sim","Adulto","Macho","Não","Não","Soltura","2021-01-19",310966,7492683,"Não","-",2021,1,null,null,"Bothrops jararaca","RE","OPQ",1,null,null,null,null,11,"AT","Dasypus novemcinctus",1,null,null,null,null,null,null,null,null,null,null,null,null,null,null,null,null,null,null,null,null,null,null,null,null,null,null,null,null,null,null,null,null,null,null,null,null,null,null,null,null,null,null,null,null,null,null,null,null,null,null,null,null,null,null,null,null,null,null,null,null,null,null,null,null,null,null,null,null,null,null,null,null,null,null,null,null,null,null,null,null,null,null,null,null,null,null,null,null,null,null,null,null,null,0,0,0,{"$error":"#NUM!"},null,null,null,null,null,null,null,null,null,null,null,null,null,null,null,null,null,null,null,null,null,null,null,null,null,null,null,null,null,null,null,null,0,0,0,{"$error":"#NUM!"},null,null,null,null,null,null,null,0,0,{"$error":"#NUM!"},null,null,null,null,null,null,null,0,0,{"$error":"#NUM!"},null,null,null,null,null,null,null,0,0,{"$error":"#NUM!"},null,null,null,null,null,null,null,0,0,{"$error":"#NUM!"},null,null,null,null,null,null,null,0,0,{"$error":"#NUM!"},null,null,null,null,null,null,null,0,0,{"$error":"#NUM!"}]
[null,null,null,null,2021,1,40,"RE","2021-01-20","11:17:00","Sblote de plantio 1.15",308657,7491382,"Futura APP","Ensolarado",1,"HERPETOFAUNA","Squamata","Viperidae","Bothrops jararaca","Jararaca - da - mata","Morto","Sim","Jovem","ND","Sim","Não","Base de Fauna","2021-01-20",308508,7491376,"Não","Aguardando encaminhamento para a UNIFAJ",2021,1,null,null,"Bothrops jararaca","RE","Soltura",2,null,null,null,null,11,"AT","Erythrolamprus aesculapii",1,null,null,null,null,null,null,null,null,null,null,null,null,null,null,null,null,null,null,null,null,null,null,null,null,null,null,null,null,null,null,null,null,null,null,null,null,null,null,null,null,null,null,null,null,null,null,null,null,null,null,null,null,null,null,null,null,null,null,null,null,null,null,null,null,null,null,null,null,null,null,null,null,null,null,null,null,null,null,null,null,null,null,null,null,null,null,null,null,null,null,null,null,null,0,0,0,{"$error":"#NUM!"},null,null,null,null,null,null,null,null,null,null,null,null,null,null,null,null,null,null,null,null,null,null,null,null,null,null,null,null,null,null,null,null,0,0,0,{"$error":"#NUM!"},null,null,null,null,null,null,null,0,0,{"$error":"#NUM!"},null,null,null,null,null,null,null,0,0,{"$error":"#NUM!"},null,null,null,null,null,null,null,0,0,{"$error":"#NUM!"},null,null,null,null,null,null,null,0,0,{"$error":"#NUM!"},null,null,null,null,null,null,null,0,0,{"$error":"#NUM!"},null,null,null,null,null,null,null,0,0,{"$error":"#NUM!"}]
["Legenda: ",null,null,null,2021,1,41,"RE","2021-01-20","13:10:00","Sblote de plantio 1.14",308602,7491415,"Futura APP","Ensolarado",1,"HERPETOFAUNA","Squamata","Dipsadidae","Dipsas mikanii","Jararaca - dormideira","Saudável","Sim","Jovem","ND","Não","Não","Soltura","2021-01-20",311039,7493178,"Não","-",2021,1,null,null,"Bothrops jararaca","RE","Base de Fauna",1,null,null,null,null,11,"AT","Salvator meirianae",1,null,null,null,null,null,null,null,null,null,null,null,null,null,null,null,null,null,null,null,null,null,null,null,null,null,null,null,null,null,null,null,null,null,null,null,null,null,null,null,null,null,null,null,null,null,null,null,null,null,null,null,null,null,null,null,null,null,null,null,null,null,null,null,null,null,null,null,null,null,null,null,null,null,null,null,null,null,null,null,null,null,null,null,null,null,null,null,null,null,null,null,null,null,0,0,0,{"$error":"#NUM!"},null,null,null,null,null,null,null,null,null,null,null,null,null,null,null,null,null,null,null,null,null,null,null,null,null,null,null,null,null,null,null,null,0,0,0,{"$error":"#NUM!"},null,null,null,null,null,null,null,0,0,{"$error":"#NUM!"},null,null,null,null,null,null,null,0,0,{"$error":"#NUM!"},null,null,null,null,null,null,null,0,0,{"$error":"#NUM!"},null,null,null,null,null,null,null,0,0,{"$error":"#NUM!"},null,null,null,null,null,null,null,0,0,{"$error":"#NUM!"},null,null,null,null,null,null,null,0,0,{"$error":"#NUM!"}]
["Tipo de registro: AF = Afugentamento (incluindo espontâneo), RE = Resgate; ",null,null,null,2021,1,42,"RE","2021-01-27","15:10:00","Sblote de plantio 1.15",308843,7491353,"Futura APP","Ensolarado",1,"HERPETOFAUNA","Squamata","Viperidae","Bothrops jararaca","Jararaca - da - mata","Saudável","Sim","Jovem","ND","Não","Não","Soltura","2021-01-27",310976,7493211,"Não","-",2021,1,null,null,"Zenaida auriculata","RE","CRAS - Mata Ciliar",1,null,null,null,null,12,"RE","Dipsas mikanii",1,null,null,null,null,null,null,null,null,null,null,null,null,null,null,null,null,null,null,null,null,null,null,null,null,null,null,null,null,null,null,null,null,null,null,null,null,null,null,null,null,null,null,null,null,null,null,null,null,null,null,null,null,null,null,null,null,null,null,null,null,null,null,null,null,null,null,null,null,null,null,null,null,null,null,null,null,null,null,null,null,null,null,null,null,null,null,null,null,null,null,null,null,null,0,0,0,{"$error":"#NUM!"},null,null,null,null,null,null,null,null,null,null,null,null,null,null,null,null,null,null,null,null,null,null,null,null,null,null,null,null,null,null,null,null,0,0,0,{"$error":"#NUM!"},null,null,null,null,null,null,null,0,0,{"$error":"#NUM!"},null,null,null,null,null,null,null,0,0,{"$error":"#NUM!"},null,null,null,null,null,null,null,0,0,{"$error":"#NUM!"},null,null,null,null,null,null,null,0,0,{"$error":"#NUM!"},null,null,null,null,null,null,null,0,0,{"$error":"#NUM!"},null,null,null,null,null,null,null,0,0,{"$error":"#NUM!"}]
["Fitofisionomia/ambiente: AA = Antropizado, PA = PA, TR = trilha, CA = Canteiro de Obras; CUP = Cupinzeiro, FES = Floresta Estacional Semidecidual, AQ = Ambiente aquático; ",null,null,null,{"$f":"IF(I61=\"\",\"-\",YEAR(I61))","v":2020},{"$f":"IF(I61=\"\",\"-\",MONTH(I61))","v":8},4,"AT","2020-08-26","15:56:00",null,309035,7490950,"Fragento Florestal",null,1,"HERPETOFAUNA",null,null,"Dipsas mikanii","Jararaquinha-dormideira","Morto",null,null,null,null,null,"UNIFAJ","2020-12-01",292726,7486121,null,"UNIFAJ - 02/11/2020",2020,12,null,null,"Rhinella sp.","RE","Soltura",1,null,null,null,null,12,"RE","Ramphastos toco",1,null,null,null,null,null,null,null,null,null,null,null,null,null,null,null,null,null,null,null,null,null,null,null,null,null,null,null,null,null,null,null,null,null,null,null,null,null,null,null,null,null,null,null,null,null,null,null,null,null,null,null,null,null,null,null,null,null,null,null,null,null,null,null,null,null,null,null,null,null,null,null,null,null,null,null,null,null,null,null,null,null,null,null,null,null,null,null,null,null,null,null,null,null,0,0,0,{"$error":"#NUM!"},null,null,null,null,null,null,null,null,null,null,null,null,null,null,null,null,null,null,null,null,null,null,null,null,null,null,null,null,null,null,null,null,0,0,0,{"$error":"#NUM!"},null,null,null,null,null,null,null,0,0,{"$error":"#NUM!"},null,null,null,null,null,null,null,0,0,{"$error":"#NUM!"},null,null,null,null,null,null,null,0,0,{"$error":"#NUM!"},null,null,null,null,null,null,null,0,0,{"$error":"#NUM!"},null,null,null,null,null,null,null,0,0,{"$error":"#NUM!"},null,null,null,null,null,null,null,0,0,{"$error":"#NUM!"}]
["Condições meteorológicas: AB = Aberto, CH = Chuvoso, NU = Nublado;  ",null,null,null,{"$f":"IF(I62=\"\",\"-\",YEAR(I62))","v":2020},{"$f":"IF(I62=\"\",\"-\",MONTH(I62))","v":9},5,"AT","2020-09-12","07:00:00",null,308165,7487924,"Fragento Florestal",null,1,"MASTOFAUNA",null,null,"Didelphis albiventris","Gambá-de-orelha-branca","Morto",null,null,null,null,null,"UNIFAJ","2020-12-01",292726,7486121,null,"UNIFAJ - 02/11/2020",2020,12,null,null,"Salvator meirianae","AT","UNIFAJ",1,null,null,null,null,12,"RE","Zenaida auriculata",1,null,null,null,null,null,null,null,null,null,null,null,null,null,null,null,null,null,null,null,null,null,null,null,null,null,null,null,null,null,null,null,null,null,null,null,null,null,null,null,null,null,null,null,null,null,null,null,null,null,null,null,null,null,null,null,null,null,null,null,null,null,null,null,null,null,null,null,null,null,null,null,null,null,null,null,null,null,null,null,null,null,null,null,null,null,null,null,null,null,null,null,null,null,0,0,0,{"$error":"#NUM!"},null,null,null,null,null,null,null,null,null,null,null,null,null,null,null,null,null,null,null,null,null,null,null,null,null,null,null,null,null,null,null,null,0,0,0,{"$error":"#NUM!"}]
["Condições do Animal: D = Debilitado, F = Ferido, M = M, S = Saudável; ",null,null,null,{"$f":"IF(I63=\"\",\"-\",YEAR(I63))","v":2020},{"$f":"IF(I63=\"\",\"-\",MONTH(I63))","v":9},6,"AT","2020-09-12","08:25:00",null,307809,7490564,"Outro",null,1,"HERPETOFAUNA",null,null,"Oxyrhopus guibei","Falsa- coral","Morto",null,null,null,null,null,"UNIFAJ","2020-12-01",292726,7486121,null,"UNIFAJ - 02/11/2020",2020,12,null,null,"Cavia aparea","RE","Soltura",1,null,null,null,null,12,"AT","Callithrix jacchus",1,null,null,null,null,null,null,null,null,null,null,null,null,null,null,null,null,null,null,null,null,null,null,null,null,null,null,null,null,null,null,null,null,null,null,null,null,null,null,null,null,null,null,null,null,null,null,null,null,null,null,null,null,null,null,null,null,null,null,null,null,null,null,null,null,null,null,null,null,null,null,null,null,null,null,null,null,null,null,null,null,null,null,null,null,null,null,null,null,null,null,null,null,null,{"$f":"EK63","v":0},0,0,{"$error":"#NUM!"},null,null,null,null,null,null,null,null,null,null,null,null,null,null,null,null,null,null,null,null,null,null,null,null,null,null,null,null,null,null,null,null,0,0,0,{"$error":"#NUM!"}]
["Estágio de desenvolvimento: A = Adulto, J = Jovem, F = Filhote, L= Larva (girino), O = Ovo; ",null,null,null,2020,9,9,"AT","2020-09-14","12:14:00",null,310215,7491800,"Fragento Florestal",null,1,"HERPETOFAUNA",null,null,"Micrurus sp.","Cobra-coral","Morto",null,null,null,null,null,"Base de Fauna","-",308508,7491376,null,"Base de atendimento de animais silvestres","-","-",null,null,null,null,null,null,null,null,null,null,"Total Geral",null,null,46,null,null,null,null,null,null,null,null,null,null,null,null,null,null,null,null,null,null,null,null,null,null,null,null,null,null,null,null,null,null,null,null,null,null,null,null,null,null,null,null,null,null,null,null,null,null,null,null,null,null,null,null,null,null,null,null,null,null,null,null,null,null,null,null,null,null,null,null,null,null,null,null,null,null,null,null,null,null,null,null,null,null,null,null,null,null,null,null,null,null,null,null,null,0,{"$f":"EL64","v":0},{"$f":"EN64/$EL$30","v":0},{"$error":"#NUM!"},null,null,null,null,null,null,null,null,null,null,null,null,null,null,null,null,null,null,null,null,null,null,null,null,null,null,null,null,null,null,null,null,0,0,{"$f":"FX64/$EL$30","v":0},{"$error":"#NUM!"}]
["Sexo: FE = Fêmea, MA = Macho, ND = Não determinado; ",null,null,null,2020,9,10,"AT","2020-09-16","07:00:00",null,309529,7485913,"Fragento Florestal",null,1,"MASTOFAUNA ",null,null,"Didelphis aurita","Gambá-de-orelha-preta","Morto",null,null,null,null,null,"UNIFAJ","2020-12-01",292726,7486121,null,"UNIFAJ - 02/11/2020",2020,12,null,null,null,null,null,null,null,null,null,null,null,null,null,null,null,null,null,null,null,null,null,null,null,null,null,null,null,null,null,null,null,null,null,null,null,null,null,null,null,null,null,null,null,null,null,null,null,null,null,null,null,null,null,null,null,null,null,null,null,null,null,null,null,null,null,null,null,null,null,null,null,null,null,null,null,null,null,null,null,null,null,null,null,null,null,null,null,null,null,null,null,null,null,null,null,null,null,null,null,null,null,null,null,null,null,null,null,0,0,0,{"$error":"#NUM!"},null,null,null,null,null,null,null,null,null,null,null,null,null,null,null,null,null,null,null,null,null,null,null,null,null,null,null,null,null,null,null,null,0,0,0,{"$error":"#NUM!"}]
["Destino:  S = Soltura, CRAS, U=Universidade, D = Descarte, SPQ=Soltura Pós Quarentena.",null,null,null,2020,9,12,"AT","2020-09-19","07:35:00",null,308370,7491131,"Fragento Florestal",null,1,"HERPETOFAUNA",null,null,"Oxyrhopus guibei","Falsa-coral","Morto",null,null,null,null,null,"UNIFAJ","2020-12-01",292726,7486121,null,"UNIFAJ - 02/11/2020",2020,12,null,null,null,null,null,null,null,null,null,null,null,null,null,null,null,null,null,null,null,null,null,null,null,null,null,null,null,null,null,null,null,null,null,null,null,null,null,null,null,null,null,null,null,null,null,null,null,null,null,null,null,null,null,null,null,null,null,null,null,null,null,null,null,null,null,null,null,null,null,null,null,null,null,null,null,null,null,null,null,null,null,null,null,null,null,null,null,null,null,null,null,null,null,null,null,null,null,null,null,null,null,null,null,null,null,null,null,0,0,0,{"$error":"#NUM!"},null,null,null,null,null,null,null,null,null,null,null,null,null,null,null,null,null,null,null,null,null,null,null,null,null,null,null,null,null,null,null,null,0,0,0,{"$error":"#NUM!"}]
[null,null,null,null,2020,9,13,"AT","2020-09-19","08:00:00",null,308704,7493228,"Fragento Florestal",null,1,"HERPETOFAUNA",null,null,"Erythrolamprus aesculapii","Falsa-coral","Morto",null,null,null,null,null,"UNIFAJ","2020-12-01",292726,7486121,null,"UNIFAJ - 02/11/2020",2020,12,null,null,null,null,null,null,null,null,null,null,null,null,null,null,null,null,null,null,null,null,null,null,null,null,null,null,null,null,null,null,null,null,null,null,null,null,null,null,null,null,null,null,null,null,null,null,null,null,null,null,null,null,null,null,null,null,null,null,null,null,null,null,null,null,null,null,null,null,null,null,null,null,null,null,null,null,null,null,null,null,null,null,null,null,null,null,null,null,null,null,null,null,null,null,null,null,null,null,null,null,null,null,null,null,null,null,null,0,0,0,{"$error":"#NUM!"},null,null,null,null,null,null,null,null,null,null,null,null,null,null,null,null,null,null,null,null,null,null,null,null,null,null,null,null,null,null,null,null,0,0,0,{"$error":"#NUM!"}]
[null,null,null,null,2020,9,15,"AT","2020-09-22","14:54:00",null,308076,7490915,"Pastagem",null,1,"HERPETOFAUNA",null,null,"Dipsas mikanii","Jararaquinha-dormideira","Morto",null,null,null,null,null,"UNIFAJ","2020-12-01",292726,7486121,null,"UNIFAJ - 02/11/2020",2020,12,null,null,null,null,null,null,null,null,null,null,null,null,null,null,null,null,null,null,null,null,null,null,null,null,null,null,null,null,null,null,null,null,null,null,null,null,null,null,null,null,null,null,null,null,null,null,null,null,null,null,null,null,null,null,null,null,null,null,null,null,null,null,null,null,null,null,null,null,null,null,null,null,null,null,null,null,null,null,null,null,null,null,null,null,null,null,null,null,null,null,null,null,null,null,null,null,null,null,null,null,null,null,null,null,null,null,null,0,0,0,{"$error":"#NUM!"},null,null,null,null,null,null,null,null,null,null,null,null,null,null,null,null,null,null,null,null,null,null,null,null,null,null,null,null,null,null,null,null,0,0,0,{"$error":"#NUM!"}]
[null,null,null,null,2020,9,18,"AT","2020-09-29","08:30:00",null,308361,7491136,"Outro",null,1,"HERPETOFAUNA",null,null,"Oxyrhopus guibei","Falsa-coral","Morto",null,null,null,null,null,"UNIFAJ","2020-12-01",292726,7486121,null,"UNIFAJ - 02/11/2020",2020,12,null,null,null,null,null,null,null,null,null,null,null,null,null,null,null,null,null,null,null,null,null,null,null,null,null,null,null,null,null,null,null,null,null,null,null,null,null,null,null,null,null,null,null,null,null,null,null,null,null,null,null,null,null,null,null,null,null,null,null,null,null,null,null,null,null,null,null,null,null,null,null,null,null,null,null,null,null,null,null,null,null,null,null,null,null,null,null,null,null,null,null,null,null,null,null,null,null,null,null,null,null,null,null,null,null,null,null,0,0,0,{"$error":"#NUM!"},null,null,null,null,null,null,null,null,null,null,null,null,null,null,null,null,null,null,null,null,null,null,null,null,null,null,null,null,null,null,null,null,0,0,0,{"$error":"#NUM!"}]
[null,null,null,null,2020,11,20,"AT","2020-11-13","09:49:00",null,308372,7491420,"Campo Antrópico",null,1,"HERPETOFAUNA",null,null,"Salvator meirianae","Teiú","Morto",null,null,null,null,null,"UNIFAJ","2020-12-01",292726,7486121,null,"UNIFAJ - 02/11/2020",2020,12,null,null,null,null,null,null,null,null,null,null,null,null,null,null,null,null,null,null,null,null,null,null,null,null,null,null,null,null,null,null,null,null,null,null,null,null,null,null,null,null,null,null,null,null,null,null,null,null,null,null,null,null,null,null,null,null,null,null,null,null,null,null,null,null,null,null,null,null,null,null,null,null,null,null,null,null,null,null,null,null,null,null,null,null,null,null,null,null,null,null,null,null,null,null,null,null,null,null,null,null,null,null,null,null,null,null,null,0,0,0,{"$error":"#NUM!"},null,null,null,null,null,null,null,null,null,null,null,null,null,null,null,null,null,null,null,null,null,null,null,null,null,null,null,null,null,null,null,null,0,0,0,{"$error":"#NUM!"}]
[null,null,null,null,2020,11,22,"AT","2020-11-26","17:06:00",null,308361,7491136,"Fragento Florestal",null,1,"MASTOFAUNA",null,null,"Dasypus novemcinctus","Tatu-galinha","Morto",null,null,null,null,null,"UNIFAJ","2020-12-01",292726,7486121,null,"UNIFAJ - 02/11/2020",2020,12,null,null,null,null,null,null,null,null,null,null,null,null,null,null,null,null,null,null,null,null,null,null,null,null,null,null,null,null,null,null,null,null,null,null,null,null,null,null,null,null,null,null,null,null,null,null,null,null,null,null,null,null,null,null,null,null,null,null,null,null,null,null,null,null,null,null,null,null,null,null,null,null,null,null,null,null,null,null,null,null,null,null,null,null,null,null,null,null,null,null,null,null,null,null,null,null,null,null,null,null,null,null,null,null,null,null,null,0,0,0,{"$error":"#NUM!"},null,null,null,null,null,null,null,null,null,null,null,null,null,null,null,null,null,null,null,null,null,null,null,null,null,null,null,null,null,null,null,null,0,0,0,{"$error":"#NUM!"}]
[null,null,null,null,2020,11,23,"AT","2020-11-27","09:42:00",null,307269,7491909,"Cultivo agrícola",null,1,"HERPETOFAUNA",null,null,"Erythrolamprus aesculapii","Falsa-coral","Morto",null,null,null,null,null,"UNIFAJ","2020-12-01",292726,7486121,null,"UNIFAJ - 02/11/2020",2020,12,null,null,null,null,null,null,null,null,null,null,null,null,null,null,null,null,null,null,null,null,null,null,null,null,null,null,null,null,null,null,null,null,null,null,null,null,null,null,null,null,null,null,null,null,null,null,null,null,null,null,null,null,null,null,null,null,null,null,null,null,null,null,null,null,null,null,null,null,null,null,null,null,null,null,null,null,null,null,null,null,null,null,null,null,null,null,null,null,null,null,null,null,null,null,null,null,null,null,null,null,null,null,null,null,null,null,null,0,0,0,{"$error":"#NUM!"},null,null,null,null,null,null,null,null,null,null,null,null,null,null,null,null,null,null,null,null,null,null,null,null,null,null,null,null,null,null,null,null,0,0,0,{"$error":"#NUM!"}]
[null,null,null,null,2020,12,27,"AT","2020-12-10","08:13:00",null,308970,7486862,"Pastagem",null,1,"MASTOFAUNA",null,null,"Callithrix jacchus","Sagui-de-tufo-branco","Morto",null,null,null,null,null,"Base de Fauna","-",308508,7491376,null,"Base de Fauna","-","-",null,null,null,null,null,null,null,null,null,null,null,null,null,null,null,null,null,null,null,null,null,null,null,null,null,null,null,null,null,null,null,null,null,null,null,null,null,null,null,null,null,null,null,null,null,null,null,null,null,null,null,null,null,null,null,null,null,null,null,null,null,null,null,null,null,null,null,null,null,null,null,null,null,null,null,null,null,null,null,null,null,null,null,null,null,null,null,null,null,null,null,null,null,null,null,null,null,null,null,null,null,null,null,null,null,null,null,0,0,0,{"$error":"#NUM!"},null,null,null,null,null,null,null,null,null,null,null,null,null,null,null,null,null,null,null,null,null,null,null,null,null,null,null,null,null,null,null,null,0,0,0,{"$error":"#NUM!"}]
[null,null,null,null,2021,1,29,"AT","2021-01-05","13:45:00",null,308528,7491335,"Fragento Florestal",null,1,"HERPETOFAUNA",null,null,"Philodryas olfersii","Cobra - Verde","Ferido",null,null,null,null,null,"Base de Fauna","-",308508,7491376,null,"Base de Fauna","-","-",null,null,null,null,null,null,null,null,null,null,null,null,null,null,null,null,null,null,null,null,null,null,null,null,null,null,null,null,null,null,null,null,null,null,null,null,null,null,null,null,null,null,null,null,null,null,null,null,null,null,null,null,null,null,null,null,null,null,null,null,null,null,null,null,null,null,null,null,null,null,null,null,null,null,null,null,null,null,null,null,null,null,null,null,null,null,null,null,null,null,null,null,null,null,null,null,null,null,null,null,null,null,null,null,null,null,null,0,0,0,{"$error":"#NUM!"},null,null,null,null,null,null,null,null,null,null,null,null,null,null,null,null,null,null,null,null,null,null,null,null,null,null,null,null,null,null,null,null,0,0,0,{"$error":"#NUM!"}]
[null,null,null,null,2021,1,35,"AT","2021-01-16","07:15:00",null,306753,7490910,"Pastagem",null,1,"HERPETOFAUNA",null,null,"Amphisbaena alba","Cobra - cega","Ferido",null,null,null,null,null,"Base de Fauna","-",308508,7491376,null,"Base de Fauna","-","-",null,null,null,null,null,null,null,null,null,null,null,null,null,null,null,null,null,null,null,null,null,null,null,null,null,null,null,null,null,null,null,null,null,null,null,null,null,null,null,null,null,null,null,null,null,null,null,null,null,null,null,null,null,null,null,null,null,null,null,null,null,null,null,null,null,null,null,null,null,null,null,null,null,null,null,null,null,null,null,null,null,null,null,null,null,null,null,null,null,null,null,null,null,null,null,null,null,null,null,null,null,null,null,null,null,null,null,0,0,0,{"$error":"#NUM!"},null,null,null,null,null,null,null,null,null,null,null,null,null,null,null,null,null,null,null,null,null,null,null,null,null,null,null,null,null,null,null,null,0,0,0,{"$error":"#NUM!"}]
[null,null,null,null,2021,1,43,"AT","2021-01-28","10:38:00",null,308226,7491093,"Canteiro de obras",null,1,"HERPETOFAUNA",null,null,"Amphisbaena alba","Cobra-cega","Ferido",null,null,null,null,null,"CRAS - Mata Ciliar","2021-01-28",305466,7484505,null,"Encainhado para o CRAS - Mata Ciliar",2021,1,null,null,null,null,null,null,null,null,null,null,null,null,null,null,null,null,null,null,null,null,null,null,null,null,null,null,null,null,null,null,null,null,null,null,null,null,null,null,null,null,null,null,null,null,null,null,null,null,null,null,null,null,null,null,null,null,null,null,null,null,null,null,null,null,null,null,null,null,null,null,null,null,null,null,null,null,null,null,null,null,null,null,null,null,null,null,null,null,null,null,null,null,null,null,null,null,null,null,null,null,null,null,null,null,null,null,null,0,0,0,{"$error":"#NUM!"},null,null,null,null,null,null,null,null,null,null,null,null,null,null,null,null,null,null,null,null,null,null,null,null,null,null,null,null,null,null,null,null,0,0,0,{"$error":"#NUM!"}]
[null,null,null,null,"-","-",null,null,null,null,null,null,null,null,null,null,null,null,null,null,null,null,null,null,null,null,null,null,null,null,null,null,null,1900,1,null,null,null,null,null,null,null,null,null,null,null,null,null,null,null,null,null,null,null,null,null,null,null,null,null,null,null,null,null,null,null,null,null,null,null,null,null,null,null,null,null,null,null,null,null,null,null,null,null,null,null,null,null,null,null,null,null,null,null,null,null,null,null,null,null,null,null,null,null,null,null,null,null,null,null,null,null,null,null,null,null,null,null,null,null,null,null,null,null,null,null,null,null,null,null,null,null,null,null,null,null,null,null,null,null,null,null,0,0,0,{"$error":"#NUM!"},null,null,null,null,null,null,null,null,null,null,null,null,null,null,null,null,null,null,null,null,null,null,null,null,null,null,null,null,null,null,null,null,0,0,0,{"$error":"#NUM!"}]
[null,null,null,null,"-","-",null,null,null,null,null,null,null,null,null,null,null,null,null,null,null,null,null,null,null,null,null,null,null,null,null,null,null,1900,1,null,null,null,null,null,null,null,null,null,null,null,null,null,null,null,null,null,null,null,null,null,null,null,null,null,null,null,null,null,null,null,null,null,null,null,null,null,null,null,null,null,null,null,null,null,null,null,null,null,null,null,null,null,null,null,null,null,null,null,null,null,null,null,null,null,null,null,null,null,null,null,null,null,null,null,null,null,null,null,null,null,null,null,null,null,null,null,null,null,null,null,null,null,null,null,null,null,null,null,null,null,null,null,null,null,null,null,0,0,0,{"$error":"#NUM!"},null,null,null,null,null,null,null,null,null,null,null,null,null,null,null,null,null,null,null,null,null,null,null,null,null,null,null,null,null,null,null,null,0,0,0,{"$error":"#NUM!"}]
[null,null,null,null,{"$f":"IF(I79=\"\",\"-\",YEAR(I79))","v":"-"},{"$f":"IF(I79=\"\",\"-\",MONTH(I79))","v":"-"},null,null,null,null,null,null,null,null,null,null,null,null,null,null,null,null,null,null,null,null,null,null,null,null,null,null,null,1900,1,null,null,null,null,null,null,null,null,null,null,null,null,null,null,null,null,null,null,null,null,null,null,null,null,null,null,null,null,null,null,null,null,null,null,null,null,null,null,null,null,null,null,null,null,null,null,null,null,null,null,null,null,null,null,null,null,null,null,null,null,null,null,null,null,null,null,null,null,null,null,null,null,null,null,null,null,null,null,null,null,null,null,null,null,null,null,null,null,null,null,null,null,null,null,null,null,null,null,null,null,null,null,null,null,null,null,null,0,0,0,{"$error":"#NUM!"},null,null,null,null,null,null,null,null,null,null,null,null,null,null,null,null,null,null,null,null,null,null,null,null,null,null,null,null,null,null,null,null,0,0,0,{"$error":"#NUM!"}]
[null,null,null,null,"-","-",null,null,null,null,null,null,null,null,null,null,null,null,null,null,null,null,null,null,null,null,null,null,null,null,null,null,null,1900,1,null,null,null,null,null,null,null,null,null,null,null,null,null,null,null,null,null,null,null,null,null,null,null,null,null,null,null,null,null,null,null,null,null,null,null,null,null,null,null,null,null,null,null,null,null,null,null,null,null,null,null,null,null,null,null,null,null,null,null,null,null,null,null,null,null,null,null,null,null,null,null,null,null,null,null,null,null,null,null,null,null,null,null,null,null,null,null,null,null,null,null,null,null,null,null,null,null,null,null,null,null,null,null,null,null,null,null,0,0,0,{"$error":"#NUM!"},null,null,null,null,null,null,null,null,null,null,null,null,null,null,null,null,null,null,null,null,null,null,null,null,null,null,null,null,null,null,null,null,0,0,0,{"$error":"#NUM!"}]
[null,null,null,null,"-","-",null,null,null,null,null,null,null,null,null,null,null,null,null,null,null,null,null,null,null,null,null,null,null,null,null,null,null,1900,1,null,null,null,null,null,null,null,null,null,null,null,null,null,null,null,null,null,null,null,null,null,null,null,null,null,null,null,null,null,null,null,null,null,null,null,null,null,null,null,null,null,null,null,null,null,null,null,null,null,null,null,null,null,null,null,null,null,null,null,null,null,null,null,null,null,null,null,null,null,null,null,null,null,null,null,null,null,null,null,null,null,null,null,null,null,null,null,null,null,null,null,null,null,null,null,null,null,null,null,null,null,null,null,null,null,null,null,0,0,0,{"$error":"#NUM!"},null,null,null,null,null,null,null,null,null,null,null,null,null,null,null,null,null,null,null,null,null,null,null,null,null,null,null,null,null,null,null,null,0,0,0,{"$error":"#NUM!"}]
[null,null,null,null,"-","-",null,null,null,null,null,null,null,null,null,null,null,null,null,null,null,null,null,null,null,null,null,null,null,null,null,null,null,1900,1,null,null,null,null,null,null,null,null,null,null,null,null,null,null,null,null,null,null,null,null,null,null,null,null,null,null,null,null,null,null,null,null,null,null,null,null,null,null,null,null,null,null,null,null,null,null,null,null,null,null,null,null,null,null,null,null,null,null,null,null,null,null,null,null,null,null,null,null,null,null,null,null,null,null,null,null,null,null,null,null,null,null,null,null,null,null,null,null,null,null,null,null,null,null,null,null,null,null,null,null,null,null,null,null,null,null,null,0,0,0,{"$error":"#NUM!"},null,null,null,null,null,null,null,null,null,null,null,null,null,null,null,null,null,null,null,null,null,null,null,null,null,null,null,null,null,null,null,null,0,0,0,{"$error":"#NUM!"}]
[null,null,null,null,"-","-",null,null,null,null,null,null,null,null,null,null,null,null,null,null,null,null,null,null,null,null,null,null,null,null,null,null,null,1900,1,null,null,null,null,null,null,null,null,null,null,null,null,null,null,null,null,null,null,null,null,null,null,null,null,null,null,null,null,null,null,null,null,null,null,null,null,null,null,null,null,null,null,null,null,null,null,null,null,null,null,null,null,null,null,null,null,null,null,null,null,null,null,null,null,null,null,null,null,null,null,null,null,null,null,null,null,null,null,null,null,null,null,null,null,null,null,null,null,null,null,null,null,null,null,null,null,null,null,null,null,null,null,null,null,null,null,null,0,0,0,{"$error":"#NUM!"},null,null,null,null,null,null,null,null,null,null,null,null,null,null,null,null,null,null,null,null,null,null,null,null,null,null,null,null,null,null,null,null,0,0,0,{"$error":"#NUM!"}]
[null,null,null,null,"-","-",null,null,null,null,null,null,null,null,null,null,null,null,null,null,null,null,null,null,null,null,null,null,null,null,null,null,null,1900,1,null,null,null,null,null,null,null,null,null,null,null,null,null,null,null,null,null,null,null,null,null,null,null,null,null,null,null,null,null,null,null,null,null,null,null,null,null,null,null,null,null,null,null,null,null,null,null,null,null,null,null,null,null,null,null,null,null,null,null,null,null,null,null,null,null,null,null,null,null,null,null,null,null,null,null,null,null,null,null,null,null,null,null,null,null,null,null,null,null,null,null,null,null,null,null,null,null,null,null,null,null,null,null,null,null,null,null,0,0,0,{"$error":"#NUM!"},null,null,null,null,null,null,null,null,null,null,null,null,null,null,null,null,null,null,null,null,null,null,null,null,null,null,null,null,null,null,null,null,0,0,0,{"$error":"#NUM!"}]
[null,null,null,null,"-","-",null,null,null,null,null,null,null,null,null,null,null,null,null,null,null,null,null,null,null,null,null,null,null,null,null,null,null,1900,1,null,null,null,null,null,null,null,null,null,null,null,null,null,null,null,null,null,null,null,null,null,null,null,null,null,null,null,null,null,null,null,null,null,null,null,null,null,null,null,null,null,null,null,null,null,null,null,null,null,null,null,null,null,null,null,null,null,null,null,null,null,null,null,null,null,null,null,null,null,null,null,null,null,null,null,null,null,null,null,null,null,null,null,null,null,null,null,null,null,null,null,null,null,null,null,null,null,null,null,null,null,null,null,null,null,null,null,0,0,0,{"$error":"#NUM!"},null,null,null,null,null,null,null,null,null,null,null,null,null,null,null,null,null,null,null,null,null,null,null,null,null,null,null,null,null,null,null,null,0,0,0,{"$error":"#NUM!"}]
[null,null,null,null,"-","-",null,null,null,null,null,null,null,null,null,null,null,null,null,null,null,null,null,null,null,null,null,null,null,null,null,null,null,1900,1,null,null,null,null,null,null,null,null,null,null,null,null,null,null,null,null,null,null,null,null,null,null,null,null,null,null,null,null,null,null,null,null,null,null,null,null,null,null,null,null,null,null,null,null,null,null,null,null,null,null,null,null,null,null,null,null,null,null,null,null,null,null,null,null,null,null,null,null,null,null,null,null,null,null,null,null,null,null,null,null,null,null,null,null,null,null,null,null,null,null,null,null,null,null,null,null,null,null,null,null,null,null,null,null,null,null,null,0,0,0,{"$error":"#NUM!"},null,null,null,null,null,null,null,null,null,null,null,null,null,null,null,null,null,null,null,null,null,null,null,null,null,null,null,null,null,null,null,null,0,0,0,{"$error":"#NUM!"}]
[null,null,null,null,"-","-",null,null,null,null,null,null,null,null,null,null,null,null,null,null,null,null,null,null,null,null,null,null,null,null,null,null,null,1900,1,null,null,null,null,null,null,null,null,null,null,null,null,null,null,null,null,null,null,null,null,null,null,null,null,null,null,null,null,null,null,null,null,null,null,null,null,null,null,null,null,null,null,null,null,null,null,null,null,null,null,null,null,null,null,null,null,null,null,null,null,null,null,null,null,null,null,null,null,null,null,null,null,null,null,null,null,null,null,null,null,null,null,null,null,null,null,null,null,null,null,null,null,null,null,null,null,null,null,null,null,null,null,null,null,null,null,null,0,0,0,{"$error":"#NUM!"},null,null,null,null,null,null,null,null,null,null,null,null,null,null,null,null,null,null,null,null,null,null,null,null,null,null,null,null,null,null,null,null,{"$f":"FU87","v":0},0,0,{"$error":"#NUM!"}]
[null,null,null,null,"-","-",null,null,null,null,null,null,null,null,null,null,null,null,null,null,null,null,null,null,null,null,null,null,null,null,null,null,null,1900,1,null,null,null,null,null,null,null,null,null,null,null,null,null,null,null,null,null,null,null,null,null,null,null,null,null,null,null,null,null,null,null,null,null,null,null,null,null,null,null,null,null,null,null,null,null,null,null,null,null,null,null,null,null,null,null,null,null,null,null,null,null,null,null,null,null,null,null,null,null,null,null,null,null,null,null,null,null,null,null,null,null,null,null,null,null,null,null,null,null,null,null,null,null,null,null,null,null,null,null,null,null,null,null,null,null,null,null,0,0,0,{"$error":"#NUM!"},null,null,null,null,null,null,null,null,null,null,null,null,null,null,null,null,null,null,null,null,null,null,null,null,null,null,null,null,null,null,null,null,0,0,0,{"$error":"#NUM!"}]
[null,null,null,null,"-","-",null,null,null,null,null,null,null,null,null,null,null,null,null,null,null,null,null,null,null,null,null,null,null,null,null,null,null,1900,1,null,null,null,null,null,null,null,null,null,null,null,null,null,null,null,null,null,null,null,null,null,null,null,null,null,null,null,null,null,null,null,null,null,null,null,null,null,null,null,null,null,null,null,null,null,null,null,null,null,null,null,null,null,null,null,null,null,null,null,null,null,null,null,null,null,null,null,null,null,null,null,null,null,null,null,null,null,null,null,null,null,null,null,null,null,null,null,null,null,null,null,null,null,null,null,null,null,null,null,null,null,null,null,null,null,null,null,0,0,0,{"$error":"#NUM!"},null,null,null,null,null,null,null,null,null,null,null,null,null,null,null,null,null,null,null,null,null,null,null,null,null,null,null,null,null,null,null,null,0,0,0,{"$error":"#NUM!"}]
[null,null,null,null,"-","-",null,null,null,null,null,null,null,null,null,null,null,null,null,null,null,null,null,null,null,null,null,null,null,null,null,null,null,1900,1,null,null,null,null,null,null,null,null,null,null,null,null,null,null,null,null,null,null,null,null,null,null,null,null,null,null,null,null,null,null,null,null,null,null,null,null,null,null,null,null,null,null,null,null,null,null,null,null,null,null,null,null,null,null,null,null,null,null,null,null,null,null,null,null,null,null,null,null,null,null,null,null,null,null,null,null,null,null,null,null,null,null,null,null,null,null,null,null,null,null,null,null,null,null,null,null,null,null,null,null,null,null,null,null,null,null,null,0,0,0,{"$error":"#NUM!"}]
[null,null,null,null,"-","-",null,null,null,null,null,null,null,null,null,null,null,null,null,null,null,null,null,null,null,null,null,null,null,null,null,null,null,1900,1,null,null,null,null,null,null,null,null,null,null,null,null,null,null,null,null,null,null,null,null,null,null,null,null,null,null,null,null,null,null,null,null,null,null,null,null,null,null,null,null,null,null,null,null,null,null,null,null,null,null,null,null,null,null,null,null,null,null,null,null,null,null,null,null,null,null,null,null,null,null,null,null,null,null,null,null,null,null,null,null,null,null,null,null,null,null,null,null,null,null,null,null,null,null,null,null,null,null,null,null,null,null,null,null,null,null,null,0,0,0,{"$error":"#NUM!"}]
[null,null,null,null,"-","-",null,null,null,null,null,null,null,null,null,null,null,null,null,null,null,null,null,null,null,null,null,null,null,null,null,null,null,1900,1,null,null,null,null,null,null,null,null,null,null,null,null,null,null,null,null,null,null,null,null,null,null,null,null,null,null,null,null,null,null,null,null,null,null,null,null,null,null,null,null,null,null,null,null,null,null,null,null,null,null,null,null,null,null,null,null,null,null,null,null,null,null,null,null,null,null,null,null,null,null,null,null,null,null,null,null,null,null,null,null,null,null,null,null,null,null,null,null,null,null,null,null,null,null,null,null,null,null,null,null,null,null,null,null,null,null,null,0,0,0,{"$error":"#NUM!"}]
[null,null,null,null,"-","-",null,null,null,null,null,null,null,null,null,null,null,null,null,null,null,null,null,null,null,null,null,null,null,null,null,null,null,1900,1,null,null,null,null,null,null,null,null,null,null,null,null,null,null,null,null,null,null,null,null,null,null,null,null,null,null,null,null,null,null,null,null,null,null,null,null,null,null,null,null,null,null,null,null,null,null,null,null,null,null,null,null,null,null,null,null,null,null,null,null,null,null,null,null,null,null,null,null,null,null,null,null,null,null,null,null,null,null,null,null,null,null,null,null,null,null,null,null,null,null,null,null,null,null,null,null,null,null,null,null,null,null,null,null,null,null,null,0,0,0,{"$error":"#NUM!"}]
[null,null,null,null,"-","-",null,null,null,null,null,null,null,null,null,null,null,null,null,null,null,null,null,null,null,null,null,null,null,null,null,null,null,1900,1,null,null,null,null,null,null,null,null,null,null,null,null,null,null,null,null,null,null,null,null,null,null,null,null,null,null,null,null,null,null,null,null,null,null,null,null,null,null,null,null,null,null,null,null,null,null,null,null,null,null,null,null,null,null,null,null,null,null,null,null,null,null,null,null,null,null,null,null,null,null,null,null,null,null,null,null,null,null,null,null,null,null,null,null,null,null,null,null,null,null,null,null,null,null,null,null,null,null,null,null,null,null,null,null,null,null,null,0,0,0,{"$error":"#NUM!"}]
[null,null,null,null,{"$f":"IF(I95=\"\",\"-\",YEAR(I95))","v":"-"},{"$f":"IF(I95=\"\",\"-\",MONTH(I95))","v":"-"},null,null,null,null,null,null,null,null,null,null,null,null,null,null,null,null,null,null,null,null,null,null,null,null,null,null,null,1900,1,null,null,null,null,null,null,null,null,null,null,null,null,null,null,null,null,null,null,null,null,null,null,null,null,null,null,null,null,null,null,null,null,null,null,null,null,null,null,null,null,null,null,null,null,null,null,null,null,null,null,null,null,null,null,null,null,null,null,null,null,null,null,null,null,null,null,null,null,null,null,null,null,null,null,null,null,null,null,null,null,null,null,null,null,null,null,null,null,null,null,null,null,null,null,null,null,null,null,null,null,null,null,null,null,null,null,null,{"$f":"EK95","v":0},0,0,{"$error":"#NUM!"}]
[null,null,null,null,"-","-",null,null,null,null,null,null,null,null,null,null,null,null,null,null,null,null,null,null,null,null,null,null,null,null,null,null,null,{"$f":"IF(AC96=\"-\",\"-\",YEAR(AC96))","v":1900},{"$f":"IF(AC96=\"-\",\"-\",MONTH(AC96))","v":1},null,null,null,null,null,null,null,null,null,null,null,null,null,null,null,null,null,null,null,null,null,null,null,null,null,null,null,null,null,null,null,null,null,null,null,null,null,null,null,null,null,null,null,null,null,null,null,null,null,null,null,null,null,null,null,null,null,null,null,null,null,null,null,null,null,null,null,null,null,null,null,null,null,null,null,null,null,null,null,null,null,null,null,null,null,null,null,null,null,null,null,null,null,null,null,null,null,null,null,null,null,null,null,null,null,null,null,0,{"$f":"EL96","v":0},{"$f":"EN96/$EL$30","v":0},{"$error":"#NUM!"}]
[null,null,null,null,"-","-",null,null,null,null,null,null,null,null,null,null,null,null,null,null,null,null,null,null,null,null,null,null,null,null,null,null,null,1900,1,null,null,null,null,null,null,null,null,null,null,null,null,null,null,null,null,null,null,null,null,null,null,null,null,null,null,null,null,null,null,null,null,null,null,null,null,null,null,null,null,null,null,null,null,null,null,null,null,null,null,null,null,null,null,null,null,null,null,null,null,null,null,null,null,null,null,null,null,null,null,null,null,null,null,null,null,null,null,null,null,null,null,null,null,null,null,null,null,null,null,null,null,null,null,null,null,null,null,null,null,null,null,null,null,null,null,null,0,0,0,{"$f":"(-1)*EO97*LN(EO97)","v":{"$error":"#NUM!"}}]
[null,null,null,null,"-","-",null,null,null,null,null,null,null,null,null,null,null,null,null,null,null,null,null,null,null,null,null,null,null,null,null,null,null,1900,1,null,null,null,null,null,null,null,null,null,null,null,null,null,null,null,null,null,null,null,null,null,null,null,null,null,null,null,null,null,null,null,null,null,null,null,null,null,null,null,null,null,null,null,null,null,null,null,null,null,null,null,null,null,null,null,null,null,null,null,null,null,null,null,null,null,null,null,null,null,null,null,null,null,null,null,null,null,null,null,null,null,null,null,null,null,null,null,null,null,null,null,null,null,null,null,null,null,null,null,null,null,null,null,null,null,null,null,0,0,0,{"$error":"#NUM!"}]
[null,null,null,null,"-","-",null,null,null,null,null,null,null,null,null,null,null,null,null,null,null,null,null,null,null,null,null,null,null,null,null,null,null,1900,1,null,null,null,null,null,null,null,null,null,null,null,null,null,null,null,null,null,null,null,null,null,null,null,null,null,null,null,null,null,null,null,null,null,null,null,null,null,null,null,null,null,null,null,null,null,null,null,null,null,null,null,null,null,null,null,null,null,null,null,null,null,null,null,null,null,null,null,null,null,null,null,null,null,null,null,null,null,null,null,null,null,null,null,null,null,null,null,null,null,null,null,null,null,null,null,null,null,null,null,null,null,null,null,null,null,null,null,0,0,0,{"$error":"#NUM!"}]
[null,null,null,null,"-","-",null,null,null,null,null,null,null,null,null,null,null,null,null,null,null,null,null,null,null,null,null,null,null,null,null,null,null,1900,1,null,null,null,null,null,null,null,null,null,null,null,null,null,null,null,null,null,null,null,null,null,null,null,null,null,null,null,null,null,null,null,null,null,null,null,null,null,null,null,null,null,null,null,null,null,null,null,null,null,null,null,null,null,null,null,null,null,null,null,null,null,null,null,null,null,null,null,null,null,null,null,null,null,null,null,null,null,null,null,null,null,null,null,null,null,null,null,null,null,null,null,null,null,null,null,null,null,null,null,null,null,null,null,null,null,null,null,0,0,0,{"$error":"#NUM!"}]
[null,null,null,null,"-","-",null,null,null,null,null,null,null,null,null,null,null,null,null,null,null,null,null,null,null,null,null,null,null,null,null,null,null,1900,1,null,null,null,null,null,null,null,null,null,null,null,null,null,null,null,null,null,null,null,null,null,null,null,null,null,null,null,null,null,null,null,null,null,null,null,null,null,null,null,null,null,null,null,null,null,null,null,null,null,null,null,null,null,null,null,null,null,null,null,null,null,null,null,null,null,null,null,null,null,null,null,null,null,null,null,null,null,null,null,null,null,null,null,null,null,null,null,null,null,null,null,null,null,null,null,null,null,null,null,null,null,null,null,null,null,null,null,0,0,0,{"$error":"#NUM!"}]
[null,null,null,null,"-","-",null,null,null,null,null,null,null,null,null,null,null,null,null,null,null,null,null,null,null,null,null,null,null,null,null,null,null,1900,1,null,null,null,null,null,null,null,null,null,null,null,null,null,null,null,null,null,null,null,null,null,null,null,null,null,null,null,null,null,null,null,null,null,null,null,null,null,null,null,null,null,null,null,null,null,null,null,null,null,null,null,null,null,null,null,null,null,null,null,null,null,null,null,null,null,null,null,null,null,null,null,null,null,null,null,null,null,null,null,null,null,null,null,null,null,null,null,null,null,null,null,null,null,null,null,null,null,null,null,null,null,null,null,null,null,null,null,0,0,0,{"$error":"#NUM!"}]
[null,null,null,null,"-","-",null,null,null,null,null,null,null,null,null,null,null,null,null,null,null,null,null,null,null,null,null,null,null,null,null,null,null,1900,1,null,null,null,null,null,null,null,null,null,null,null,null,null,null,null,null,null,null,null,null,null,null,null,null,null,null,null,null,null,null,null,null,null,null,null,null,null,null,null,null,null,null,null,null,null,null,null,null,null,null,null,null,null,null,null,null,null,null,null,null,null,null,null,null,null,null,null,null,null,null,null,null,null,null,null,null,null,null,null,null,null,null,null,null,null,null,null,null,null,null,null,null,null,null,null,null,null,null,null,null,null,null,null,null,null,null,null,0,0,0,{"$error":"#NUM!"}]
[null,null,null,null,"-","-",null,null,null,null,null,null,null,null,null,null,null,null,null,null,null,null,null,null,null,null,null,null,null,null,null,null,null,1900,1,null,null,null,null,null,null,null,null,null,null,null,null,null,null,null,null,null,null,null,null,null,null,null,null,null,null,null,null,null,null,null,null,null,null,null,null,null,null,null,null,null,null,null,null,null,null,null,null,null,null,null,null,null,null,null,null,null,null,null,null,null,null,null,null,null,null,null,null,null,null,null,null,null,null,null,null,null,null,null,null,null,null,null,null,null,null,null,null,null,null,null,null,null,null,null,null,null,null,null,null,null,null,null,null,null,null,null,0,0,0,{"$error":"#NUM!"}]
[null,null,null,null,"-","-",null,null,null,null,null,null,null,null,null,null,null,null,null,null,null,null,null,null,null,null,null,null,null,null,null,null,null,1900,1,null,null,null,null,null,null,null,null,null,null,null,null,null,null,null,null,null,null,null,null,null,null,null,null,null,null,null,null,null,null,null,null,null,null,null,null,null,null,null,null,null,null,null,null,null,null,null,null,null,null,null,null,null,null,null,null,null,null,null,null,null,null,null,null,null,null,null,null,null,null,null,null,null,null,null,null,null,null,null,null,null,null,null,null,null,null,null,null,null,null,null,null,null,null,null,null,null,null,null,null,null,null,null,null,null,null,null,0,0,0,{"$error":"#NUM!"}]
[null,null,null,null,"-","-",null,null,null,null,null,null,null,null,null,null,null,null,null,null,null,null,null,null,null,null,null,null,null,null,null,null,null,1900,1]
[null,null,null,null,"-","-",null,null,null,null,null,null,null,null,null,null,null,null,null,null,null,null,null,null,null,null,null,null,null,null,null,null,null,1900,1]
[null,null,null,null,"-","-",null,null,null,null,null,null,null,null,null,null,null,null,null,null,null,null,null,null,null,null,null,null,null,null,null,null,null,1900,1]
[null,null,null,null,"-","-",null,null,null,null,null,null,null,null,null,null,null,null,null,null,null,null,null,null,null,null,null,null,null,null,null,null,null,1900,1]
[null,null,null,null,"-","-",null,null,null,null,null,null,null,null,null,null,null,null,null,null,null,null,null,null,null,null,null,null,null,null,null,null,null,1900,1]
[null,null,null,null,"-","-",null,null,null,null,null,null,null,null,null,null,null,null,null,null,null,null,null,null,null,null,null,null,null,null,null,null,null,1900,1]
[null,null,null,null,"-","-",null,null,null,null,null,null,null,null,null,null,null,null,null,null,null,null,null,null,null,null,null,null,null,null,null,null,null,1900,1]
[null,null,null,null,"-","-",null,null,null,null,null,null,null,null,null,null,null,null,null,null,null,null,null,null,null,null,null,null,null,null,null,null,null,1900,1]
[null,null,null,null,"-","-",null,null,null,null,null,null,null,null,null,null,null,null,null,null,null,null,null,null,null,null,null,null,null,null,null,null,null,1900,1]
[null,null,null,null,"-","-",null,null,null,null,null,null,null,null,null,null,null,null,null,null,null,null,null,null,null,null,null,null,null,null,null,null,null,1900,1]
[null,null,null,null,"-","-",null,null,null,null,null,null,null,null,null,null,null,null,null,null,null,null,null,null,null,null,null,null,null,null,null,null,null,1900,1]
[null,null,null,null,"-","-",null,null,null,null,null,null,null,null,null,null,null,null,null,null,null,null,null,null,null,null,null,null,null,null,null,null,null,1900,1]
[null,null,null,null,"-","-",null,null,null,null,null,null,null,null,null,null,null,null,null,null,null,null,null,null,null,null,null,null,null,null,null,null,null,1900,1]
[null,null,null,null,"-","-",null,null,null,null,null,null,null,null,null,null,null,null,null,null,null,null,null,null,null,null,null,null,null,null,null,null,null,1900,1]
[null,null,null,null,"-","-",null,null,null,null,null,null,null,null,null,null,null,null,null,null,null,null,null,null,null,null,null,null,null,null,null,null,null,1900,1]
[null,null,null,null,"-","-",null,null,null,null,null,null,null,null,null,null,null,null,null,null,null,null,null,null,null,null,null,null,null,null,null,null,null,1900,1]
[null,null,null,null,"-","-",null,null,null,null,null,null,null,null,null,null,null,null,null,null,null,null,null,null,null,null,null,null,null,null,null,null,null,1900,1]
[null,null,null,null,"-","-",null,null,null,null,null,null,null,null,null,null,null,null,null,null,null,null,null,null,null,null,null,null,null,null,null,null,null,1900,1]
[null,null,null,null,"-","-",null,null,null,null,null,null,null,null,null,null,null,null,null,null,null,null,null,null,null,null,null,null,null,null,null,null,null,1900,1]
[null,null,null,null,"-","-",null,null,null,null,null,null,null,null,null,null,null,null,null,null,null,null,null,null,null,null,null,null,null,null,null,null,null,1900,1]
[null,null,null,null,"-","-",null,null,null,null,null,null,null,null,null,null,null,null,null,null,null,null,null,null,null,null,null,null,null,null,null,null,null,1900,1]
[null,null,null,null,{"$f":"IF(I127=\"\",\"-\",YEAR(I127))","v":"-"},{"$f":"IF(I127=\"\",\"-\",MONTH(I127))","v":"-"},null,null,null,null,null,null,null,null,null,null,null,null,null,null,null,null,null,null,null,null,null,null,null,null,null,null,null,1900,1]
[null,null,null,null,"-","-",null,null,null,null,null,null,null,null,null,null,null,null,null,null,null,null,null,null,null,null,null,null,null,null,null,null,null,1900,1]
[null,null,null,null,"-","-",null,null,null,null,null,null,null,null,null,null,null,null,null,null,null,null,null,null,null,null,null,null,null,null,null,null,null,1900,1]
[null,null,null,null,"-","-",null,null,null,null,null,null,null,null,null,null,null,null,null,null,null,null,null,null,null,null,null,null,null,null,null,null,null,1900,1]
[null,null,null,null,"-","-",null,null,null,null,null,null,null,null,null,null,null,null,null,null,null,null,null,null,null,null,null,null,null,null,null,null,null,1900,1]
[null,null,null,null,"-","-",null,null,null,null,null,null,null,null,null,null,null,null,null,null,null,null,null,null,null,null,null,null,null,null,null,null,null,1900,1]
[null,null,null,null,"-","-",null,null,null,null,null,null,null,null,null,null,null,null,null,null,null,null,null,null,null,null,null,null,null,null,null,null,null,1900,1]
[null,null,null,null,"-","-",null,null,null,null,null,null,null,null,null,null,null,null,null,null,null,null,null,null,null,null,null,null,null,null,null,null,null,1900,1]
[null,null,null,null,"-","-",null,null,null,null,null,null,null,null,null,null,null,null,null,null,null,null,null,null,null,null,null,null,null,null,null,null,null,1900,1]
[null,null,null,null,"-","-",null,null,null,null,null,null,null,null,null,null,null,null,null,null,null,null,null,null,null,null,null,null,null,null,null,null,null,1900,1]
[null,null,null,null,"-","-",null,null,null,null,null,null,null,null,null,null,null,null,null,null,null,null,null,null,null,null,null,null,null,null,null,null,null,1900,1]
[null,null,null,null,"-","-",null,null,null,null,null,null,null,null,null,null,null,null,null,null,null,null,null,null,null,null,null,null,null,null,null,null,null,1900,1]
[null,null,null,null,"-","-",null,null,null,null,null,null,null,null,null,null,null,null,null,null,null,null,null,null,null,null,null,null,null,null,null,null,null,1900,1]
[null,null,null,null,"-","-",null,null,null,null,null,null,null,null,null,null,null,null,null,null,null,null,null,null,null,null,null,null,null,null,null,null,null,1900,1]
[null,null,null,null,"-","-",null,null,null,null,null,null,null,null,null,null,null,null,null,null,null,null,null,null,null,null,null,null,null,null,null,null,null,1900,1]
[null,null,null,null,"-","-",null,null,null,null,null,null,null,null,null,null,null,null,null,null,null,null,null,null,null,null,null,null,null,null,null,null,null,1900,1]
[null,null,null,null,{"$f":"IF(I143=\"\",\"-\",YEAR(I143))","v":"-"},{"$f":"IF(I143=\"\",\"-\",MONTH(I143))","v":"-"},null,null,null,null,null,null,null,null,null,null,null,null,null,null,null,null,null,null,null,null,null,null,null,null,null,null,null,1900,1]
[null,null,null,null,"-","-",null,null,null,null,null,null,null,null,null,null,null,null,null,null,null,null,null,null,null,null,null,null,null,null,null,null,null,1900,1]
[null,null,null,null,"-","-",null,null,null,null,null,null,null,null,null,null,null,null,null,null,null,null,null,null,null,null,null,null,null,null,null,null,null,1900,1]
[null,null,null,null,"-","-",null,null,null,null,null,null,null,null,null,null,null,null,null,null,null,null,null,null,null,null,null,null,null,null,null,null,null,1900,1]
[null,null,null,null,"-","-",null,null,null,null,null,null,null,null,null,null,null,null,null,null,null,null,null,null,null,null,null,null,null,null,null,null,null,1900,1]
[null,null,null,null,"-","-",null,null,null,null,null,null,null,null,null,null,null,null,null,null,null,null,null,null,null,null,null,null,null,null,null,null,null,1900,1]
[null,null,null,null,"-","-",null,null,null,null,null,null,null,null,null,null,null,null,null,null,null,null,null,null,null,null,null,null,null,null,null,null,null,1900,1]
[null,null,null,null,"-","-",null,null,null,null,null,null,null,null,null,null,null,null,null,null,null,null,null,null,null,null,null,null,null,null,null,null,null,1900,1]
[null,null,null,null,"-","-",null,null,null,null,null,null,null,null,null,null,null,null,null,null,null,null,null,null,null,null,null,null,null,null,null,null,null,1900,1]
[null,null,null,null,"-","-",null,null,null,null,null,null,null,null,null,null,null,null,null,null,null,null,null,null,null,null,null,null,null,null,null,null,null,1900,1]
[null,null,null,null,"-","-",null,null,null,null,null,null,null,null,null,null,null,null,null,null,null,null,null,null,null,null,null,null,null,null,null,null,null,1900,1]
[null,null,null,null,"-","-",null,null,null,null,null,null,null,null,null,null,null,null,null,null,null,null,null,null,null,null,null,null,null,null,null,null,null,1900,1]
[null,null,null,null,"-","-",null,null,null,null,null,null,null,null,null,null,null,null,null,null,null,null,null,null,null,null,null,null,null,null,null,null,null,1900,1]
[null,null,null,null,"-","-",null,null,null,null,null,null,null,null,null,null,null,null,null,null,null,null,null,null,null,null,null,null,null,null,null,null,null,1900,1]
[null,null,null,null,"-","-",null,null,null,null,null,null,null,null,null,null,null,null,null,null,null,null,null,null,null,null,null,null,null,null,null,null,null,1900,1]
[null,null,null,null,"-","-",null,null,null,null,null,null,null,null,null,null,null,null,null,null,null,null,null,null,null,null,null,null,null,null,null,null,null,1900,1]
[null,null,null,null,"-","-",null,null,null,null,null,null,null,null,null,null,null,null,null,null,null,null,null,null,null,null,null,null,null,null,null,null,null,1900,1]
[null,null,null,null,"-","-",null,null,null,null,null,null,null,null,null,null,null,null,null,null,null,null,null,null,null,null,null,null,null,null,null,null,null,{"$f":"IF(AC160=\"-\",\"-\",YEAR(AC160))","v":1900},{"$f":"IF(AC160=\"-\",\"-\",MONTH(AC160))","v":1}]
[null,null,null,null,"-","-",null,null,null,null,null,null,null,null,null,null,null,null,null,null,null,null,null,null,null,null,null,null,null,null,null,null,null,1900,1]
[null,null,null,null,"-","-",null,null,null,null,null,null,null,null,null,null,null,null,null,null,null,null,null,null,null,null,null,null,null,null,null,null,null,1900,1]
[null,null,null,null,"-","-",null,null,null,null,null,null,null,null,null,null,null,null,null,null,null,null,null,null,null,null,null,null,null,null,null,null,null,1900,1]
[null,null,null,null,"-","-",null,null,null,null,null,null,null,null,null,null,null,null,null,null,null,null,null,null,null,null,null,null,null,null,null,null,null,1900,1]
[null,null,null,null,"-","-",null,null,null,null,null,null,null,null,null,null,null,null,null,null,null,null,null,null,null,null,null,null,null,null,null,null,null,1900,1]
[null,null,null,null,"-","-",null,null,null,null,null,null,null,null,null,null,null,null,null,null,null,null,null,null,null,null,null,null,null,null,null,null,null,1900,1]
[null,null,null,null,"-","-",null,null,null,null,null,null,null,null,null,null,null,null,null,null,null,null,null,null,null,null,null,null,null,null,null,null,null,1900,1]
[null,null,null,null,"-","-",null,null,null,null,null,null,null,null,null,null,null,null,null,null,null,null,null,null,null,null,null,null,null,null,null,null,null,1900,1]
[null,null,null,null,"-","-",null,null,null,null,null,null,null,null,null,null,null,null,null,null,null,null,null,null,null,null,null,null,null,null,null,null,null,1900,1]
[null,null,null,null,"-","-",null,null,null,null,null,null,null,null,null,null,null,null,null,null,null,null,null,null,null,null,null,null,null,null,null,null,null,1900,1]
[null,null,null,null,"-","-",null,null,null,null,null,null,null,null,null,null,null,null,null,null,null,null,null,null,null,null,null,null,null,null,null,null,null,1900,1]
[null,null,null,null,"-","-",null,null,null,null,null,null,null,null,null,null,null,null,null,null,null,null,null,null,null,null,null,null,null,null,null,null,null,1900,1]
[null,null,null,null,"-","-",null,null,null,null,null,null,null,null,null,null,null,null,null,null,null,null,null,null,null,null,null,null,null,null,null,null,null,1900,1]
[null,null,null,null,"-","-",null,null,null,null,null,null,null,null,null,null,null,null,null,null,null,null,null,null,null,null,null,null,null,null,null,null,null,1900,1]
[null,null,null,null,"-","-",null,null,null,null,null,null,null,null,null,null,null,null,null,null,null,null,null,null,null,null,null,null,null,null,null,null,null,1900,1]
[null,null,null,null,"-","-",null,null,null,null,null,null,null,null,null,null,null,null,null,null,null,null,null,null,null,null,null,null,null,null,null,null,null,1900,1]
[null,null,null,null,"-","-",null,null,null,null,null,null,null,null,null,null,null,null,null,null,null,null,null,null,null,null,null,null,null,null,null,null,null,1900,1]
[null,null,null,null,"-","-",null,null,null,null,null,null,null,null,null,null,null,null,null,null,null,null,null,null,null,null,null,null,null,null,null,null,null,1900,1]
[null,null,null,null,"-","-",null,null,null,null,null,null,null,null,null,null,null,null,null,null,null,null,null,null,null,null,null,null,null,null,null,null,null,1900,1]
[null,null,null,null,"-","-",null,null,null,null,null,null,null,null,null,null,null,null,null,null,null,null,null,null,null,null,null,null,null,null,null,null,null,1900,1]
[null,null,null,null,"-","-",null,null,null,null,null,null,null,null,null,null,null,null,null,null,null,null,null,null,null,null,null,null,null,null,null,null,null,1900,1]
[null,null,null,null,"-","-",null,null,null,null,null,null,null,null,null,null,null,null,null,null,null,null,null,null,null,null,null,null,null,null,null,null,null,1900,1]
[null,null,null,null,"-","-",null,null,null,null,null,null,null,null,null,null,null,null,null,null,null,null,null,null,null,null,null,null,null,null,null,null,null,1900,1]
[null,null,null,null,"-","-",null,null,null,null,null,null,null,null,null,null,null,null,null,null,null,null,null,null,null,null,null,null,null,null,null,null,null,1900,1]
[null,null,null,null,"-","-",null,null,null,null,null,null,null,null,null,null,null,null,null,null,null,null,null,null,null,null,null,null,null,null,null,null,null,1900,1]
[null,null,null,null,"-","-",null,null,null,null,null,null,null,null,null,null,null,null,null,null,null,null,null,null,null,null,null,null,null,null,null,null,null,1900,1]
[null,null,null,null,"-","-",null,null,null,null,null,null,null,null,null,null,null,null,null,null,null,null,null,null,null,null,null,null,null,null,null,null,null,1900,1]
[null,null,null,null,"-","-",null,null,null,null,null,null,null,null,null,null,null,null,null,null,null,null,null,null,null,null,null,null,null,null,null,null,null,1900,1]
[null,null,null,null,"-","-",null,null,null,null,null,null,null,null,null,null,null,null,null,null,null,null,null,null,null,null,null,null,null,null,null,null,null,1900,1]
[null,null,null,null,"-","-",null,null,null,null,null,null,null,null,null,null,null,null,null,null,null,null,null,null,null,null,null,null,null,null,null,null,null,1900,1]
[null,null,null,null,"-","-",null,null,null,null,null,null,null,null,null,null,null,null,null,null,null,null,null,null,null,null,null,null,null,null,null,null,null,1900,1]
[null,null,null,null,"-","-",null,null,null,null,null,null,null,null,null,null,null,null,null,null,null,null,null,null,null,null,null,null,null,null,null,null,null,1900,1]
[null,null,null,null,"-","-",null,null,null,null,null,null,null,null,null,null,null,null,null,null,null,null,{"$f":"IF(H193=\"AV\",\"Não\",IF(H193=\"AT\",IF(V193=\"Ferido\",\"Sim\",IF(V193=\"Morto\",\"Não\"))))","v":false},null,null,null,null,null,null,null,null,null,null,1900,1]
[null,null,null,null,"-","-",null,null,null,null,null,null,null,null,null,null,null,null,null,null,null,null,false,null,null,null,null,null,null,null,null,null,null,{"$f":"IF(AC194=\"-\",\"-\",YEAR(AC194))","v":1900},{"$f":"IF(AC194=\"-\",\"-\",MONTH(AC194))","v":1}]
[null,null,null,null,"-","-",null,null,null,null,null,null,null,null,null,null,null,null,null,null,null,null,false,null,null,null,null,null,null,null,null,null,null,1900,1]
[null,null,null,null,"-","-",null,null,null,null,null,null,null,null,null,null,null,null,null,null,null,null,false,null,null,null,null,null,null,null,null,null,null,1900,1]
[null,null,null,null,"-","-",null,null,null,null,null,null,null,null,null,null,null,null,null,null,null,null,false,null,null,null,null,null,null,null,null,null,null,1900,1]
[null,null,null,null,"-","-",null,null,null,null,null,null,null,null,null,null,null,null,null,null,null,null,false,null,null,null,null,null,null,null,null,null,null,1900,1]
[null,null,null,null,"-","-",null,null,null,null,null,null,null,null,null,null,null,null,null,null,null,null,false,null,null,null,null,null,null,null,null,null,null,1900,1]
[null,null,null,null,"-","-",null,null,null,null,null,null,null,null,null,null,null,null,null,null,null,null,false,null,null,null,null,null,null,null,null,null,null,1900,1]
[null,null,null,null,"-","-",null,null,null,null,null,null,null,null,null,null,null,null,null,null,null,null,false,null,null,null,null,null,null,null,null,null,null,1900,1]
[null,null,null,null,"-","-",null,null,null,null,null,null,null,null,null,null,null,null,null,null,null,null,false,null,null,null,null,null,null,null,null,null,null,1900,1]
[null,null,null,null,"-","-",null,null,null,null,null,null,null,null,null,null,null,null,null,null,null,null,false,null,null,null,null,null,null,null,null,null,null,1900,1]
[null,null,null,null,"-","-",null,null,null,null,null,null,null,null,null,null,null,null,null,null,null,null,false,null,null,null,null,null,null,null,null,null,null,1900,1]
[null,null,null,null,"-","-",null,null,null,null,null,null,null,null,null,null,null,null,null,null,null,null,false,null,null,null,null,null,null,null,null,null,null,1900,1]
[null,null,null,null,"-","-",null,null,null,null,null,null,null,null,null,null,null,null,null,null,null,null,false,null,null,null,null,null,null,null,null,null,null,1900,1]
[null,null,null,null,{"$f":"IF(I207=\"\",\"-\",YEAR(I207))","v":"-"},{"$f":"IF(I207=\"\",\"-\",MONTH(I207))","v":"-"},null,null,null,null,null,null,null,null,null,null,null,null,null,null,null,null,false,null,null,null,null,null,null,null,null,null,null,1900,1]
[null,null,null,null,{"$f":"IF(I208=\"\",\"-\",YEAR(I208))","v":"-"},{"$f":"IF(I208=\"\",\"-\",MONTH(I208))","v":"-"},null,null,null,null,null,null,null,null,null,null,null,null,null,null,null,null,false,null,null,null,null,null,null,null,null,null,null,1900,1]
[null,null,null,null,{"$f":"IF(I209=\"\",\"-\",YEAR(I209))","v":"-"},{"$f":"IF(I209=\"\",\"-\",MONTH(I209))","v":"-"},null,null,null,null,null,null,null,null,null,null,null,null,null,null,null,null,false,null,null,null,null,null,null,null,null,null,null,1900,1]
[null,null,null,null,{"$f":"IF(I210=\"\",\"-\",YEAR(I210))","v":"-"},{"$f":"IF(I210=\"\",\"-\",MONTH(I210))","v":"-"},null,null,null,null,null,null,null,null,null,null,null,null,null,null,null,null,false,null,null,null,null,null,null,null,null,null,null,1900,1]

{"sheet":"Graf_2","index":11,"n_rows":69,"n_cols":35,"rows_kept":69,"cut":false,"hidden":false,"merged":[]}
[]
[null,null,null,null,null,null,null,null,null,null,null,null,null,null,null,null,"Tipo ","(Vários itens)",null,null,null,null,null,null,null,null,null,null,"ARRASTAR PARA BAIXO!!",null,null,null,"ARRASTAR PARA BAIXO!!"]
["Tipo ","Nome científico","Contagem de Nome científico",null,"Tipo ","Nome científico","Contagem de Nome científico",null,"Tipo ","Nome científico","Contagem de Nome científico",null,"Tipo ","Nome científico","Contagem de Nome científico",null,null,null,null,null,{"$f":"A3","v":"Tipo "},{"$f":"B3","v":"Nome científico"},{"$f":"C3","v":"Contagem de Nome científico"},null,{"$f":"E3","v":"Tipo "},{"$f":"F3","v":"Nome científico"},{"$f":"G3","v":"Contagem de Nome científico"},null,{"$f":"I3","v":"Tipo "},{"$f":"J3","v":"Nome científico"},{"$f":"K3","v":"Contagem de Nome científico"},null,{"$f":"M3","v":"Tipo "},{"$f":"N3","v":"Nome científico"},{"$f":"O3","v":"Contagem de Nome científico"}]
["AF","Calitrix pericilatta",1,null,null,null,null,null,"AT","Dasypus novemcinctus",1,null,"RE","Apodemus sylvaticus",1,null,"Nome científico","Contagem de Nome científico",null,null,"AF","Calitrix pericilatta",1,null,0,0,0,null,"AT","Dasypus novemcinctus",1,null,"RE","Apodemus sylvaticus",1]
["AF","Dasypus novemcinctus",1,null,null,null,null,null,"AT","Didelphis albiventris",1,null,"RE","Copeoglossum nigropunctatum",1,null,"Apodemus sylvaticus",1,null,null,"AF","Dasypus novemcinctus",1,null,0,0,0,null,"AT","Didelphis albiventris",1,null,"RE","Copeoglossum nigropunctatum",1]
["AF","Salvator merianae",1,null,null,null,null,null,"AT","Didelphis aurita",1,null,"RE","Crotalus durissus",8,null,"Copeoglossum nigropunctatum",1,null,null,"AF","Salvator merianae",1,null,0,0,0,null,"AT","Didelphis aurita",1,null,"RE","Crotalus durissus",8]
[null,null,null,null,null,null,null,null,"AT","Dipsas mikanii",2,null,"RE","Didelphis albiventris",1,null,"Crotalus durissus",8,null,null,0,0,0,null,0,0,0,null,"AT","Dipsas mikanii",2,null,"RE","Didelphis albiventris",1]
[null,null,null,null,null,null,null,null,"AT","Erythrolamprus aesculapii",2,null,"RE","Dipsas mikanii",5,null,"Dasypus novemcinctus",1,null,null,0,0,0,null,0,0,0,null,"AT","Erythrolamprus aesculapii",2,null,"RE","Dipsas mikanii",5]
[null,null,null,null,null,null,null,null,"AT","Micrurus sp.",1,null,"RE","Oxyrhopus guibei",1,null,"Didelphis albiventris",2,null,null,0,0,0,null,0,0,0,null,"AT","Micrurus sp.",1,null,"RE","Oxyrhopus guibei",1]
[null,null,null,null,null,null,null,null,"AT","Oxyrhopus guibei",3,null,"RE","Philodryas olfersii",1,null,"Didelphis aurita",1,null,null,0,0,0,null,0,0,0,null,"AT","Oxyrhopus guibei",3,null,"RE","Philodryas olfersii",1]
[null,null,null,null,null,null,null,null,"AT","Philodryas olfersii",1,null,"RE","Pygochelidon cyanoleuca",1,null,"Dipsas mikanii",7,null,null,0,0,0,null,0,0,0,null,"AT","Philodryas olfersii",1,null,"RE","Pygochelidon cyanoleuca",1]
[null,null,null,null,null,null,null,null,"AT","Callithrix jacchus",1,null,"RE","Ramphastos toco",1,null,"Erythrolamprus aesculapii",2,null,null,0,0,0,null,0,0,0,null,"AT","Callithrix jacchus",1,null,"RE","Ramphastos toco",1]
[null,null,null,null,null,null,null,null,"AT","Amphisbaena alba",2,null,"RE","Bothrops jararaca",4,null,"Micrurus sp.",1,null,null,0,0,0,null,0,0,0,null,"AT","Amphisbaena alba",2,null,"RE","Bothrops jararaca",4]
[null,null,null,null,null,null,null,null,"AT","Salvator meirianae",1,null,"RE","Zenaida auriculata",1,null,"Oxyrhopus guibei",4,null,null,0,0,0,null,0,0,0,null,"AT","Salvator meirianae",1,null,"RE","Zenaida auriculata",1]
[null,null,null,null,null,null,null,null,null,null,null,null,"RE","Rhinella sp.",1,null,"Philodryas olfersii",2,null,null,0,0,0,null,0,0,0,null,0,0,0,null,"RE","Rhinella sp.",1]
[null,null,null,null,null,null,null,null,null,null,null,null,"RE","Cavia aparea",1,null,"Pygochelidon cyanoleuca",1,null,null,0,0,0,null,0,0,0,null,0,0,0,null,"RE","Cavia aparea",1]
[null,null,null,null,null,null,null,null,null,null,null,null,null,null,null,null,"Ramphastos toco",1,null,null,0,0,0,null,0,0,0,null,0,0,0,null,0,0,0]
[null,null,null,null,null,null,null,null,null,null,null,null,null,null,null,null,"Callithrix jacchus",1,null,null,0,0,0,null,0,0,0,null,0,0,0,null,0,0,0]
[null,null,null,null,null,null,null,null,null,null,null,null,null,null,null,null,"Amphisbaena alba",2,null,null,0,0,0,null,0,0,0,null,0,0,0,null,0,0,0]
[null,null,null,null,null,null,null,null,null,null,null,null,null,null,null,null,"Bothrops jararaca",4,null,null,0,0,0,null,0,0,0,null,0,0,0,null,0,0,0]
[null,null,null,null,null,null,null,null,null,null,null,null,null,null,null,null,"Zenaida auriculata",1,null,null,0,0,0,null,0,0,0,null,0,0,0,null,0,0,0]
[null,null,null,null,null,null,null,null,null,null,null,null,null,null,null,null,"Rhinella sp.",1,null,null,0,0,0,null,0,0,0,null,null,null,null,null,0,0,0]
[null,null,null,null,null,null,null,null,null,null,null,null,null,null,null,null,"Salvator meirianae",1,null,null,0,0,0,null,0,0,0,null,null,null,null,null,0,0,0]
[null,null,null,null,null,null,null,null,null,null,null,null,null,null,null,null,"Cavia aparea",1,null,null,0,0,0,null,0,0,0]
[null,null,null,null,null,null,null,null,null,null,null,null,null,null,null,null,null,null,null,null,0,0,0,null,0,0,0]
[null,null,null,null,null,null,null,null,null,null,null,null,null,null,null,null,null,null,null,null,0,0,0,null,0,0,0]
[null,null,null,null,null,null,null,null,null,null,null,null,null,null,null,null,null,null,null,null,0,0,0,null,0,0,0]
[null,null,null,null,null,null,null,null,null,null,null,null,null,null,null,null,null,null,null,null,0,0,0,null,0,0,0]
[null,null,null,null,null,null,null,null,null,null,null,null,null,null,null,null,null,null,null,null,0,0,0,null,0,0,0]
[null,null,null,null,null,null,null,null,null,null,null,null,null,null,null,null,null,null,null,null,0,0,0,null,0,0,0]
[null,null,null,null,null,null,null,null,null,null,null,null,null,null,null,null,null,null,null,null,0,0,0,null,0,0,0]
[null,null,null,null,null,null,null,null,null,null,null,null,null,null,null,null,null,null,null,null,0,0,0,null,0,0,0]
[null,null,null,null,null,null,null,null,null,null,null,null,null,null,null,null,null,null,null,null,0,0,0,null,0,0,0]
[null,null,null,null,null,null,null,null,null,null,null,null,null,null,null,null,null,null,null,null,0,0,0,null,0,0,0]
[null,null,null,null,null,null,null,null,null,null,null,null,null,null,null,null,null,null,null,null,null,null,null,null,{"$f":"E35","v":0},{"$f":"F35","v":0},{"$f":"G35","v":0}]
[null,null,null,null,null,null,null,null,null,null,null,null,null,null,null,null,null,null,null,null,null,null,null,null,0,0,0]
[null,null,null,null,null,null,null,null,null,null,null,null,null,null,null,null,null,null,null,null,null,null,null,null,0,0,0]
[null,null,null,null,null,null,null,null,null,null,null,null,null,null,null,null,null,null,null,null,null,null,null,null,0,0,0]
[null,null,null,null,null,null,null,null,null,null,null,null,null,null,null,null,null,null,null,null,null,null,null,null,0,0,0]
[null,null,null,null,null,null,null,null,null,null,null,null,null,null,null,null,null,null,null,null,null,null,null,null,0,0,0]
[null,null,null,null,null,null,null,null,null,null,null,null,null,null,null,null,null,null,null,null,null,null,null,null,0,0,0]
[null,null,null,null,null,null,null,null,null,null,null,null,null,null,null,null,null,null,null,null,null,null,null,null,0,0,0]
[null,null,null,null,null,null,null,null,null,null,null,null,null,null,null,null,null,null,null,null,null,null,null,null,0,0,0]
[null,null,null,null,null,null,null,null,null,null,null,null,null,null,null,null,null,null,null,null,null,null,null,null,0,0,0]
[null,null,null,null,null,null,null,null,null,null,null,null,null,null,null,null,null,null,null,null,null,null,null,null,0,0,0]
[null,null,null,null,null,null,null,null,null,null,null,null,null,null,null,null,null,null,null,null,null,null,null,null,0,0,0]
[null,null,null,null,null,null,null,null,null,null,null,null,null,null,null,null,null,null,null,null,null,null,null,null,0,0,0]
[null,null,null,null,null,null,null,null,null,null,null,null,null,null,null,null,null,null,null,null,null,null,null,null,0,0,0]
[null,null,null,null,null,null,null,null,null,null,null,null,null,null,null,null,null,null,null,null,null,null,null,null,0,0,0]
[null,null,null,null,null,null,null,null,null,null,null,null,null,null,null,null,null,null,null,null,null,null,null,null,0,0,0]
[null,null,null,null,null,null,null,null,null,null,null,null,null,null,null,null,null,null,null,null,null,null,null,null,0,0,0]
[null,null,null,null,null,null,null,null,null,null,null,null,null,null,null,null,null,null,null,null,null,null,null,null,0,0,0]
[null,null,null,null,null,null,null,null,null,null,null,null,null,null,null,null,null,null,null,null,null,null,null,null,0,0,0]
[null,null,null,null,null,null,null,null,null,null,null,null,null,null,null,null,null,null,null,null,null,null,null,null,0,0,0]
[null,null,null,null,null,null,null,null,null,null,null,null,null,null,null,null,null,null,null,null,null,null,null,null,0,0,0]
[null,null,null,null,null,null,null,null,null,null,null,null,null,null,null,null,null,null,null,null,null,null,null,null,0,0,0]
[null,null,null,null,null,null,null,null,null,null,null,null,null,null,null,null,null,null,null,null,null,null,null,null,0,0,0]
[null,null,null,null,null,null,null,null,null,null,null,null,null,null,null,null,null,null,null,null,null,null,null,null,0,0,0]
[null,null,null,null,null,null,null,null,null,null,null,null,null,null,null,null,null,null,null,null,null,null,null,null,0,0,0]
[null,null,null,null,null,null,null,null,null,null,null,null,null,null,null,null,null,null,null,null,null,null,null,null,0,0,0]
[null,null,null,null,null,null,null,null,null,null,null,null,null,null,null,null,null,null,null,null,null,null,null,null,0,0,0]
[null,null,null,null,null,null,null,null,null,null,null,null,null,null,null,null,null,null,null,null,null,null,null,null,0,0,0]
[null,null,null,null,null,null,null,null,null,null,null,null,null,null,null,null,null,null,null,null,null,null,null,null,0,0,0]
[null,null,null,null,null,null,null,null,null,null,null,null,null,null,null,null,null,null,null,null,null,null,null,null,0,0,0]
[null,null,null,null,null,null,null,null,null,null,null,null,null,null,null,null,null,null,null,null,null,null,null,null,0,0,0]
[null,null,null,null,null,null,null,null,null,null,null,null,null,null,null,null,null,null,null,null,null,null,null,null,0,0,0]
[null,null,null,null,null,null,null,null,null,null,null,null,null,null,null,null,null,null,null,null,null,null,null,null,0,0,0]
[null,null,null,null,null,null,null,null,null,null,null,null,null,null,null,null,null,null,null,null,null,null,null,null,0,0,0]
[null,null,null,null,null,null,null,null,null,null,null,null,null,null,null,null,null,null,null,null,null,null,null,null,0,0,0]

{"sheet":"Graf_2b","index":12,"n_rows":28,"n_cols":4,"rows_kept":28,"cut":false,"hidden":false,"merged":[]}
[null,null,"Resgastes","Atropelados"]
[{"$f":"Graf_2!Q2","v":"Tipo "},{"$f":"Graf_2!R2","v":"(Vários itens)"}]
[{"$f":"Graf_2!Q4","v":"Nome científico"},{"$f":"Graf_2!R4","v":"Contagem de Nome científico"},"RE","AT"]
[{"$f":"Graf_2!Q11","v":"Dipsas mikanii"},{"$f":"Graf_2!R11","v":7},{"$f":"IFERROR(VLOOKUP(A4,Graf_2!$AH$4:$AI$1048576,2,FALSE),0)","v":5},{"$f":"IFERROR(VLOOKUP(A4,Graf_2!$AD$4:$AE$1048576,2,FALSE),0)","v":2}]
[{"$f":"Graf_2!Q14","v":"Oxyrhopus guibei"},{"$f":"Graf_2!R14","v":4},{"$f":"IFERROR(VLOOKUP(A5,Graf_2!$AH$4:$AI$1048576,2,FALSE),0)","v":1},{"$f":"IFERROR(VLOOKUP(A5,Graf_2!$AD$4:$AE$1048576,2,FALSE),0)","v":3}]
[{"$f":"Graf_2!Q7","v":"Crotalus durissus"},{"$f":"Graf_2!R7","v":8},{"$f":"IFERROR(VLOOKUP(A6,Graf_2!$AH$4:$AI$1048576,2,FALSE),0)","v":8},{"$f":"IFERROR(VLOOKUP(A6,Graf_2!$AD$4:$AE$1048576,2,FALSE),0)","v":0}]
[{"$f":"Graf_2!Q9","v":"Didelphis albiventris"},{"$f":"Graf_2!R9","v":2},{"$f":"IFERROR(VLOOKUP(A7,Graf_2!$AH$4:$AI$1048576,2,FALSE),0)","v":1},{"$f":"IFERROR(VLOOKUP(A7,Graf_2!$AD$4:$AE$1048576,2,FALSE),0)","v":1}]
[{"$f":"Graf_2!Q12","v":"Erythrolamprus aesculapii"},{"$f":"Graf_2!R12","v":2},{"$f":"IFERROR(VLOOKUP(A8,Graf_2!$AH$4:$AI$1048576,2,FALSE),0)","v":0},{"$f":"IFERROR(VLOOKUP(A8,Graf_2!$AD$4:$AE$1048576,2,FALSE),0)","v":2}]
[{"$f":"Graf_2!Q20","v":"Bothrops jararaca"},{"$f":"Graf_2!R20","v":4},{"$f":"IFERROR(VLOOKUP(A9,Graf_2!$AH$4:$AI$1048576,2,FALSE),0)","v":4},{"$f":"IFERROR(VLOOKUP(A9,Graf_2!$AD$4:$AE$1048576,2,FALSE),0)","v":0}]
[{"$f":"Graf_2!Q10","v":"Didelphis aurita"},{"$f":"Graf_2!R10","v":1},{"$f":"IFERROR(VLOOKUP(A10,Graf_2!$AH$4:$AI$1048576,2,FALSE),0)","v":0},{"$f":"IFERROR(VLOOKUP(A10,Graf_2!$AD$4:$AE$1048576,2,FALSE),0)","v":1}]
[{"$f":"Graf_2!Q13","v":"Micrurus sp."},{"$f":"Graf_2!R13","v":1},{"$f":"IFERROR(VLOOKUP(A11,Graf_2!$AH$4:$AI$1048576,2,FALSE),0)","v":0},{"$f":"IFERROR(VLOOKUP(A11,Graf_2!$AD$4:$AE$1048576,2,FALSE),0)","v":1}]
[{"$f":"Graf_2!Q15","v":"Philodryas olfersii"},{"$f":"Graf_2!R15","v":2},{"$f":"IFERROR(VLOOKUP(A12,Graf_2!$AH$4:$AI$1048576,2,FALSE),0)","v":1},{"$f":"IFERROR(VLOOKUP(A12,Graf_2!$AD$4:$AE$1048576,2,FALSE),0)","v":1}]
[{"$f":"Graf_2!Q19","v":"Amphisbaena alba"},{"$f":"Graf_2!R19","v":2},{"$f":"IFERROR(VLOOKUP(A13,Graf_2!$AH$4:$AI$1048576,2,FALSE),0)","v":0},{"$f":"IFERROR(VLOOKUP(A13,Graf_2!$AD$4:$AE$1048576,2,FALSE),0)","v":2}]
[{"$f":"Graf_2!Q5","v":"Apodemus sylvaticus"},{"$f":"Graf_2!R5","v":1},{"$f":"IFERROR(VLOOKUP(A14,Graf_2!$AH$4:$AI$1048576,2,FALSE),0)","v":1},{"$f":"IFERROR(VLOOKUP(A14,Graf_2!$AD$4:$AE$1048576,2,FALSE),0)","v":0}]
[{"$f":"Graf_2!Q6","v":"Copeoglossum nigropunctatum"},{"$f":"Graf_2!R6","v":1},{"$f":"IFERROR(VLOOKUP(A15,Graf_2!$AH$4:$AI$1048576,2,FALSE),0)","v":1},{"$f":"IFERROR(VLOOKUP(A15,Graf_2!$AD$4:$AE$1048576,2,FALSE),0)","v":0}]
[{"$f":"Graf_2!Q8","v":"Dasypus novemcinctus"},{"$f":"Graf_2!R8","v":1},{"$f":"IFERROR(VLOOKUP(A16,Graf_2!$AH$4:$AI$1048576,2,FALSE),0)","v":0},{"$f":"IFERROR(VLOOKUP(A16,Graf_2!$AD$4:$AE$1048576,2,FALSE),0)","v":1}]
[{"$f":"Graf_2!Q16","v":"Pygochelidon cyanoleuca"},{"$f":"Graf_2!R16","v":1},{"$f":"IFERROR(VLOOKUP(A17,Graf_2!$AH$4:$AI$1048576,2,FALSE),0)","v":1},{"$f":"IFERROR(VLOOKUP(A17,Graf_2!$AD$4:$AE$1048576,2,FALSE),0)","v":0}]
[{"$f":"Graf_2!Q17","v":"Ramphastos toco"},{"$f":"Graf_2!R17","v":1},{"$f":"IFERROR(VLOOKUP(A18,Graf_2!$AH$4:$AI$1048576,2,FALSE),0)","v":1},{"$f":"IFERROR(VLOOKUP(A18,Graf_2!$AD$4:$AE$1048576,2,FALSE),0)","v":0}]
[{"$f":"Graf_2!Q18","v":"Callithrix jacchus"},{"$f":"Graf_2!R18","v":1},{"$f":"IFERROR(VLOOKUP(A19,Graf_2!$AH$4:$AI$1048576,2,FALSE),0)","v":0},{"$f":"IFERROR(VLOOKUP(A19,Graf_2!$AD$4:$AE$1048576,2,FALSE),0)","v":1}]
[{"$f":"Graf_2!Q21","v":"Zenaida auriculata"},{"$f":"Graf_2!R21","v":1},{"$f":"IFERROR(VLOOKUP(A20,Graf_2!$AH$4:$AI$1048576,2,FALSE),0)","v":1},{"$f":"IFERROR(VLOOKUP(A20,Graf_2!$AD$4:$AE$1048576,2,FALSE),0)","v":0}]
[{"$f":"Graf_2!Q22","v":"Rhinella sp."},{"$f":"Graf_2!R22","v":1},{"$f":"IFERROR(VLOOKUP(A21,Graf_2!$AH$4:$AI$1048576,2,FALSE),0)","v":1},{"$f":"IFERROR(VLOOKUP(A21,Graf_2!$AD$4:$AE$1048576,2,FALSE),0)","v":0}]
[{"$f":"Graf_2!Q23","v":"Salvator meirianae"},{"$f":"Graf_2!R23","v":1},{"$f":"IFERROR(VLOOKUP(A22,Graf_2!$AH$4:$AI$1048576,2,FALSE),0)","v":0},{"$f":"IFERROR(VLOOKUP(A22,Graf_2!$AD$4:$AE$1048576,2,FALSE),0)","v":1}]
[{"$f":"Graf_2!Q24","v":"Cavia aparea"},{"$f":"Graf_2!R24","v":1},{"$f":"IFERROR(VLOOKUP(A23,Graf_2!$AH$4:$AI$1048576,2,FALSE),0)","v":1},{"$f":"IFERROR(VLOOKUP(A23,Graf_2!$AD$4:$AE$1048576,2,FALSE),0)","v":0}]
[{"$f":"Graf_2!Q25","v":0},{"$f":"Graf_2!R25","v":0},{"$f":"IFERROR(VLOOKUP(A24,Graf_2!$AH$4:$AI$1048576,2,FALSE),0)","v":0},{"$f":"IFERROR(VLOOKUP(A24,Graf_2!$AD$4:$AE$1048576,2,FALSE),0)","v":0}]
[{"$f":"Graf_2!Q26","v":0},{"$f":"Graf_2!R26","v":0},{"$f":"IFERROR(VLOOKUP(A25,Graf_2!$AH$4:$AI$1048576,2,FALSE),0)","v":0},{"$f":"IFERROR(VLOOKUP(A25,Graf_2!$AD$4:$AE$1048576,2,FALSE),0)","v":0}]
[{"$f":"Graf_2!Q27","v":0},{"$f":"Graf_2!R27","v":0},{"$f":"IFERROR(VLOOKUP(A26,Graf_2!$AH$4:$AI$1048576,2,FALSE),0)","v":0},{"$f":"IFERROR(VLOOKUP(A26,Graf_2!$AD$4:$AE$1048576,2,FALSE),0)","v":0}]
[{"$f":"Graf_2!Q28","v":0},{"$f":"Graf_2!R28","v":0},{"$f":"IFERROR(VLOOKUP(A27,Graf_2!$AH$4:$AI$1048576,2,FALSE),0)","v":0},{"$f":"IFERROR(VLOOKUP(A27,Graf_2!$AD$4:$AE$1048576,2,FALSE),0)","v":0}]
["ARRASTAR PARA BAIXO!!"]

{"sheet":"Treinamento","index":13,"n_rows":32,"n_cols":6,"rows_kept":32,"cut":false,"hidden":false,"merged":[]}
[]
[null,"Tema","Data","Hora","Público-alvo","Local"]
[null,"Acidentes com animais peçonhentos","2020-11-30","1 Hora",null,"Consórcio BDP"]
[null,"Atropelamento de animais silvestres","2020-11-30","1 Hora","Equipe administrativa","Consórcio BDP"]
[null,"Resgate e Atropelamento de animais silvestres","2020-12-09","1 Hora","Equipe administrativa","Consórcio BDP"]
[null,"Resgate de fauna","2021-01-22","1 Hora","Equipe de plantio","Flora Pantanal"]
[null,"Crimes ambientais","2021-01-29","1Hora","Equipe de campo interna e terceirizada","Consórcio BDP e Flora pantanal"]
[]
["jan","Tema","Data","Hora","Público-alvo","Local"]
[null,"Acidentes com animais peçonhentos","2020-01-06","1 Hora"," Equipe administrativa / Equipe de Plantio","Consórcio BDP e Flora pantanal"]
[null,"Resgate de fauna","2021-01-22","1 Hora","Equipe de plantio","Flora Pantanal"]
[null,"Crimes ambientais","2021-01-29","1Hora","Equipe de campo interna e terceirizada","Consórcio BDP e Flora pantanal"]
[]
[null,"Tema","Data","Hora","Público-alvo","Local"]
[null,"Manejo de Melissofauna","2021-02-11","2 Hora","Equipe administrativa","Consórcio BDP"]
[null,"Crimes Ambientais","2021-02-19","1 Hora","Equipe administrativa","Consórcio BDP"]
[null,"Resgate e Atropelamento de Animais Silvestres","2021-02-25","1 Hora","Equipe administrativa","Consórcio BDP"]
[]
[null,"Tema","Data","Hora","Público-alvo","Local"]
[null,"Atropelamento de Animais Silvestres","2021-03-12","2 Hora","Equipe administrativa","Consórcio BDP"]
[null,"Procedimentos de Manejo de Animais Silvestres e Animais Peçonhentos","2021-03-29","2 Hora","Equipe administrativa","Consórcio BDP"]
[null,"Abelhas em campo","2021-03-29","2 Hora","Equipe administrativa","Consórcio BDP"]
[]
[null,"Tema","Data","Hora","Público-alvo","Local"]
[null,"Animais Peçonhentos","2021-04-22","2 Hora","Equipe administrativa","Consórcio BDP"]
[null,"Crimes Ambientais","2021-04-26","2 Hora","Equipe administrativa","Consórcio BDP"]
[]
[null,"Tema","Data","Hora","Público-alvo","Local"]
[null,"Sinalização, atropelamento e resgate.","2021-05-07","2 Horas","Colaboradores","Consórcio BDP"]
[null,"Animais peçonhentos.","2021-05-14","2 Horas","Colaboradores","Consórcio BDP"]
[null,"Animais peçonhentos, procedimentos em caso de acidentes, resgate e crimes ambientais.","2021-05-21","2 Horas","Brito Ambiental","Consórcio BDP"]
[null,"EPIs, animais peçonhentos, Procedimentos de emergência e crimes ambientais.","2021-05-27","2 Horas","Colaboradores","Consórcio BDP"]

{"sheet":"Quad","index":14,"n_rows":99,"n_cols":38,"rows_kept":99,"cut":false,"hidden":false,"merged":[[72,5,74,5],[72,6,74,6],[72,7,74,7],[72,12,74,12],[73,8,73,9],[73,10,73,11],[4,34,5,34],[1,13,2,13],[72,8,72,11],[1,17,1,18],[1,24,1,25],[1,20,2,20],[1,21,2,21],[1,22,2,22],[1,23,2,23],[69,0,70,0],[1,14,2,14],[1,15,2,15],[1,16,2,16],[50,0,52,0]]}
[null,"Quadro 6 – Treinamentos ministrados no período de 01 de Junho  a 30 de setembro 2020",null,null,null,null,null,null,null,null,null,null,null,"ANEXO 0322–01–AS–RQS–0004.07–PMCF - antigo Quadro 11",null,null,null,null,null,null,"AVISTAMENTOS - Quadro 9 – Registro de avistamento da fauna – 01 de Junho  a 30 de setembro 2020."]
[null,"Tema","Data","Hora","Público alvo","Local",null,null,null,null,null,null,null,"Nome científico","Nome popular","Data","Quantidade","Coordenadas",null,null,"Nome científico","Nome popular","Data","Hora","Coordenadas",null,null,null,null,null,null,null,null,null,"PROGRAMA DE MONITORAMENTO E CONSERVAÇÃO DA FAUNA","Total","1º Quadimestre","2º Quadimestre"]
[null,"Utilização de EPI; Crime ambiental; Autorizações de Manejo","2020-08-11","2 Horas","Colaboradores em geral","Consórcio BDP",null,"Atropelamento de animais silvestres","2020-11-30","1 Hora","Equipe administrativa","Consórcio BDP",null,null,null,null,null,"x","y",null,null,null,null,null,"X","Y",null,null,null,null,null,null,null,null,"Número total de animais resgatados (RE + AT) [Indivíduo/espécie]","43/20","19/10","24/14"]
[null,"Afugentamento e resgate de fauna durante supressão vegetal","2020-08-21","2 Horas","Equipe de supressão e M.A","Consórcio BDP",null,"Resgate e Atropelamento de animais silvestres","2020-12-09","1 Hora","Equipe administrativa","Consórcio BDP",null,null,null,null,null,null,null,null,null,null,null,null,null,null,null,null,null,null,null,null,null,null,"Subprograma de Resgate da Fauna Silvestre"]
[null,"Febre maculosa","2020-08-21","2 Horas","Equipe de supressão e M.A","Consórcio BDP",null,"Acidentes com animais peçonhentos","2020-11-30","1 Hora",null,"Consórcio BDP",null,null,null,null,null,null,null,null,null,null,null,null,null,null,null,null,null,null,null,null,null,null,"Indicador","Status Acumulado","Status do período","Status do período"]
[null,"Atropelamento de animais silvestres","2020-08-21","2 Horas","Equipe de supressão e M.A","Consórcio BDP",null,"Resgate de fauna","2021-01-22","1 Hora","Equipe de plantio","Flora Pantanal",null,null,null,null,null,null,null,null,null,null,null,null,null,null,null,null,null,null,null,null,null,null,null,"Indivíduo / Espécie"," Indivíduo / Espécie"," Indivíduo / Espécie"]
[null,"Atropelamento de animais silvestres","2020-09-21","2 Horas","Colaboradores em geral","Consórcio BDP",null,"Crimes ambientais","2021-01-29","1Hora","Equipe de campo interna e terceirizada","Consórcio BDP e Flora pantanal",null,null,null,null,null,null,null,null,null,null,null,null,null,null,null,null,null,null,null,null,null,null,"Afugentamento (número aproximado)","3/3","3/3","0/0"]
[null,"Não alimente os animais domésticos na obra","2020-09-23","2 Horas","Equipe de supressão e motoristas","Consórcio BDP",null,null,null,null,null,null,null,null,null,null,null,null,null,null,null,null,null,null,null,null,null,null,null,null,null,null,null,null,"Número de animais resgatados (RE) [Indivíduo/espécie]","27/13","10/7","17/10"]
[null,"Animais em extinção ","2020-09-28","2 Horas","Colaboradores em geral","Consórcio BDP",null,null,null,null,null,null,null,null,null,null,null,null,null,null,null,null,null,null,null,null,null,null,null,null,null,null,null,null,"Subprograma de Recepção, Atendimento, e Destino dos Animais Silvestres"]
[null,"Atropelamento de animais silvestres","2020-11-30","1 Hora","Equipe administrativa","Consórcio BDP",null,null,null,null,null,null,null,null,null,null,null,null,null,null,null,null,null,null,null,null,null,null,null,null,null,null,null,null,"Destinação - Número de animais realocados (soltura imediata – sem quarentena). \nObs. Soma dos animais recebidos na base e animais que não tiveram passagem na base. Porém não entram os de quarentena.",17,8,9]
[null,"Resgate e Atropelamento de animais silvestres","2020-12-09","1 Hora","Equipe administrativa","Consórcio BDP",null,null,null,null,null,null,null,null,null,null,null,null,null,null,null,null,null,null,null,null,null,null,null,null,null,null,null,null,"Destinação - Animais reabilitados e reintroduzidos na natureza (soltura) [Soltura pós-quarentena - SPQ]",1,1,0]
[null,null,null,null,null,null,null,null,null,null,null,null,null,null,null,null,null,null,null,null,null,null,null,null,null,null,null,null,null,null,null,null,null,null,"Destinação - Óbitos pós-quarentena [OPQ]",1,0,1]
[null,null,null,null,null,null,null,null,null,null,null,null,null,null,null,null,null,null,null,null,null,null,null,null,null,null,null,null,null,null,null,null,null,null,"Animais armazenados aguardando destinação final (Óbitos)",9,10,9]
[null,null,null,null,null,null,null,null,null,null,null,null,null,null,null,null,null,null,null,null,null,null,null,null,null,null,null,null,null,null,null,null,null,null,"Destinação - Encaminhamentos ao CRAS Mata Ciliar\nSoma dos animais (CRAS)",3,0,3]
[null,null,null,null,null,null,null,null,null,null,null,null,null,null,null,null,null,null,null,null,null,null,null,null,null,null,null,null,null,null,null,null,null,null,"Destinação - Óbitos/UNIFAJ - Jaguariúna",12,0,12]
[null,null,null,null,null,null,null,null,null,null,null,null,null,null,null,null,null,null,null,null,null,null,null,null,null,null,null,null,null,null,null,null,null,null,"Destinação - Óbito (descarte)",0,0,0]
[null,null,null,null,null,null,null,null,null,null,null,null,null,null,null,null,null,null,null,null,null,null,null,null,null,null,null,null,null,null,null,null,null,null,"Recepção e atendimento de animais na Base de Fauna para atendimento",29,10,19]
[null,null,null,null,null,null,null,null,null,null,null,null,null,null,null,null,null,null,null,null,null,null,null,null,null,null,null,null,null,null,null,null,null,null,"Subprograma de Monitoramento dos Eventos de Atropelamento de Fauna"]
[null,"Quadro 7 – Resumo dos laudos de vistoria de afugentamento prévio. ",null,null,null,null,null,null,null,null,null,null,null,null,null,null,null,null,null,null,null,null,null,null,null,null,null,null,null,null,null,null,null,null,"Número de indivíduos / Número de espécies - AVISTAMENTOS","145/58","86/37","59/39"]
[null,"Parcela - Localização","Data","Área","Percentual","Númeroi de àrvores","área",null,"Subtotal",null,null,null,null,null,null,null,null,null,null,null,null,null,null,null,null,null,null,null,null,null,null,null,null,null,"Número de indivíduos resgatados / Número de espécies identificados  ","16/12","9/7","7/6"]
[null,"Parcela 10","2020-08-17",0.06,null,67,null,null,null,null,null,null,null,null,null,null,null,null,null,null,null,null,null,null,null,null,null,null,null,null,null,null,null,null,"Número de registros por km percorrido ",5.3333333333333337E-2,0.09,7.0000000000000007E-2]
[null,"Parcela 11","2020-08-18",0.28000000000000003,null,200]
[null,"Parcela 17","2020-08-19",0.78,null,549]
[null,"Parcela 7","2020-08-21",1.05,null,948,{"$f":"SUM(D21:D24)","v":2.17},"3ª semana"]
[null,"Parcela 38","2020-08-26",0.17,null,669]
[null,"Parcela 19","2020-08-28",14.29,null,315,{"$f":"SUM(D25:D26)","v":14.459999999999999},"4ª semana"]
[null,"Parcela 35","2020-08-31",16.920000000000002,null,463,{"$f":"D27","v":16.920000000000002},"5ª semana",{"$f":"SUM(G24:G27)","v":33.549999999999997}]
[null,"Parcela 12","2020-09-02",0.16,null,121]
[null,"Parcela 14","2020-09-02",0.35,null,251]
[null,"Parcela 8,1","2020-09-03",1.54,null,82]
[null,"Parcela 23","2020-09-04",2.29,null,1741]
[null,"Parcela 8","2020-09-09",22.49,null,260]
[null,"Parcela 13","2020-09-18",0.16,null,145]
[null,"Parcela 15","2020-09-18",0.1,null,111]
[null,"Parcela 22","2020-09-22",0.87,null,870]
[]
[]
[]
[]
[]
[]
[]
[]
[]
[]
[]
[]
[]
[]
["DESTINAÇÕES - Quadro 8 – Colmeias de abelhas sem ferrão resgatadas."]
["Atividades Executadas","Atual","1º Q","2º Q","Acumulado"]
[null,"N° indivíduos","N° indivíduos","N° indivíduos","N° indivíduos/"]
[null,null,null,null,"Espécie"]
[{"$f":"Geral_antigão!A7","v":"Número total de animais resgatados (RE + AT com vida) [Indivíduo/espécie]"},{"$f":"Geral_antigão!C7","v":"15/14"},"17/10","24/14",{"$f":"Geral_antigão!B7","v":"43/20"}]
[{"$f":"Geral_antigão!A14","v":"Destinação - Número de animais realocados (soltura imediata – sem quarentena). \nObs. Soma dos animais recebidos na base e animais que não tiveram passagem na base. Porém não entram os de quarentena."},{"$f":"Geral_antigão!C14","v":8},9,9,{"$f":"Geral_antigão!B14","v":17}]
[{"$f":"Geral_antigão!A15","v":"Destinação - Animais reabilitados e reintroduzidos na natureza (soltura) [Soltura pós-quarentena - SPQ]"},{"$f":"Geral_antigão!C15","v":0},0,0,{"$f":"Geral_antigão!B15","v":1}]
["Destinação - Óbitos pós-quarentena [OPQ]",0,1,0]
[{"$f":"Geral_antigão!A17","v":"Animais armazenados aguardando destinação final (Óbitos)*"},{"$f":"Geral_antigão!C17","v":6},9,9,{"$f":"Geral_antigão!B17","v":10}]
[{"$f":"Geral_antigão!A18","v":"Destinação - Encaminhamentos ao CRAS Mata Ciliar\nSoma dos animais (CRAS)"},{"$f":"Geral_antigão!C18","v":0},3,3,{"$f":"Geral_antigão!B18","v":0}]
[{"$f":"Geral_antigão!A19","v":"Destinação - Óbitos/UNIFAJ - Jaguariúna"},{"$f":"Geral_antigão!C19","v":0},12,12,{"$f":"Geral_antigão!B19","v":0}]
[{"$f":"Geral_antigão!A20","v":"Destinação - Óbito (descarte)"},{"$f":"Geral_antigão!C20","v":0},0,0,{"$f":"Geral_antigão!B20","v":0}]
[]
["Atendimento na Base de Apoio de Animais Silvestres",{"$f":"Geral_antigão!C21","v":0},19,19,{"$f":"Geral_antigão!B21","v":0}]
["Afugentamentos (número aproximado - Indivíduo/Espécie)",{"$f":"Geral_antigão!C11","v":"0/0"},"59/23","0/0",{"$f":"Geral_antigão!B11","v":"3/3"}]
[]
[]
["PROGRAMA DE MONITORAMENTO E CONSERVAÇÃO DA FAUNA","Total","1º Quadimestre","2º Quadimestre"]
["Número total de animais resgatados (RE + AT) [Indivíduo/espécie]","43/20","19/10","24/14"]
["Subprograma de Resgate da Fauna Silvestre"]
["Indicador","Status Acumulado","Status do período","Status do período"]
[null,"Indivíduo / Espécie"," Indivíduo / Espécie"," Indivíduo / Espécie"]
["Afugentamento (número aproximado)","3/3","3/3","0/0",null,"HMENOPTERAS - Quadro 89 – Lista dos animais silvestres atropelados e identificados durante o monitoramento – 01 de Junho  a 30 de setembro 2020. "]
["Número de animais resgatados (RE) [Indivíduo/espécie]","27/13","10/7","17/10",null,"DATA do resgate","Nome científico","Nome popular","Coordenadas",null,null,null,"DATA da destinação"]
["Subprograma de Recepção, Atendimento, e Destino dos Animais Silvestres",null,null,null,null,null,null,null,"Resgate",null,"Realocação"]
["Destinação - Número de animais realocados (soltura imediata – sem quarentena). \nObs. Soma dos animais recebidos na base e animais que não tiveram passagem na base. Porém não entram os de quarentena.",17,8,9,null,null,null,null,"X ","Y","X ","Y"]
["Destinação - Animais reabilitados e reintroduzidos na natureza (soltura) [Soltura pós-quarentena - SPQ]",1,1,0,null,{"$f":"Hymenoptera!B3","v":"2020-09-05"},{"$f":"Hymenoptera!J3","v":"Tetragonisca angustula"},{"$f":"Hymenoptera!K3","v":"Jataí"},{"$f":"Hymenoptera!D3","v":307460},{"$f":"Hymenoptera!E3","v":7490920},{"$f":"Hymenoptera!M3","v":310854},{"$f":"Hymenoptera!N3","v":7492634},{"$f":"Hymenoptera!L3","v":"2020-09-19"}]
["Destinação - Óbitos pós-quarentena [OPQ]",1,0,1]
["Animais armazenados aguardando destinação final (Óbitos)",9,10,9]
["Destinação - Encaminhamentos ao CRAS Mata Ciliar\nSoma dos animais (CRAS)",3,0,3]
["Destinação - Óbitos/UNIFAJ - Jaguariúna",12,0,12]
["Destinação - Óbito (descarte)",0,0,0]
["Recepção e atendimento de animais na Base de Fauna para atendimento",29,10,19]
["Subprograma de Monitoramento dos Eventos de Atropelamento de Fauna"]
["Número de indivíduos / Número de espécies - AVISTAMENTOS","145/58","86/37","59/39"]
["Número de indivíduos resgatados / Número de espécies identificados  ","16/12","9/7","7/6"]
["Número de registros por km percorrido ",5.3333333333333337E-2,0.09,7.0000000000000007E-2]
[]
[]
[]
[]
[]
[]
[null,"ID","Tipo ","Data","Identificação do Local","Fitofisionomia/ Ambiente","GRUPO","Nome científico","Nome popular","Cond. do Animal","Base de Fauna","Acidentada em decorrência da obra","Quarentena","Destino","Data de destinação"]
[null,3,"RE","2020-08-24","Canteiro de Apoio","CA","HERPETOFAUNA","Copeoglossum nigropunctatum","Calango-cobra","F","Sim","Sim","Sim","SPQ","2020-08-25"]
[null,24,"RE","2020-11-28","Canteiro de Apoio","CA","AVIFAUNA","Pygochelidon cyanoleuca","Andorinha-pequena-de-casa","F","Sim","Não","Não","CRAS","2020-11-28"]
[null,26,"RE","2020-12-02","Canteiro de Apoio","Infraestrutura","AVIFAUNA","Zenaida auriculata","Avoante","F","Sim","Não","Não","CRAS","2020-12-02"]
[null,29,"AT","2021-01-05",null,"FES","HERPETOFAUNA","Philodryas olfersii","Cobra - Verde","F","Sim","-","Não","BF","-"]
[null,35,"AT","2021-01-16",null,"PA","HERPETOFAUNA","Amphisbaena alba","Cobra - cega","F","Sim","-","Não","BF","-"]
[null,43,"AT","2021-01-28","Canteiro de Apoio","Canteiro de obras","HERPETOFAUNA","Amphisbaena alba","Cobra-cega","F","Sim","sim","Não","CRAS","2021-01-28"]

{"sheet":"Decreto","index":15,"n_rows":1,"n_cols":1,"rows_kept":1,"cut":false,"hidden":false,"merged":[]}
["Decreto nº 63.853, de 27 de novembro de 2018 - Assembleia Legislativa do Estado de São Paulo"]